{"text_format":"1","workbook":"xlsx","n_sheets":4,"sheets":["TMC (Desc)","TMC (Code)","Communication Facility (Desc)","Communication Facility (Code)"],"not_rendered":{"charts":0,"images":0,"macros":1,"external_links":1,"defined_names":15,"comments":0,"pivot_tables":0},"unopened":[],"bounds":{"document_bytes":16777216,"sheet_cells":100000,"rows_first":2000,"rows_last":500,"rows_between":2000,"halvings":0,"cell_chars":16384,"cell_head_chars":4096},"cells_cut":0,"cells_raw":0,"read":"whole","date_system":"1900"}

{"sheet":"TMC (Desc)","index":0,"n_rows":2,"n_cols":8,"rows_kept":2,"cut":false,"hidden":false,"merged":[]}
["Device Id\nfor update ","Site Identification Name\nTMC or Other Control Center SIN","Latitude","Longitude","Facility Owner","County","Installed Date (YYYY)","NAME"]
["EQUIP_ID","SITE_NO\nREQUIRED FIELD","PRIM GEOM (Y)\nREQUIRED FIELD","PRIM GEOM (X)\nREQUIRED FIELD","OWNER_CD\nREQUIRED FIELD","COUNTY_CD\nREQUIRED FIELD","YEAR_INSTALLED","RTMC Name\nREQUIRED FIELD"]

{"sheet":"TMC (Code)","index":1,"n_rows":42,"n_cols":8,"rows_kept":42,"cut":false,"hidden":false,"merged":[]}
["Device Id\nfor update ","Site Identification Name\nTMC or Other Control Center SIN","Latitude ","Longitude","Facility Owner","County","Installed Date (YYYY)","NAME"]
["EQUIP_ID","SITE_NO\nREQUIRED FIELD","PRIM GEOM (Y)   REQUIRED FIELD","PRIM GEOM (X)   REQUIRED FIELD","OWNER_CD     REQUIRED FIELD","COUNTY_CD     REQUIRED FIELD","YEAR_INSTALLED","RTMC Name\nREQUIRED FIELD"]
[{"$f":"IF('TMC (Desc)'!A3=\"\",\"\",'TMC (Desc)'!A3)","v":""},{"$f":"IF('TMC (Desc)'!B3=\"\",\"\",'TMC (Desc)'!B3)","v":""},{"$f":"IF('TMC (Desc)'!C3=\"\",\"\",'TMC (Desc)'!C3)","v":""},{"$f":"IF('TMC (Desc)'!D3=\"\",\"\",'TMC (Desc)'!D3)","v":""},{"$f":"IF('TMC (Desc)'!E3=\"\",\"\",INDEX([1]OWNER!$A$2:$A$100,MATCH('TMC (Desc)'!$E3,[1]!MASTER_OWNER_DESC[#Data],0),0))","v":""},{"$f":"IF('TMC (Desc)'!F3=\"\",\"\",INDEX([1]COUNTY!$A$2:$A$80,MATCH('TMC (Desc)'!F3,[1]!MASTER_COUNTY_NAME[#Data],0),0))","v":""},{"$f":"IF('TMC (Desc)'!G3=\"\",\"\",'TMC (Desc)'!G3)","v":""},{"$f":"IF('TMC (Desc)'!H3=\"\",\"\",'TMC (Desc)'!H3)","v":""}]
[{"$f":"IF('TMC (Desc)'!A4=\"\",\"\",'TMC (Desc)'!A4)","v":""},{"$f":"IF('TMC (Desc)'!B4=\"\",\"\",'TMC (Desc)'!B4)","v":""},{"$f":"IF('TMC (Desc)'!C4=\"\",\"\",'TMC (Desc)'!C4)","v":""},{"$f":"IF('TMC (Desc)'!D4=\"\",\"\",'TMC (Desc)'!D4)","v":""},{"$f":"IF('TMC (Desc)'!E4=\"\",\"\",INDEX([1]OWNER!$A$2:$A$100,MATCH('TMC (Desc)'!$E4,[1]!MASTER_OWNER_DESC[#Data],0),0))","v":""},{"$f":"IF('TMC (Desc)'!F4=\"\",\"\",INDEX([1]COUNTY!$A$2:$A$80,MATCH('TMC (Desc)'!F4,[1]!MASTER_COUNTY_NAME[#Data],0),0))","v":""},{"$f":"IF('TMC (Desc)'!G4=\"\",\"\",'TMC (Desc)'!G4)","v":""},{"$f":"IF('TMC (Desc)'!H4=\"\",\"\",'TMC (Desc)'!H4)","v":""}]
[{"$f":"IF('TMC (Desc)'!A5=\"\",\"\",'TMC (Desc)'!A5)","v":""},{"$f":"IF('TMC (Desc)'!B5=\"\",\"\",'TMC (Desc)'!B5)","v":""},{"$f":"IF('TMC (Desc)'!C5=\"\",\"\",'TMC (Desc)'!C5)","v":""},{"$f":"IF('TMC (Desc)'!D5=\"\",\"\",'TMC (Desc)'!D5)","v":""},{"$f":"IF('TMC (Desc)'!E5=\"\",\"\",INDEX([1]OWNER!$A$2:$A$100,MATCH('TMC (Desc)'!$E5,[1]!MASTER_OWNER_DESC[#Data],0),0))","v":""},{"$f":"IF('TMC (Desc)'!F5=\"\",\"\",INDEX([1]COUNTY!$A$2:$A$80,MATCH('TMC (Desc)'!F5,[1]!MASTER_COUNTY_NAME[#Data],0),0))","v":""},{"$f":"IF('TMC (Desc)'!G5=\"\",\"\",'TMC (Desc)'!G5)","v":""},{"$f":"IF('TMC (Desc)'!H5=\"\",\"\",'TMC (Desc)'!H5)","v":""}]
[{"$f":"IF('TMC (Desc)'!A6=\"\",\"\",'TMC (Desc)'!A6)","v":""},{"$f":"IF('TMC (Desc)'!B6=\"\",\"\",'TMC (Desc)'!B6)","v":""},{"$f":"IF('TMC (Desc)'!C6=\"\",\"\",'TMC (Desc)'!C6)","v":""},{"$f":"IF('TMC (Desc)'!D6=\"\",\"\",'TMC (Desc)'!D6)","v":""},{"$f":"IF('TMC (Desc)'!E6=\"\",\"\",INDEX([1]OWNER!$A$2:$A$100,MATCH('TMC (Desc)'!$E6,[1]!MASTER_OWNER_DESC[#Data],0),0))","v":""},{"$f":"IF('TMC (Desc)'!F6=\"\",\"\",INDEX([1]COUNTY!$A$2:$A$80,MATCH('TMC (Desc)'!F6,[1]!MASTER_COUNTY_NAME[#Data],0),0))","v":""},{"$f":"IF('TMC (Desc)'!G6=\"\",\"\",'TMC (Desc)'!G6)","v":""},{"$f":"IF('TMC (Desc)'!H6=\"\",\"\",'TMC (Desc)'!H6)","v":""}]
[{"$f":"IF('TMC (Desc)'!A7=\"\",\"\",'TMC (Desc)'!A7)","v":""},{"$f":"IF('TMC (Desc)'!B7=\"\",\"\",'TMC (Desc)'!B7)","v":""},{"$f":"IF('TMC (Desc)'!C7=\"\",\"\",'TMC (Desc)'!C7)","v":""},{"$f":"IF('TMC (Desc)'!D7=\"\",\"\",'TMC (Desc)'!D7)","v":""},{"$f":"IF('TMC (Desc)'!E7=\"\",\"\",INDEX([1]OWNER!$A$2:$A$100,MATCH('TMC (Desc)'!$E7,[1]!MASTER_OWNER_DESC[#Data],0),0))","v":""},{"$f":"IF('TMC (Desc)'!F7=\"\",\"\",INDEX([1]COUNTY!$A$2:$A$80,MATCH('TMC (Desc)'!F7,[1]!MASTER_COUNTY_NAME[#Data],0),0))","v":""},{"$f":"IF('TMC (Desc)'!G7=\"\",\"\",'TMC (Desc)'!G7)","v":""},{"$f":"IF('TMC (Desc)'!H7=\"\",\"\",'TMC (Desc)'!H7)","v":""}]
[{"$f":"IF('TMC (Desc)'!A8=\"\",\"\",'TMC (Desc)'!A8)","v":""},{"$f":"IF('TMC (Desc)'!B8=\"\",\"\",'TMC (Desc)'!B8)","v":""},{"$f":"IF('TMC (Desc)'!C8=\"\",\"\",'TMC (Desc)'!C8)","v":""},{"$f":"IF('TMC (Desc)'!D8=\"\",\"\",'TMC (Desc)'!D8)","v":""},{"$f":"IF('TMC (Desc)'!E8=\"\",\"\",INDEX([1]OWNER!$A$2:$A$100,MATCH('TMC (Desc)'!$E8,[1]!MASTER_OWNER_DESC[#Data],0),0))","v":""},{"$f":"IF('TMC (Desc)'!F8=\"\",\"\",INDEX([1]COUNTY!$A$2:$A$80,MATCH('TMC (Desc)'!F8,[1]!MASTER_COUNTY_NAME[#Data],0),0))","v":""},{"$f":"IF('TMC (Desc)'!G8=\"\",\"\",'TMC (Desc)'!G8)","v":""},{"$f":"IF('TMC (Desc)'!H8=\"\",\"\",'TMC (Desc)'!H8)","v":""}]
[{"$f":"IF('TMC (Desc)'!A9=\"\",\"\",'TMC (Desc)'!A9)","v":""},{"$f":"IF('TMC (Desc)'!B9=\"\",\"\",'TMC (Desc)'!B9)","v":""},{"$f":"IF('TMC (Desc)'!C9=\"\",\"\",'TMC (Desc)'!C9)","v":""},{"$f":"IF('TMC (Desc)'!D9=\"\",\"\",'TMC (Desc)'!D9)","v":""},{"$f":"IF('TMC (Desc)'!E9=\"\",\"\",INDEX([1]OWNER!$A$2:$A$100,MATCH('TMC (Desc)'!$E9,[1]!MASTER_OWNER_DESC[#Data],0),0))","v":""},{"$f":"IF('TMC (Desc)'!F9=\"\",\"\",INDEX([1]COUNTY!$A$2:$A$80,MATCH('TMC (Desc)'!F9,[1]!MASTER_COUNTY_NAME[#Data],0),0))","v":""},{"$f":"IF('TMC (Desc)'!G9=\"\",\"\",'TMC (Desc)'!G9)","v":""},{"$f":"IF('TMC (Desc)'!H9=\"\",\"\",'TMC (Desc)'!H9)","v":""}]
[{"$f":"IF('TMC (Desc)'!A10=\"\",\"\",'TMC (Desc)'!A10)","v":""},{"$f":"IF('TMC (Desc)'!B10=\"\",\"\",'TMC (Desc)'!B10)","v":""},{"$f":"IF('TMC (Desc)'!C10=\"\",\"\",'TMC (Desc)'!C10)","v":""},{"$f":"IF('TMC (Desc)'!D10=\"\",\"\",'TMC (Desc)'!D10)","v":""},{"$f":"IF('TMC (Desc)'!E10=\"\",\"\",INDEX([1]OWNER!$A$2:$A$100,MATCH('TMC (Desc)'!$E10,[1]!MASTER_OWNER_DESC[#Data],0),0))","v":""},{"$f":"IF('TMC (Desc)'!F10=\"\",\"\",INDEX([1]COUNTY!$A$2:$A$80,MATCH('TMC (Desc)'!F10,[1]!MASTER_COUNTY_NAME[#Data],0),0))","v":""},{"$f":"IF('TMC (Desc)'!G10=\"\",\"\",'TMC (Desc)'!G10)","v":""},{"$f":"IF('TMC (Desc)'!H10=\"\",\"\",'TMC (Desc)'!H10)","v":""}]
[{"$f":"IF('TMC (Desc)'!A11=\"\",\"\",'TMC (Desc)'!A11)","v":""},{"$f":"IF('TMC (Desc)'!B11=\"\",\"\",'TMC (Desc)'!B11)","v":""},{"$f":"IF('TMC (Desc)'!C11=\"\",\"\",'TMC (Desc)'!C11)","v":""},{"$f":"IF('TMC (Desc)'!D11=\"\",\"\",'TMC (Desc)'!D11)","v":""},{"$f":"IF('TMC (Desc)'!E11=\"\",\"\",INDEX([1]OWNER!$A$2:$A$100,MATCH('TMC (Desc)'!$E11,[1]!MASTER_OWNER_DESC[#Data],0),0))","v":""},{"$f":"IF('TMC (Desc)'!F11=\"\",\"\",INDEX([1]COUNTY!$A$2:$A$80,MATCH('TMC (Desc)'!F11,[1]!MASTER_COUNTY_NAME[#Data],0),0))","v":""},{"$f":"IF('TMC (Desc)'!G11=\"\",\"\",'TMC (Desc)'!G11)","v":""},{"$f":"IF('TMC (Desc)'!H11=\"\",\"\",'TMC (Desc)'!H11)","v":""}]
[{"$f":"IF('TMC (Desc)'!A12=\"\",\"\",'TMC (Desc)'!A12)","v":""},{"$f":"IF('TMC (Desc)'!B12=\"\",\"\",'TMC (Desc)'!B12)","v":""},{"$f":"IF('TMC (Desc)'!C12=\"\",\"\",'TMC (Desc)'!C12)","v":""},{"$f":"IF('TMC (Desc)'!D12=\"\",\"\",'TMC (Desc)'!D12)","v":""},{"$f":"IF('TMC (Desc)'!E12=\"\",\"\",INDEX([1]OWNER!$A$2:$A$100,MATCH('TMC (Desc)'!$E12,[1]!MASTER_OWNER_DESC[#Data],0),0))","v":""},{"$f":"IF('TMC (Desc)'!F12=\"\",\"\",INDEX([1]COUNTY!$A$2:$A$80,MATCH('TMC (Desc)'!F12,[1]!MASTER_COUNTY_NAME[#Data],0),0))","v":""},{"$f":"IF('TMC (Desc)'!G12=\"\",\"\",'TMC (Desc)'!G12)","v":""},{"$f":"IF('TMC (Desc)'!H12=\"\",\"\",'TMC (Desc)'!H12)","v":""}]
[{"$f":"IF('TMC (Desc)'!A13=\"\",\"\",'TMC (Desc)'!A13)","v":""},{"$f":"IF('TMC (Desc)'!B13=\"\",\"\",'TMC (Desc)'!B13)","v":""},{"$f":"IF('TMC (Desc)'!C13=\"\",\"\",'TMC (Desc)'!C13)","v":""},{"$f":"IF('TMC (Desc)'!D13=\"\",\"\",'TMC (Desc)'!D13)","v":""},{"$f":"IF('TMC (Desc)'!E13=\"\",\"\",INDEX([1]OWNER!$A$2:$A$100,MATCH('TMC (Desc)'!$E13,[1]!MASTER_OWNER_DESC[#Data],0),0))","v":""},{"$f":"IF('TMC (Desc)'!F13=\"\",\"\",INDEX([1]COUNTY!$A$2:$A$80,MATCH('TMC (Desc)'!F13,[1]!MASTER_COUNTY_NAME[#Data],0),0))","v":""},{"$f":"IF('TMC (Desc)'!G13=\"\",\"\",'TMC (Desc)'!G13)","v":""},{"$f":"IF('TMC (Desc)'!H13=\"\",\"\",'TMC (Desc)'!H13)","v":""}]
[{"$f":"IF('TMC (Desc)'!A14=\"\",\"\",'TMC (Desc)'!A14)","v":""},{"$f":"IF('TMC (Desc)'!B14=\"\",\"\",'TMC (Desc)'!B14)","v":""},{"$f":"IF('TMC (Desc)'!C14=\"\",\"\",'TMC (Desc)'!C14)","v":""},{"$f":"IF('TMC (Desc)'!D14=\"\",\"\",'TMC (Desc)'!D14)","v":""},{"$f":"IF('TMC (Desc)'!E14=\"\",\"\",INDEX([1]OWNER!$A$2:$A$100,MATCH('TMC (Desc)'!$E14,[1]!MASTER_OWNER_DESC[#Data],0),0))","v":""},{"$f":"IF('TMC (Desc)'!F14=\"\",\"\",INDEX([1]COUNTY!$A$2:$A$80,MATCH('TMC (Desc)'!F14,[1]!MASTER_COUNTY_NAME[#Data],0),0))","v":""},{"$f":"IF('TMC (Desc)'!G14=\"\",\"\",'TMC (Desc)'!G14)","v":""},{"$f":"IF('TMC (Desc)'!H14=\"\",\"\",'TMC (Desc)'!H14)","v":""}]
[{"$f":"IF('TMC (Desc)'!A15=\"\",\"\",'TMC (Desc)'!A15)","v":""},{"$f":"IF('TMC (Desc)'!B15=\"\",\"\",'TMC (Desc)'!B15)","v":""},{"$f":"IF('TMC (Desc)'!C15=\"\",\"\",'TMC (Desc)'!C15)","v":""},{"$f":"IF('TMC (Desc)'!D15=\"\",\"\",'TMC (Desc)'!D15)","v":""},{"$f":"IF('TMC (Desc)'!E15=\"\",\"\",INDEX([1]OWNER!$A$2:$A$100,MATCH('TMC (Desc)'!$E15,[1]!MASTER_OWNER_DESC[#Data],0),0))","v":""},{"$f":"IF('TMC (Desc)'!F15=\"\",\"\",INDEX([1]COUNTY!$A$2:$A$80,MATCH('TMC (Desc)'!F15,[1]!MASTER_COUNTY_NAME[#Data],0),0))","v":""},{"$f":"IF('TMC (Desc)'!G15=\"\",\"\",'TMC (Desc)'!G15)","v":""},{"$f":"IF('TMC (Desc)'!H15=\"\",\"\",'TMC (Desc)'!H15)","v":""}]
[{"$f":"IF('TMC (Desc)'!A16=\"\",\"\",'TMC (Desc)'!A16)","v":""},{"$f":"IF('TMC (Desc)'!B16=\"\",\"\",'TMC (Desc)'!B16)","v":""},{"$f":"IF('TMC (Desc)'!C16=\"\",\"\",'TMC (Desc)'!C16)","v":""},{"$f":"IF('TMC (Desc)'!D16=\"\",\"\",'TMC (Desc)'!D16)","v":""},{"$f":"IF('TMC (Desc)'!E16=\"\",\"\",INDEX([1]OWNER!$A$2:$A$100,MATCH('TMC (Desc)'!$E16,[1]!MASTER_OWNER_DESC[#Data],0),0))","v":""},{"$f":"IF('TMC (Desc)'!F16=\"\",\"\",INDEX([1]COUNTY!$A$2:$A$80,MATCH('TMC (Desc)'!F16,[1]!MASTER_COUNTY_NAME[#Data],0),0))","v":""},{"$f":"IF('TMC (Desc)'!G16=\"\",\"\",'TMC (Desc)'!G16)","v":""},{"$f":"IF('TMC (Desc)'!H16=\"\",\"\",'TMC (Desc)'!H16)","v":""}]
[{"$f":"IF('TMC (Desc)'!A17=\"\",\"\",'TMC (Desc)'!A17)","v":""},{"$f":"IF('TMC (Desc)'!B17=\"\",\"\",'TMC (Desc)'!B17)","v":""},{"$f":"IF('TMC (Desc)'!C17=\"\",\"\",'TMC (Desc)'!C17)","v":""},{"$f":"IF('TMC (Desc)'!D17=\"\",\"\",'TMC (Desc)'!D17)","v":""},{"$f":"IF('TMC (Desc)'!E17=\"\",\"\",INDEX([1]OWNER!$A$2:$A$100,MATCH('TMC (Desc)'!$E17,[1]!MASTER_OWNER_DESC[#Data],0),0))","v":""},{"$f":"IF('TMC (Desc)'!F17=\"\",\"\",INDEX([1]COUNTY!$A$2:$A$80,MATCH('TMC (Desc)'!F17,[1]!MASTER_COUNTY_NAME[#Data],0),0))","v":""},{"$f":"IF('TMC (Desc)'!G17=\"\",\"\",'TMC (Desc)'!G17)","v":""},{"$f":"IF('TMC (Desc)'!H17=\"\",\"\",'TMC (Desc)'!H17)","v":""}]
[{"$f":"IF('TMC (Desc)'!A18=\"\",\"\",'TMC (Desc)'!A18)","v":""},{"$f":"IF('TMC (Desc)'!B18=\"\",\"\",'TMC (Desc)'!B18)","v":""},{"$f":"IF('TMC (Desc)'!C18=\"\",\"\",'TMC (Desc)'!C18)","v":""},{"$f":"IF('TMC (Desc)'!D18=\"\",\"\",'TMC (Desc)'!D18)","v":""},{"$f":"IF('TMC (Desc)'!E18=\"\",\"\",INDEX([1]OWNER!$A$2:$A$100,MATCH('TMC (Desc)'!$E18,[1]!MASTER_OWNER_DESC[#Data],0),0))","v":""},{"$f":"IF('TMC (Desc)'!F18=\"\",\"\",INDEX([1]COUNTY!$A$2:$A$80,MATCH('TMC (Desc)'!F18,[1]!MASTER_COUNTY_NAME[#Data],0),0))","v":""},{"$f":"IF('TMC (Desc)'!G18=\"\",\"\",'TMC (Desc)'!G18)","v":""},{"$f":"IF('TMC (Desc)'!H18=\"\",\"\",'TMC (Desc)'!H18)","v":""}]
[{"$f":"IF('TMC (Desc)'!A19=\"\",\"\",'TMC (Desc)'!A19)","v":""},{"$f":"IF('TMC (Desc)'!B19=\"\",\"\",'TMC (Desc)'!B19)","v":""},{"$f":"IF('TMC (Desc)'!C19=\"\",\"\",'TMC (Desc)'!C19)","v":""},{"$f":"IF('TMC (Desc)'!D19=\"\",\"\",'TMC (Desc)'!D19)","v":""},{"$f":"IF('TMC (Desc)'!E19=\"\",\"\",INDEX([1]OWNER!$A$2:$A$100,MATCH('TMC (Desc)'!$E19,[1]!MASTER_OWNER_DESC[#Data],0),0))","v":""},{"$f":"IF('TMC (Desc)'!F19=\"\",\"\",INDEX([1]COUNTY!$A$2:$A$80,MATCH('TMC (Desc)'!F19,[1]!MASTER_COUNTY_NAME[#Data],0),0))","v":""},{"$f":"IF('TMC (Desc)'!G19=\"\",\"\",'TMC (Desc)'!G19)","v":""},{"$f":"IF('TMC (Desc)'!H19=\"\",\"\",'TMC (Desc)'!H19)","v":""}]
[{"$f":"IF('TMC (Desc)'!A20=\"\",\"\",'TMC (Desc)'!A20)","v":""},{"$f":"IF('TMC (Desc)'!B20=\"\",\"\",'TMC (Desc)'!B20)","v":""},{"$f":"IF('TMC (Desc)'!C20=\"\",\"\",'TMC (Desc)'!C20)","v":""},{"$f":"IF('TMC (Desc)'!D20=\"\",\"\",'TMC (Desc)'!D20)","v":""},{"$f":"IF('TMC (Desc)'!E20=\"\",\"\",INDEX([1]OWNER!$A$2:$A$100,MATCH('TMC (Desc)'!$E20,[1]!MASTER_OWNER_DESC[#Data],0),0))","v":""},{"$f":"IF('TMC (Desc)'!F20=\"\",\"\",INDEX([1]COUNTY!$A$2:$A$80,MATCH('TMC (Desc)'!F20,[1]!MASTER_COUNTY_NAME[#Data],0),0))","v":""},{"$f":"IF('TMC (Desc)'!G20=\"\",\"\",'TMC (Desc)'!G20)","v":""},{"$f":"IF('TMC (Desc)'!H20=\"\",\"\",'TMC (Desc)'!H20)","v":""}]
[{"$f":"IF('TMC (Desc)'!A21=\"\",\"\",'TMC (Desc)'!A21)","v":""},{"$f":"IF('TMC (Desc)'!B21=\"\",\"\",'TMC (Desc)'!B21)","v":""},{"$f":"IF('TMC (Desc)'!C21=\"\",\"\",'TMC (Desc)'!C21)","v":""},{"$f":"IF('TMC (Desc)'!D21=\"\",\"\",'TMC (Desc)'!D21)","v":""},{"$f":"IF('TMC (Desc)'!E21=\"\",\"\",INDEX([1]OWNER!$A$2:$A$100,MATCH('TMC (Desc)'!$E21,[1]!MASTER_OWNER_DESC[#Data],0),0))","v":""},{"$f":"IF('TMC (Desc)'!F21=\"\",\"\",INDEX([1]COUNTY!$A$2:$A$80,MATCH('TMC (Desc)'!F21,[1]!MASTER_COUNTY_NAME[#Data],0),0))","v":""},{"$f":"IF('TMC (Desc)'!G21=\"\",\"\",'TMC (Desc)'!G21)","v":""},{"$f":"IF('TMC (Desc)'!H21=\"\",\"\",'TMC (Desc)'!H21)","v":""}]
[{"$f":"IF('TMC (Desc)'!A22=\"\",\"\",'TMC (Desc)'!A22)","v":""},{"$f":"IF('TMC (Desc)'!B22=\"\",\"\",'TMC (Desc)'!B22)","v":""},{"$f":"IF('TMC (Desc)'!C22=\"\",\"\",'TMC (Desc)'!C22)","v":""},{"$f":"IF('TMC (Desc)'!D22=\"\",\"\",'TMC (Desc)'!D22)","v":""},{"$f":"IF('TMC (Desc)'!E22=\"\",\"\",INDEX([1]OWNER!$A$2:$A$100,MATCH('TMC (Desc)'!$E22,[1]!MASTER_OWNER_DESC[#Data],0),0))","v":""},{"$f":"IF('TMC (Desc)'!F22=\"\",\"\",INDEX([1]COUNTY!$A$2:$A$80,MATCH('TMC (Desc)'!F22,[1]!MASTER_COUNTY_NAME[#Data],0),0))","v":""},{"$f":"IF('TMC (Desc)'!G22=\"\",\"\",'TMC (Desc)'!G22)","v":""},{"$f":"IF('TMC (Desc)'!H22=\"\",\"\",'TMC (Desc)'!H22)","v":""}]
[{"$f":"IF('TMC (Desc)'!A23=\"\",\"\",'TMC (Desc)'!A23)","v":""},{"$f":"IF('TMC (Desc)'!B23=\"\",\"\",'TMC (Desc)'!B23)","v":""},{"$f":"IF('TMC (Desc)'!C23=\"\",\"\",'TMC (Desc)'!C23)","v":""},{"$f":"IF('TMC (Desc)'!D23=\"\",\"\",'TMC (Desc)'!D23)","v":""},{"$f":"IF('TMC (Desc)'!E23=\"\",\"\",INDEX([1]OWNER!$A$2:$A$100,MATCH('TMC (Desc)'!$E23,[1]!MASTER_OWNER_DESC[#Data],0),0))","v":""},{"$f":"IF('TMC (Desc)'!F23=\"\",\"\",INDEX([1]COUNTY!$A$2:$A$80,MATCH('TMC (Desc)'!F23,[1]!MASTER_COUNTY_NAME[#Data],0),0))","v":""},{"$f":"IF('TMC (Desc)'!G23=\"\",\"\",'TMC (Desc)'!G23)","v":""},{"$f":"IF('TMC (Desc)'!H23=\"\",\"\",'TMC (Desc)'!H23)","v":""}]
[{"$f":"IF('TMC (Desc)'!A24=\"\",\"\",'TMC (Desc)'!A24)","v":""},{"$f":"IF('TMC (Desc)'!B24=\"\",\"\",'TMC (Desc)'!B24)","v":""},{"$f":"IF('TMC (Desc)'!C24=\"\",\"\",'TMC (Desc)'!C24)","v":""},{"$f":"IF('TMC (Desc)'!D24=\"\",\"\",'TMC (Desc)'!D24)","v":""},{"$f":"IF('TMC (Desc)'!E24=\"\",\"\",INDEX([1]OWNER!$A$2:$A$100,MATCH('TMC (Desc)'!$E24,[1]!MASTER_OWNER_DESC[#Data],0),0))","v":""},{"$f":"IF('TMC (Desc)'!F24=\"\",\"\",INDEX([1]COUNTY!$A$2:$A$80,MATCH('TMC (Desc)'!F24,[1]!MASTER_COUNTY_NAME[#Data],0),0))","v":""},{"$f":"IF('TMC (Desc)'!G24=\"\",\"\",'TMC (Desc)'!G24)","v":""},{"$f":"IF('TMC (Desc)'!H24=\"\",\"\",'TMC (Desc)'!H24)","v":""}]
[{"$f":"IF('TMC (Desc)'!A25=\"\",\"\",'TMC (Desc)'!A25)","v":""},{"$f":"IF('TMC (Desc)'!B25=\"\",\"\",'TMC (Desc)'!B25)","v":""},{"$f":"IF('TMC (Desc)'!C25=\"\",\"\",'TMC (Desc)'!C25)","v":""},{"$f":"IF('TMC (Desc)'!D25=\"\",\"\",'TMC (Desc)'!D25)","v":""},{"$f":"IF('TMC (Desc)'!E25=\"\",\"\",INDEX([1]OWNER!$A$2:$A$100,MATCH('TMC (Desc)'!$E25,[1]!MASTER_OWNER_DESC[#Data],0),0))","v":""},{"$f":"IF('TMC (Desc)'!F25=\"\",\"\",INDEX([1]COUNTY!$A$2:$A$80,MATCH('TMC (Desc)'!F25,[1]!MASTER_COUNTY_NAME[#Data],0),0))","v":""},{"$f":"IF('TMC (Desc)'!G25=\"\",\"\",'TMC (Desc)'!G25)","v":""},{"$f":"IF('TMC (Desc)'!H25=\"\",\"\",'TMC (Desc)'!H25)","v":""}]
[{"$f":"IF('TMC (Desc)'!A26=\"\",\"\",'TMC (Desc)'!A26)","v":""},{"$f":"IF('TMC (Desc)'!B26=\"\",\"\",'TMC (Desc)'!B26)","v":""},{"$f":"IF('TMC (Desc)'!C26=\"\",\"\",'TMC (Desc)'!C26)","v":""},{"$f":"IF('TMC (Desc)'!D26=\"\",\"\",'TMC (Desc)'!D26)","v":""},{"$f":"IF('TMC (Desc)'!E26=\"\",\"\",INDEX([1]OWNER!$A$2:$A$100,MATCH('TMC (Desc)'!$E26,[1]!MASTER_OWNER_DESC[#Data],0),0))","v":""},{"$f":"IF('TMC (Desc)'!F26=\"\",\"\",INDEX([1]COUNTY!$A$2:$A$80,MATCH('TMC (Desc)'!F26,[1]!MASTER_COUNTY_NAME[#Data],0),0))","v":""},{"$f":"IF('TMC (Desc)'!G26=\"\",\"\",'TMC (Desc)'!G26)","v":""},{"$f":"IF('TMC (Desc)'!H26=\"\",\"\",'TMC (Desc)'!H26)","v":""}]
[{"$f":"IF('TMC (Desc)'!A27=\"\",\"\",'TMC (Desc)'!A27)","v":""},{"$f":"IF('TMC (Desc)'!B27=\"\",\"\",'TMC (Desc)'!B27)","v":""},{"$f":"IF('TMC (Desc)'!C27=\"\",\"\",'TMC (Desc)'!C27)","v":""},{"$f":"IF('TMC (Desc)'!D27=\"\",\"\",'TMC (Desc)'!D27)","v":""},{"$f":"IF('TMC (Desc)'!E27=\"\",\"\",INDEX([1]OWNER!$A$2:$A$100,MATCH('TMC (Desc)'!$E27,[1]!MASTER_OWNER_DESC[#Data],0),0))","v":""},{"$f":"IF('TMC (Desc)'!F27=\"\",\"\",INDEX([1]COUNTY!$A$2:$A$80,MATCH('TMC (Desc)'!F27,[1]!MASTER_COUNTY_NAME[#Data],0),0))","v":""},{"$f":"IF('TMC (Desc)'!G27=\"\",\"\",'TMC (Desc)'!G27)","v":""},{"$f":"IF('TMC (Desc)'!H27=\"\",\"\",'TMC (Desc)'!H27)","v":""}]
[{"$f":"IF('TMC (Desc)'!A28=\"\",\"\",'TMC (Desc)'!A28)","v":""},{"$f":"IF('TMC (Desc)'!B28=\"\",\"\",'TMC (Desc)'!B28)","v":""},{"$f":"IF('TMC (Desc)'!C28=\"\",\"\",'TMC (Desc)'!C28)","v":""},{"$f":"IF('TMC (Desc)'!D28=\"\",\"\",'TMC (Desc)'!D28)","v":""},{"$f":"IF('TMC (Desc)'!E28=\"\",\"\",INDEX([1]OWNER!$A$2:$A$100,MATCH('TMC (Desc)'!$E28,[1]!MASTER_OWNER_DESC[#Data],0),0))","v":""},{"$f":"IF('TMC (Desc)'!F28=\"\",\"\",INDEX([1]COUNTY!$A$2:$A$80,MATCH('TMC (Desc)'!F28,[1]!MASTER_COUNTY_NAME[#Data],0),0))","v":""},{"$f":"IF('TMC (Desc)'!G28=\"\",\"\",'TMC (Desc)'!G28)","v":""},{"$f":"IF('TMC (Desc)'!H28=\"\",\"\",'TMC (Desc)'!H28)","v":""}]
[{"$f":"IF('TMC (Desc)'!A29=\"\",\"\",'TMC (Desc)'!A29)","v":""},{"$f":"IF('TMC (Desc)'!B29=\"\",\"\",'TMC (Desc)'!B29)","v":""},{"$f":"IF('TMC (Desc)'!C29=\"\",\"\",'TMC (Desc)'!C29)","v":""},{"$f":"IF('TMC (Desc)'!D29=\"\",\"\",'TMC (Desc)'!D29)","v":""},{"$f":"IF('TMC (Desc)'!E29=\"\",\"\",INDEX([1]OWNER!$A$2:$A$100,MATCH('TMC (Desc)'!$E29,[1]!MASTER_OWNER_DESC[#Data],0),0))","v":""},{"$f":"IF('TMC (Desc)'!F29=\"\",\"\",INDEX([1]COUNTY!$A$2:$A$80,MATCH('TMC (Desc)'!F29,[1]!MASTER_COUNTY_NAME[#Data],0),0))","v":""},{"$f":"IF('TMC (Desc)'!G29=\"\",\"\",'TMC (Desc)'!G29)","v":""},{"$f":"IF('TMC (Desc)'!H29=\"\",\"\",'TMC (Desc)'!H29)","v":""}]
[{"$f":"IF('TMC (Desc)'!A30=\"\",\"\",'TMC (Desc)'!A30)","v":""},{"$f":"IF('TMC (Desc)'!B30=\"\",\"\",'TMC (Desc)'!B30)","v":""},{"$f":"IF('TMC (Desc)'!C30=\"\",\"\",'TMC (Desc)'!C30)","v":""},{"$f":"IF('TMC (Desc)'!D30=\"\",\"\",'TMC (Desc)'!D30)","v":""},{"$f":"IF('TMC (Desc)'!E30=\"\",\"\",INDEX([1]OWNER!$A$2:$A$100,MATCH('TMC (Desc)'!$E30,[1]!MASTER_OWNER_DESC[#Data],0),0))","v":""},{"$f":"IF('TMC (Desc)'!F30=\"\",\"\",INDEX([1]COUNTY!$A$2:$A$80,MATCH('TMC (Desc)'!F30,[1]!MASTER_COUNTY_NAME[#Data],0),0))","v":""},{"$f":"IF('TMC (Desc)'!G30=\"\",\"\",'TMC (Desc)'!G30)","v":""},{"$f":"IF('TMC (Desc)'!H30=\"\",\"\",'TMC (Desc)'!H30)","v":""}]
[{"$f":"IF('TMC (Desc)'!A31=\"\",\"\",'TMC (Desc)'!A31)","v":""},{"$f":"IF('TMC (Desc)'!B31=\"\",\"\",'TMC (Desc)'!B31)","v":""},{"$f":"IF('TMC (Desc)'!C31=\"\",\"\",'TMC (Desc)'!C31)","v":""},{"$f":"IF('TMC (Desc)'!D31=\"\",\"\",'TMC (Desc)'!D31)","v":""},{"$f":"IF('TMC (Desc)'!E31=\"\",\"\",INDEX([1]OWNER!$A$2:$A$100,MATCH('TMC (Desc)'!$E31,[1]!MASTER_OWNER_DESC[#Data],0),0))","v":""},{"$f":"IF('TMC (Desc)'!F31=\"\",\"\",INDEX([1]COUNTY!$A$2:$A$80,MATCH('TMC (Desc)'!F31,[1]!MASTER_COUNTY_NAME[#Data],0),0))","v":""},{"$f":"IF('TMC (Desc)'!G31=\"\",\"\",'TMC (Desc)'!G31)","v":""},{"$f":"IF('TMC (Desc)'!H31=\"\",\"\",'TMC (Desc)'!H31)","v":""}]
[{"$f":"IF('TMC (Desc)'!A32=\"\",\"\",'TMC (Desc)'!A32)","v":""},{"$f":"IF('TMC (Desc)'!B32=\"\",\"\",'TMC (Desc)'!B32)","v":""},{"$f":"IF('TMC (Desc)'!C32=\"\",\"\",'TMC (Desc)'!C32)","v":""},{"$f":"IF('TMC (Desc)'!D32=\"\",\"\",'TMC (Desc)'!D32)","v":""},{"$f":"IF('TMC (Desc)'!E32=\"\",\"\",INDEX([1]OWNER!$A$2:$A$100,MATCH('TMC (Desc)'!$E32,[1]!MASTER_OWNER_DESC[#Data],0),0))","v":""},{"$f":"IF('TMC (Desc)'!F32=\"\",\"\",INDEX([1]COUNTY!$A$2:$A$80,MATCH('TMC (Desc)'!F32,[1]!MASTER_COUNTY_NAME[#Data],0),0))","v":""},{"$f":"IF('TMC (Desc)'!G32=\"\",\"\",'TMC (Desc)'!G32)","v":""},{"$f":"IF('TMC (Desc)'!H32=\"\",\"\",'TMC (Desc)'!H32)","v":""}]
[{"$f":"IF('TMC (Desc)'!A33=\"\",\"\",'TMC (Desc)'!A33)","v":""},{"$f":"IF('TMC (Desc)'!B33=\"\",\"\",'TMC (Desc)'!B33)","v":""},{"$f":"IF('TMC (Desc)'!C33=\"\",\"\",'TMC (Desc)'!C33)","v":""},{"$f":"IF('TMC (Desc)'!D33=\"\",\"\",'TMC (Desc)'!D33)","v":""},{"$f":"IF('TMC (Desc)'!E33=\"\",\"\",INDEX([1]OWNER!$A$2:$A$100,MATCH('TMC (Desc)'!$E33,[1]!MASTER_OWNER_DESC[#Data],0),0))","v":""},{"$f":"IF('TMC (Desc)'!F33=\"\",\"\",INDEX([1]COUNTY!$A$2:$A$80,MATCH('TMC (Desc)'!F33,[1]!MASTER_COUNTY_NAME[#Data],0),0))","v":""},{"$f":"IF('TMC (Desc)'!G33=\"\",\"\",'TMC (Desc)'!G33)","v":""},{"$f":"IF('TMC (Desc)'!H33=\"\",\"\",'TMC (Desc)'!H33)","v":""}]
[{"$f":"IF('TMC (Desc)'!A34=\"\",\"\",'TMC (Desc)'!A34)","v":""},{"$f":"IF('TMC (Desc)'!B34=\"\",\"\",'TMC (Desc)'!B34)","v":""},{"$f":"IF('TMC (Desc)'!C34=\"\",\"\",'TMC (Desc)'!C34)","v":""},{"$f":"IF('TMC (Desc)'!D34=\"\",\"\",'TMC (Desc)'!D34)","v":""},{"$f":"IF('TMC (Desc)'!E34=\"\",\"\",INDEX([1]OWNER!$A$2:$A$100,MATCH('TMC (Desc)'!$E34,[1]!MASTER_OWNER_DESC[#Data],0),0))","v":""},{"$f":"IF('TMC (Desc)'!F34=\"\",\"\",INDEX([1]COUNTY!$A$2:$A$80,MATCH('TMC (Desc)'!F34,[1]!MASTER_COUNTY_NAME[#Data],0),0))","v":""},{"$f":"IF('TMC (Desc)'!G34=\"\",\"\",'TMC (Desc)'!G34)","v":""},{"$f":"IF('TMC (Desc)'!H34=\"\",\"\",'TMC (Desc)'!H34)","v":""}]
[{"$f":"IF('TMC (Desc)'!A35=\"\",\"\",'TMC (Desc)'!A35)","v":""},{"$f":"IF('TMC (Desc)'!B35=\"\",\"\",'TMC (Desc)'!B35)","v":""},{"$f":"IF('TMC (Desc)'!C35=\"\",\"\",'TMC (Desc)'!C35)","v":""},{"$f":"IF('TMC (Desc)'!D35=\"\",\"\",'TMC (Desc)'!D35)","v":""},{"$f":"IF('TMC (Desc)'!E35=\"\",\"\",INDEX([1]OWNER!$A$2:$A$100,MATCH('TMC (Desc)'!$E35,[1]!MASTER_OWNER_DESC[#Data],0),0))","v":""},{"$f":"IF('TMC (Desc)'!F35=\"\",\"\",INDEX([1]COUNTY!$A$2:$A$80,MATCH('TMC (Desc)'!F35,[1]!MASTER_COUNTY_NAME[#Data],0),0))","v":""},{"$f":"IF('TMC (Desc)'!G35=\"\",\"\",'TMC (Desc)'!G35)","v":""},{"$f":"IF('TMC (Desc)'!H35=\"\",\"\",'TMC (Desc)'!H35)","v":""}]
[{"$f":"IF('TMC (Desc)'!A36=\"\",\"\",'TMC (Desc)'!A36)","v":""},{"$f":"IF('TMC (Desc)'!B36=\"\",\"\",'TMC (Desc)'!B36)","v":""},{"$f":"IF('TMC (Desc)'!C36=\"\",\"\",'TMC (Desc)'!C36)","v":""},{"$f":"IF('TMC (Desc)'!D36=\"\",\"\",'TMC (Desc)'!D36)","v":""},{"$f":"IF('TMC (Desc)'!E36=\"\",\"\",INDEX([1]OWNER!$A$2:$A$100,MATCH('TMC (Desc)'!$E36,[1]!MASTER_OWNER_DESC[#Data],0),0))","v":""},{"$f":"IF('TMC (Desc)'!F36=\"\",\"\",INDEX([1]COUNTY!$A$2:$A$80,MATCH('TMC (Desc)'!F36,[1]!MASTER_COUNTY_NAME[#Data],0),0))","v":""},{"$f":"IF('TMC (Desc)'!G36=\"\",\"\",'TMC (Desc)'!G36)","v":""},{"$f":"IF('TMC (Desc)'!H36=\"\",\"\",'TMC (Desc)'!H36)","v":""}]
[{"$f":"IF('TMC (Desc)'!A37=\"\",\"\",'TMC (Desc)'!A37)","v":""},{"$f":"IF('TMC (Desc)'!B37=\"\",\"\",'TMC (Desc)'!B37)","v":""},{"$f":"IF('TMC (Desc)'!C37=\"\",\"\",'TMC (Desc)'!C37)","v":""},{"$f":"IF('TMC (Desc)'!D37=\"\",\"\",'TMC (Desc)'!D37)","v":""},{"$f":"IF('TMC (Desc)'!E37=\"\",\"\",INDEX([1]OWNER!$A$2:$A$100,MATCH('TMC (Desc)'!$E37,[1]!MASTER_OWNER_DESC[#Data],0),0))","v":""},{"$f":"IF('TMC (Desc)'!F37=\"\",\"\",INDEX([1]COUNTY!$A$2:$A$80,MATCH('TMC (Desc)'!F37,[1]!MASTER_COUNTY_NAME[#Data],0),0))","v":""},{"$f":"IF('TMC (Desc)'!G37=\"\",\"\",'TMC (Desc)'!G37)","v":""},{"$f":"IF('TMC (Desc)'!H37=\"\",\"\",'TMC (Desc)'!H37)","v":""}]
[{"$f":"IF('TMC (Desc)'!A38=\"\",\"\",'TMC (Desc)'!A38)","v":""},{"$f":"IF('TMC (Desc)'!B38=\"\",\"\",'TMC (Desc)'!B38)","v":""},{"$f":"IF('TMC (Desc)'!C38=\"\",\"\",'TMC (Desc)'!C38)","v":""},{"$f":"IF('TMC (Desc)'!D38=\"\",\"\",'TMC (Desc)'!D38)","v":""},{"$f":"IF('TMC (Desc)'!E38=\"\",\"\",INDEX([1]OWNER!$A$2:$A$100,MATCH('TMC (Desc)'!$E38,[1]!MASTER_OWNER_DESC[#Data],0),0))","v":""},{"$f":"IF('TMC (Desc)'!F38=\"\",\"\",INDEX([1]COUNTY!$A$2:$A$80,MATCH('TMC (Desc)'!F38,[1]!MASTER_COUNTY_NAME[#Data],0),0))","v":""},{"$f":"IF('TMC (Desc)'!G38=\"\",\"\",'TMC (Desc)'!G38)","v":""},{"$f":"IF('TMC (Desc)'!H38=\"\",\"\",'TMC (Desc)'!H38)","v":""}]
[{"$f":"IF('TMC (Desc)'!A39=\"\",\"\",'TMC (Desc)'!A39)","v":""},{"$f":"IF('TMC (Desc)'!B39=\"\",\"\",'TMC (Desc)'!B39)","v":""},{"$f":"IF('TMC (Desc)'!C39=\"\",\"\",'TMC (Desc)'!C39)","v":""},{"$f":"IF('TMC (Desc)'!D39=\"\",\"\",'TMC (Desc)'!D39)","v":""},{"$f":"IF('TMC (Desc)'!E39=\"\",\"\",INDEX([1]OWNER!$A$2:$A$100,MATCH('TMC (Desc)'!$E39,[1]!MASTER_OWNER_DESC[#Data],0),0))","v":""},{"$f":"IF('TMC (Desc)'!F39=\"\",\"\",INDEX([1]COUNTY!$A$2:$A$80,MATCH('TMC (Desc)'!F39,[1]!MASTER_COUNTY_NAME[#Data],0),0))","v":""},{"$f":"IF('TMC (Desc)'!G39=\"\",\"\",'TMC (Desc)'!G39)","v":""},{"$f":"IF('TMC (Desc)'!H39=\"\",\"\",'TMC (Desc)'!H39)","v":""}]
[{"$f":"IF('TMC (Desc)'!A40=\"\",\"\",'TMC (Desc)'!A40)","v":""},{"$f":"IF('TMC (Desc)'!B40=\"\",\"\",'TMC (Desc)'!B40)","v":""},{"$f":"IF('TMC (Desc)'!C40=\"\",\"\",'TMC (Desc)'!C40)","v":""},{"$f":"IF('TMC (Desc)'!D40=\"\",\"\",'TMC (Desc)'!D40)","v":""},{"$f":"IF('TMC (Desc)'!E40=\"\",\"\",INDEX([1]OWNER!$A$2:$A$100,MATCH('TMC (Desc)'!$E40,[1]!MASTER_OWNER_DESC[#Data],0),0))","v":""},{"$f":"IF('TMC (Desc)'!F40=\"\",\"\",INDEX([1]COUNTY!$A$2:$A$80,MATCH('TMC (Desc)'!F40,[1]!MASTER_COUNTY_NAME[#Data],0),0))","v":""},{"$f":"IF('TMC (Desc)'!G40=\"\",\"\",'TMC (Desc)'!G40)","v":""},{"$f":"IF('TMC (Desc)'!H40=\"\",\"\",'TMC (Desc)'!H40)","v":""}]
[{"$f":"IF('TMC (Desc)'!A41=\"\",\"\",'TMC (Desc)'!A41)","v":""},{"$f":"IF('TMC (Desc)'!B41=\"\",\"\",'TMC (Desc)'!B41)","v":""},{"$f":"IF('TMC (Desc)'!C41=\"\",\"\",'TMC (Desc)'!C41)","v":""},{"$f":"IF('TMC (Desc)'!D41=\"\",\"\",'TMC (Desc)'!D41)","v":""},{"$f":"IF('TMC (Desc)'!E41=\"\",\"\",INDEX([1]OWNER!$A$2:$A$100,MATCH('TMC (Desc)'!$E41,[1]!MASTER_OWNER_DESC[#Data],0),0))","v":""},{"$f":"IF('TMC (Desc)'!F41=\"\",\"\",INDEX([1]COUNTY!$A$2:$A$80,MATCH('TMC (Desc)'!F41,[1]!MASTER_COUNTY_NAME[#Data],0),0))","v":""},{"$f":"IF('TMC (Desc)'!G41=\"\",\"\",'TMC (Desc)'!G41)","v":""},{"$f":"IF('TMC (Desc)'!H41=\"\",\"\",'TMC (Desc)'!H41)","v":""}]
[{"$f":"IF('TMC (Desc)'!A42=\"\",\"\",'TMC (Desc)'!A42)","v":""},{"$f":"IF('TMC (Desc)'!B42=\"\",\"\",'TMC (Desc)'!B42)","v":""},{"$f":"IF('TMC (Desc)'!C42=\"\",\"\",'TMC (Desc)'!C42)","v":""},{"$f":"IF('TMC (Desc)'!D42=\"\",\"\",'TMC (Desc)'!D42)","v":""},{"$f":"IF('TMC (Desc)'!E42=\"\",\"\",INDEX([1]OWNER!$A$2:$A$100,MATCH('TMC (Desc)'!$E42,[1]!MASTER_OWNER_DESC[#Data],0),0))","v":""},{"$f":"IF('TMC (Desc)'!F42=\"\",\"\",INDEX([1]COUNTY!$A$2:$A$80,MATCH('TMC (Desc)'!F42,[1]!MASTER_COUNTY_NAME[#Data],0),0))","v":""},{"$f":"IF('TMC (Desc)'!G42=\"\",\"\",'TMC (Desc)'!G42)","v":""},{"$f":"IF('TMC (Desc)'!H42=\"\",\"\",'TMC (Desc)'!H42)","v":""}]

{"sheet":"Communication Facility (Desc)","index":2,"n_rows":2,"n_cols":23,"rows_kept":2,"cut":false,"hidden":false,"merged":[]}
["Device Id\nfor update ","Site Identification Name\nCommunication Facility Equipment Site SIN","Latitude ","Longitude","Facility Type","Facility Owner","County","Installed Date (YYYY)","Facility Name","Property Identification No.","Cabinet Type","Cabinet Mount Type","Sun Shield Installed","Building Type","Building Dimensions \n(L x W x H)","Building Material","Key Type","# of Filters","Filter Type","Filter Dimensions \n(L x W)","Distance to Travel Lane (Ft.)","Located in Clear Zone (Yes/No)","Lane Closure Req’d\n(Yes/No)"]
["EQUIP_ID","SITE_NO\nREQUIRED FIELD","PRIM GEOM (Y)\nREQUIRED FIELD","PRIM GEOM (X)\nREQUIRED FIELD","FACILITY_TYPE_CD\nREQUIRE FIELD","OWNER_CD\nREQUIRED FIELD","COUNTY_CD\nREQUIRED FIELD","YEAR_INSTALLED","NAME\nREQUIRED FIELD","PROPERTY_ID ","CABINET_TYPE_CD","CABINET_MOUNT_TYPE_CD","SUNSHIELD_CD","BUILDING_TYPE_CD","BUILDING_DIMENSION","BUILDING_MTL_CD","KEY_TYPE_CD","NUM_OF_FILTERS","FILTER_TYPE_CD","FILTER_SIZE_CD","DISTANCE_TO_EOTL","CLEAR_ZONE_IND_CD ","LANE_CLOSURE_IND_CD "]

{"sheet":"Communication Facility (Code)","index":3,"n_rows":127,"n_cols":23,"rows_kept":127,"cut":false,"hidden":false,"merged":[]}
["Device Id\nfor update ","Site Identification Name Communication Facility Equipment Site SIN","Latitude ","Longitude","Facility Type","Facility Owner","County","Installed Date (YYYY)","Facility Name","Property Identification No.","Cabinet Type","Cabinet Mount Type","Sun Shield Installed","Building Type","Building Dimensions         (L x W x H)","Building Material","Key Type","# of Filters","Filter Type","Filter   Dimensions     (L x W)","Distance to Travel Lane (Ft.)","Located in Clear Zone (Yes/No)","Lane Closure Req’d (Yes/No)"]
["EQUIP_ID","SITE_NO\nREQUIRED FIELD","PRIM GEOM (Y) REQUIRED FIELD","PRIM GEOM (X) REQUIRED FIELD","FACILITY_TYPE_CD REQUIRE FIELD","OWNER_CD REQUIRED FIELD","COUNTY_CD REQUIRED FIELD","YEAR_INSTALLED","NAME","PROPERTY_ID","CABINET_TYPE_CD","CABINET_MOUNT_TYPE_CD","SUNSHIELD_CD","BUILDING_TYPE_CD","BUILDING_DIMENSION","BUILDING_MTL_CD","KEY_TYPE_CD","NUM_OF_FILTERS","FILTER_TYPE_CD","FILTER_SIZE_CD","DISTANCE_TO_EOTL","CLEAR_ZONE_IND_CD","LANE_CLOSURE_IND_CD"]
[{"$f":"IF('Communication Facility (Desc)'!A3=\"\",\"\",'Communication Facility (Desc)'!A3)","v":""},{"$f":"IF('Communication Facility (Desc)'!B3=\"\",\"\",'Communication Facility (Desc)'!B3)","v":""},{"$f":"IF('Communication Facility (Desc)'!C3=\"\",\"\",'Communication Facility (Desc)'!C3)","v":""},{"$f":"IF('Communication Facility (Desc)'!D3=\"\",\"\",'Communication Facility (Desc)'!D3)","v":""},{"$f":"IF('Communication Facility (Desc)'!E3=\"\",\"\",INDEX([1]FACILITY_TYPE!$A$2:$A$100,MATCH('Communication Facility (Desc)'!$E3,[1]!MASTER_FACILITY_TYPE_DESC[#Data],0),0))","v":""},{"$f":"IF('Communication Facility (Desc)'!F3=\"\",\"\",INDEX([1]OWNER!$A$2:$A$100,MATCH('Communication Facility (Desc)'!$F3,[1]!MASTER_OWNER_DESC[#Data],0),0))","v":""},{"$f":"IF('Communication Facility (Desc)'!G3=\"\",\"\",IF('Communication Facility (Desc)'!G3=\"\",\"\",INDEX([1]COUNTY!$A$2:$A$80,MATCH('Communication Facility (Desc)'!G3,[1]!MASTER_COUNTY_NAME[#Data],0),0)))","v":""},{"$f":"IF('Communication Facility (Desc)'!H3=\"\",\"\",'Communication Facility (Desc)'!H3)","v":""},{"$f":"IF('Communication Facility (Desc)'!I3=\"\",\"\",'Communication Facility (Desc)'!I3)","v":""},{"$f":"IF('Communication Facility (Desc)'!J3=\"\",\"\",'Communication Facility (Desc)'!J3)","v":""},{"$f":"IF('Communication Facility (Desc)'!K3=\"\",\"\",INDEX([1]CABINET_TYPE!$A$2:$A$100,MATCH('Communication Facility (Desc)'!$K3,[1]!MASTER_CABINET_TYPE_DESC[#Data],0),0))","v":""},{"$f":"IF('Communication Facility (Desc)'!L3=\"\",\"\",INDEX([1]CABINET_MOUNT_TYPE!$A$2:$A$100,MATCH('Communication Facility (Desc)'!L3,[1]!MASTER_CABINET_MOUNT_TYPE_DESC[#Data],0),0))","v":""},{"$f":"IF('Communication Facility (Desc)'!M3=\"\",\"\",INDEX([1]YES_NO!$A$2:$A$100,MATCH('Communication Facility (Desc)'!M3,[1]!MASTER_YES_NO_DESC[#Data],0),0))","v":""},{"$f":"IF('Communication Facility (Desc)'!N3=\"\",\"\",INDEX([1]BUILDING_TYPE!$A$2:$A$100,MATCH('Communication Facility (Desc)'!$N3,[1]!MASTER_BUILDING_TYPE_DESC[#Data],0),0))","v":""},{"$f":"IF('Communication Facility (Desc)'!O3=\"\",\"\",'Communication Facility (Desc)'!O3)","v":""},{"$f":"IF('Communication Facility (Desc)'!P3=\"\",\"\",INDEX([1]BUILDING_MTL!$A$2:$A$100,MATCH('Communication Facility (Desc)'!$P3,[1]!MASTER_BUILDING_MTL_DESC[#Data],0),0))","v":""},{"$f":"IF('Communication Facility (Desc)'!Q3=\"\",\"\",INDEX([1]KEY_TYPE!$A$2:$A$100,MATCH('Communication Facility (Desc)'!$Q3,[1]!MASTER_KEY_TYPE_DESC[#Data],0),0))","v":""},{"$f":"IF('Communication Facility (Desc)'!R3=\"\",\"\",'Communication Facility (Desc)'!R3)","v":""},{"$f":"IF('Communication Facility (Desc)'!S3=\"\",\"\",INDEX([1]FILTER_TYPE!$A$2:$A$100,MATCH('Communication Facility (Desc)'!$S3,[1]!MASTER_FILTER_TYPE_DESC[#Data],0),0))","v":""},{"$f":"IF('Communication Facility (Desc)'!T3=\"\",\"\",INDEX([1]FILTER_SIZE!$A$2:$A$100,MATCH('Communication Facility (Desc)'!$T3,[1]!MASTER_FILTER_SIZE_DESC[#Data],0),0))","v":""},{"$f":"IF('Communication Facility (Desc)'!U3=\"\",\"\",'Communication Facility (Desc)'!U3)","v":""},{"$f":"IF('Communication Facility (Desc)'!V3=\"\",\"\",INDEX([1]YES_NO!$A$2:$A$100,MATCH('Communication Facility (Desc)'!$V3,[1]!MASTER_YES_NO_DESC[#Data],0),0))","v":""},{"$f":"IF('Communication Facility (Desc)'!W3=\"\",\"\",INDEX([1]YES_NO!$A$2:$A$100,MATCH('Communication Facility (Desc)'!$W3,[1]!MASTER_YES_NO_DESC[#Data],0),0))","v":""}]
[{"$f":"IF('Communication Facility (Desc)'!A4=\"\",\"\",'Communication Facility (Desc)'!A4)","v":""},{"$f":"IF('Communication Facility (Desc)'!B4=\"\",\"\",'Communication Facility (Desc)'!B4)","v":""},{"$f":"IF('Communication Facility (Desc)'!C4=\"\",\"\",'Communication Facility (Desc)'!C4)","v":""},{"$f":"IF('Communication Facility (Desc)'!D4=\"\",\"\",'Communication Facility (Desc)'!D4)","v":""},{"$f":"IF('Communication Facility (Desc)'!E4=\"\",\"\",INDEX([1]FACILITY_TYPE!$A$2:$A$100,MATCH('Communication Facility (Desc)'!$E4,[1]!MASTER_FACILITY_TYPE_DESC[#Data],0),0))","v":""},{"$f":"IF('Communication Facility (Desc)'!F4=\"\",\"\",INDEX([1]OWNER!$A$2:$A$100,MATCH('Communication Facility (Desc)'!$F4,[1]!MASTER_OWNER_DESC[#Data],0),0))","v":""},{"$f":"IF('Communication Facility (Desc)'!G4=\"\",\"\",IF('Communication Facility (Desc)'!G4=\"\",\"\",INDEX([1]COUNTY!$A$2:$A$80,MATCH('Communication Facility (Desc)'!G4,[1]!MASTER_COUNTY_NAME[#Data],0),0)))","v":""},{"$f":"IF('Communication Facility (Desc)'!H4=\"\",\"\",'Communication Facility (Desc)'!H4)","v":""},{"$f":"IF('Communication Facility (Desc)'!I4=\"\",\"\",'Communication Facility (Desc)'!I4)","v":""},{"$f":"IF('Communication Facility (Desc)'!J4=\"\",\"\",'Communication Facility (Desc)'!J4)","v":""},{"$f":"IF('Communication Facility (Desc)'!K4=\"\",\"\",INDEX([1]CABINET_TYPE!$A$2:$A$100,MATCH('Communication Facility (Desc)'!$K4,[1]!MASTER_CABINET_TYPE_DESC[#Data],0),0))","v":""},{"$f":"IF('Communication Facility (Desc)'!L4=\"\",\"\",INDEX([1]CABINET_MOUNT_TYPE!$A$2:$A$100,MATCH('Communication Facility (Desc)'!L4,[1]!MASTER_CABINET_MOUNT_TYPE_DESC[#Data],0),0))","v":""},{"$f":"IF('Communication Facility (Desc)'!M4=\"\",\"\",INDEX([1]YES_NO!$A$2:$A$100,MATCH('Communication Facility (Desc)'!M4,[1]!MASTER_YES_NO_DESC[#Data],0),0))","v":""},{"$f":"IF('Communication Facility (Desc)'!N4=\"\",\"\",INDEX([1]BUILDING_TYPE!$A$2:$A$100,MATCH('Communication Facility (Desc)'!$N4,[1]!MASTER_BUILDING_TYPE_DESC[#Data],0),0))","v":""},{"$f":"IF('Communication Facility (Desc)'!O4=\"\",\"\",'Communication Facility (Desc)'!O4)","v":""},{"$f":"IF('Communication Facility (Desc)'!P4=\"\",\"\",INDEX([1]BUILDING_MTL!$A$2:$A$100,MATCH('Communication Facility (Desc)'!$P4,[1]!MASTER_BUILDING_MTL_DESC[#Data],0),0))","v":""},{"$f":"IF('Communication Facility (Desc)'!Q4=\"\",\"\",INDEX([1]KEY_TYPE!$A$2:$A$100,MATCH('Communication Facility (Desc)'!$Q4,[1]!MASTER_KEY_TYPE_DESC[#Data],0),0))","v":""},{"$f":"IF('Communication Facility (Desc)'!R4=\"\",\"\",'Communication Facility (Desc)'!R4)","v":""},{"$f":"IF('Communication Facility (Desc)'!S4=\"\",\"\",INDEX([1]FILTER_TYPE!$A$2:$A$100,MATCH('Communication Facility (Desc)'!$S4,[1]!MASTER_FILTER_TYPE_DESC[#Data],0),0))","v":""},{"$f":"IF('Communication Facility (Desc)'!T4=\"\",\"\",INDEX([1]FILTER_SIZE!$A$2:$A$100,MATCH('Communication Facility (Desc)'!$T4,[1]!MASTER_FILTER_SIZE_DESC[#Data],0),0))","v":""},{"$f":"IF('Communication Facility (Desc)'!U4=\"\",\"\",'Communication Facility (Desc)'!U4)","v":""},{"$f":"IF('Communication Facility (Desc)'!V4=\"\",\"\",INDEX([1]YES_NO!$A$2:$A$100,MATCH('Communication Facility (Desc)'!$V4,[1]!MASTER_YES_NO_DESC[#Data],0),0))","v":""},{"$f":"IF('Communication Facility (Desc)'!W4=\"\",\"\",INDEX([1]YES_NO!$A$2:$A$100,MATCH('Communication Facility (Desc)'!$W4,[1]!MASTER_YES_NO_DESC[#Data],0),0))","v":""}]
[{"$f":"IF('Communication Facility (Desc)'!A5=\"\",\"\",'Communication Facility (Desc)'!A5)","v":""},{"$f":"IF('Communication Facility (Desc)'!B5=\"\",\"\",'Communication Facility (Desc)'!B5)","v":""},{"$f":"IF('Communication Facility (Desc)'!C5=\"\",\"\",'Communication Facility (Desc)'!C5)","v":""},{"$f":"IF('Communication Facility (Desc)'!D5=\"\",\"\",'Communication Facility (Desc)'!D5)","v":""},{"$f":"IF('Communication Facility (Desc)'!E5=\"\",\"\",INDEX([1]FACILITY_TYPE!$A$2:$A$100,MATCH('Communication Facility (Desc)'!$E5,[1]!MASTER_FACILITY_TYPE_DESC[#Data],0),0))","v":""},{"$f":"IF('Communication Facility (Desc)'!F5=\"\",\"\",INDEX([1]OWNER!$A$2:$A$100,MATCH('Communication Facility (Desc)'!$F5,[1]!MASTER_OWNER_DESC[#Data],0),0))","v":""},{"$f":"IF('Communication Facility (Desc)'!G5=\"\",\"\",IF('Communication Facility (Desc)'!G5=\"\",\"\",INDEX([1]COUNTY!$A$2:$A$80,MATCH('Communication Facility (Desc)'!G5,[1]!MASTER_COUNTY_NAME[#Data],0),0)))","v":""},{"$f":"IF('Communication Facility (Desc)'!H5=\"\",\"\",'Communication Facility (Desc)'!H5)","v":""},{"$f":"IF('Communication Facility (Desc)'!I5=\"\",\"\",'Communication Facility (Desc)'!I5)","v":""},{"$f":"IF('Communication Facility (Desc)'!J5=\"\",\"\",'Communication Facility (Desc)'!J5)","v":""},{"$f":"IF('Communication Facility (Desc)'!K5=\"\",\"\",INDEX([1]CABINET_TYPE!$A$2:$A$100,MATCH('Communication Facility (Desc)'!$K5,[1]!MASTER_CABINET_TYPE_DESC[#Data],0),0))","v":""},{"$f":"IF('Communication Facility (Desc)'!L5=\"\",\"\",INDEX([1]CABINET_MOUNT_TYPE!$A$2:$A$100,MATCH('Communication Facility (Desc)'!L5,[1]!MASTER_CABINET_MOUNT_TYPE_DESC[#Data],0),0))","v":""},{"$f":"IF('Communication Facility (Desc)'!M5=\"\",\"\",INDEX([1]YES_NO!$A$2:$A$100,MATCH('Communication Facility (Desc)'!M5,[1]!MASTER_YES_NO_DESC[#Data],0),0))","v":""},{"$f":"IF('Communication Facility (Desc)'!N5=\"\",\"\",INDEX([1]BUILDING_TYPE!$A$2:$A$100,MATCH('Communication Facility (Desc)'!$N5,[1]!MASTER_BUILDING_TYPE_DESC[#Data],0),0))","v":""},{"$f":"IF('Communication Facility (Desc)'!O5=\"\",\"\",'Communication Facility (Desc)'!O5)","v":""},{"$f":"IF('Communication Facility (Desc)'!P5=\"\",\"\",INDEX([1]BUILDING_MTL!$A$2:$A$100,MATCH('Communication Facility (Desc)'!$P5,[1]!MASTER_BUILDING_MTL_DESC[#Data],0),0))","v":""},{"$f":"IF('Communication Facility (Desc)'!Q5=\"\",\"\",INDEX([1]KEY_TYPE!$A$2:$A$100,MATCH('Communication Facility (Desc)'!$Q5,[1]!MASTER_KEY_TYPE_DESC[#Data],0),0))","v":""},{"$f":"IF('Communication Facility (Desc)'!R5=\"\",\"\",'Communication Facility (Desc)'!R5)","v":""},{"$f":"IF('Communication Facility (Desc)'!S5=\"\",\"\",INDEX([1]FILTER_TYPE!$A$2:$A$100,MATCH('Communication Facility (Desc)'!$S5,[1]!MASTER_FILTER_TYPE_DESC[#Data],0),0))","v":""},{"$f":"IF('Communication Facility (Desc)'!T5=\"\",\"\",INDEX([1]FILTER_SIZE!$A$2:$A$100,MATCH('Communication Facility (Desc)'!$T5,[1]!MASTER_FILTER_SIZE_DESC[#Data],0),0))","v":""},{"$f":"IF('Communication Facility (Desc)'!U5=\"\",\"\",'Communication Facility (Desc)'!U5)","v":""},{"$f":"IF('Communication Facility (Desc)'!V5=\"\",\"\",INDEX([1]YES_NO!$A$2:$A$100,MATCH('Communication Facility (Desc)'!$V5,[1]!MASTER_YES_NO_DESC[#Data],0),0))","v":""},{"$f":"IF('Communication Facility (Desc)'!W5=\"\",\"\",INDEX([1]YES_NO!$A$2:$A$100,MATCH('Communication Facility (Desc)'!$W5,[1]!MASTER_YES_NO_DESC[#Data],0),0))","v":""}]
[{"$f":"IF('Communication Facility (Desc)'!A6=\"\",\"\",'Communication Facility (Desc)'!A6)","v":""},{"$f":"IF('Communication Facility (Desc)'!B6=\"\",\"\",'Communication Facility (Desc)'!B6)","v":""},{"$f":"IF('Communication Facility (Desc)'!C6=\"\",\"\",'Communication Facility (Desc)'!C6)","v":""},{"$f":"IF('Communication Facility (Desc)'!D6=\"\",\"\",'Communication Facility (Desc)'!D6)","v":""},{"$f":"IF('Communication Facility (Desc)'!E6=\"\",\"\",INDEX([1]FACILITY_TYPE!$A$2:$A$100,MATCH('Communication Facility (Desc)'!$E6,[1]!MASTER_FACILITY_TYPE_DESC[#Data],0),0))","v":""},{"$f":"IF('Communication Facility (Desc)'!F6=\"\",\"\",INDEX([1]OWNER!$A$2:$A$100,MATCH('Communication Facility (Desc)'!$F6,[1]!MASTER_OWNER_DESC[#Data],0),0))","v":""},{"$f":"IF('Communication Facility (Desc)'!G6=\"\",\"\",IF('Communication Facility (Desc)'!G6=\"\",\"\",INDEX([1]COUNTY!$A$2:$A$80,MATCH('Communication Facility (Desc)'!G6,[1]!MASTER_COUNTY_NAME[#Data],0),0)))","v":""},{"$f":"IF('Communication Facility (Desc)'!H6=\"\",\"\",'Communication Facility (Desc)'!H6)","v":""},{"$f":"IF('Communication Facility (Desc)'!I6=\"\",\"\",'Communication Facility (Desc)'!I6)","v":""},{"$f":"IF('Communication Facility (Desc)'!J6=\"\",\"\",'Communication Facility (Desc)'!J6)","v":""},{"$f":"IF('Communication Facility (Desc)'!K6=\"\",\"\",INDEX([1]CABINET_TYPE!$A$2:$A$100,MATCH('Communication Facility (Desc)'!$K6,[1]!MASTER_CABINET_TYPE_DESC[#Data],0),0))","v":""},{"$f":"IF('Communication Facility (Desc)'!L6=\"\",\"\",INDEX([1]CABINET_MOUNT_TYPE!$A$2:$A$100,MATCH('Communication Facility (Desc)'!L6,[1]!MASTER_CABINET_MOUNT_TYPE_DESC[#Data],0),0))","v":""},{"$f":"IF('Communication Facility (Desc)'!M6=\"\",\"\",INDEX([1]YES_NO!$A$2:$A$100,MATCH('Communication Facility (Desc)'!M6,[1]!MASTER_YES_NO_DESC[#Data],0),0))","v":""},{"$f":"IF('Communication Facility (Desc)'!N6=\"\",\"\",INDEX([1]BUILDING_TYPE!$A$2:$A$100,MATCH('Communication Facility (Desc)'!$N6,[1]!MASTER_BUILDING_TYPE_DESC[#Data],0),0))","v":""},{"$f":"IF('Communication Facility (Desc)'!O6=\"\",\"\",'Communication Facility (Desc)'!O6)","v":""},{"$f":"IF('Communication Facility (Desc)'!P6=\"\",\"\",INDEX([1]BUILDING_MTL!$A$2:$A$100,MATCH('Communication Facility (Desc)'!$P6,[1]!MASTER_BUILDING_MTL_DESC[#Data],0),0))","v":""},{"$f":"IF('Communication Facility (Desc)'!Q6=\"\",\"\",INDEX([1]KEY_TYPE!$A$2:$A$100,MATCH('Communication Facility (Desc)'!$Q6,[1]!MASTER_KEY_TYPE_DESC[#Data],0),0))","v":""},{"$f":"IF('Communication Facility (Desc)'!R6=\"\",\"\",'Communication Facility (Desc)'!R6)","v":""},{"$f":"IF('Communication Facility (Desc)'!S6=\"\",\"\",INDEX([1]FILTER_TYPE!$A$2:$A$100,MATCH('Communication Facility (Desc)'!$S6,[1]!MASTER_FILTER_TYPE_DESC[#Data],0),0))","v":""},{"$f":"IF('Communication Facility (Desc)'!T6=\"\",\"\",INDEX([1]FILTER_SIZE!$A$2:$A$100,MATCH('Communication Facility (Desc)'!$T6,[1]!MASTER_FILTER_SIZE_DESC[#Data],0),0))","v":""},{"$f":"IF('Communication Facility (Desc)'!U6=\"\",\"\",'Communication Facility (Desc)'!U6)","v":""},{"$f":"IF('Communication Facility (Desc)'!V6=\"\",\"\",INDEX([1]YES_NO!$A$2:$A$100,MATCH('Communication Facility (Desc)'!$V6,[1]!MASTER_YES_NO_DESC[#Data],0),0))","v":""},{"$f":"IF('Communication Facility (Desc)'!W6=\"\",\"\",INDEX([1]YES_NO!$A$2:$A$100,MATCH('Communication Facility (Desc)'!$W6,[1]!MASTER_YES_NO_DESC[#Data],0),0))","v":""}]
[{"$f":"IF('Communication Facility (Desc)'!A7=\"\",\"\",'Communication Facility (Desc)'!A7)","v":""},{"$f":"IF('Communication Facility (Desc)'!B7=\"\",\"\",'Communication Facility (Desc)'!B7)","v":""},{"$f":"IF('Communication Facility (Desc)'!C7=\"\",\"\",'Communication Facility (Desc)'!C7)","v":""},{"$f":"IF('Communication Facility (Desc)'!D7=\"\",\"\",'Communication Facility (Desc)'!D7)","v":""},{"$f":"IF('Communication Facility (Desc)'!E7=\"\",\"\",INDEX([1]FACILITY_TYPE!$A$2:$A$100,MATCH('Communication Facility (Desc)'!$E7,[1]!MASTER_FACILITY_TYPE_DESC[#Data],0),0))","v":""},{"$f":"IF('Communication Facility (Desc)'!F7=\"\",\"\",INDEX([1]OWNER!$A$2:$A$100,MATCH('Communication Facility (Desc)'!$F7,[1]!MASTER_OWNER_DESC[#Data],0),0))","v":""},{"$f":"IF('Communication Facility (Desc)'!G7=\"\",\"\",IF('Communication Facility (Desc)'!G7=\"\",\"\",INDEX([1]COUNTY!$A$2:$A$80,MATCH('Communication Facility (Desc)'!G7,[1]!MASTER_COUNTY_NAME[#Data],0),0)))","v":""},{"$f":"IF('Communication Facility (Desc)'!H7=\"\",\"\",'Communication Facility (Desc)'!H7)","v":""},{"$f":"IF('Communication Facility (Desc)'!I7=\"\",\"\",'Communication Facility (Desc)'!I7)","v":""},{"$f":"IF('Communication Facility (Desc)'!J7=\"\",\"\",'Communication Facility (Desc)'!J7)","v":""},{"$f":"IF('Communication Facility (Desc)'!K7=\"\",\"\",INDEX([1]CABINET_TYPE!$A$2:$A$100,MATCH('Communication Facility (Desc)'!$K7,[1]!MASTER_CABINET_TYPE_DESC[#Data],0),0))","v":""},{"$f":"IF('Communication Facility (Desc)'!L7=\"\",\"\",INDEX([1]CABINET_MOUNT_TYPE!$A$2:$A$100,MATCH('Communication Facility (Desc)'!L7,[1]!MASTER_CABINET_MOUNT_TYPE_DESC[#Data],0),0))","v":""},{"$f":"IF('Communication Facility (Desc)'!M7=\"\",\"\",INDEX([1]YES_NO!$A$2:$A$100,MATCH('Communication Facility (Desc)'!M7,[1]!MASTER_YES_NO_DESC[#Data],0),0))","v":""},{"$f":"IF('Communication Facility (Desc)'!N7=\"\",\"\",INDEX([1]BUILDING_TYPE!$A$2:$A$100,MATCH('Communication Facility (Desc)'!$N7,[1]!MASTER_BUILDING_TYPE_DESC[#Data],0),0))","v":""},{"$f":"IF('Communication Facility (Desc)'!O7=\"\",\"\",'Communication Facility (Desc)'!O7)","v":""},{"$f":"IF('Communication Facility (Desc)'!P7=\"\",\"\",INDEX([1]BUILDING_MTL!$A$2:$A$100,MATCH('Communication Facility (Desc)'!$P7,[1]!MASTER_BUILDING_MTL_DESC[#Data],0),0))","v":""},{"$f":"IF('Communication Facility (Desc)'!Q7=\"\",\"\",INDEX([1]KEY_TYPE!$A$2:$A$100,MATCH('Communication Facility (Desc)'!$Q7,[1]!MASTER_KEY_TYPE_DESC[#Data],0),0))","v":""},{"$f":"IF('Communication Facility (Desc)'!R7=\"\",\"\",'Communication Facility (Desc)'!R7)","v":""},{"$f":"IF('Communication Facility (Desc)'!S7=\"\",\"\",INDEX([1]FILTER_TYPE!$A$2:$A$100,MATCH('Communication Facility (Desc)'!$S7,[1]!MASTER_FILTER_TYPE_DESC[#Data],0),0))","v":""},{"$f":"IF('Communication Facility (Desc)'!T7=\"\",\"\",INDEX([1]FILTER_SIZE!$A$2:$A$100,MATCH('Communication Facility (Desc)'!$T7,[1]!MASTER_FILTER_SIZE_DESC[#Data],0),0))","v":""},{"$f":"IF('Communication Facility (Desc)'!U7=\"\",\"\",'Communication Facility (Desc)'!U7)","v":""},{"$f":"IF('Communication Facility (Desc)'!V7=\"\",\"\",INDEX([1]YES_NO!$A$2:$A$100,MATCH('Communication Facility (Desc)'!$V7,[1]!MASTER_YES_NO_DESC[#Data],0),0))","v":""},{"$f":"IF('Communication Facility (Desc)'!W7=\"\",\"\",INDEX([1]YES_NO!$A$2:$A$100,MATCH('Communication Facility (Desc)'!$W7,[1]!MASTER_YES_NO_DESC[#Data],0),0))","v":""}]
[{"$f":"IF('Communication Facility (Desc)'!A8=\"\",\"\",'Communication Facility (Desc)'!A8)","v":""},{"$f":"IF('Communication Facility (Desc)'!B8=\"\",\"\",'Communication Facility (Desc)'!B8)","v":""},{"$f":"IF('Communication Facility (Desc)'!C8=\"\",\"\",'Communication Facility (Desc)'!C8)","v":""},{"$f":"IF('Communication Facility (Desc)'!D8=\"\",\"\",'Communication Facility (Desc)'!D8)","v":""},{"$f":"IF('Communication Facility (Desc)'!E8=\"\",\"\",INDEX([1]FACILITY_TYPE!$A$2:$A$100,MATCH('Communication Facility (Desc)'!$E8,[1]!MASTER_FACILITY_TYPE_DESC[#Data],0),0))","v":""},{"$f":"IF('Communication Facility (Desc)'!F8=\"\",\"\",INDEX([1]OWNER!$A$2:$A$100,MATCH('Communication Facility (Desc)'!$F8,[1]!MASTER_OWNER_DESC[#Data],0),0))","v":""},{"$f":"IF('Communication Facility (Desc)'!G8=\"\",\"\",IF('Communication Facility (Desc)'!G8=\"\",\"\",INDEX([1]COUNTY!$A$2:$A$80,MATCH('Communication Facility (Desc)'!G8,[1]!MASTER_COUNTY_NAME[#Data],0),0)))","v":""},{"$f":"IF('Communication Facility (Desc)'!H8=\"\",\"\",'Communication Facility (Desc)'!H8)","v":""},{"$f":"IF('Communication Facility (Desc)'!I8=\"\",\"\",'Communication Facility (Desc)'!I8)","v":""},{"$f":"IF('Communication Facility (Desc)'!J8=\"\",\"\",'Communication Facility (Desc)'!J8)","v":""},{"$f":"IF('Communication Facility (Desc)'!K8=\"\",\"\",INDEX([1]CABINET_TYPE!$A$2:$A$100,MATCH('Communication Facility (Desc)'!$K8,[1]!MASTER_CABINET_TYPE_DESC[#Data],0),0))","v":""},{"$f":"IF('Communication Facility (Desc)'!L8=\"\",\"\",INDEX([1]CABINET_MOUNT_TYPE!$A$2:$A$100,MATCH('Communication Facility (Desc)'!L8,[1]!MASTER_CABINET_MOUNT_TYPE_DESC[#Data],0),0))","v":""},{"$f":"IF('Communication Facility (Desc)'!M8=\"\",\"\",INDEX([1]YES_NO!$A$2:$A$100,MATCH('Communication Facility (Desc)'!M8,[1]!MASTER_YES_NO_DESC[#Data],0),0))","v":""},{"$f":"IF('Communication Facility (Desc)'!N8=\"\",\"\",INDEX([1]BUILDING_TYPE!$A$2:$A$100,MATCH('Communication Facility (Desc)'!$N8,[1]!MASTER_BUILDING_TYPE_DESC[#Data],0),0))","v":""},{"$f":"IF('Communication Facility (Desc)'!O8=\"\",\"\",'Communication Facility (Desc)'!O8)","v":""},{"$f":"IF('Communication Facility (Desc)'!P8=\"\",\"\",INDEX([1]BUILDING_MTL!$A$2:$A$100,MATCH('Communication Facility (Desc)'!$P8,[1]!MASTER_BUILDING_MTL_DESC[#Data],0),0))","v":""},{"$f":"IF('Communication Facility (Desc)'!Q8=\"\",\"\",INDEX([1]KEY_TYPE!$A$2:$A$100,MATCH('Communication Facility (Desc)'!$Q8,[1]!MASTER_KEY_TYPE_DESC[#Data],0),0))","v":""},{"$f":"IF('Communication Facility (Desc)'!R8=\"\",\"\",'Communication Facility (Desc)'!R8)","v":""},{"$f":"IF('Communication Facility (Desc)'!S8=\"\",\"\",INDEX([1]FILTER_TYPE!$A$2:$A$100,MATCH('Communication Facility (Desc)'!$S8,[1]!MASTER_FILTER_TYPE_DESC[#Data],0),0))","v":""},{"$f":"IF('Communication Facility (Desc)'!T8=\"\",\"\",INDEX([1]FILTER_SIZE!$A$2:$A$100,MATCH('Communication Facility (Desc)'!$T8,[1]!MASTER_FILTER_SIZE_DESC[#Data],0),0))","v":""},{"$f":"IF('Communication Facility (Desc)'!U8=\"\",\"\",'Communication Facility (Desc)'!U8)","v":""},{"$f":"IF('Communication Facility (Desc)'!V8=\"\",\"\",INDEX([1]YES_NO!$A$2:$A$100,MATCH('Communication Facility (Desc)'!$V8,[1]!MASTER_YES_NO_DESC[#Data],0),0))","v":""},{"$f":"IF('Communication Facility (Desc)'!W8=\"\",\"\",INDEX([1]YES_NO!$A$2:$A$100,MATCH('Communication Facility (Desc)'!$W8,[1]!MASTER_YES_NO_DESC[#Data],0),0))","v":""}]
[{"$f":"IF('Communication Facility (Desc)'!A9=\"\",\"\",'Communication Facility (Desc)'!A9)","v":""},{"$f":"IF('Communication Facility (Desc)'!B9=\"\",\"\",'Communication Facility (Desc)'!B9)","v":""},{"$f":"IF('Communication Facility (Desc)'!C9=\"\",\"\",'Communication Facility (Desc)'!C9)","v":""},{"$f":"IF('Communication Facility (Desc)'!D9=\"\",\"\",'Communication Facility (Desc)'!D9)","v":""},{"$f":"IF('Communication Facility (Desc)'!E9=\"\",\"\",INDEX([1]FACILITY_TYPE!$A$2:$A$100,MATCH('Communication Facility (Desc)'!$E9,[1]!MASTER_FACILITY_TYPE_DESC[#Data],0),0))","v":""},{"$f":"IF('Communication Facility (Desc)'!F9=\"\",\"\",INDEX([1]OWNER!$A$2:$A$100,MATCH('Communication Facility (Desc)'!$F9,[1]!MASTER_OWNER_DESC[#Data],0),0))","v":""},{"$f":"IF('Communication Facility (Desc)'!G9=\"\",\"\",IF('Communication Facility (Desc)'!G9=\"\",\"\",INDEX([1]COUNTY!$A$2:$A$80,MATCH('Communication Facility (Desc)'!G9,[1]!MASTER_COUNTY_NAME[#Data],0),0)))","v":""},{"$f":"IF('Communication Facility (Desc)'!H9=\"\",\"\",'Communication Facility (Desc)'!H9)","v":""},{"$f":"IF('Communication Facility (Desc)'!I9=\"\",\"\",'Communication Facility (Desc)'!I9)","v":""},{"$f":"IF('Communication Facility (Desc)'!J9=\"\",\"\",'Communication Facility (Desc)'!J9)","v":""},{"$f":"IF('Communication Facility (Desc)'!K9=\"\",\"\",INDEX([1]CABINET_TYPE!$A$2:$A$100,MATCH('Communication Facility (Desc)'!$K9,[1]!MASTER_CABINET_TYPE_DESC[#Data],0),0))","v":""},{"$f":"IF('Communication Facility (Desc)'!L9=\"\",\"\",INDEX([1]CABINET_MOUNT_TYPE!$A$2:$A$100,MATCH('Communication Facility (Desc)'!L9,[1]!MASTER_CABINET_MOUNT_TYPE_DESC[#Data],0),0))","v":""},{"$f":"IF('Communication Facility (Desc)'!M9=\"\",\"\",INDEX([1]YES_NO!$A$2:$A$100,MATCH('Communication Facility (Desc)'!M9,[1]!MASTER_YES_NO_DESC[#Data],0),0))","v":""},{"$f":"IF('Communication Facility (Desc)'!N9=\"\",\"\",INDEX([1]BUILDING_TYPE!$A$2:$A$100,MATCH('Communication Facility (Desc)'!$N9,[1]!MASTER_BUILDING_TYPE_DESC[#Data],0),0))","v":""},{"$f":"IF('Communication Facility (Desc)'!O9=\"\",\"\",'Communication Facility (Desc)'!O9)","v":""},{"$f":"IF('Communication Facility (Desc)'!P9=\"\",\"\",INDEX([1]BUILDING_MTL!$A$2:$A$100,MATCH('Communication Facility (Desc)'!$P9,[1]!MASTER_BUILDING_MTL_DESC[#Data],0),0))","v":""},{"$f":"IF('Communication Facility (Desc)'!Q9=\"\",\"\",INDEX([1]KEY_TYPE!$A$2:$A$100,MATCH('Communication Facility (Desc)'!$Q9,[1]!MASTER_KEY_TYPE_DESC[#Data],0),0))","v":""},{"$f":"IF('Communication Facility (Desc)'!R9=\"\",\"\",'Communication Facility (Desc)'!R9)","v":""},{"$f":"IF('Communication Facility (Desc)'!S9=\"\",\"\",INDEX([1]FILTER_TYPE!$A$2:$A$100,MATCH('Communication Facility (Desc)'!$S9,[1]!MASTER_FILTER_TYPE_DESC[#Data],0),0))","v":""},{"$f":"IF('Communication Facility (Desc)'!T9=\"\",\"\",INDEX([1]FILTER_SIZE!$A$2:$A$100,MATCH('Communication Facility (Desc)'!$T9,[1]!MASTER_FILTER_SIZE_DESC[#Data],0),0))","v":""},{"$f":"IF('Communication Facility (Desc)'!U9=\"\",\"\",'Communication Facility (Desc)'!U9)","v":""},{"$f":"IF('Communication Facility (Desc)'!V9=\"\",\"\",INDEX([1]YES_NO!$A$2:$A$100,MATCH('Communication Facility (Desc)'!$V9,[1]!MASTER_YES_NO_DESC[#Data],0),0))","v":""},{"$f":"IF('Communication Facility (Desc)'!W9=\"\",\"\",INDEX([1]YES_NO!$A$2:$A$100,MATCH('Communication Facility (Desc)'!$W9,[1]!MASTER_YES_NO_DESC[#Data],0),0))","v":""}]
[{"$f":"IF('Communication Facility (Desc)'!A10=\"\",\"\",'Communication Facility (Desc)'!A10)","v":""},{"$f":"IF('Communication Facility (Desc)'!B10=\"\",\"\",'Communication Facility (Desc)'!B10)","v":""},{"$f":"IF('Communication Facility (Desc)'!C10=\"\",\"\",'Communication Facility (Desc)'!C10)","v":""},{"$f":"IF('Communication Facility (Desc)'!D10=\"\",\"\",'Communication Facility (Desc)'!D10)","v":""},{"$f":"IF('Communication Facility (Desc)'!E10=\"\",\"\",INDEX([1]FACILITY_TYPE!$A$2:$A$100,MATCH('Communication Facility (Desc)'!$E10,[1]!MASTER_FACILITY_TYPE_DESC[#Data],0),0))","v":""},{"$f":"IF('Communication Facility (Desc)'!F10=\"\",\"\",INDEX([1]OWNER!$A$2:$A$100,MATCH('Communication Facility (Desc)'!$F10,[1]!MASTER_OWNER_DESC[#Data],0),0))","v":""},{"$f":"IF('Communication Facility (Desc)'!G10=\"\",\"\",IF('Communication Facility (Desc)'!G10=\"\",\"\",INDEX([1]COUNTY!$A$2:$A$80,MATCH('Communication Facility (Desc)'!G10,[1]!MASTER_COUNTY_NAME[#Data],0),0)))","v":""},{"$f":"IF('Communication Facility (Desc)'!H10=\"\",\"\",'Communication Facility (Desc)'!H10)","v":""},{"$f":"IF('Communication Facility (Desc)'!I10=\"\",\"\",'Communication Facility (Desc)'!I10)","v":""},{"$f":"IF('Communication Facility (Desc)'!J10=\"\",\"\",'Communication Facility (Desc)'!J10)","v":""},{"$f":"IF('Communication Facility (Desc)'!K10=\"\",\"\",INDEX([1]CABINET_TYPE!$A$2:$A$100,MATCH('Communication Facility (Desc)'!$K10,[1]!MASTER_CABINET_TYPE_DESC[#Data],0),0))","v":""},{"$f":"IF('Communication Facility (Desc)'!L10=\"\",\"\",INDEX([1]CABINET_MOUNT_TYPE!$A$2:$A$100,MATCH('Communication Facility (Desc)'!L10,[1]!MASTER_CABINET_MOUNT_TYPE_DESC[#Data],0),0))","v":""},{"$f":"IF('Communication Facility (Desc)'!M10=\"\",\"\",INDEX([1]YES_NO!$A$2:$A$100,MATCH('Communication Facility (Desc)'!M10,[1]!MASTER_YES_NO_DESC[#Data],0),0))","v":""},{"$f":"IF('Communication Facility (Desc)'!N10=\"\",\"\",INDEX([1]BUILDING_TYPE!$A$2:$A$100,MATCH('Communication Facility (Desc)'!$N10,[1]!MASTER_BUILDING_TYPE_DESC[#Data],0),0))","v":""},{"$f":"IF('Communication Facility (Desc)'!O10=\"\",\"\",'Communication Facility (Desc)'!O10)","v":""},{"$f":"IF('Communication Facility (Desc)'!P10=\"\",\"\",INDEX([1]BUILDING_MTL!$A$2:$A$100,MATCH('Communication Facility (Desc)'!$P10,[1]!MASTER_BUILDING_MTL_DESC[#Data],0),0))","v":""},{"$f":"IF('Communication Facility (Desc)'!Q10=\"\",\"\",INDEX([1]KEY_TYPE!$A$2:$A$100,MATCH('Communication Facility (Desc)'!$Q10,[1]!MASTER_KEY_TYPE_DESC[#Data],0),0))","v":""},{"$f":"IF('Communication Facility (Desc)'!R10=\"\",\"\",'Communication Facility (Desc)'!R10)","v":""},{"$f":"IF('Communication Facility (Desc)'!S10=\"\",\"\",INDEX([1]FILTER_TYPE!$A$2:$A$100,MATCH('Communication Facility (Desc)'!$S10,[1]!MASTER_FILTER_TYPE_DESC[#Data],0),0))","v":""},{"$f":"IF('Communication Facility (Desc)'!T10=\"\",\"\",INDEX([1]FILTER_SIZE!$A$2:$A$100,MATCH('Communication Facility (Desc)'!$T10,[1]!MASTER_FILTER_SIZE_DESC[#Data],0),0))","v":""},{"$f":"IF('Communication Facility (Desc)'!U10=\"\",\"\",'Communication Facility (Desc)'!U10)","v":""},{"$f":"IF('Communication Facility (Desc)'!V10=\"\",\"\",INDEX([1]YES_NO!$A$2:$A$100,MATCH('Communication Facility (Desc)'!$V10,[1]!MASTER_YES_NO_DESC[#Data],0),0))","v":""},{"$f":"IF('Communication Facility (Desc)'!W10=\"\",\"\",INDEX([1]YES_NO!$A$2:$A$100,MATCH('Communication Facility (Desc)'!$W10,[1]!MASTER_YES_NO_DESC[#Data],0),0))","v":""}]
[{"$f":"IF('Communication Facility (Desc)'!A11=\"\",\"\",'Communication Facility (Desc)'!A11)","v":""},{"$f":"IF('Communication Facility (Desc)'!B11=\"\",\"\",'Communication Facility (Desc)'!B11)","v":""},{"$f":"IF('Communication Facility (Desc)'!C11=\"\",\"\",'Communication Facility (Desc)'!C11)","v":""},{"$f":"IF('Communication Facility (Desc)'!D11=\"\",\"\",'Communication Facility (Desc)'!D11)","v":""},{"$f":"IF('Communication Facility (Desc)'!E11=\"\",\"\",INDEX([1]FACILITY_TYPE!$A$2:$A$100,MATCH('Communication Facility (Desc)'!$E11,[1]!MASTER_FACILITY_TYPE_DESC[#Data],0),0))","v":""},{"$f":"IF('Communication Facility (Desc)'!F11=\"\",\"\",INDEX([1]OWNER!$A$2:$A$100,MATCH('Communication Facility (Desc)'!$F11,[1]!MASTER_OWNER_DESC[#Data],0),0))","v":""},{"$f":"IF('Communication Facility (Desc)'!G11=\"\",\"\",IF('Communication Facility (Desc)'!G11=\"\",\"\",INDEX([1]COUNTY!$A$2:$A$80,MATCH('Communication Facility (Desc)'!G11,[1]!MASTER_COUNTY_NAME[#Data],0),0)))","v":""},{"$f":"IF('Communication Facility (Desc)'!H11=\"\",\"\",'Communication Facility (Desc)'!H11)","v":""},{"$f":"IF('Communication Facility (Desc)'!I11=\"\",\"\",'Communication Facility (Desc)'!I11)","v":""},{"$f":"IF('Communication Facility (Desc)'!J11=\"\",\"\",'Communication Facility (Desc)'!J11)","v":""},{"$f":"IF('Communication Facility (Desc)'!K11=\"\",\"\",INDEX([1]CABINET_TYPE!$A$2:$A$100,MATCH('Communication Facility (Desc)'!$K11,[1]!MASTER_CABINET_TYPE_DESC[#Data],0),0))","v":""},{"$f":"IF('Communication Facility (Desc)'!L11=\"\",\"\",INDEX([1]CABINET_MOUNT_TYPE!$A$2:$A$100,MATCH('Communication Facility (Desc)'!L11,[1]!MASTER_CABINET_MOUNT_TYPE_DESC[#Data],0),0))","v":""},{"$f":"IF('Communication Facility (Desc)'!M11=\"\",\"\",INDEX([1]YES_NO!$A$2:$A$100,MATCH('Communication Facility (Desc)'!M11,[1]!MASTER_YES_NO_DESC[#Data],0),0))","v":""},{"$f":"IF('Communication Facility (Desc)'!N11=\"\",\"\",INDEX([1]BUILDING_TYPE!$A$2:$A$100,MATCH('Communication Facility (Desc)'!$N11,[1]!MASTER_BUILDING_TYPE_DESC[#Data],0),0))","v":""},{"$f":"IF('Communication Facility (Desc)'!O11=\"\",\"\",'Communication Facility (Desc)'!O11)","v":""},{"$f":"IF('Communication Facility (Desc)'!P11=\"\",\"\",INDEX([1]BUILDING_MTL!$A$2:$A$100,MATCH('Communication Facility (Desc)'!$P11,[1]!MASTER_BUILDING_MTL_DESC[#Data],0),0))","v":""},{"$f":"IF('Communication Facility (Desc)'!Q11=\"\",\"\",INDEX([1]KEY_TYPE!$A$2:$A$100,MATCH('Communication Facility (Desc)'!$Q11,[1]!MASTER_KEY_TYPE_DESC[#Data],0),0))","v":""},{"$f":"IF('Communication Facility (Desc)'!R11=\"\",\"\",'Communication Facility (Desc)'!R11)","v":""},{"$f":"IF('Communication Facility (Desc)'!S11=\"\",\"\",INDEX([1]FILTER_TYPE!$A$2:$A$100,MATCH('Communication Facility (Desc)'!$S11,[1]!MASTER_FILTER_TYPE_DESC[#Data],0),0))","v":""},{"$f":"IF('Communication Facility (Desc)'!T11=\"\",\"\",INDEX([1]FILTER_SIZE!$A$2:$A$100,MATCH('Communication Facility (Desc)'!$T11,[1]!MASTER_FILTER_SIZE_DESC[#Data],0),0))","v":""},{"$f":"IF('Communication Facility (Desc)'!U11=\"\",\"\",'Communication Facility (Desc)'!U11)","v":""},{"$f":"IF('Communication Facility (Desc)'!V11=\"\",\"\",INDEX([1]YES_NO!$A$2:$A$100,MATCH('Communication Facility (Desc)'!$V11,[1]!MASTER_YES_NO_DESC[#Data],0),0))","v":""},{"$f":"IF('Communication Facility (Desc)'!W11=\"\",\"\",INDEX([1]YES_NO!$A$2:$A$100,MATCH('Communication Facility (Desc)'!$W11,[1]!MASTER_YES_NO_DESC[#Data],0),0))","v":""}]
[{"$f":"IF('Communication Facility (Desc)'!A12=\"\",\"\",'Communication Facility (Desc)'!A12)","v":""},{"$f":"IF('Communication Facility (Desc)'!B12=\"\",\"\",'Communication Facility (Desc)'!B12)","v":""},{"$f":"IF('Communication Facility (Desc)'!C12=\"\",\"\",'Communication Facility (Desc)'!C12)","v":""},{"$f":"IF('Communication Facility (Desc)'!D12=\"\",\"\",'Communication Facility (Desc)'!D12)","v":""},{"$f":"IF('Communication Facility (Desc)'!E12=\"\",\"\",INDEX([1]FACILITY_TYPE!$A$2:$A$100,MATCH('Communication Facility (Desc)'!$E12,[1]!MASTER_FACILITY_TYPE_DESC[#Data],0),0))","v":""},{"$f":"IF('Communication Facility (Desc)'!F12=\"\",\"\",INDEX([1]OWNER!$A$2:$A$100,MATCH('Communication Facility (Desc)'!$F12,[1]!MASTER_OWNER_DESC[#Data],0),0))","v":""},{"$f":"IF('Communication Facility (Desc)'!G12=\"\",\"\",IF('Communication Facility (Desc)'!G12=\"\",\"\",INDEX([1]COUNTY!$A$2:$A$80,MATCH('Communication Facility (Desc)'!G12,[1]!MASTER_COUNTY_NAME[#Data],0),0)))","v":""},{"$f":"IF('Communication Facility (Desc)'!H12=\"\",\"\",'Communication Facility (Desc)'!H12)","v":""},{"$f":"IF('Communication Facility (Desc)'!I12=\"\",\"\",'Communication Facility (Desc)'!I12)","v":""},{"$f":"IF('Communication Facility (Desc)'!J12=\"\",\"\",'Communication Facility (Desc)'!J12)","v":""},{"$f":"IF('Communication Facility (Desc)'!K12=\"\",\"\",INDEX([1]CABINET_TYPE!$A$2:$A$100,MATCH('Communication Facility (Desc)'!$K12,[1]!MASTER_CABINET_TYPE_DESC[#Data],0),0))","v":""},{"$f":"IF('Communication Facility (Desc)'!L12=\"\",\"\",INDEX([1]CABINET_MOUNT_TYPE!$A$2:$A$100,MATCH('Communication Facility (Desc)'!L12,[1]!MASTER_CABINET_MOUNT_TYPE_DESC[#Data],0),0))","v":""},{"$f":"IF('Communication Facility (Desc)'!M12=\"\",\"\",INDEX([1]YES_NO!$A$2:$A$100,MATCH('Communication Facility (Desc)'!M12,[1]!MASTER_YES_NO_DESC[#Data],0),0))","v":""},{"$f":"IF('Communication Facility (Desc)'!N12=\"\",\"\",INDEX([1]BUILDING_TYPE!$A$2:$A$100,MATCH('Communication Facility (Desc)'!$N12,[1]!MASTER_BUILDING_TYPE_DESC[#Data],0),0))","v":""},{"$f":"IF('Communication Facility (Desc)'!O12=\"\",\"\",'Communication Facility (Desc)'!O12)","v":""},{"$f":"IF('Communication Facility (Desc)'!P12=\"\",\"\",INDEX([1]BUILDING_MTL!$A$2:$A$100,MATCH('Communication Facility (Desc)'!$P12,[1]!MASTER_BUILDING_MTL_DESC[#Data],0),0))","v":""},{"$f":"IF('Communication Facility (Desc)'!Q12=\"\",\"\",INDEX([1]KEY_TYPE!$A$2:$A$100,MATCH('Communication Facility (Desc)'!$Q12,[1]!MASTER_KEY_TYPE_DESC[#Data],0),0))","v":""},{"$f":"IF('Communication Facility (Desc)'!R12=\"\",\"\",'Communication Facility (Desc)'!R12)","v":""},{"$f":"IF('Communication Facility (Desc)'!S12=\"\",\"\",INDEX([1]FILTER_TYPE!$A$2:$A$100,MATCH('Communication Facility (Desc)'!$S12,[1]!MASTER_FILTER_TYPE_DESC[#Data],0),0))","v":""},{"$f":"IF('Communication Facility (Desc)'!T12=\"\",\"\",INDEX([1]FILTER_SIZE!$A$2:$A$100,MATCH('Communication Facility (Desc)'!$T12,[1]!MASTER_FILTER_SIZE_DESC[#Data],0),0))","v":""},{"$f":"IF('Communication Facility (Desc)'!U12=\"\",\"\",'Communication Facility (Desc)'!U12)","v":""},{"$f":"IF('Communication Facility (Desc)'!V12=\"\",\"\",INDEX([1]YES_NO!$A$2:$A$100,MATCH('Communication Facility (Desc)'!$V12,[1]!MASTER_YES_NO_DESC[#Data],0),0))","v":""},{"$f":"IF('Communication Facility (Desc)'!W12=\"\",\"\",INDEX([1]YES_NO!$A$2:$A$100,MATCH('Communication Facility (Desc)'!$W12,[1]!MASTER_YES_NO_DESC[#Data],0),0))","v":""}]
[{"$f":"IF('Communication Facility (Desc)'!A13=\"\",\"\",'Communication Facility (Desc)'!A13)","v":""},{"$f":"IF('Communication Facility (Desc)'!B13=\"\",\"\",'Communication Facility (Desc)'!B13)","v":""},{"$f":"IF('Communication Facility (Desc)'!C13=\"\",\"\",'Communication Facility (Desc)'!C13)","v":""},{"$f":"IF('Communication Facility (Desc)'!D13=\"\",\"\",'Communication Facility (Desc)'!D13)","v":""},{"$f":"IF('Communication Facility (Desc)'!E13=\"\",\"\",INDEX([1]FACILITY_TYPE!$A$2:$A$100,MATCH('Communication Facility (Desc)'!$E13,[1]!MASTER_FACILITY_TYPE_DESC[#Data],0),0))","v":""},{"$f":"IF('Communication Facility (Desc)'!F13=\"\",\"\",INDEX([1]OWNER!$A$2:$A$100,MATCH('Communication Facility (Desc)'!$F13,[1]!MASTER_OWNER_DESC[#Data],0),0))","v":""},{"$f":"IF('Communication Facility (Desc)'!G13=\"\",\"\",IF('Communication Facility (Desc)'!G13=\"\",\"\",INDEX([1]COUNTY!$A$2:$A$80,MATCH('Communication Facility (Desc)'!G13,[1]!MASTER_COUNTY_NAME[#Data],0),0)))","v":""},{"$f":"IF('Communication Facility (Desc)'!H13=\"\",\"\",'Communication Facility (Desc)'!H13)","v":""},{"$f":"IF('Communication Facility (Desc)'!I13=\"\",\"\",'Communication Facility (Desc)'!I13)","v":""},{"$f":"IF('Communication Facility (Desc)'!J13=\"\",\"\",'Communication Facility (Desc)'!J13)","v":""},{"$f":"IF('Communication Facility (Desc)'!K13=\"\",\"\",INDEX([1]CABINET_TYPE!$A$2:$A$100,MATCH('Communication Facility (Desc)'!$K13,[1]!MASTER_CABINET_TYPE_DESC[#Data],0),0))","v":""},{"$f":"IF('Communication Facility (Desc)'!L13=\"\",\"\",INDEX([1]CABINET_MOUNT_TYPE!$A$2:$A$100,MATCH('Communication Facility (Desc)'!L13,[1]!MASTER_CABINET_MOUNT_TYPE_DESC[#Data],0),0))","v":""},{"$f":"IF('Communication Facility (Desc)'!M13=\"\",\"\",INDEX([1]YES_NO!$A$2:$A$100,MATCH('Communication Facility (Desc)'!M13,[1]!MASTER_YES_NO_DESC[#Data],0),0))","v":""},{"$f":"IF('Communication Facility (Desc)'!N13=\"\",\"\",INDEX([1]BUILDING_TYPE!$A$2:$A$100,MATCH('Communication Facility (Desc)'!$N13,[1]!MASTER_BUILDING_TYPE_DESC[#Data],0),0))","v":""},{"$f":"IF('Communication Facility (Desc)'!O13=\"\",\"\",'Communication Facility (Desc)'!O13)","v":""},{"$f":"IF('Communication Facility (Desc)'!P13=\"\",\"\",INDEX([1]BUILDING_MTL!$A$2:$A$100,MATCH('Communication Facility (Desc)'!$P13,[1]!MASTER_BUILDING_MTL_DESC[#Data],0),0))","v":""},{"$f":"IF('Communication Facility (Desc)'!Q13=\"\",\"\",INDEX([1]KEY_TYPE!$A$2:$A$100,MATCH('Communication Facility (Desc)'!$Q13,[1]!MASTER_KEY_TYPE_DESC[#Data],0),0))","v":""},{"$f":"IF('Communication Facility (Desc)'!R13=\"\",\"\",'Communication Facility (Desc)'!R13)","v":""},{"$f":"IF('Communication Facility (Desc)'!S13=\"\",\"\",INDEX([1]FILTER_TYPE!$A$2:$A$100,MATCH('Communication Facility (Desc)'!$S13,[1]!MASTER_FILTER_TYPE_DESC[#Data],0),0))","v":""},{"$f":"IF('Communication Facility (Desc)'!T13=\"\",\"\",INDEX([1]FILTER_SIZE!$A$2:$A$100,MATCH('Communication Facility (Desc)'!$T13,[1]!MASTER_FILTER_SIZE_DESC[#Data],0),0))","v":""},{"$f":"IF('Communication Facility (Desc)'!U13=\"\",\"\",'Communication Facility (Desc)'!U13)","v":""},{"$f":"IF('Communication Facility (Desc)'!V13=\"\",\"\",INDEX([1]YES_NO!$A$2:$A$100,MATCH('Communication Facility (Desc)'!$V13,[1]!MASTER_YES_NO_DESC[#Data],0),0))","v":""},{"$f":"IF('Communication Facility (Desc)'!W13=\"\",\"\",INDEX([1]YES_NO!$A$2:$A$100,MATCH('Communication Facility (Desc)'!$W13,[1]!MASTER_YES_NO_DESC[#Data],0),0))","v":""}]
[{"$f":"IF('Communication Facility (Desc)'!A14=\"\",\"\",'Communication Facility (Desc)'!A14)","v":""},{"$f":"IF('Communication Facility (Desc)'!B14=\"\",\"\",'Communication Facility (Desc)'!B14)","v":""},{"$f":"IF('Communication Facility (Desc)'!C14=\"\",\"\",'Communication Facility (Desc)'!C14)","v":""},{"$f":"IF('Communication Facility (Desc)'!D14=\"\",\"\",'Communication Facility (Desc)'!D14)","v":""},{"$f":"IF('Communication Facility (Desc)'!E14=\"\",\"\",INDEX([1]FACILITY_TYPE!$A$2:$A$100,MATCH('Communication Facility (Desc)'!$E14,[1]!MASTER_FACILITY_TYPE_DESC[#Data],0),0))","v":""},{"$f":"IF('Communication Facility (Desc)'!F14=\"\",\"\",INDEX([1]OWNER!$A$2:$A$100,MATCH('Communication Facility (Desc)'!$F14,[1]!MASTER_OWNER_DESC[#Data],0),0))","v":""},{"$f":"IF('Communication Facility (Desc)'!G14=\"\",\"\",IF('Communication Facility (Desc)'!G14=\"\",\"\",INDEX([1]COUNTY!$A$2:$A$80,MATCH('Communication Facility (Desc)'!G14,[1]!MASTER_COUNTY_NAME[#Data],0),0)))","v":""},{"$f":"IF('Communication Facility (Desc)'!H14=\"\",\"\",'Communication Facility (Desc)'!H14)","v":""},{"$f":"IF('Communication Facility (Desc)'!I14=\"\",\"\",'Communication Facility (Desc)'!I14)","v":""},{"$f":"IF('Communication Facility (Desc)'!J14=\"\",\"\",'Communication Facility (Desc)'!J14)","v":""},{"$f":"IF('Communication Facility (Desc)'!K14=\"\",\"\",INDEX([1]CABINET_TYPE!$A$2:$A$100,MATCH('Communication Facility (Desc)'!$K14,[1]!MASTER_CABINET_TYPE_DESC[#Data],0),0))","v":""},{"$f":"IF('Communication Facility (Desc)'!L14=\"\",\"\",INDEX([1]CABINET_MOUNT_TYPE!$A$2:$A$100,MATCH('Communication Facility (Desc)'!L14,[1]!MASTER_CABINET_MOUNT_TYPE_DESC[#Data],0),0))","v":""},{"$f":"IF('Communication Facility (Desc)'!M14=\"\",\"\",INDEX([1]YES_NO!$A$2:$A$100,MATCH('Communication Facility (Desc)'!M14,[1]!MASTER_YES_NO_DESC[#Data],0),0))","v":""},{"$f":"IF('Communication Facility (Desc)'!N14=\"\",\"\",INDEX([1]BUILDING_TYPE!$A$2:$A$100,MATCH('Communication Facility (Desc)'!$N14,[1]!MASTER_BUILDING_TYPE_DESC[#Data],0),0))","v":""},{"$f":"IF('Communication Facility (Desc)'!O14=\"\",\"\",'Communication Facility (Desc)'!O14)","v":""},{"$f":"IF('Communication Facility (Desc)'!P14=\"\",\"\",INDEX([1]BUILDING_MTL!$A$2:$A$100,MATCH('Communication Facility (Desc)'!$P14,[1]!MASTER_BUILDING_MTL_DESC[#Data],0),0))","v":""},{"$f":"IF('Communication Facility (Desc)'!Q14=\"\",\"\",INDEX([1]KEY_TYPE!$A$2:$A$100,MATCH('Communication Facility (Desc)'!$Q14,[1]!MASTER_KEY_TYPE_DESC[#Data],0),0))","v":""},{"$f":"IF('Communication Facility (Desc)'!R14=\"\",\"\",'Communication Facility (Desc)'!R14)","v":""},{"$f":"IF('Communication Facility (Desc)'!S14=\"\",\"\",INDEX([1]FILTER_TYPE!$A$2:$A$100,MATCH('Communication Facility (Desc)'!$S14,[1]!MASTER_FILTER_TYPE_DESC[#Data],0),0))","v":""},{"$f":"IF('Communication Facility (Desc)'!T14=\"\",\"\",INDEX([1]FILTER_SIZE!$A$2:$A$100,MATCH('Communication Facility (Desc)'!$T14,[1]!MASTER_FILTER_SIZE_DESC[#Data],0),0))","v":""},{"$f":"IF('Communication Facility (Desc)'!U14=\"\",\"\",'Communication Facility (Desc)'!U14)","v":""},{"$f":"IF('Communication Facility (Desc)'!V14=\"\",\"\",INDEX([1]YES_NO!$A$2:$A$100,MATCH('Communication Facility (Desc)'!$V14,[1]!MASTER_YES_NO_DESC[#Data],0),0))","v":""},{"$f":"IF('Communication Facility (Desc)'!W14=\"\",\"\",INDEX([1]YES_NO!$A$2:$A$100,MATCH('Communication Facility (Desc)'!$W14,[1]!MASTER_YES_NO_DESC[#Data],0),0))","v":""}]
[{"$f":"IF('Communication Facility (Desc)'!A15=\"\",\"\",'Communication Facility (Desc)'!A15)","v":""},{"$f":"IF('Communication Facility (Desc)'!B15=\"\",\"\",'Communication Facility (Desc)'!B15)","v":""},{"$f":"IF('Communication Facility (Desc)'!C15=\"\",\"\",'Communication Facility (Desc)'!C15)","v":""},{"$f":"IF('Communication Facility (Desc)'!D15=\"\",\"\",'Communication Facility (Desc)'!D15)","v":""},{"$f":"IF('Communication Facility (Desc)'!E15=\"\",\"\",INDEX([1]FACILITY_TYPE!$A$2:$A$100,MATCH('Communication Facility (Desc)'!$E15,[1]!MASTER_FACILITY_TYPE_DESC[#Data],0),0))","v":""},{"$f":"IF('Communication Facility (Desc)'!F15=\"\",\"\",INDEX([1]OWNER!$A$2:$A$100,MATCH('Communication Facility (Desc)'!$F15,[1]!MASTER_OWNER_DESC[#Data],0),0))","v":""},{"$f":"IF('Communication Facility (Desc)'!G15=\"\",\"\",IF('Communication Facility (Desc)'!G15=\"\",\"\",INDEX([1]COUNTY!$A$2:$A$80,MATCH('Communication Facility (Desc)'!G15,[1]!MASTER_COUNTY_NAME[#Data],0),0)))","v":""},{"$f":"IF('Communication Facility (Desc)'!H15=\"\",\"\",'Communication Facility (Desc)'!H15)","v":""},{"$f":"IF('Communication Facility (Desc)'!I15=\"\",\"\",'Communication Facility (Desc)'!I15)","v":""},{"$f":"IF('Communication Facility (Desc)'!J15=\"\",\"\",'Communication Facility (Desc)'!J15)","v":""},{"$f":"IF('Communication Facility (Desc)'!K15=\"\",\"\",INDEX([1]CABINET_TYPE!$A$2:$A$100,MATCH('Communication Facility (Desc)'!$K15,[1]!MASTER_CABINET_TYPE_DESC[#Data],0),0))","v":""},{"$f":"IF('Communication Facility (Desc)'!L15=\"\",\"\",INDEX([1]CABINET_MOUNT_TYPE!$A$2:$A$100,MATCH('Communication Facility (Desc)'!L15,[1]!MASTER_CABINET_MOUNT_TYPE_DESC[#Data],0),0))","v":""},{"$f":"IF('Communication Facility (Desc)'!M15=\"\",\"\",INDEX([1]YES_NO!$A$2:$A$100,MATCH('Communication Facility (Desc)'!M15,[1]!MASTER_YES_NO_DESC[#Data],0),0))","v":""},{"$f":"IF('Communication Facility (Desc)'!N15=\"\",\"\",INDEX([1]BUILDING_TYPE!$A$2:$A$100,MATCH('Communication Facility (Desc)'!$N15,[1]!MASTER_BUILDING_TYPE_DESC[#Data],0),0))","v":""},{"$f":"IF('Communication Facility (Desc)'!O15=\"\",\"\",'Communication Facility (Desc)'!O15)","v":""},{"$f":"IF('Communication Facility (Desc)'!P15=\"\",\"\",INDEX([1]BUILDING_MTL!$A$2:$A$100,MATCH('Communication Facility (Desc)'!$P15,[1]!MASTER_BUILDING_MTL_DESC[#Data],0),0))","v":""},{"$f":"IF('Communication Facility (Desc)'!Q15=\"\",\"\",INDEX([1]KEY_TYPE!$A$2:$A$100,MATCH('Communication Facility (Desc)'!$Q15,[1]!MASTER_KEY_TYPE_DESC[#Data],0),0))","v":""},{"$f":"IF('Communication Facility (Desc)'!R15=\"\",\"\",'Communication Facility (Desc)'!R15)","v":""},{"$f":"IF('Communication Facility (Desc)'!S15=\"\",\"\",INDEX([1]FILTER_TYPE!$A$2:$A$100,MATCH('Communication Facility (Desc)'!$S15,[1]!MASTER_FILTER_TYPE_DESC[#Data],0),0))","v":""},{"$f":"IF('Communication Facility (Desc)'!T15=\"\",\"\",INDEX([1]FILTER_SIZE!$A$2:$A$100,MATCH('Communication Facility (Desc)'!$T15,[1]!MASTER_FILTER_SIZE_DESC[#Data],0),0))","v":""},{"$f":"IF('Communication Facility (Desc)'!U15=\"\",\"\",'Communication Facility (Desc)'!U15)","v":""},{"$f":"IF('Communication Facility (Desc)'!V15=\"\",\"\",INDEX([1]YES_NO!$A$2:$A$100,MATCH('Communication Facility (Desc)'!$V15,[1]!MASTER_YES_NO_DESC[#Data],0),0))","v":""},{"$f":"IF('Communication Facility (Desc)'!W15=\"\",\"\",INDEX([1]YES_NO!$A$2:$A$100,MATCH('Communication Facility (Desc)'!$W15,[1]!MASTER_YES_NO_DESC[#Data],0),0))","v":""}]
[{"$f":"IF('Communication Facility (Desc)'!A16=\"\",\"\",'Communication Facility (Desc)'!A16)","v":""},{"$f":"IF('Communication Facility (Desc)'!B16=\"\",\"\",'Communication Facility (Desc)'!B16)","v":""},{"$f":"IF('Communication Facility (Desc)'!C16=\"\",\"\",'Communication Facility (Desc)'!C16)","v":""},{"$f":"IF('Communication Facility (Desc)'!D16=\"\",\"\",'Communication Facility (Desc)'!D16)","v":""},{"$f":"IF('Communication Facility (Desc)'!E16=\"\",\"\",INDEX([1]FACILITY_TYPE!$A$2:$A$100,MATCH('Communication Facility (Desc)'!$E16,[1]!MASTER_FACILITY_TYPE_DESC[#Data],0),0))","v":""},{"$f":"IF('Communication Facility (Desc)'!F16=\"\",\"\",INDEX([1]OWNER!$A$2:$A$100,MATCH('Communication Facility (Desc)'!$F16,[1]!MASTER_OWNER_DESC[#Data],0),0))","v":""},{"$f":"IF('Communication Facility (Desc)'!G16=\"\",\"\",IF('Communication Facility (Desc)'!G16=\"\",\"\",INDEX([1]COUNTY!$A$2:$A$80,MATCH('Communication Facility (Desc)'!G16,[1]!MASTER_COUNTY_NAME[#Data],0),0)))","v":""},{"$f":"IF('Communication Facility (Desc)'!H16=\"\",\"\",'Communication Facility (Desc)'!H16)","v":""},{"$f":"IF('Communication Facility (Desc)'!I16=\"\",\"\",'Communication Facility (Desc)'!I16)","v":""},{"$f":"IF('Communication Facility (Desc)'!J16=\"\",\"\",'Communication Facility (Desc)'!J16)","v":""},{"$f":"IF('Communication Facility (Desc)'!K16=\"\",\"\",INDEX([1]CABINET_TYPE!$A$2:$A$100,MATCH('Communication Facility (Desc)'!$K16,[1]!MASTER_CABINET_TYPE_DESC[#Data],0),0))","v":""},{"$f":"IF('Communication Facility (Desc)'!L16=\"\",\"\",INDEX([1]CABINET_MOUNT_TYPE!$A$2:$A$100,MATCH('Communication Facility (Desc)'!L16,[1]!MASTER_CABINET_MOUNT_TYPE_DESC[#Data],0),0))","v":""},{"$f":"IF('Communication Facility (Desc)'!M16=\"\",\"\",INDEX([1]YES_NO!$A$2:$A$100,MATCH('Communication Facility (Desc)'!M16,[1]!MASTER_YES_NO_DESC[#Data],0),0))","v":""},{"$f":"IF('Communication Facility (Desc)'!N16=\"\",\"\",INDEX([1]BUILDING_TYPE!$A$2:$A$100,MATCH('Communication Facility (Desc)'!$N16,[1]!MASTER_BUILDING_TYPE_DESC[#Data],0),0))","v":""},{"$f":"IF('Communication Facility (Desc)'!O16=\"\",\"\",'Communication Facility (Desc)'!O16)","v":""},{"$f":"IF('Communication Facility (Desc)'!P16=\"\",\"\",INDEX([1]BUILDING_MTL!$A$2:$A$100,MATCH('Communication Facility (Desc)'!$P16,[1]!MASTER_BUILDING_MTL_DESC[#Data],0),0))","v":""},{"$f":"IF('Communication Facility (Desc)'!Q16=\"\",\"\",INDEX([1]KEY_TYPE!$A$2:$A$100,MATCH('Communication Facility (Desc)'!$Q16,[1]!MASTER_KEY_TYPE_DESC[#Data],0),0))","v":""},{"$f":"IF('Communication Facility (Desc)'!R16=\"\",\"\",'Communication Facility (Desc)'!R16)","v":""},{"$f":"IF('Communication Facility (Desc)'!S16=\"\",\"\",INDEX([1]FILTER_TYPE!$A$2:$A$100,MATCH('Communication Facility (Desc)'!$S16,[1]!MASTER_FILTER_TYPE_DESC[#Data],0),0))","v":""},{"$f":"IF('Communication Facility (Desc)'!T16=\"\",\"\",INDEX([1]FILTER_SIZE!$A$2:$A$100,MATCH('Communication Facility (Desc)'!$T16,[1]!MASTER_FILTER_SIZE_DESC[#Data],0),0))","v":""},{"$f":"IF('Communication Facility (Desc)'!U16=\"\",\"\",'Communication Facility (Desc)'!U16)","v":""},{"$f":"IF('Communication Facility (Desc)'!V16=\"\",\"\",INDEX([1]YES_NO!$A$2:$A$100,MATCH('Communication Facility (Desc)'!$V16,[1]!MASTER_YES_NO_DESC[#Data],0),0))","v":""},{"$f":"IF('Communication Facility (Desc)'!W16=\"\",\"\",INDEX([1]YES_NO!$A$2:$A$100,MATCH('Communication Facility (Desc)'!$W16,[1]!MASTER_YES_NO_DESC[#Data],0),0))","v":""}]
[{"$f":"IF('Communication Facility (Desc)'!A17=\"\",\"\",'Communication Facility (Desc)'!A17)","v":""},{"$f":"IF('Communication Facility (Desc)'!B17=\"\",\"\",'Communication Facility (Desc)'!B17)","v":""},{"$f":"IF('Communication Facility (Desc)'!C17=\"\",\"\",'Communication Facility (Desc)'!C17)","v":""},{"$f":"IF('Communication Facility (Desc)'!D17=\"\",\"\",'Communication Facility (Desc)'!D17)","v":""},{"$f":"IF('Communication Facility (Desc)'!E17=\"\",\"\",INDEX([1]FACILITY_TYPE!$A$2:$A$100,MATCH('Communication Facility (Desc)'!$E17,[1]!MASTER_FACILITY_TYPE_DESC[#Data],0),0))","v":""},{"$f":"IF('Communication Facility (Desc)'!F17=\"\",\"\",INDEX([1]OWNER!$A$2:$A$100,MATCH('Communication Facility (Desc)'!$F17,[1]!MASTER_OWNER_DESC[#Data],0),0))","v":""},{"$f":"IF('Communication Facility (Desc)'!G17=\"\",\"\",IF('Communication Facility (Desc)'!G17=\"\",\"\",INDEX([1]COUNTY!$A$2:$A$80,MATCH('Communication Facility (Desc)'!G17,[1]!MASTER_COUNTY_NAME[#Data],0),0)))","v":""},{"$f":"IF('Communication Facility (Desc)'!H17=\"\",\"\",'Communication Facility (Desc)'!H17)","v":""},{"$f":"IF('Communication Facility (Desc)'!I17=\"\",\"\",'Communication Facility (Desc)'!I17)","v":""},{"$f":"IF('Communication Facility (Desc)'!J17=\"\",\"\",'Communication Facility (Desc)'!J17)","v":""},{"$f":"IF('Communication Facility (Desc)'!K17=\"\",\"\",INDEX([1]CABINET_TYPE!$A$2:$A$100,MATCH('Communication Facility (Desc)'!$K17,[1]!MASTER_CABINET_TYPE_DESC[#Data],0),0))","v":""},{"$f":"IF('Communication Facility (Desc)'!L17=\"\",\"\",INDEX([1]CABINET_MOUNT_TYPE!$A$2:$A$100,MATCH('Communication Facility (Desc)'!L17,[1]!MASTER_CABINET_MOUNT_TYPE_DESC[#Data],0),0))","v":""},{"$f":"IF('Communication Facility (Desc)'!M17=\"\",\"\",INDEX([1]YES_NO!$A$2:$A$100,MATCH('Communication Facility (Desc)'!M17,[1]!MASTER_YES_NO_DESC[#Data],0),0))","v":""},{"$f":"IF('Communication Facility (Desc)'!N17=\"\",\"\",INDEX([1]BUILDING_TYPE!$A$2:$A$100,MATCH('Communication Facility (Desc)'!$N17,[1]!MASTER_BUILDING_TYPE_DESC[#Data],0),0))","v":""},{"$f":"IF('Communication Facility (Desc)'!O17=\"\",\"\",'Communication Facility (Desc)'!O17)","v":""},{"$f":"IF('Communication Facility (Desc)'!P17=\"\",\"\",INDEX([1]BUILDING_MTL!$A$2:$A$100,MATCH('Communication Facility (Desc)'!$P17,[1]!MASTER_BUILDING_MTL_DESC[#Data],0),0))","v":""},{"$f":"IF('Communication Facility (Desc)'!Q17=\"\",\"\",INDEX([1]KEY_TYPE!$A$2:$A$100,MATCH('Communication Facility (Desc)'!$Q17,[1]!MASTER_KEY_TYPE_DESC[#Data],0),0))","v":""},{"$f":"IF('Communication Facility (Desc)'!R17=\"\",\"\",'Communication Facility (Desc)'!R17)","v":""},{"$f":"IF('Communication Facility (Desc)'!S17=\"\",\"\",INDEX([1]FILTER_TYPE!$A$2:$A$100,MATCH('Communication Facility (Desc)'!$S17,[1]!MASTER_FILTER_TYPE_DESC[#Data],0),0))","v":""},{"$f":"IF('Communication Facility (Desc)'!T17=\"\",\"\",INDEX([1]FILTER_SIZE!$A$2:$A$100,MATCH('Communication Facility (Desc)'!$T17,[1]!MASTER_FILTER_SIZE_DESC[#Data],0),0))","v":""},{"$f":"IF('Communication Facility (Desc)'!U17=\"\",\"\",'Communication Facility (Desc)'!U17)","v":""},{"$f":"IF('Communication Facility (Desc)'!V17=\"\",\"\",INDEX([1]YES_NO!$A$2:$A$100,MATCH('Communication Facility (Desc)'!$V17,[1]!MASTER_YES_NO_DESC[#Data],0),0))","v":""},{"$f":"IF('Communication Facility (Desc)'!W17=\"\",\"\",INDEX([1]YES_NO!$A$2:$A$100,MATCH('Communication Facility (Desc)'!$W17,[1]!MASTER_YES_NO_DESC[#Data],0),0))","v":""}]
[{"$f":"IF('Communication Facility (Desc)'!A18=\"\",\"\",'Communication Facility (Desc)'!A18)","v":""},{"$f":"IF('Communication Facility (Desc)'!B18=\"\",\"\",'Communication Facility (Desc)'!B18)","v":""},{"$f":"IF('Communication Facility (Desc)'!C18=\"\",\"\",'Communication Facility (Desc)'!C18)","v":""},{"$f":"IF('Communication Facility (Desc)'!D18=\"\",\"\",'Communication Facility (Desc)'!D18)","v":""},{"$f":"IF('Communication Facility (Desc)'!E18=\"\",\"\",INDEX([1]FACILITY_TYPE!$A$2:$A$100,MATCH('Communication Facility (Desc)'!$E18,[1]!MASTER_FACILITY_TYPE_DESC[#Data],0),0))","v":""},{"$f":"IF('Communication Facility (Desc)'!F18=\"\",\"\",INDEX([1]OWNER!$A$2:$A$100,MATCH('Communication Facility (Desc)'!$F18,[1]!MASTER_OWNER_DESC[#Data],0),0))","v":""},{"$f":"IF('Communication Facility (Desc)'!G18=\"\",\"\",IF('Communication Facility (Desc)'!G18=\"\",\"\",INDEX([1]COUNTY!$A$2:$A$80,MATCH('Communication Facility (Desc)'!G18,[1]!MASTER_COUNTY_NAME[#Data],0),0)))","v":""},{"$f":"IF('Communication Facility (Desc)'!H18=\"\",\"\",'Communication Facility (Desc)'!H18)","v":""},{"$f":"IF('Communication Facility (Desc)'!I18=\"\",\"\",'Communication Facility (Desc)'!I18)","v":""},{"$f":"IF('Communication Facility (Desc)'!J18=\"\",\"\",'Communication Facility (Desc)'!J18)","v":""},{"$f":"IF('Communication Facility (Desc)'!K18=\"\",\"\",INDEX([1]CABINET_TYPE!$A$2:$A$100,MATCH('Communication Facility (Desc)'!$K18,[1]!MASTER_CABINET_TYPE_DESC[#Data],0),0))","v":""},{"$f":"IF('Communication Facility (Desc)'!L18=\"\",\"\",INDEX([1]CABINET_MOUNT_TYPE!$A$2:$A$100,MATCH('Communication Facility (Desc)'!L18,[1]!MASTER_CABINET_MOUNT_TYPE_DESC[#Data],0),0))","v":""},{"$f":"IF('Communication Facility (Desc)'!M18=\"\",\"\",INDEX([1]YES_NO!$A$2:$A$100,MATCH('Communication Facility (Desc)'!M18,[1]!MASTER_YES_NO_DESC[#Data],0),0))","v":""},{"$f":"IF('Communication Facility (Desc)'!N18=\"\",\"\",INDEX([1]BUILDING_TYPE!$A$2:$A$100,MATCH('Communication Facility (Desc)'!$N18,[1]!MASTER_BUILDING_TYPE_DESC[#Data],0),0))","v":""},{"$f":"IF('Communication Facility (Desc)'!O18=\"\",\"\",'Communication Facility (Desc)'!O18)","v":""},{"$f":"IF('Communication Facility (Desc)'!P18=\"\",\"\",INDEX([1]BUILDING_MTL!$A$2:$A$100,MATCH('Communication Facility (Desc)'!$P18,[1]!MASTER_BUILDING_MTL_DESC[#Data],0),0))","v":""},{"$f":"IF('Communication Facility (Desc)'!Q18=\"\",\"\",INDEX([1]KEY_TYPE!$A$2:$A$100,MATCH('Communication Facility (Desc)'!$Q18,[1]!MASTER_KEY_TYPE_DESC[#Data],0),0))","v":""},{"$f":"IF('Communication Facility (Desc)'!R18=\"\",\"\",'Communication Facility (Desc)'!R18)","v":""},{"$f":"IF('Communication Facility (Desc)'!S18=\"\",\"\",INDEX([1]FILTER_TYPE!$A$2:$A$100,MATCH('Communication Facility (Desc)'!$S18,[1]!MASTER_FILTER_TYPE_DESC[#Data],0),0))","v":""},{"$f":"IF('Communication Facility (Desc)'!T18=\"\",\"\",INDEX([1]FILTER_SIZE!$A$2:$A$100,MATCH('Communication Facility (Desc)'!$T18,[1]!MASTER_FILTER_SIZE_DESC[#Data],0),0))","v":""},{"$f":"IF('Communication Facility (Desc)'!U18=\"\",\"\",'Communication Facility (Desc)'!U18)","v":""},{"$f":"IF('Communication Facility (Desc)'!V18=\"\",\"\",INDEX([1]YES_NO!$A$2:$A$100,MATCH('Communication Facility (Desc)'!$V18,[1]!MASTER_YES_NO_DESC[#Data],0),0))","v":""},{"$f":"IF('Communication Facility (Desc)'!W18=\"\",\"\",INDEX([1]YES_NO!$A$2:$A$100,MATCH('Communication Facility (Desc)'!$W18,[1]!MASTER_YES_NO_DESC[#Data],0),0))","v":""}]
[{"$f":"IF('Communication Facility (Desc)'!A19=\"\",\"\",'Communication Facility (Desc)'!A19)","v":""},{"$f":"IF('Communication Facility (Desc)'!B19=\"\",\"\",'Communication Facility (Desc)'!B19)","v":""},{"$f":"IF('Communication Facility (Desc)'!C19=\"\",\"\",'Communication Facility (Desc)'!C19)","v":""},{"$f":"IF('Communication Facility (Desc)'!D19=\"\",\"\",'Communication Facility (Desc)'!D19)","v":""},{"$f":"IF('Communication Facility (Desc)'!E19=\"\",\"\",INDEX([1]FACILITY_TYPE!$A$2:$A$100,MATCH('Communication Facility (Desc)'!$E19,[1]!MASTER_FACILITY_TYPE_DESC[#Data],0),0))","v":""},{"$f":"IF('Communication Facility (Desc)'!F19=\"\",\"\",INDEX([1]OWNER!$A$2:$A$100,MATCH('Communication Facility (Desc)'!$F19,[1]!MASTER_OWNER_DESC[#Data],0),0))","v":""},{"$f":"IF('Communication Facility (Desc)'!G19=\"\",\"\",IF('Communication Facility (Desc)'!G19=\"\",\"\",INDEX([1]COUNTY!$A$2:$A$80,MATCH('Communication Facility (Desc)'!G19,[1]!MASTER_COUNTY_NAME[#Data],0),0)))","v":""},{"$f":"IF('Communication Facility (Desc)'!H19=\"\",\"\",'Communication Facility (Desc)'!H19)","v":""},{"$f":"IF('Communication Facility (Desc)'!I19=\"\",\"\",'Communication Facility (Desc)'!I19)","v":""},{"$f":"IF('Communication Facility (Desc)'!J19=\"\",\"\",'Communication Facility (Desc)'!J19)","v":""},{"$f":"IF('Communication Facility (Desc)'!K19=\"\",\"\",INDEX([1]CABINET_TYPE!$A$2:$A$100,MATCH('Communication Facility (Desc)'!$K19,[1]!MASTER_CABINET_TYPE_DESC[#Data],0),0))","v":""},{"$f":"IF('Communication Facility (Desc)'!L19=\"\",\"\",INDEX([1]CABINET_MOUNT_TYPE!$A$2:$A$100,MATCH('Communication Facility (Desc)'!L19,[1]!MASTER_CABINET_MOUNT_TYPE_DESC[#Data],0),0))","v":""},{"$f":"IF('Communication Facility (Desc)'!M19=\"\",\"\",INDEX([1]YES_NO!$A$2:$A$100,MATCH('Communication Facility (Desc)'!M19,[1]!MASTER_YES_NO_DESC[#Data],0),0))","v":""},{"$f":"IF('Communication Facility (Desc)'!N19=\"\",\"\",INDEX([1]BUILDING_TYPE!$A$2:$A$100,MATCH('Communication Facility (Desc)'!$N19,[1]!MASTER_BUILDING_TYPE_DESC[#Data],0),0))","v":""},{"$f":"IF('Communication Facility (Desc)'!O19=\"\",\"\",'Communication Facility (Desc)'!O19)","v":""},{"$f":"IF('Communication Facility (Desc)'!P19=\"\",\"\",INDEX([1]BUILDING_MTL!$A$2:$A$100,MATCH('Communication Facility (Desc)'!$P19,[1]!MASTER_BUILDING_MTL_DESC[#Data],0),0))","v":""},{"$f":"IF('Communication Facility (Desc)'!Q19=\"\",\"\",INDEX([1]KEY_TYPE!$A$2:$A$100,MATCH('Communication Facility (Desc)'!$Q19,[1]!MASTER_KEY_TYPE_DESC[#Data],0),0))","v":""},{"$f":"IF('Communication Facility (Desc)'!R19=\"\",\"\",'Communication Facility (Desc)'!R19)","v":""},{"$f":"IF('Communication Facility (Desc)'!S19=\"\",\"\",INDEX([1]FILTER_TYPE!$A$2:$A$100,MATCH('Communication Facility (Desc)'!$S19,[1]!MASTER_FILTER_TYPE_DESC[#Data],0),0))","v":""},{"$f":"IF('Communication Facility (Desc)'!T19=\"\",\"\",INDEX([1]FILTER_SIZE!$A$2:$A$100,MATCH('Communication Facility (Desc)'!$T19,[1]!MASTER_FILTER_SIZE_DESC[#Data],0),0))","v":""},{"$f":"IF('Communication Facility (Desc)'!U19=\"\",\"\",'Communication Facility (Desc)'!U19)","v":""},{"$f":"IF('Communication Facility (Desc)'!V19=\"\",\"\",INDEX([1]YES_NO!$A$2:$A$100,MATCH('Communication Facility (Desc)'!$V19,[1]!MASTER_YES_NO_DESC[#Data],0),0))","v":""},{"$f":"IF('Communication Facility (Desc)'!W19=\"\",\"\",INDEX([1]YES_NO!$A$2:$A$100,MATCH('Communication Facility (Desc)'!$W19,[1]!MASTER_YES_NO_DESC[#Data],0),0))","v":""}]
[{"$f":"IF('Communication Facility (Desc)'!A20=\"\",\"\",'Communication Facility (Desc)'!A20)","v":""},{"$f":"IF('Communication Facility (Desc)'!B20=\"\",\"\",'Communication Facility (Desc)'!B20)","v":""},{"$f":"IF('Communication Facility (Desc)'!C20=\"\",\"\",'Communication Facility (Desc)'!C20)","v":""},{"$f":"IF('Communication Facility (Desc)'!D20=\"\",\"\",'Communication Facility (Desc)'!D20)","v":""},{"$f":"IF('Communication Facility (Desc)'!E20=\"\",\"\",INDEX([1]FACILITY_TYPE!$A$2:$A$100,MATCH('Communication Facility (Desc)'!$E20,[1]!MASTER_FACILITY_TYPE_DESC[#Data],0),0))","v":""},{"$f":"IF('Communication Facility (Desc)'!F20=\"\",\"\",INDEX([1]OWNER!$A$2:$A$100,MATCH('Communication Facility (Desc)'!$F20,[1]!MASTER_OWNER_DESC[#Data],0),0))","v":""},{"$f":"IF('Communication Facility (Desc)'!G20=\"\",\"\",IF('Communication Facility (Desc)'!G20=\"\",\"\",INDEX([1]COUNTY!$A$2:$A$80,MATCH('Communication Facility (Desc)'!G20,[1]!MASTER_COUNTY_NAME[#Data],0),0)))","v":""},{"$f":"IF('Communication Facility (Desc)'!H20=\"\",\"\",'Communication Facility (Desc)'!H20)","v":""},{"$f":"IF('Communication Facility (Desc)'!I20=\"\",\"\",'Communication Facility (Desc)'!I20)","v":""},{"$f":"IF('Communication Facility (Desc)'!J20=\"\",\"\",'Communication Facility (Desc)'!J20)","v":""},{"$f":"IF('Communication Facility (Desc)'!K20=\"\",\"\",INDEX([1]CABINET_TYPE!$A$2:$A$100,MATCH('Communication Facility (Desc)'!$K20,[1]!MASTER_CABINET_TYPE_DESC[#Data],0),0))","v":""},{"$f":"IF('Communication Facility (Desc)'!L20=\"\",\"\",INDEX([1]CABINET_MOUNT_TYPE!$A$2:$A$100,MATCH('Communication Facility (Desc)'!L20,[1]!MASTER_CABINET_MOUNT_TYPE_DESC[#Data],0),0))","v":""},{"$f":"IF('Communication Facility (Desc)'!M20=\"\",\"\",INDEX([1]YES_NO!$A$2:$A$100,MATCH('Communication Facility (Desc)'!M20,[1]!MASTER_YES_NO_DESC[#Data],0),0))","v":""},{"$f":"IF('Communication Facility (Desc)'!N20=\"\",\"\",INDEX([1]BUILDING_TYPE!$A$2:$A$100,MATCH('Communication Facility (Desc)'!$N20,[1]!MASTER_BUILDING_TYPE_DESC[#Data],0),0))","v":""},{"$f":"IF('Communication Facility (Desc)'!O20=\"\",\"\",'Communication Facility (Desc)'!O20)","v":""},{"$f":"IF('Communication Facility (Desc)'!P20=\"\",\"\",INDEX([1]BUILDING_MTL!$A$2:$A$100,MATCH('Communication Facility (Desc)'!$P20,[1]!MASTER_BUILDING_MTL_DESC[#Data],0),0))","v":""},{"$f":"IF('Communication Facility (Desc)'!Q20=\"\",\"\",INDEX([1]KEY_TYPE!$A$2:$A$100,MATCH('Communication Facility (Desc)'!$Q20,[1]!MASTER_KEY_TYPE_DESC[#Data],0),0))","v":""},{"$f":"IF('Communication Facility (Desc)'!R20=\"\",\"\",'Communication Facility (Desc)'!R20)","v":""},{"$f":"IF('Communication Facility (Desc)'!S20=\"\",\"\",INDEX([1]FILTER_TYPE!$A$2:$A$100,MATCH('Communication Facility (Desc)'!$S20,[1]!MASTER_FILTER_TYPE_DESC[#Data],0),0))","v":""},{"$f":"IF('Communication Facility (Desc)'!T20=\"\",\"\",INDEX([1]FILTER_SIZE!$A$2:$A$100,MATCH('Communication Facility (Desc)'!$T20,[1]!MASTER_FILTER_SIZE_DESC[#Data],0),0))","v":""},{"$f":"IF('Communication Facility (Desc)'!U20=\"\",\"\",'Communication Facility (Desc)'!U20)","v":""},{"$f":"IF('Communication Facility (Desc)'!V20=\"\",\"\",INDEX([1]YES_NO!$A$2:$A$100,MATCH('Communication Facility (Desc)'!$V20,[1]!MASTER_YES_NO_DESC[#Data],0),0))","v":""},{"$f":"IF('Communication Facility (Desc)'!W20=\"\",\"\",INDEX([1]YES_NO!$A$2:$A$100,MATCH('Communication Facility (Desc)'!$W20,[1]!MASTER_YES_NO_DESC[#Data],0),0))","v":""}]
[{"$f":"IF('Communication Facility (Desc)'!A21=\"\",\"\",'Communication Facility (Desc)'!A21)","v":""},{"$f":"IF('Communication Facility (Desc)'!B21=\"\",\"\",'Communication Facility (Desc)'!B21)","v":""},{"$f":"IF('Communication Facility (Desc)'!C21=\"\",\"\",'Communication Facility (Desc)'!C21)","v":""},{"$f":"IF('Communication Facility (Desc)'!D21=\"\",\"\",'Communication Facility (Desc)'!D21)","v":""},{"$f":"IF('Communication Facility (Desc)'!E21=\"\",\"\",INDEX([1]FACILITY_TYPE!$A$2:$A$100,MATCH('Communication Facility (Desc)'!$E21,[1]!MASTER_FACILITY_TYPE_DESC[#Data],0),0))","v":""},{"$f":"IF('Communication Facility (Desc)'!F21=\"\",\"\",INDEX([1]OWNER!$A$2:$A$100,MATCH('Communication Facility (Desc)'!$F21,[1]!MASTER_OWNER_DESC[#Data],0),0))","v":""},{"$f":"IF('Communication Facility (Desc)'!G21=\"\",\"\",IF('Communication Facility (Desc)'!G21=\"\",\"\",INDEX([1]COUNTY!$A$2:$A$80,MATCH('Communication Facility (Desc)'!G21,[1]!MASTER_COUNTY_NAME[#Data],0),0)))","v":""},{"$f":"IF('Communication Facility (Desc)'!H21=\"\",\"\",'Communication Facility (Desc)'!H21)","v":""},{"$f":"IF('Communication Facility (Desc)'!I21=\"\",\"\",'Communication Facility (Desc)'!I21)","v":""},{"$f":"IF('Communication Facility (Desc)'!J21=\"\",\"\",'Communication Facility (Desc)'!J21)","v":""},{"$f":"IF('Communication Facility (Desc)'!K21=\"\",\"\",INDEX([1]CABINET_TYPE!$A$2:$A$100,MATCH('Communication Facility (Desc)'!$K21,[1]!MASTER_CABINET_TYPE_DESC[#Data],0),0))","v":""},{"$f":"IF('Communication Facility (Desc)'!L21=\"\",\"\",INDEX([1]CABINET_MOUNT_TYPE!$A$2:$A$100,MATCH('Communication Facility (Desc)'!L21,[1]!MASTER_CABINET_MOUNT_TYPE_DESC[#Data],0),0))","v":""},{"$f":"IF('Communication Facility (Desc)'!M21=\"\",\"\",INDEX([1]YES_NO!$A$2:$A$100,MATCH('Communication Facility (Desc)'!M21,[1]!MASTER_YES_NO_DESC[#Data],0),0))","v":""},{"$f":"IF('Communication Facility (Desc)'!N21=\"\",\"\",INDEX([1]BUILDING_TYPE!$A$2:$A$100,MATCH('Communication Facility (Desc)'!$N21,[1]!MASTER_BUILDING_TYPE_DESC[#Data],0),0))","v":""},{"$f":"IF('Communication Facility (Desc)'!O21=\"\",\"\",'Communication Facility (Desc)'!O21)","v":""},{"$f":"IF('Communication Facility (Desc)'!P21=\"\",\"\",INDEX([1]BUILDING_MTL!$A$2:$A$100,MATCH('Communication Facility (Desc)'!$P21,[1]!MASTER_BUILDING_MTL_DESC[#Data],0),0))","v":""},{"$f":"IF('Communication Facility (Desc)'!Q21=\"\",\"\",INDEX([1]KEY_TYPE!$A$2:$A$100,MATCH('Communication Facility (Desc)'!$Q21,[1]!MASTER_KEY_TYPE_DESC[#Data],0),0))","v":""},{"$f":"IF('Communication Facility (Desc)'!R21=\"\",\"\",'Communication Facility (Desc)'!R21)","v":""},{"$f":"IF('Communication Facility (Desc)'!S21=\"\",\"\",INDEX([1]FILTER_TYPE!$A$2:$A$100,MATCH('Communication Facility (Desc)'!$S21,[1]!MASTER_FILTER_TYPE_DESC[#Data],0),0))","v":""},{"$f":"IF('Communication Facility (Desc)'!T21=\"\",\"\",INDEX([1]FILTER_SIZE!$A$2:$A$100,MATCH('Communication Facility (Desc)'!$T21,[1]!MASTER_FILTER_SIZE_DESC[#Data],0),0))","v":""},{"$f":"IF('Communication Facility (Desc)'!U21=\"\",\"\",'Communication Facility (Desc)'!U21)","v":""},{"$f":"IF('Communication Facility (Desc)'!V21=\"\",\"\",INDEX([1]YES_NO!$A$2:$A$100,MATCH('Communication Facility (Desc)'!$V21,[1]!MASTER_YES_NO_DESC[#Data],0),0))","v":""},{"$f":"IF('Communication Facility (Desc)'!W21=\"\",\"\",INDEX([1]YES_NO!$A$2:$A$100,MATCH('Communication Facility (Desc)'!$W21,[1]!MASTER_YES_NO_DESC[#Data],0),0))","v":""}]
[{"$f":"IF('Communication Facility (Desc)'!A22=\"\",\"\",'Communication Facility (Desc)'!A22)","v":""},{"$f":"IF('Communication Facility (Desc)'!B22=\"\",\"\",'Communication Facility (Desc)'!B22)","v":""},{"$f":"IF('Communication Facility (Desc)'!C22=\"\",\"\",'Communication Facility (Desc)'!C22)","v":""},{"$f":"IF('Communication Facility (Desc)'!D22=\"\",\"\",'Communication Facility (Desc)'!D22)","v":""},{"$f":"IF('Communication Facility (Desc)'!E22=\"\",\"\",INDEX([1]FACILITY_TYPE!$A$2:$A$100,MATCH('Communication Facility (Desc)'!$E22,[1]!MASTER_FACILITY_TYPE_DESC[#Data],0),0))","v":""},{"$f":"IF('Communication Facility (Desc)'!F22=\"\",\"\",INDEX([1]OWNER!$A$2:$A$100,MATCH('Communication Facility (Desc)'!$F22,[1]!MASTER_OWNER_DESC[#Data],0),0))","v":""},{"$f":"IF('Communication Facility (Desc)'!G22=\"\",\"\",IF('Communication Facility (Desc)'!G22=\"\",\"\",INDEX([1]COUNTY!$A$2:$A$80,MATCH('Communication Facility (Desc)'!G22,[1]!MASTER_COUNTY_NAME[#Data],0),0)))","v":""},{"$f":"IF('Communication Facility (Desc)'!H22=\"\",\"\",'Communication Facility (Desc)'!H22)","v":""},{"$f":"IF('Communication Facility (Desc)'!I22=\"\",\"\",'Communication Facility (Desc)'!I22)","v":""},{"$f":"IF('Communication Facility (Desc)'!J22=\"\",\"\",'Communication Facility (Desc)'!J22)","v":""},{"$f":"IF('Communication Facility (Desc)'!K22=\"\",\"\",INDEX([1]CABINET_TYPE!$A$2:$A$100,MATCH('Communication Facility (Desc)'!$K22,[1]!MASTER_CABINET_TYPE_DESC[#Data],0),0))","v":""},{"$f":"IF('Communication Facility (Desc)'!L22=\"\",\"\",INDEX([1]CABINET_MOUNT_TYPE!$A$2:$A$100,MATCH('Communication Facility (Desc)'!L22,[1]!MASTER_CABINET_MOUNT_TYPE_DESC[#Data],0),0))","v":""},{"$f":"IF('Communication Facility (Desc)'!M22=\"\",\"\",INDEX([1]YES_NO!$A$2:$A$100,MATCH('Communication Facility (Desc)'!M22,[1]!MASTER_YES_NO_DESC[#Data],0),0))","v":""},{"$f":"IF('Communication Facility (Desc)'!N22=\"\",\"\",INDEX([1]BUILDING_TYPE!$A$2:$A$100,MATCH('Communication Facility (Desc)'!$N22,[1]!MASTER_BUILDING_TYPE_DESC[#Data],0),0))","v":""},{"$f":"IF('Communication Facility (Desc)'!O22=\"\",\"\",'Communication Facility (Desc)'!O22)","v":""},{"$f":"IF('Communication Facility (Desc)'!P22=\"\",\"\",INDEX([1]BUILDING_MTL!$A$2:$A$100,MATCH('Communication Facility (Desc)'!$P22,[1]!MASTER_BUILDING_MTL_DESC[#Data],0),0))","v":""},{"$f":"IF('Communication Facility (Desc)'!Q22=\"\",\"\",INDEX([1]KEY_TYPE!$A$2:$A$100,MATCH('Communication Facility (Desc)'!$Q22,[1]!MASTER_KEY_TYPE_DESC[#Data],0),0))","v":""},{"$f":"IF('Communication Facility (Desc)'!R22=\"\",\"\",'Communication Facility (Desc)'!R22)","v":""},{"$f":"IF('Communication Facility (Desc)'!S22=\"\",\"\",INDEX([1]FILTER_TYPE!$A$2:$A$100,MATCH('Communication Facility (Desc)'!$S22,[1]!MASTER_FILTER_TYPE_DESC[#Data],0),0))","v":""},{"$f":"IF('Communication Facility (Desc)'!T22=\"\",\"\",INDEX([1]FILTER_SIZE!$A$2:$A$100,MATCH('Communication Facility (Desc)'!$T22,[1]!MASTER_FILTER_SIZE_DESC[#Data],0),0))","v":""},{"$f":"IF('Communication Facility (Desc)'!U22=\"\",\"\",'Communication Facility (Desc)'!U22)","v":""},{"$f":"IF('Communication Facility (Desc)'!V22=\"\",\"\",INDEX([1]YES_NO!$A$2:$A$100,MATCH('Communication Facility (Desc)'!$V22,[1]!MASTER_YES_NO_DESC[#Data],0),0))","v":""},{"$f":"IF('Communication Facility (Desc)'!W22=\"\",\"\",INDEX([1]YES_NO!$A$2:$A$100,MATCH('Communication Facility (Desc)'!$W22,[1]!MASTER_YES_NO_DESC[#Data],0),0))","v":""}]
[{"$f":"IF('Communication Facility (Desc)'!A23=\"\",\"\",'Communication Facility (Desc)'!A23)","v":""},{"$f":"IF('Communication Facility (Desc)'!B23=\"\",\"\",'Communication Facility (Desc)'!B23)","v":""},{"$f":"IF('Communication Facility (Desc)'!C23=\"\",\"\",'Communication Facility (Desc)'!C23)","v":""},{"$f":"IF('Communication Facility (Desc)'!D23=\"\",\"\",'Communication Facility (Desc)'!D23)","v":""},{"$f":"IF('Communication Facility (Desc)'!E23=\"\",\"\",INDEX([1]FACILITY_TYPE!$A$2:$A$100,MATCH('Communication Facility (Desc)'!$E23,[1]!MASTER_FACILITY_TYPE_DESC[#Data],0),0))","v":""},{"$f":"IF('Communication Facility (Desc)'!F23=\"\",\"\",INDEX([1]OWNER!$A$2:$A$100,MATCH('Communication Facility (Desc)'!$F23,[1]!MASTER_OWNER_DESC[#Data],0),0))","v":""},{"$f":"IF('Communication Facility (Desc)'!G23=\"\",\"\",IF('Communication Facility (Desc)'!G23=\"\",\"\",INDEX([1]COUNTY!$A$2:$A$80,MATCH('Communication Facility (Desc)'!G23,[1]!MASTER_COUNTY_NAME[#Data],0),0)))","v":""},{"$f":"IF('Communication Facility (Desc)'!H23=\"\",\"\",'Communication Facility (Desc)'!H23)","v":""},{"$f":"IF('Communication Facility (Desc)'!I23=\"\",\"\",'Communication Facility (Desc)'!I23)","v":""},{"$f":"IF('Communication Facility (Desc)'!J23=\"\",\"\",'Communication Facility (Desc)'!J23)","v":""},{"$f":"IF('Communication Facility (Desc)'!K23=\"\",\"\",INDEX([1]CABINET_TYPE!$A$2:$A$100,MATCH('Communication Facility (Desc)'!$K23,[1]!MASTER_CABINET_TYPE_DESC[#Data],0),0))","v":""},{"$f":"IF('Communication Facility (Desc)'!L23=\"\",\"\",INDEX([1]CABINET_MOUNT_TYPE!$A$2:$A$100,MATCH('Communication Facility (Desc)'!L23,[1]!MASTER_CABINET_MOUNT_TYPE_DESC[#Data],0),0))","v":""},{"$f":"IF('Communication Facility (Desc)'!M23=\"\",\"\",INDEX([1]YES_NO!$A$2:$A$100,MATCH('Communication Facility (Desc)'!M23,[1]!MASTER_YES_NO_DESC[#Data],0),0))","v":""},{"$f":"IF('Communication Facility (Desc)'!N23=\"\",\"\",INDEX([1]BUILDING_TYPE!$A$2:$A$100,MATCH('Communication Facility (Desc)'!$N23,[1]!MASTER_BUILDING_TYPE_DESC[#Data],0),0))","v":""},{"$f":"IF('Communication Facility (Desc)'!O23=\"\",\"\",'Communication Facility (Desc)'!O23)","v":""},{"$f":"IF('Communication Facility (Desc)'!P23=\"\",\"\",INDEX([1]BUILDING_MTL!$A$2:$A$100,MATCH('Communication Facility (Desc)'!$P23,[1]!MASTER_BUILDING_MTL_DESC[#Data],0),0))","v":""},{"$f":"IF('Communication Facility (Desc)'!Q23=\"\",\"\",INDEX([1]KEY_TYPE!$A$2:$A$100,MATCH('Communication Facility (Desc)'!$Q23,[1]!MASTER_KEY_TYPE_DESC[#Data],0),0))","v":""},{"$f":"IF('Communication Facility (Desc)'!R23=\"\",\"\",'Communication Facility (Desc)'!R23)","v":""},{"$f":"IF('Communication Facility (Desc)'!S23=\"\",\"\",INDEX([1]FILTER_TYPE!$A$2:$A$100,MATCH('Communication Facility (Desc)'!$S23,[1]!MASTER_FILTER_TYPE_DESC[#Data],0),0))","v":""},{"$f":"IF('Communication Facility (Desc)'!T23=\"\",\"\",INDEX([1]FILTER_SIZE!$A$2:$A$100,MATCH('Communication Facility (Desc)'!$T23,[1]!MASTER_FILTER_SIZE_DESC[#Data],0),0))","v":""},{"$f":"IF('Communication Facility (Desc)'!U23=\"\",\"\",'Communication Facility (Desc)'!U23)","v":""},{"$f":"IF('Communication Facility (Desc)'!V23=\"\",\"\",INDEX([1]YES_NO!$A$2:$A$100,MATCH('Communication Facility (Desc)'!$V23,[1]!MASTER_YES_NO_DESC[#Data],0),0))","v":""},{"$f":"IF('Communication Facility (Desc)'!W23=\"\",\"\",INDEX([1]YES_NO!$A$2:$A$100,MATCH('Communication Facility (Desc)'!$W23,[1]!MASTER_YES_NO_DESC[#Data],0),0))","v":""}]
[{"$f":"IF('Communication Facility (Desc)'!A24=\"\",\"\",'Communication Facility (Desc)'!A24)","v":""},{"$f":"IF('Communication Facility (Desc)'!B24=\"\",\"\",'Communication Facility (Desc)'!B24)","v":""},{"$f":"IF('Communication Facility (Desc)'!C24=\"\",\"\",'Communication Facility (Desc)'!C24)","v":""},{"$f":"IF('Communication Facility (Desc)'!D24=\"\",\"\",'Communication Facility (Desc)'!D24)","v":""},{"$f":"IF('Communication Facility (Desc)'!E24=\"\",\"\",INDEX([1]FACILITY_TYPE!$A$2:$A$100,MATCH('Communication Facility (Desc)'!$E24,[1]!MASTER_FACILITY_TYPE_DESC[#Data],0),0))","v":""},{"$f":"IF('Communication Facility (Desc)'!F24=\"\",\"\",INDEX([1]OWNER!$A$2:$A$100,MATCH('Communication Facility (Desc)'!$F24,[1]!MASTER_OWNER_DESC[#Data],0),0))","v":""},{"$f":"IF('Communication Facility (Desc)'!G24=\"\",\"\",IF('Communication Facility (Desc)'!G24=\"\",\"\",INDEX([1]COUNTY!$A$2:$A$80,MATCH('Communication Facility (Desc)'!G24,[1]!MASTER_COUNTY_NAME[#Data],0),0)))","v":""},{"$f":"IF('Communication Facility (Desc)'!H24=\"\",\"\",'Communication Facility (Desc)'!H24)","v":""},{"$f":"IF('Communication Facility (Desc)'!I24=\"\",\"\",'Communication Facility (Desc)'!I24)","v":""},{"$f":"IF('Communication Facility (Desc)'!J24=\"\",\"\",'Communication Facility (Desc)'!J24)","v":""},{"$f":"IF('Communication Facility (Desc)'!K24=\"\",\"\",INDEX([1]CABINET_TYPE!$A$2:$A$100,MATCH('Communication Facility (Desc)'!$K24,[1]!MASTER_CABINET_TYPE_DESC[#Data],0),0))","v":""},{"$f":"IF('Communication Facility (Desc)'!L24=\"\",\"\",INDEX([1]CABINET_MOUNT_TYPE!$A$2:$A$100,MATCH('Communication Facility (Desc)'!L24,[1]!MASTER_CABINET_MOUNT_TYPE_DESC[#Data],0),0))","v":""},{"$f":"IF('Communication Facility (Desc)'!M24=\"\",\"\",INDEX([1]YES_NO!$A$2:$A$100,MATCH('Communication Facility (Desc)'!M24,[1]!MASTER_YES_NO_DESC[#Data],0),0))","v":""},{"$f":"IF('Communication Facility (Desc)'!N24=\"\",\"\",INDEX([1]BUILDING_TYPE!$A$2:$A$100,MATCH('Communication Facility (Desc)'!$N24,[1]!MASTER_BUILDING_TYPE_DESC[#Data],0),0))","v":""},{"$f":"IF('Communication Facility (Desc)'!O24=\"\",\"\",'Communication Facility (Desc)'!O24)","v":""},{"$f":"IF('Communication Facility (Desc)'!P24=\"\",\"\",INDEX([1]BUILDING_MTL!$A$2:$A$100,MATCH('Communication Facility (Desc)'!$P24,[1]!MASTER_BUILDING_MTL_DESC[#Data],0),0))","v":""},{"$f":"IF('Communication Facility (Desc)'!Q24=\"\",\"\",INDEX([1]KEY_TYPE!$A$2:$A$100,MATCH('Communication Facility (Desc)'!$Q24,[1]!MASTER_KEY_TYPE_DESC[#Data],0),0))","v":""},{"$f":"IF('Communication Facility (Desc)'!R24=\"\",\"\",'Communication Facility (Desc)'!R24)","v":""},{"$f":"IF('Communication Facility (Desc)'!S24=\"\",\"\",INDEX([1]FILTER_TYPE!$A$2:$A$100,MATCH('Communication Facility (Desc)'!$S24,[1]!MASTER_FILTER_TYPE_DESC[#Data],0),0))","v":""},{"$f":"IF('Communication Facility (Desc)'!T24=\"\",\"\",INDEX([1]FILTER_SIZE!$A$2:$A$100,MATCH('Communication Facility (Desc)'!$T24,[1]!MASTER_FILTER_SIZE_DESC[#Data],0),0))","v":""},{"$f":"IF('Communication Facility (Desc)'!U24=\"\",\"\",'Communication Facility (Desc)'!U24)","v":""},{"$f":"IF('Communication Facility (Desc)'!V24=\"\",\"\",INDEX([1]YES_NO!$A$2:$A$100,MATCH('Communication Facility (Desc)'!$V24,[1]!MASTER_YES_NO_DESC[#Data],0),0))","v":""},{"$f":"IF('Communication Facility (Desc)'!W24=\"\",\"\",INDEX([1]YES_NO!$A$2:$A$100,MATCH('Communication Facility (Desc)'!$W24,[1]!MASTER_YES_NO_DESC[#Data],0),0))","v":""}]
[{"$f":"IF('Communication Facility (Desc)'!A25=\"\",\"\",'Communication Facility (Desc)'!A25)","v":""},{"$f":"IF('Communication Facility (Desc)'!B25=\"\",\"\",'Communication Facility (Desc)'!B25)","v":""},{"$f":"IF('Communication Facility (Desc)'!C25=\"\",\"\",'Communication Facility (Desc)'!C25)","v":""},{"$f":"IF('Communication Facility (Desc)'!D25=\"\",\"\",'Communication Facility (Desc)'!D25)","v":""},{"$f":"IF('Communication Facility (Desc)'!E25=\"\",\"\",INDEX([1]FACILITY_TYPE!$A$2:$A$100,MATCH('Communication Facility (Desc)'!$E25,[1]!MASTER_FACILITY_TYPE_DESC[#Data],0),0))","v":""},{"$f":"IF('Communication Facility (Desc)'!F25=\"\",\"\",INDEX([1]OWNER!$A$2:$A$100,MATCH('Communication Facility (Desc)'!$F25,[1]!MASTER_OWNER_DESC[#Data],0),0))","v":""},{"$f":"IF('Communication Facility (Desc)'!G25=\"\",\"\",IF('Communication Facility (Desc)'!G25=\"\",\"\",INDEX([1]COUNTY!$A$2:$A$80,MATCH('Communication Facility (Desc)'!G25,[1]!MASTER_COUNTY_NAME[#Data],0),0)))","v":""},{"$f":"IF('Communication Facility (Desc)'!H25=\"\",\"\",'Communication Facility (Desc)'!H25)","v":""},{"$f":"IF('Communication Facility (Desc)'!I25=\"\",\"\",'Communication Facility (Desc)'!I25)","v":""},{"$f":"IF('Communication Facility (Desc)'!J25=\"\",\"\",'Communication Facility (Desc)'!J25)","v":""},{"$f":"IF('Communication Facility (Desc)'!K25=\"\",\"\",INDEX([1]CABINET_TYPE!$A$2:$A$100,MATCH('Communication Facility (Desc)'!$K25,[1]!MASTER_CABINET_TYPE_DESC[#Data],0),0))","v":""},{"$f":"IF('Communication Facility (Desc)'!L25=\"\",\"\",INDEX([1]CABINET_MOUNT_TYPE!$A$2:$A$100,MATCH('Communication Facility (Desc)'!L25,[1]!MASTER_CABINET_MOUNT_TYPE_DESC[#Data],0),0))","v":""},{"$f":"IF('Communication Facility (Desc)'!M25=\"\",\"\",INDEX([1]YES_NO!$A$2:$A$100,MATCH('Communication Facility (Desc)'!M25,[1]!MASTER_YES_NO_DESC[#Data],0),0))","v":""},{"$f":"IF('Communication Facility (Desc)'!N25=\"\",\"\",INDEX([1]BUILDING_TYPE!$A$2:$A$100,MATCH('Communication Facility (Desc)'!$N25,[1]!MASTER_BUILDING_TYPE_DESC[#Data],0),0))","v":""},{"$f":"IF('Communication Facility (Desc)'!O25=\"\",\"\",'Communication Facility (Desc)'!O25)","v":""},{"$f":"IF('Communication Facility (Desc)'!P25=\"\",\"\",INDEX([1]BUILDING_MTL!$A$2:$A$100,MATCH('Communication Facility (Desc)'!$P25,[1]!MASTER_BUILDING_MTL_DESC[#Data],0),0))","v":""},{"$f":"IF('Communication Facility (Desc)'!Q25=\"\",\"\",INDEX([1]KEY_TYPE!$A$2:$A$100,MATCH('Communication Facility (Desc)'!$Q25,[1]!MASTER_KEY_TYPE_DESC[#Data],0),0))","v":""},{"$f":"IF('Communication Facility (Desc)'!R25=\"\",\"\",'Communication Facility (Desc)'!R25)","v":""},{"$f":"IF('Communication Facility (Desc)'!S25=\"\",\"\",INDEX([1]FILTER_TYPE!$A$2:$A$100,MATCH('Communication Facility (Desc)'!$S25,[1]!MASTER_FILTER_TYPE_DESC[#Data],0),0))","v":""},{"$f":"IF('Communication Facility (Desc)'!T25=\"\",\"\",INDEX([1]FILTER_SIZE!$A$2:$A$100,MATCH('Communication Facility (Desc)'!$T25,[1]!MASTER_FILTER_SIZE_DESC[#Data],0),0))","v":""},{"$f":"IF('Communication Facility (Desc)'!U25=\"\",\"\",'Communication Facility (Desc)'!U25)","v":""},{"$f":"IF('Communication Facility (Desc)'!V25=\"\",\"\",INDEX([1]YES_NO!$A$2:$A$100,MATCH('Communication Facility (Desc)'!$V25,[1]!MASTER_YES_NO_DESC[#Data],0),0))","v":""},{"$f":"IF('Communication Facility (Desc)'!W25=\"\",\"\",INDEX([1]YES_NO!$A$2:$A$100,MATCH('Communication Facility (Desc)'!$W25,[1]!MASTER_YES_NO_DESC[#Data],0),0))","v":""}]
[{"$f":"IF('Communication Facility (Desc)'!A26=\"\",\"\",'Communication Facility (Desc)'!A26)","v":""},{"$f":"IF('Communication Facility (Desc)'!B26=\"\",\"\",'Communication Facility (Desc)'!B26)","v":""},{"$f":"IF('Communication Facility (Desc)'!C26=\"\",\"\",'Communication Facility (Desc)'!C26)","v":""},{"$f":"IF('Communication Facility (Desc)'!D26=\"\",\"\",'Communication Facility (Desc)'!D26)","v":""},{"$f":"IF('Communication Facility (Desc)'!E26=\"\",\"\",INDEX([1]FACILITY_TYPE!$A$2:$A$100,MATCH('Communication Facility (Desc)'!$E26,[1]!MASTER_FACILITY_TYPE_DESC[#Data],0),0))","v":""},{"$f":"IF('Communication Facility (Desc)'!F26=\"\",\"\",INDEX([1]OWNER!$A$2:$A$100,MATCH('Communication Facility (Desc)'!$F26,[1]!MASTER_OWNER_DESC[#Data],0),0))","v":""},{"$f":"IF('Communication Facility (Desc)'!G26=\"\",\"\",IF('Communication Facility (Desc)'!G26=\"\",\"\",INDEX([1]COUNTY!$A$2:$A$80,MATCH('Communication Facility (Desc)'!G26,[1]!MASTER_COUNTY_NAME[#Data],0),0)))","v":""},{"$f":"IF('Communication Facility (Desc)'!H26=\"\",\"\",'Communication Facility (Desc)'!H26)","v":""},{"$f":"IF('Communication Facility (Desc)'!I26=\"\",\"\",'Communication Facility (Desc)'!I26)","v":""},{"$f":"IF('Communication Facility (Desc)'!J26=\"\",\"\",'Communication Facility (Desc)'!J26)","v":""},{"$f":"IF('Communication Facility (Desc)'!K26=\"\",\"\",INDEX([1]CABINET_TYPE!$A$2:$A$100,MATCH('Communication Facility (Desc)'!$K26,[1]!MASTER_CABINET_TYPE_DESC[#Data],0),0))","v":""},{"$f":"IF('Communication Facility (Desc)'!L26=\"\",\"\",INDEX([1]CABINET_MOUNT_TYPE!$A$2:$A$100,MATCH('Communication Facility (Desc)'!L26,[1]!MASTER_CABINET_MOUNT_TYPE_DESC[#Data],0),0))","v":""},{"$f":"IF('Communication Facility (Desc)'!M26=\"\",\"\",INDEX([1]YES_NO!$A$2:$A$100,MATCH('Communication Facility (Desc)'!M26,[1]!MASTER_YES_NO_DESC[#Data],0),0))","v":""},{"$f":"IF('Communication Facility (Desc)'!N26=\"\",\"\",INDEX([1]BUILDING_TYPE!$A$2:$A$100,MATCH('Communication Facility (Desc)'!$N26,[1]!MASTER_BUILDING_TYPE_DESC[#Data],0),0))","v":""},{"$f":"IF('Communication Facility (Desc)'!O26=\"\",\"\",'Communication Facility (Desc)'!O26)","v":""},{"$f":"IF('Communication Facility (Desc)'!P26=\"\",\"\",INDEX([1]BUILDING_MTL!$A$2:$A$100,MATCH('Communication Facility (Desc)'!$P26,[1]!MASTER_BUILDING_MTL_DESC[#Data],0),0))","v":""},{"$f":"IF('Communication Facility (Desc)'!Q26=\"\",\"\",INDEX([1]KEY_TYPE!$A$2:$A$100,MATCH('Communication Facility (Desc)'!$Q26,[1]!MASTER_KEY_TYPE_DESC[#Data],0),0))","v":""},{"$f":"IF('Communication Facility (Desc)'!R26=\"\",\"\",'Communication Facility (Desc)'!R26)","v":""},{"$f":"IF('Communication Facility (Desc)'!S26=\"\",\"\",INDEX([1]FILTER_TYPE!$A$2:$A$100,MATCH('Communication Facility (Desc)'!$S26,[1]!MASTER_FILTER_TYPE_DESC[#Data],0),0))","v":""},{"$f":"IF('Communication Facility (Desc)'!T26=\"\",\"\",INDEX([1]FILTER_SIZE!$A$2:$A$100,MATCH('Communication Facility (Desc)'!$T26,[1]!MASTER_FILTER_SIZE_DESC[#Data],0),0))","v":""},{"$f":"IF('Communication Facility (Desc)'!U26=\"\",\"\",'Communication Facility (Desc)'!U26)","v":""},{"$f":"IF('Communication Facility (Desc)'!V26=\"\",\"\",INDEX([1]YES_NO!$A$2:$A$100,MATCH('Communication Facility (Desc)'!$V26,[1]!MASTER_YES_NO_DESC[#Data],0),0))","v":""},{"$f":"IF('Communication Facility (Desc)'!W26=\"\",\"\",INDEX([1]YES_NO!$A$2:$A$100,MATCH('Communication Facility (Desc)'!$W26,[1]!MASTER_YES_NO_DESC[#Data],0),0))","v":""}]
[{"$f":"IF('Communication Facility (Desc)'!A27=\"\",\"\",'Communication Facility (Desc)'!A27)","v":""},{"$f":"IF('Communication Facility (Desc)'!B27=\"\",\"\",'Communication Facility (Desc)'!B27)","v":""},{"$f":"IF('Communication Facility (Desc)'!C27=\"\",\"\",'Communication Facility (Desc)'!C27)","v":""},{"$f":"IF('Communication Facility (Desc)'!D27=\"\",\"\",'Communication Facility (Desc)'!D27)","v":""},{"$f":"IF('Communication Facility (Desc)'!E27=\"\",\"\",INDEX([1]FACILITY_TYPE!$A$2:$A$100,MATCH('Communication Facility (Desc)'!$E27,[1]!MASTER_FACILITY_TYPE_DESC[#Data],0),0))","v":""},{"$f":"IF('Communication Facility (Desc)'!F27=\"\",\"\",INDEX([1]OWNER!$A$2:$A$100,MATCH('Communication Facility (Desc)'!$F27,[1]!MASTER_OWNER_DESC[#Data],0),0))","v":""},{"$f":"IF('Communication Facility (Desc)'!G27=\"\",\"\",IF('Communication Facility (Desc)'!G27=\"\",\"\",INDEX([1]COUNTY!$A$2:$A$80,MATCH('Communication Facility (Desc)'!G27,[1]!MASTER_COUNTY_NAME[#Data],0),0)))","v":""},{"$f":"IF('Communication Facility (Desc)'!H27=\"\",\"\",'Communication Facility (Desc)'!H27)","v":""},{"$f":"IF('Communication Facility (Desc)'!I27=\"\",\"\",'Communication Facility (Desc)'!I27)","v":""},{"$f":"IF('Communication Facility (Desc)'!J27=\"\",\"\",'Communication Facility (Desc)'!J27)","v":""},{"$f":"IF('Communication Facility (Desc)'!K27=\"\",\"\",INDEX([1]CABINET_TYPE!$A$2:$A$100,MATCH('Communication Facility (Desc)'!$K27,[1]!MASTER_CABINET_TYPE_DESC[#Data],0),0))","v":""},{"$f":"IF('Communication Facility (Desc)'!L27=\"\",\"\",INDEX([1]CABINET_MOUNT_TYPE!$A$2:$A$100,MATCH('Communication Facility (Desc)'!L27,[1]!MASTER_CABINET_MOUNT_TYPE_DESC[#Data],0),0))","v":""},{"$f":"IF('Communication Facility (Desc)'!M27=\"\",\"\",INDEX([1]YES_NO!$A$2:$A$100,MATCH('Communication Facility (Desc)'!M27,[1]!MASTER_YES_NO_DESC[#Data],0),0))","v":""},{"$f":"IF('Communication Facility (Desc)'!N27=\"\",\"\",INDEX([1]BUILDING_TYPE!$A$2:$A$100,MATCH('Communication Facility (Desc)'!$N27,[1]!MASTER_BUILDING_TYPE_DESC[#Data],0),0))","v":""},{"$f":"IF('Communication Facility (Desc)'!O27=\"\",\"\",'Communication Facility (Desc)'!O27)","v":""},{"$f":"IF('Communication Facility (Desc)'!P27=\"\",\"\",INDEX([1]BUILDING_MTL!$A$2:$A$100,MATCH('Communication Facility (Desc)'!$P27,[1]!MASTER_BUILDING_MTL_DESC[#Data],0),0))","v":""},{"$f":"IF('Communication Facility (Desc)'!Q27=\"\",\"\",INDEX([1]KEY_TYPE!$A$2:$A$100,MATCH('Communication Facility (Desc)'!$Q27,[1]!MASTER_KEY_TYPE_DESC[#Data],0),0))","v":""},{"$f":"IF('Communication Facility (Desc)'!R27=\"\",\"\",'Communication Facility (Desc)'!R27)","v":""},{"$f":"IF('Communication Facility (Desc)'!S27=\"\",\"\",INDEX([1]FILTER_TYPE!$A$2:$A$100,MATCH('Communication Facility (Desc)'!$S27,[1]!MASTER_FILTER_TYPE_DESC[#Data],0),0))","v":""},{"$f":"IF('Communication Facility (Desc)'!T27=\"\",\"\",INDEX([1]FILTER_SIZE!$A$2:$A$100,MATCH('Communication Facility (Desc)'!$T27,[1]!MASTER_FILTER_SIZE_DESC[#Data],0),0))","v":""},{"$f":"IF('Communication Facility (Desc)'!U27=\"\",\"\",'Communication Facility (Desc)'!U27)","v":""},{"$f":"IF('Communication Facility (Desc)'!V27=\"\",\"\",INDEX([1]YES_NO!$A$2:$A$100,MATCH('Communication Facility (Desc)'!$V27,[1]!MASTER_YES_NO_DESC[#Data],0),0))","v":""},{"$f":"IF('Communication Facility (Desc)'!W27=\"\",\"\",INDEX([1]YES_NO!$A$2:$A$100,MATCH('Communication Facility (Desc)'!$W27,[1]!MASTER_YES_NO_DESC[#Data],0),0))","v":""}]
[{"$f":"IF('Communication Facility (Desc)'!A28=\"\",\"\",'Communication Facility (Desc)'!A28)","v":""},{"$f":"IF('Communication Facility (Desc)'!B28=\"\",\"\",'Communication Facility (Desc)'!B28)","v":""},{"$f":"IF('Communication Facility (Desc)'!C28=\"\",\"\",'Communication Facility (Desc)'!C28)","v":""},{"$f":"IF('Communication Facility (Desc)'!D28=\"\",\"\",'Communication Facility (Desc)'!D28)","v":""},{"$f":"IF('Communication Facility (Desc)'!E28=\"\",\"\",INDEX([1]FACILITY_TYPE!$A$2:$A$100,MATCH('Communication Facility (Desc)'!$E28,[1]!MASTER_FACILITY_TYPE_DESC[#Data],0),0))","v":""},{"$f":"IF('Communication Facility (Desc)'!F28=\"\",\"\",INDEX([1]OWNER!$A$2:$A$100,MATCH('Communication Facility (Desc)'!$F28,[1]!MASTER_OWNER_DESC[#Data],0),0))","v":""},{"$f":"IF('Communication Facility (Desc)'!G28=\"\",\"\",IF('Communication Facility (Desc)'!G28=\"\",\"\",INDEX([1]COUNTY!$A$2:$A$80,MATCH('Communication Facility (Desc)'!G28,[1]!MASTER_COUNTY_NAME[#Data],0),0)))","v":""},{"$f":"IF('Communication Facility (Desc)'!H28=\"\",\"\",'Communication Facility (Desc)'!H28)","v":""},{"$f":"IF('Communication Facility (Desc)'!I28=\"\",\"\",'Communication Facility (Desc)'!I28)","v":""},{"$f":"IF('Communication Facility (Desc)'!J28=\"\",\"\",'Communication Facility (Desc)'!J28)","v":""},{"$f":"IF('Communication Facility (Desc)'!K28=\"\",\"\",INDEX([1]CABINET_TYPE!$A$2:$A$100,MATCH('Communication Facility (Desc)'!$K28,[1]!MASTER_CABINET_TYPE_DESC[#Data],0),0))","v":""},{"$f":"IF('Communication Facility (Desc)'!L28=\"\",\"\",INDEX([1]CABINET_MOUNT_TYPE!$A$2:$A$100,MATCH('Communication Facility (Desc)'!L28,[1]!MASTER_CABINET_MOUNT_TYPE_DESC[#Data],0),0))","v":""},{"$f":"IF('Communication Facility (Desc)'!M28=\"\",\"\",INDEX([1]YES_NO!$A$2:$A$100,MATCH('Communication Facility (Desc)'!M28,[1]!MASTER_YES_NO_DESC[#Data],0),0))","v":""},{"$f":"IF('Communication Facility (Desc)'!N28=\"\",\"\",INDEX([1]BUILDING_TYPE!$A$2:$A$100,MATCH('Communication Facility (Desc)'!$N28,[1]!MASTER_BUILDING_TYPE_DESC[#Data],0),0))","v":""},{"$f":"IF('Communication Facility (Desc)'!O28=\"\",\"\",'Communication Facility (Desc)'!O28)","v":""},{"$f":"IF('Communication Facility (Desc)'!P28=\"\",\"\",INDEX([1]BUILDING_MTL!$A$2:$A$100,MATCH('Communication Facility (Desc)'!$P28,[1]!MASTER_BUILDING_MTL_DESC[#Data],0),0))","v":""},{"$f":"IF('Communication Facility (Desc)'!Q28=\"\",\"\",INDEX([1]KEY_TYPE!$A$2:$A$100,MATCH('Communication Facility (Desc)'!$Q28,[1]!MASTER_KEY_TYPE_DESC[#Data],0),0))","v":""},{"$f":"IF('Communication Facility (Desc)'!R28=\"\",\"\",'Communication Facility (Desc)'!R28)","v":""},{"$f":"IF('Communication Facility (Desc)'!S28=\"\",\"\",INDEX([1]FILTER_TYPE!$A$2:$A$100,MATCH('Communication Facility (Desc)'!$S28,[1]!MASTER_FILTER_TYPE_DESC[#Data],0),0))","v":""},{"$f":"IF('Communication Facility (Desc)'!T28=\"\",\"\",INDEX([1]FILTER_SIZE!$A$2:$A$100,MATCH('Communication Facility (Desc)'!$T28,[1]!MASTER_FILTER_SIZE_DESC[#Data],0),0))","v":""},{"$f":"IF('Communication Facility (Desc)'!U28=\"\",\"\",'Communication Facility (Desc)'!U28)","v":""},{"$f":"IF('Communication Facility (Desc)'!V28=\"\",\"\",INDEX([1]YES_NO!$A$2:$A$100,MATCH('Communication Facility (Desc)'!$V28,[1]!MASTER_YES_NO_DESC[#Data],0),0))","v":""},{"$f":"IF('Communication Facility (Desc)'!W28=\"\",\"\",INDEX([1]YES_NO!$A$2:$A$100,MATCH('Communication Facility (Desc)'!$W28,[1]!MASTER_YES_NO_DESC[#Data],0),0))","v":""}]
[{"$f":"IF('Communication Facility (Desc)'!A29=\"\",\"\",'Communication Facility (Desc)'!A29)","v":""},{"$f":"IF('Communication Facility (Desc)'!B29=\"\",\"\",'Communication Facility (Desc)'!B29)","v":""},{"$f":"IF('Communication Facility (Desc)'!C29=\"\",\"\",'Communication Facility (Desc)'!C29)","v":""},{"$f":"IF('Communication Facility (Desc)'!D29=\"\",\"\",'Communication Facility (Desc)'!D29)","v":""},{"$f":"IF('Communication Facility (Desc)'!E29=\"\",\"\",INDEX([1]FACILITY_TYPE!$A$2:$A$100,MATCH('Communication Facility (Desc)'!$E29,[1]!MASTER_FACILITY_TYPE_DESC[#Data],0),0))","v":""},{"$f":"IF('Communication Facility (Desc)'!F29=\"\",\"\",INDEX([1]OWNER!$A$2:$A$100,MATCH('Communication Facility (Desc)'!$F29,[1]!MASTER_OWNER_DESC[#Data],0),0))","v":""},{"$f":"IF('Communication Facility (Desc)'!G29=\"\",\"\",IF('Communication Facility (Desc)'!G29=\"\",\"\",INDEX([1]COUNTY!$A$2:$A$80,MATCH('Communication Facility (Desc)'!G29,[1]!MASTER_COUNTY_NAME[#Data],0),0)))","v":""},{"$f":"IF('Communication Facility (Desc)'!H29=\"\",\"\",'Communication Facility (Desc)'!H29)","v":""},{"$f":"IF('Communication Facility (Desc)'!I29=\"\",\"\",'Communication Facility (Desc)'!I29)","v":""},{"$f":"IF('Communication Facility (Desc)'!J29=\"\",\"\",'Communication Facility (Desc)'!J29)","v":""},{"$f":"IF('Communication Facility (Desc)'!K29=\"\",\"\",INDEX([1]CABINET_TYPE!$A$2:$A$100,MATCH('Communication Facility (Desc)'!$K29,[1]!MASTER_CABINET_TYPE_DESC[#Data],0),0))","v":""},{"$f":"IF('Communication Facility (Desc)'!L29=\"\",\"\",INDEX([1]CABINET_MOUNT_TYPE!$A$2:$A$100,MATCH('Communication Facility (Desc)'!L29,[1]!MASTER_CABINET_MOUNT_TYPE_DESC[#Data],0),0))","v":""},{"$f":"IF('Communication Facility (Desc)'!M29=\"\",\"\",INDEX([1]YES_NO!$A$2:$A$100,MATCH('Communication Facility (Desc)'!M29,[1]!MASTER_YES_NO_DESC[#Data],0),0))","v":""},{"$f":"IF('Communication Facility (Desc)'!N29=\"\",\"\",INDEX([1]BUILDING_TYPE!$A$2:$A$100,MATCH('Communication Facility (Desc)'!$N29,[1]!MASTER_BUILDING_TYPE_DESC[#Data],0),0))","v":""},{"$f":"IF('Communication Facility (Desc)'!O29=\"\",\"\",'Communication Facility (Desc)'!O29)","v":""},{"$f":"IF('Communication Facility (Desc)'!P29=\"\",\"\",INDEX([1]BUILDING_MTL!$A$2:$A$100,MATCH('Communication Facility (Desc)'!$P29,[1]!MASTER_BUILDING_MTL_DESC[#Data],0),0))","v":""},{"$f":"IF('Communication Facility (Desc)'!Q29=\"\",\"\",INDEX([1]KEY_TYPE!$A$2:$A$100,MATCH('Communication Facility (Desc)'!$Q29,[1]!MASTER_KEY_TYPE_DESC[#Data],0),0))","v":""},{"$f":"IF('Communication Facility (Desc)'!R29=\"\",\"\",'Communication Facility (Desc)'!R29)","v":""},{"$f":"IF('Communication Facility (Desc)'!S29=\"\",\"\",INDEX([1]FILTER_TYPE!$A$2:$A$100,MATCH('Communication Facility (Desc)'!$S29,[1]!MASTER_FILTER_TYPE_DESC[#Data],0),0))","v":""},{"$f":"IF('Communication Facility (Desc)'!T29=\"\",\"\",INDEX([1]FILTER_SIZE!$A$2:$A$100,MATCH('Communication Facility (Desc)'!$T29,[1]!MASTER_FILTER_SIZE_DESC[#Data],0),0))","v":""},{"$f":"IF('Communication Facility (Desc)'!U29=\"\",\"\",'Communication Facility (Desc)'!U29)","v":""},{"$f":"IF('Communication Facility (Desc)'!V29=\"\",\"\",INDEX([1]YES_NO!$A$2:$A$100,MATCH('Communication Facility (Desc)'!$V29,[1]!MASTER_YES_NO_DESC[#Data],0),0))","v":""},{"$f":"IF('Communication Facility (Desc)'!W29=\"\",\"\",INDEX([1]YES_NO!$A$2:$A$100,MATCH('Communication Facility (Desc)'!$W29,[1]!MASTER_YES_NO_DESC[#Data],0),0))","v":""}]
[{"$f":"IF('Communication Facility (Desc)'!A30=\"\",\"\",'Communication Facility (Desc)'!A30)","v":""},{"$f":"IF('Communication Facility (Desc)'!B30=\"\",\"\",'Communication Facility (Desc)'!B30)","v":""},{"$f":"IF('Communication Facility (Desc)'!C30=\"\",\"\",'Communication Facility (Desc)'!C30)","v":""},{"$f":"IF('Communication Facility (Desc)'!D30=\"\",\"\",'Communication Facility (Desc)'!D30)","v":""},{"$f":"IF('Communication Facility (Desc)'!E30=\"\",\"\",INDEX([1]FACILITY_TYPE!$A$2:$A$100,MATCH('Communication Facility (Desc)'!$E30,[1]!MASTER_FACILITY_TYPE_DESC[#Data],0),0))","v":""},{"$f":"IF('Communication Facility (Desc)'!F30=\"\",\"\",INDEX([1]OWNER!$A$2:$A$100,MATCH('Communication Facility (Desc)'!$F30,[1]!MASTER_OWNER_DESC[#Data],0),0))","v":""},{"$f":"IF('Communication Facility (Desc)'!G30=\"\",\"\",IF('Communication Facility (Desc)'!G30=\"\",\"\",INDEX([1]COUNTY!$A$2:$A$80,MATCH('Communication Facility (Desc)'!G30,[1]!MASTER_COUNTY_NAME[#Data],0),0)))","v":""},{"$f":"IF('Communication Facility (Desc)'!H30=\"\",\"\",'Communication Facility (Desc)'!H30)","v":""},{"$f":"IF('Communication Facility (Desc)'!I30=\"\",\"\",'Communication Facility (Desc)'!I30)","v":""},{"$f":"IF('Communication Facility (Desc)'!J30=\"\",\"\",'Communication Facility (Desc)'!J30)","v":""},{"$f":"IF('Communication Facility (Desc)'!K30=\"\",\"\",INDEX([1]CABINET_TYPE!$A$2:$A$100,MATCH('Communication Facility (Desc)'!$K30,[1]!MASTER_CABINET_TYPE_DESC[#Data],0),0))","v":""},{"$f":"IF('Communication Facility (Desc)'!L30=\"\",\"\",INDEX([1]CABINET_MOUNT_TYPE!$A$2:$A$100,MATCH('Communication Facility (Desc)'!L30,[1]!MASTER_CABINET_MOUNT_TYPE_DESC[#Data],0),0))","v":""},{"$f":"IF('Communication Facility (Desc)'!M30=\"\",\"\",INDEX([1]YES_NO!$A$2:$A$100,MATCH('Communication Facility (Desc)'!M30,[1]!MASTER_YES_NO_DESC[#Data],0),0))","v":""},{"$f":"IF('Communication Facility (Desc)'!N30=\"\",\"\",INDEX([1]BUILDING_TYPE!$A$2:$A$100,MATCH('Communication Facility (Desc)'!$N30,[1]!MASTER_BUILDING_TYPE_DESC[#Data],0),0))","v":""},{"$f":"IF('Communication Facility (Desc)'!O30=\"\",\"\",'Communication Facility (Desc)'!O30)","v":""},{"$f":"IF('Communication Facility (Desc)'!P30=\"\",\"\",INDEX([1]BUILDING_MTL!$A$2:$A$100,MATCH('Communication Facility (Desc)'!$P30,[1]!MASTER_BUILDING_MTL_DESC[#Data],0),0))","v":""},{"$f":"IF('Communication Facility (Desc)'!Q30=\"\",\"\",INDEX([1]KEY_TYPE!$A$2:$A$100,MATCH('Communication Facility (Desc)'!$Q30,[1]!MASTER_KEY_TYPE_DESC[#Data],0),0))","v":""},{"$f":"IF('Communication Facility (Desc)'!R30=\"\",\"\",'Communication Facility (Desc)'!R30)","v":""},{"$f":"IF('Communication Facility (Desc)'!S30=\"\",\"\",INDEX([1]FILTER_TYPE!$A$2:$A$100,MATCH('Communication Facility (Desc)'!$S30,[1]!MASTER_FILTER_TYPE_DESC[#Data],0),0))","v":""},{"$f":"IF('Communication Facility (Desc)'!T30=\"\",\"\",INDEX([1]FILTER_SIZE!$A$2:$A$100,MATCH('Communication Facility (Desc)'!$T30,[1]!MASTER_FILTER_SIZE_DESC[#Data],0),0))","v":""},{"$f":"IF('Communication Facility (Desc)'!U30=\"\",\"\",'Communication Facility (Desc)'!U30)","v":""},{"$f":"IF('Communication Facility (Desc)'!V30=\"\",\"\",INDEX([1]YES_NO!$A$2:$A$100,MATCH('Communication Facility (Desc)'!$V30,[1]!MASTER_YES_NO_DESC[#Data],0),0))","v":""},{"$f":"IF('Communication Facility (Desc)'!W30=\"\",\"\",INDEX([1]YES_NO!$A$2:$A$100,MATCH('Communication Facility (Desc)'!$W30,[1]!MASTER_YES_NO_DESC[#Data],0),0))","v":""}]
[{"$f":"IF('Communication Facility (Desc)'!A31=\"\",\"\",'Communication Facility (Desc)'!A31)","v":""},{"$f":"IF('Communication Facility (Desc)'!B31=\"\",\"\",'Communication Facility (Desc)'!B31)","v":""},{"$f":"IF('Communication Facility (Desc)'!C31=\"\",\"\",'Communication Facility (Desc)'!C31)","v":""},{"$f":"IF('Communication Facility (Desc)'!D31=\"\",\"\",'Communication Facility (Desc)'!D31)","v":""},{"$f":"IF('Communication Facility (Desc)'!E31=\"\",\"\",INDEX([1]FACILITY_TYPE!$A$2:$A$100,MATCH('Communication Facility (Desc)'!$E31,[1]!MASTER_FACILITY_TYPE_DESC[#Data],0),0))","v":""},{"$f":"IF('Communication Facility (Desc)'!F31=\"\",\"\",INDEX([1]OWNER!$A$2:$A$100,MATCH('Communication Facility (Desc)'!$F31,[1]!MASTER_OWNER_DESC[#Data],0),0))","v":""},{"$f":"IF('Communication Facility (Desc)'!G31=\"\",\"\",IF('Communication Facility (Desc)'!G31=\"\",\"\",INDEX([1]COUNTY!$A$2:$A$80,MATCH('Communication Facility (Desc)'!G31,[1]!MASTER_COUNTY_NAME[#Data],0),0)))","v":""},{"$f":"IF('Communication Facility (Desc)'!H31=\"\",\"\",'Communication Facility (Desc)'!H31)","v":""},{"$f":"IF('Communication Facility (Desc)'!I31=\"\",\"\",'Communication Facility (Desc)'!I31)","v":""},{"$f":"IF('Communication Facility (Desc)'!J31=\"\",\"\",'Communication Facility (Desc)'!J31)","v":""},{"$f":"IF('Communication Facility (Desc)'!K31=\"\",\"\",INDEX([1]CABINET_TYPE!$A$2:$A$100,MATCH('Communication Facility (Desc)'!$K31,[1]!MASTER_CABINET_TYPE_DESC[#Data],0),0))","v":""},{"$f":"IF('Communication Facility (Desc)'!L31=\"\",\"\",INDEX([1]CABINET_MOUNT_TYPE!$A$2:$A$100,MATCH('Communication Facility (Desc)'!L31,[1]!MASTER_CABINET_MOUNT_TYPE_DESC[#Data],0),0))","v":""},{"$f":"IF('Communication Facility (Desc)'!M31=\"\",\"\",INDEX([1]YES_NO!$A$2:$A$100,MATCH('Communication Facility (Desc)'!M31,[1]!MASTER_YES_NO_DESC[#Data],0),0))","v":""},{"$f":"IF('Communication Facility (Desc)'!N31=\"\",\"\",INDEX([1]BUILDING_TYPE!$A$2:$A$100,MATCH('Communication Facility (Desc)'!$N31,[1]!MASTER_BUILDING_TYPE_DESC[#Data],0),0))","v":""},{"$f":"IF('Communication Facility (Desc)'!O31=\"\",\"\",'Communication Facility (Desc)'!O31)","v":""},{"$f":"IF('Communication Facility (Desc)'!P31=\"\",\"\",INDEX([1]BUILDING_MTL!$A$2:$A$100,MATCH('Communication Facility (Desc)'!$P31,[1]!MASTER_BUILDING_MTL_DESC[#Data],0),0))","v":""},{"$f":"IF('Communication Facility (Desc)'!Q31=\"\",\"\",INDEX([1]KEY_TYPE!$A$2:$A$100,MATCH('Communication Facility (Desc)'!$Q31,[1]!MASTER_KEY_TYPE_DESC[#Data],0),0))","v":""},{"$f":"IF('Communication Facility (Desc)'!R31=\"\",\"\",'Communication Facility (Desc)'!R31)","v":""},{"$f":"IF('Communication Facility (Desc)'!S31=\"\",\"\",INDEX([1]FILTER_TYPE!$A$2:$A$100,MATCH('Communication Facility (Desc)'!$S31,[1]!MASTER_FILTER_TYPE_DESC[#Data],0),0))","v":""},{"$f":"IF('Communication Facility (Desc)'!T31=\"\",\"\",INDEX([1]FILTER_SIZE!$A$2:$A$100,MATCH('Communication Facility (Desc)'!$T31,[1]!MASTER_FILTER_SIZE_DESC[#Data],0),0))","v":""},{"$f":"IF('Communication Facility (Desc)'!U31=\"\",\"\",'Communication Facility (Desc)'!U31)","v":""},{"$f":"IF('Communication Facility (Desc)'!V31=\"\",\"\",INDEX([1]YES_NO!$A$2:$A$100,MATCH('Communication Facility (Desc)'!$V31,[1]!MASTER_YES_NO_DESC[#Data],0),0))","v":""},{"$f":"IF('Communication Facility (Desc)'!W31=\"\",\"\",INDEX([1]YES_NO!$A$2:$A$100,MATCH('Communication Facility (Desc)'!$W31,[1]!MASTER_YES_NO_DESC[#Data],0),0))","v":""}]
[{"$f":"IF('Communication Facility (Desc)'!A32=\"\",\"\",'Communication Facility (Desc)'!A32)","v":""},{"$f":"IF('Communication Facility (Desc)'!B32=\"\",\"\",'Communication Facility (Desc)'!B32)","v":""},{"$f":"IF('Communication Facility (Desc)'!C32=\"\",\"\",'Communication Facility (Desc)'!C32)","v":""},{"$f":"IF('Communication Facility (Desc)'!D32=\"\",\"\",'Communication Facility (Desc)'!D32)","v":""},{"$f":"IF('Communication Facility (Desc)'!E32=\"\",\"\",INDEX([1]FACILITY_TYPE!$A$2:$A$100,MATCH('Communication Facility (Desc)'!$E32,[1]!MASTER_FACILITY_TYPE_DESC[#Data],0),0))","v":""},{"$f":"IF('Communication Facility (Desc)'!F32=\"\",\"\",INDEX([1]OWNER!$A$2:$A$100,MATCH('Communication Facility (Desc)'!$F32,[1]!MASTER_OWNER_DESC[#Data],0),0))","v":""},{"$f":"IF('Communication Facility (Desc)'!G32=\"\",\"\",IF('Communication Facility (Desc)'!G32=\"\",\"\",INDEX([1]COUNTY!$A$2:$A$80,MATCH('Communication Facility (Desc)'!G32,[1]!MASTER_COUNTY_NAME[#Data],0),0)))","v":""},{"$f":"IF('Communication Facility (Desc)'!H32=\"\",\"\",'Communication Facility (Desc)'!H32)","v":""},{"$f":"IF('Communication Facility (Desc)'!I32=\"\",\"\",'Communication Facility (Desc)'!I32)","v":""},{"$f":"IF('Communication Facility (Desc)'!J32=\"\",\"\",'Communication Facility (Desc)'!J32)","v":""},{"$f":"IF('Communication Facility (Desc)'!K32=\"\",\"\",INDEX([1]CABINET_TYPE!$A$2:$A$100,MATCH('Communication Facility (Desc)'!$K32,[1]!MASTER_CABINET_TYPE_DESC[#Data],0),0))","v":""},{"$f":"IF('Communication Facility (Desc)'!L32=\"\",\"\",INDEX([1]CABINET_MOUNT_TYPE!$A$2:$A$100,MATCH('Communication Facility (Desc)'!L32,[1]!MASTER_CABINET_MOUNT_TYPE_DESC[#Data],0),0))","v":""},{"$f":"IF('Communication Facility (Desc)'!M32=\"\",\"\",INDEX([1]YES_NO!$A$2:$A$100,MATCH('Communication Facility (Desc)'!M32,[1]!MASTER_YES_NO_DESC[#Data],0),0))","v":""},{"$f":"IF('Communication Facility (Desc)'!N32=\"\",\"\",INDEX([1]BUILDING_TYPE!$A$2:$A$100,MATCH('Communication Facility (Desc)'!$N32,[1]!MASTER_BUILDING_TYPE_DESC[#Data],0),0))","v":""},{"$f":"IF('Communication Facility (Desc)'!O32=\"\",\"\",'Communication Facility (Desc)'!O32)","v":""},{"$f":"IF('Communication Facility (Desc)'!P32=\"\",\"\",INDEX([1]BUILDING_MTL!$A$2:$A$100,MATCH('Communication Facility (Desc)'!$P32,[1]!MASTER_BUILDING_MTL_DESC[#Data],0),0))","v":""},{"$f":"IF('Communication Facility (Desc)'!Q32=\"\",\"\",INDEX([1]KEY_TYPE!$A$2:$A$100,MATCH('Communication Facility (Desc)'!$Q32,[1]!MASTER_KEY_TYPE_DESC[#Data],0),0))","v":""},{"$f":"IF('Communication Facility (Desc)'!R32=\"\",\"\",'Communication Facility (Desc)'!R32)","v":""},{"$f":"IF('Communication Facility (Desc)'!S32=\"\",\"\",INDEX([1]FILTER_TYPE!$A$2:$A$100,MATCH('Communication Facility (Desc)'!$S32,[1]!MASTER_FILTER_TYPE_DESC[#Data],0),0))","v":""},{"$f":"IF('Communication Facility (Desc)'!T32=\"\",\"\",INDEX([1]FILTER_SIZE!$A$2:$A$100,MATCH('Communication Facility (Desc)'!$T32,[1]!MASTER_FILTER_SIZE_DESC[#Data],0),0))","v":""},{"$f":"IF('Communication Facility (Desc)'!U32=\"\",\"\",'Communication Facility (Desc)'!U32)","v":""},{"$f":"IF('Communication Facility (Desc)'!V32=\"\",\"\",INDEX([1]YES_NO!$A$2:$A$100,MATCH('Communication Facility (Desc)'!$V32,[1]!MASTER_YES_NO_DESC[#Data],0),0))","v":""},{"$f":"IF('Communication Facility (Desc)'!W32=\"\",\"\",INDEX([1]YES_NO!$A$2:$A$100,MATCH('Communication Facility (Desc)'!$W32,[1]!MASTER_YES_NO_DESC[#Data],0),0))","v":""}]
[{"$f":"IF('Communication Facility (Desc)'!A33=\"\",\"\",'Communication Facility (Desc)'!A33)","v":""},{"$f":"IF('Communication Facility (Desc)'!B33=\"\",\"\",'Communication Facility (Desc)'!B33)","v":""},{"$f":"IF('Communication Facility (Desc)'!C33=\"\",\"\",'Communication Facility (Desc)'!C33)","v":""},{"$f":"IF('Communication Facility (Desc)'!D33=\"\",\"\",'Communication Facility (Desc)'!D33)","v":""},{"$f":"IF('Communication Facility (Desc)'!E33=\"\",\"\",INDEX([1]FACILITY_TYPE!$A$2:$A$100,MATCH('Communication Facility (Desc)'!$E33,[1]!MASTER_FACILITY_TYPE_DESC[#Data],0),0))","v":""},{"$f":"IF('Communication Facility (Desc)'!F33=\"\",\"\",INDEX([1]OWNER!$A$2:$A$100,MATCH('Communication Facility (Desc)'!$F33,[1]!MASTER_OWNER_DESC[#Data],0),0))","v":""},{"$f":"IF('Communication Facility (Desc)'!G33=\"\",\"\",IF('Communication Facility (Desc)'!G33=\"\",\"\",INDEX([1]COUNTY!$A$2:$A$80,MATCH('Communication Facility (Desc)'!G33,[1]!MASTER_COUNTY_NAME[#Data],0),0)))","v":""},{"$f":"IF('Communication Facility (Desc)'!H33=\"\",\"\",'Communication Facility (Desc)'!H33)","v":""},{"$f":"IF('Communication Facility (Desc)'!I33=\"\",\"\",'Communication Facility (Desc)'!I33)","v":""},{"$f":"IF('Communication Facility (Desc)'!J33=\"\",\"\",'Communication Facility (Desc)'!J33)","v":""},{"$f":"IF('Communication Facility (Desc)'!K33=\"\",\"\",INDEX([1]CABINET_TYPE!$A$2:$A$100,MATCH('Communication Facility (Desc)'!$K33,[1]!MASTER_CABINET_TYPE_DESC[#Data],0),0))","v":""},{"$f":"IF('Communication Facility (Desc)'!L33=\"\",\"\",INDEX([1]CABINET_MOUNT_TYPE!$A$2:$A$100,MATCH('Communication Facility (Desc)'!L33,[1]!MASTER_CABINET_MOUNT_TYPE_DESC[#Data],0),0))","v":""},{"$f":"IF('Communication Facility (Desc)'!M33=\"\",\"\",INDEX([1]YES_NO!$A$2:$A$100,MATCH('Communication Facility (Desc)'!M33,[1]!MASTER_YES_NO_DESC[#Data],0),0))","v":""},{"$f":"IF('Communication Facility (Desc)'!N33=\"\",\"\",INDEX([1]BUILDING_TYPE!$A$2:$A$100,MATCH('Communication Facility (Desc)'!$N33,[1]!MASTER_BUILDING_TYPE_DESC[#Data],0),0))","v":""},{"$f":"IF('Communication Facility (Desc)'!O33=\"\",\"\",'Communication Facility (Desc)'!O33)","v":""},{"$f":"IF('Communication Facility (Desc)'!P33=\"\",\"\",INDEX([1]BUILDING_MTL!$A$2:$A$100,MATCH('Communication Facility (Desc)'!$P33,[1]!MASTER_BUILDING_MTL_DESC[#Data],0),0))","v":""},{"$f":"IF('Communication Facility (Desc)'!Q33=\"\",\"\",INDEX([1]KEY_TYPE!$A$2:$A$100,MATCH('Communication Facility (Desc)'!$Q33,[1]!MASTER_KEY_TYPE_DESC[#Data],0),0))","v":""},{"$f":"IF('Communication Facility (Desc)'!R33=\"\",\"\",'Communication Facility (Desc)'!R33)","v":""},{"$f":"IF('Communication Facility (Desc)'!S33=\"\",\"\",INDEX([1]FILTER_TYPE!$A$2:$A$100,MATCH('Communication Facility (Desc)'!$S33,[1]!MASTER_FILTER_TYPE_DESC[#Data],0),0))","v":""},{"$f":"IF('Communication Facility (Desc)'!T33=\"\",\"\",INDEX([1]FILTER_SIZE!$A$2:$A$100,MATCH('Communication Facility (Desc)'!$T33,[1]!MASTER_FILTER_SIZE_DESC[#Data],0),0))","v":""},{"$f":"IF('Communication Facility (Desc)'!U33=\"\",\"\",'Communication Facility (Desc)'!U33)","v":""},{"$f":"IF('Communication Facility (Desc)'!V33=\"\",\"\",INDEX([1]YES_NO!$A$2:$A$100,MATCH('Communication Facility (Desc)'!$V33,[1]!MASTER_YES_NO_DESC[#Data],0),0))","v":""},{"$f":"IF('Communication Facility (Desc)'!W33=\"\",\"\",INDEX([1]YES_NO!$A$2:$A$100,MATCH('Communication Facility (Desc)'!$W33,[1]!MASTER_YES_NO_DESC[#Data],0),0))","v":""}]
[{"$f":"IF('Communication Facility (Desc)'!A34=\"\",\"\",'Communication Facility (Desc)'!A34)","v":""},{"$f":"IF('Communication Facility (Desc)'!B34=\"\",\"\",'Communication Facility (Desc)'!B34)","v":""},{"$f":"IF('Communication Facility (Desc)'!C34=\"\",\"\",'Communication Facility (Desc)'!C34)","v":""},{"$f":"IF('Communication Facility (Desc)'!D34=\"\",\"\",'Communication Facility (Desc)'!D34)","v":""},{"$f":"IF('Communication Facility (Desc)'!E34=\"\",\"\",INDEX([1]FACILITY_TYPE!$A$2:$A$100,MATCH('Communication Facility (Desc)'!$E34,[1]!MASTER_FACILITY_TYPE_DESC[#Data],0),0))","v":""},{"$f":"IF('Communication Facility (Desc)'!F34=\"\",\"\",INDEX([1]OWNER!$A$2:$A$100,MATCH('Communication Facility (Desc)'!$F34,[1]!MASTER_OWNER_DESC[#Data],0),0))","v":""},{"$f":"IF('Communication Facility (Desc)'!G34=\"\",\"\",IF('Communication Facility (Desc)'!G34=\"\",\"\",INDEX([1]COUNTY!$A$2:$A$80,MATCH('Communication Facility (Desc)'!G34,[1]!MASTER_COUNTY_NAME[#Data],0),0)))","v":""},{"$f":"IF('Communication Facility (Desc)'!H34=\"\",\"\",'Communication Facility (Desc)'!H34)","v":""},{"$f":"IF('Communication Facility (Desc)'!I34=\"\",\"\",'Communication Facility (Desc)'!I34)","v":""},{"$f":"IF('Communication Facility (Desc)'!J34=\"\",\"\",'Communication Facility (Desc)'!J34)","v":""},{"$f":"IF('Communication Facility (Desc)'!K34=\"\",\"\",INDEX([1]CABINET_TYPE!$A$2:$A$100,MATCH('Communication Facility (Desc)'!$K34,[1]!MASTER_CABINET_TYPE_DESC[#Data],0),0))","v":""},{"$f":"IF('Communication Facility (Desc)'!L34=\"\",\"\",INDEX([1]CABINET_MOUNT_TYPE!$A$2:$A$100,MATCH('Communication Facility (Desc)'!L34,[1]!MASTER_CABINET_MOUNT_TYPE_DESC[#Data],0),0))","v":""},{"$f":"IF('Communication Facility (Desc)'!M34=\"\",\"\",INDEX([1]YES_NO!$A$2:$A$100,MATCH('Communication Facility (Desc)'!M34,[1]!MASTER_YES_NO_DESC[#Data],0),0))","v":""},{"$f":"IF('Communication Facility (Desc)'!N34=\"\",\"\",INDEX([1]BUILDING_TYPE!$A$2:$A$100,MATCH('Communication Facility (Desc)'!$N34,[1]!MASTER_BUILDING_TYPE_DESC[#Data],0),0))","v":""},{"$f":"IF('Communication Facility (Desc)'!O34=\"\",\"\",'Communication Facility (Desc)'!O34)","v":""},{"$f":"IF('Communication Facility (Desc)'!P34=\"\",\"\",INDEX([1]BUILDING_MTL!$A$2:$A$100,MATCH('Communication Facility (Desc)'!$P34,[1]!MASTER_BUILDING_MTL_DESC[#Data],0),0))","v":""},{"$f":"IF('Communication Facility (Desc)'!Q34=\"\",\"\",INDEX([1]KEY_TYPE!$A$2:$A$100,MATCH('Communication Facility (Desc)'!$Q34,[1]!MASTER_KEY_TYPE_DESC[#Data],0),0))","v":""},{"$f":"IF('Communication Facility (Desc)'!R34=\"\",\"\",'Communication Facility (Desc)'!R34)","v":""},{"$f":"IF('Communication Facility (Desc)'!S34=\"\",\"\",INDEX([1]FILTER_TYPE!$A$2:$A$100,MATCH('Communication Facility (Desc)'!$S34,[1]!MASTER_FILTER_TYPE_DESC[#Data],0),0))","v":""},{"$f":"IF('Communication Facility (Desc)'!T34=\"\",\"\",INDEX([1]FILTER_SIZE!$A$2:$A$100,MATCH('Communication Facility (Desc)'!$T34,[1]!MASTER_FILTER_SIZE_DESC[#Data],0),0))","v":""},{"$f":"IF('Communication Facility (Desc)'!U34=\"\",\"\",'Communication Facility (Desc)'!U34)","v":""},{"$f":"IF('Communication Facility (Desc)'!V34=\"\",\"\",INDEX([1]YES_NO!$A$2:$A$100,MATCH('Communication Facility (Desc)'!$V34,[1]!MASTER_YES_NO_DESC[#Data],0),0))","v":""},{"$f":"IF('Communication Facility (Desc)'!W34=\"\",\"\",INDEX([1]YES_NO!$A$2:$A$100,MATCH('Communication Facility (Desc)'!$W34,[1]!MASTER_YES_NO_DESC[#Data],0),0))","v":""}]
[{"$f":"IF('Communication Facility (Desc)'!A35=\"\",\"\",'Communication Facility (Desc)'!A35)","v":""},{"$f":"IF('Communication Facility (Desc)'!B35=\"\",\"\",'Communication Facility (Desc)'!B35)","v":""},{"$f":"IF('Communication Facility (Desc)'!C35=\"\",\"\",'Communication Facility (Desc)'!C35)","v":""},{"$f":"IF('Communication Facility (Desc)'!D35=\"\",\"\",'Communication Facility (Desc)'!D35)","v":""},{"$f":"IF('Communication Facility (Desc)'!E35=\"\",\"\",INDEX([1]FACILITY_TYPE!$A$2:$A$100,MATCH('Communication Facility (Desc)'!$E35,[1]!MASTER_FACILITY_TYPE_DESC[#Data],0),0))","v":""},{"$f":"IF('Communication Facility (Desc)'!F35=\"\",\"\",INDEX([1]OWNER!$A$2:$A$100,MATCH('Communication Facility (Desc)'!$F35,[1]!MASTER_OWNER_DESC[#Data],0),0))","v":""},{"$f":"IF('Communication Facility (Desc)'!G35=\"\",\"\",IF('Communication Facility (Desc)'!G35=\"\",\"\",INDEX([1]COUNTY!$A$2:$A$80,MATCH('Communication Facility (Desc)'!G35,[1]!MASTER_COUNTY_NAME[#Data],0),0)))","v":""},{"$f":"IF('Communication Facility (Desc)'!H35=\"\",\"\",'Communication Facility (Desc)'!H35)","v":""},{"$f":"IF('Communication Facility (Desc)'!I35=\"\",\"\",'Communication Facility (Desc)'!I35)","v":""},{"$f":"IF('Communication Facility (Desc)'!J35=\"\",\"\",'Communication Facility (Desc)'!J35)","v":""},{"$f":"IF('Communication Facility (Desc)'!K35=\"\",\"\",INDEX([1]CABINET_TYPE!$A$2:$A$100,MATCH('Communication Facility (Desc)'!$K35,[1]!MASTER_CABINET_TYPE_DESC[#Data],0),0))","v":""},{"$f":"IF('Communication Facility (Desc)'!L35=\"\",\"\",INDEX([1]CABINET_MOUNT_TYPE!$A$2:$A$100,MATCH('Communication Facility (Desc)'!L35,[1]!MASTER_CABINET_MOUNT_TYPE_DESC[#Data],0),0))","v":""},{"$f":"IF('Communication Facility (Desc)'!M35=\"\",\"\",INDEX([1]YES_NO!$A$2:$A$100,MATCH('Communication Facility (Desc)'!M35,[1]!MASTER_YES_NO_DESC[#Data],0),0))","v":""},{"$f":"IF('Communication Facility (Desc)'!N35=\"\",\"\",INDEX([1]BUILDING_TYPE!$A$2:$A$100,MATCH('Communication Facility (Desc)'!$N35,[1]!MASTER_BUILDING_TYPE_DESC[#Data],0),0))","v":""},{"$f":"IF('Communication Facility (Desc)'!O35=\"\",\"\",'Communication Facility (Desc)'!O35)","v":""},{"$f":"IF('Communication Facility (Desc)'!P35=\"\",\"\",INDEX([1]BUILDING_MTL!$A$2:$A$100,MATCH('Communication Facility (Desc)'!$P35,[1]!MASTER_BUILDING_MTL_DESC[#Data],0),0))","v":""},{"$f":"IF('Communication Facility (Desc)'!Q35=\"\",\"\",INDEX([1]KEY_TYPE!$A$2:$A$100,MATCH('Communication Facility (Desc)'!$Q35,[1]!MASTER_KEY_TYPE_DESC[#Data],0),0))","v":""},{"$f":"IF('Communication Facility (Desc)'!R35=\"\",\"\",'Communication Facility (Desc)'!R35)","v":""},{"$f":"IF('Communication Facility (Desc)'!S35=\"\",\"\",INDEX([1]FILTER_TYPE!$A$2:$A$100,MATCH('Communication Facility (Desc)'!$S35,[1]!MASTER_FILTER_TYPE_DESC[#Data],0),0))","v":""},{"$f":"IF('Communication Facility (Desc)'!T35=\"\",\"\",INDEX([1]FILTER_SIZE!$A$2:$A$100,MATCH('Communication Facility (Desc)'!$T35,[1]!MASTER_FILTER_SIZE_DESC[#Data],0),0))","v":""},{"$f":"IF('Communication Facility (Desc)'!U35=\"\",\"\",'Communication Facility (Desc)'!U35)","v":""},{"$f":"IF('Communication Facility (Desc)'!V35=\"\",\"\",INDEX([1]YES_NO!$A$2:$A$100,MATCH('Communication Facility (Desc)'!$V35,[1]!MASTER_YES_NO_DESC[#Data],0),0))","v":""},{"$f":"IF('Communication Facility (Desc)'!W35=\"\",\"\",INDEX([1]YES_NO!$A$2:$A$100,MATCH('Communication Facility (Desc)'!$W35,[1]!MASTER_YES_NO_DESC[#Data],0),0))","v":""}]
[{"$f":"IF('Communication Facility (Desc)'!A36=\"\",\"\",'Communication Facility (Desc)'!A36)","v":""},{"$f":"IF('Communication Facility (Desc)'!B36=\"\",\"\",'Communication Facility (Desc)'!B36)","v":""},{"$f":"IF('Communication Facility (Desc)'!C36=\"\",\"\",'Communication Facility (Desc)'!C36)","v":""},{"$f":"IF('Communication Facility (Desc)'!D36=\"\",\"\",'Communication Facility (Desc)'!D36)","v":""},{"$f":"IF('Communication Facility (Desc)'!E36=\"\",\"\",INDEX([1]FACILITY_TYPE!$A$2:$A$100,MATCH('Communication Facility (Desc)'!$E36,[1]!MASTER_FACILITY_TYPE_DESC[#Data],0),0))","v":""},{"$f":"IF('Communication Facility (Desc)'!F36=\"\",\"\",INDEX([1]OWNER!$A$2:$A$100,MATCH('Communication Facility (Desc)'!$F36,[1]!MASTER_OWNER_DESC[#Data],0),0))","v":""},{"$f":"IF('Communication Facility (Desc)'!G36=\"\",\"\",IF('Communication Facility (Desc)'!G36=\"\",\"\",INDEX([1]COUNTY!$A$2:$A$80,MATCH('Communication Facility (Desc)'!G36,[1]!MASTER_COUNTY_NAME[#Data],0),0)))","v":""},{"$f":"IF('Communication Facility (Desc)'!H36=\"\",\"\",'Communication Facility (Desc)'!H36)","v":""},{"$f":"IF('Communication Facility (Desc)'!I36=\"\",\"\",'Communication Facility (Desc)'!I36)","v":""},{"$f":"IF('Communication Facility (Desc)'!J36=\"\",\"\",'Communication Facility (Desc)'!J36)","v":""},{"$f":"IF('Communication Facility (Desc)'!K36=\"\",\"\",INDEX([1]CABINET_TYPE!$A$2:$A$100,MATCH('Communication Facility (Desc)'!$K36,[1]!MASTER_CABINET_TYPE_DESC[#Data],0),0))","v":""},{"$f":"IF('Communication Facility (Desc)'!L36=\"\",\"\",INDEX([1]CABINET_MOUNT_TYPE!$A$2:$A$100,MATCH('Communication Facility (Desc)'!L36,[1]!MASTER_CABINET_MOUNT_TYPE_DESC[#Data],0),0))","v":""},{"$f":"IF('Communication Facility (Desc)'!M36=\"\",\"\",INDEX([1]YES_NO!$A$2:$A$100,MATCH('Communication Facility (Desc)'!M36,[1]!MASTER_YES_NO_DESC[#Data],0),0))","v":""},{"$f":"IF('Communication Facility (Desc)'!N36=\"\",\"\",INDEX([1]BUILDING_TYPE!$A$2:$A$100,MATCH('Communication Facility (Desc)'!$N36,[1]!MASTER_BUILDING_TYPE_DESC[#Data],0),0))","v":""},{"$f":"IF('Communication Facility (Desc)'!O36=\"\",\"\",'Communication Facility (Desc)'!O36)","v":""},{"$f":"IF('Communication Facility (Desc)'!P36=\"\",\"\",INDEX([1]BUILDING_MTL!$A$2:$A$100,MATCH('Communication Facility (Desc)'!$P36,[1]!MASTER_BUILDING_MTL_DESC[#Data],0),0))","v":""},{"$f":"IF('Communication Facility (Desc)'!Q36=\"\",\"\",INDEX([1]KEY_TYPE!$A$2:$A$100,MATCH('Communication Facility (Desc)'!$Q36,[1]!MASTER_KEY_TYPE_DESC[#Data],0),0))","v":""},{"$f":"IF('Communication Facility (Desc)'!R36=\"\",\"\",'Communication Facility (Desc)'!R36)","v":""},{"$f":"IF('Communication Facility (Desc)'!S36=\"\",\"\",INDEX([1]FILTER_TYPE!$A$2:$A$100,MATCH('Communication Facility (Desc)'!$S36,[1]!MASTER_FILTER_TYPE_DESC[#Data],0),0))","v":""},{"$f":"IF('Communication Facility (Desc)'!T36=\"\",\"\",INDEX([1]FILTER_SIZE!$A$2:$A$100,MATCH('Communication Facility (Desc)'!$T36,[1]!MASTER_FILTER_SIZE_DESC[#Data],0),0))","v":""},{"$f":"IF('Communication Facility (Desc)'!U36=\"\",\"\",'Communication Facility (Desc)'!U36)","v":""},{"$f":"IF('Communication Facility (Desc)'!V36=\"\",\"\",INDEX([1]YES_NO!$A$2:$A$100,MATCH('Communication Facility (Desc)'!$V36,[1]!MASTER_YES_NO_DESC[#Data],0),0))","v":""},{"$f":"IF('Communication Facility (Desc)'!W36=\"\",\"\",INDEX([1]YES_NO!$A$2:$A$100,MATCH('Communication Facility (Desc)'!$W36,[1]!MASTER_YES_NO_DESC[#Data],0),0))","v":""}]
[{"$f":"IF('Communication Facility (Desc)'!A37=\"\",\"\",'Communication Facility (Desc)'!A37)","v":""},{"$f":"IF('Communication Facility (Desc)'!B37=\"\",\"\",'Communication Facility (Desc)'!B37)","v":""},{"$f":"IF('Communication Facility (Desc)'!C37=\"\",\"\",'Communication Facility (Desc)'!C37)","v":""},{"$f":"IF('Communication Facility (Desc)'!D37=\"\",\"\",'Communication Facility (Desc)'!D37)","v":""},{"$f":"IF('Communication Facility (Desc)'!E37=\"\",\"\",INDEX([1]FACILITY_TYPE!$A$2:$A$100,MATCH('Communication Facility (Desc)'!$E37,[1]!MASTER_FACILITY_TYPE_DESC[#Data],0),0))","v":""},{"$f":"IF('Communication Facility (Desc)'!F37=\"\",\"\",INDEX([1]OWNER!$A$2:$A$100,MATCH('Communication Facility (Desc)'!$F37,[1]!MASTER_OWNER_DESC[#Data],0),0))","v":""},{"$f":"IF('Communication Facility (Desc)'!G37=\"\",\"\",IF('Communication Facility (Desc)'!G37=\"\",\"\",INDEX([1]COUNTY!$A$2:$A$80,MATCH('Communication Facility (Desc)'!G37,[1]!MASTER_COUNTY_NAME[#Data],0),0)))","v":""},{"$f":"IF('Communication Facility (Desc)'!H37=\"\",\"\",'Communication Facility (Desc)'!H37)","v":""},{"$f":"IF('Communication Facility (Desc)'!I37=\"\",\"\",'Communication Facility (Desc)'!I37)","v":""},{"$f":"IF('Communication Facility (Desc)'!J37=\"\",\"\",'Communication Facility (Desc)'!J37)","v":""},{"$f":"IF('Communication Facility (Desc)'!K37=\"\",\"\",INDEX([1]CABINET_TYPE!$A$2:$A$100,MATCH('Communication Facility (Desc)'!$K37,[1]!MASTER_CABINET_TYPE_DESC[#Data],0),0))","v":""},{"$f":"IF('Communication Facility (Desc)'!L37=\"\",\"\",INDEX([1]CABINET_MOUNT_TYPE!$A$2:$A$100,MATCH('Communication Facility (Desc)'!L37,[1]!MASTER_CABINET_MOUNT_TYPE_DESC[#Data],0),0))","v":""},{"$f":"IF('Communication Facility (Desc)'!M37=\"\",\"\",INDEX([1]YES_NO!$A$2:$A$100,MATCH('Communication Facility (Desc)'!M37,[1]!MASTER_YES_NO_DESC[#Data],0),0))","v":""},{"$f":"IF('Communication Facility (Desc)'!N37=\"\",\"\",INDEX([1]BUILDING_TYPE!$A$2:$A$100,MATCH('Communication Facility (Desc)'!$N37,[1]!MASTER_BUILDING_TYPE_DESC[#Data],0),0))","v":""},{"$f":"IF('Communication Facility (Desc)'!O37=\"\",\"\",'Communication Facility (Desc)'!O37)","v":""},{"$f":"IF('Communication Facility (Desc)'!P37=\"\",\"\",INDEX([1]BUILDING_MTL!$A$2:$A$100,MATCH('Communication Facility (Desc)'!$P37,[1]!MASTER_BUILDING_MTL_DESC[#Data],0),0))","v":""},{"$f":"IF('Communication Facility (Desc)'!Q37=\"\",\"\",INDEX([1]KEY_TYPE!$A$2:$A$100,MATCH('Communication Facility (Desc)'!$Q37,[1]!MASTER_KEY_TYPE_DESC[#Data],0),0))","v":""},{"$f":"IF('Communication Facility (Desc)'!R37=\"\",\"\",'Communication Facility (Desc)'!R37)","v":""},{"$f":"IF('Communication Facility (Desc)'!S37=\"\",\"\",INDEX([1]FILTER_TYPE!$A$2:$A$100,MATCH('Communication Facility (Desc)'!$S37,[1]!MASTER_FILTER_TYPE_DESC[#Data],0),0))","v":""},{"$f":"IF('Communication Facility (Desc)'!T37=\"\",\"\",INDEX([1]FILTER_SIZE!$A$2:$A$100,MATCH('Communication Facility (Desc)'!$T37,[1]!MASTER_FILTER_SIZE_DESC[#Data],0),0))","v":""},{"$f":"IF('Communication Facility (Desc)'!U37=\"\",\"\",'Communication Facility (Desc)'!U37)","v":""},{"$f":"IF('Communication Facility (Desc)'!V37=\"\",\"\",INDEX([1]YES_NO!$A$2:$A$100,MATCH('Communication Facility (Desc)'!$V37,[1]!MASTER_YES_NO_DESC[#Data],0),0))","v":""},{"$f":"IF('Communication Facility (Desc)'!W37=\"\",\"\",INDEX([1]YES_NO!$A$2:$A$100,MATCH('Communication Facility (Desc)'!$W37,[1]!MASTER_YES_NO_DESC[#Data],0),0))","v":""}]
[{"$f":"IF('Communication Facility (Desc)'!A38=\"\",\"\",'Communication Facility (Desc)'!A38)","v":""},{"$f":"IF('Communication Facility (Desc)'!B38=\"\",\"\",'Communication Facility (Desc)'!B38)","v":""},{"$f":"IF('Communication Facility (Desc)'!C38=\"\",\"\",'Communication Facility (Desc)'!C38)","v":""},{"$f":"IF('Communication Facility (Desc)'!D38=\"\",\"\",'Communication Facility (Desc)'!D38)","v":""},{"$f":"IF('Communication Facility (Desc)'!E38=\"\",\"\",INDEX([1]FACILITY_TYPE!$A$2:$A$100,MATCH('Communication Facility (Desc)'!$E38,[1]!MASTER_FACILITY_TYPE_DESC[#Data],0),0))","v":""},{"$f":"IF('Communication Facility (Desc)'!F38=\"\",\"\",INDEX([1]OWNER!$A$2:$A$100,MATCH('Communication Facility (Desc)'!$F38,[1]!MASTER_OWNER_DESC[#Data],0),0))","v":""},{"$f":"IF('Communication Facility (Desc)'!G38=\"\",\"\",IF('Communication Facility (Desc)'!G38=\"\",\"\",INDEX([1]COUNTY!$A$2:$A$80,MATCH('Communication Facility (Desc)'!G38,[1]!MASTER_COUNTY_NAME[#Data],0),0)))","v":""},{"$f":"IF('Communication Facility (Desc)'!H38=\"\",\"\",'Communication Facility (Desc)'!H38)","v":""},{"$f":"IF('Communication Facility (Desc)'!I38=\"\",\"\",'Communication Facility (Desc)'!I38)","v":""},{"$f":"IF('Communication Facility (Desc)'!J38=\"\",\"\",'Communication Facility (Desc)'!J38)","v":""},{"$f":"IF('Communication Facility (Desc)'!K38=\"\",\"\",INDEX([1]CABINET_TYPE!$A$2:$A$100,MATCH('Communication Facility (Desc)'!$K38,[1]!MASTER_CABINET_TYPE_DESC[#Data],0),0))","v":""},{"$f":"IF('Communication Facility (Desc)'!L38=\"\",\"\",INDEX([1]CABINET_MOUNT_TYPE!$A$2:$A$100,MATCH('Communication Facility (Desc)'!L38,[1]!MASTER_CABINET_MOUNT_TYPE_DESC[#Data],0),0))","v":""},{"$f":"IF('Communication Facility (Desc)'!M38=\"\",\"\",INDEX([1]YES_NO!$A$2:$A$100,MATCH('Communication Facility (Desc)'!M38,[1]!MASTER_YES_NO_DESC[#Data],0),0))","v":""},{"$f":"IF('Communication Facility (Desc)'!N38=\"\",\"\",INDEX([1]BUILDING_TYPE!$A$2:$A$100,MATCH('Communication Facility (Desc)'!$N38,[1]!MASTER_BUILDING_TYPE_DESC[#Data],0),0))","v":""},{"$f":"IF('Communication Facility (Desc)'!O38=\"\",\"\",'Communication Facility (Desc)'!O38)","v":""},{"$f":"IF('Communication Facility (Desc)'!P38=\"\",\"\",INDEX([1]BUILDING_MTL!$A$2:$A$100,MATCH('Communication Facility (Desc)'!$P38,[1]!MASTER_BUILDING_MTL_DESC[#Data],0),0))","v":""},{"$f":"IF('Communication Facility (Desc)'!Q38=\"\",\"\",INDEX([1]KEY_TYPE!$A$2:$A$100,MATCH('Communication Facility (Desc)'!$Q38,[1]!MASTER_KEY_TYPE_DESC[#Data],0),0))","v":""},{"$f":"IF('Communication Facility (Desc)'!R38=\"\",\"\",'Communication Facility (Desc)'!R38)","v":""},{"$f":"IF('Communication Facility (Desc)'!S38=\"\",\"\",INDEX([1]FILTER_TYPE!$A$2:$A$100,MATCH('Communication Facility (Desc)'!$S38,[1]!MASTER_FILTER_TYPE_DESC[#Data],0),0))","v":""},{"$f":"IF('Communication Facility (Desc)'!T38=\"\",\"\",INDEX([1]FILTER_SIZE!$A$2:$A$100,MATCH('Communication Facility (Desc)'!$T38,[1]!MASTER_FILTER_SIZE_DESC[#Data],0),0))","v":""},{"$f":"IF('Communication Facility (Desc)'!U38=\"\",\"\",'Communication Facility (Desc)'!U38)","v":""},{"$f":"IF('Communication Facility (Desc)'!V38=\"\",\"\",INDEX([1]YES_NO!$A$2:$A$100,MATCH('Communication Facility (Desc)'!$V38,[1]!MASTER_YES_NO_DESC[#Data],0),0))","v":""},{"$f":"IF('Communication Facility (Desc)'!W38=\"\",\"\",INDEX([1]YES_NO!$A$2:$A$100,MATCH('Communication Facility (Desc)'!$W38,[1]!MASTER_YES_NO_DESC[#Data],0),0))","v":""}]
[{"$f":"IF('Communication Facility (Desc)'!A39=\"\",\"\",'Communication Facility (Desc)'!A39)","v":""},{"$f":"IF('Communication Facility (Desc)'!B39=\"\",\"\",'Communication Facility (Desc)'!B39)","v":""},{"$f":"IF('Communication Facility (Desc)'!C39=\"\",\"\",'Communication Facility (Desc)'!C39)","v":""},{"$f":"IF('Communication Facility (Desc)'!D39=\"\",\"\",'Communication Facility (Desc)'!D39)","v":""},{"$f":"IF('Communication Facility (Desc)'!E39=\"\",\"\",INDEX([1]FACILITY_TYPE!$A$2:$A$100,MATCH('Communication Facility (Desc)'!$E39,[1]!MASTER_FACILITY_TYPE_DESC[#Data],0),0))","v":""},{"$f":"IF('Communication Facility (Desc)'!F39=\"\",\"\",INDEX([1]OWNER!$A$2:$A$100,MATCH('Communication Facility (Desc)'!$F39,[1]!MASTER_OWNER_DESC[#Data],0),0))","v":""},{"$f":"IF('Communication Facility (Desc)'!G39=\"\",\"\",IF('Communication Facility (Desc)'!G39=\"\",\"\",INDEX([1]COUNTY!$A$2:$A$80,MATCH('Communication Facility (Desc)'!G39,[1]!MASTER_COUNTY_NAME[#Data],0),0)))","v":""},{"$f":"IF('Communication Facility (Desc)'!H39=\"\",\"\",'Communication Facility (Desc)'!H39)","v":""},{"$f":"IF('Communication Facility (Desc)'!I39=\"\",\"\",'Communication Facility (Desc)'!I39)","v":""},{"$f":"IF('Communication Facility (Desc)'!J39=\"\",\"\",'Communication Facility (Desc)'!J39)","v":""},{"$f":"IF('Communication Facility (Desc)'!K39=\"\",\"\",INDEX([1]CABINET_TYPE!$A$2:$A$100,MATCH('Communication Facility (Desc)'!$K39,[1]!MASTER_CABINET_TYPE_DESC[#Data],0),0))","v":""},{"$f":"IF('Communication Facility (Desc)'!L39=\"\",\"\",INDEX([1]CABINET_MOUNT_TYPE!$A$2:$A$100,MATCH('Communication Facility (Desc)'!L39,[1]!MASTER_CABINET_MOUNT_TYPE_DESC[#Data],0),0))","v":""},{"$f":"IF('Communication Facility (Desc)'!M39=\"\",\"\",INDEX([1]YES_NO!$A$2:$A$100,MATCH('Communication Facility (Desc)'!M39,[1]!MASTER_YES_NO_DESC[#Data],0),0))","v":""},{"$f":"IF('Communication Facility (Desc)'!N39=\"\",\"\",INDEX([1]BUILDING_TYPE!$A$2:$A$100,MATCH('Communication Facility (Desc)'!$N39,[1]!MASTER_BUILDING_TYPE_DESC[#Data],0),0))","v":""},{"$f":"IF('Communication Facility (Desc)'!O39=\"\",\"\",'Communication Facility (Desc)'!O39)","v":""},{"$f":"IF('Communication Facility (Desc)'!P39=\"\",\"\",INDEX([1]BUILDING_MTL!$A$2:$A$100,MATCH('Communication Facility (Desc)'!$P39,[1]!MASTER_BUILDING_MTL_DESC[#Data],0),0))","v":""},{"$f":"IF('Communication Facility (Desc)'!Q39=\"\",\"\",INDEX([1]KEY_TYPE!$A$2:$A$100,MATCH('Communication Facility (Desc)'!$Q39,[1]!MASTER_KEY_TYPE_DESC[#Data],0),0))","v":""},{"$f":"IF('Communication Facility (Desc)'!R39=\"\",\"\",'Communication Facility (Desc)'!R39)","v":""},{"$f":"IF('Communication Facility (Desc)'!S39=\"\",\"\",INDEX([1]FILTER_TYPE!$A$2:$A$100,MATCH('Communication Facility (Desc)'!$S39,[1]!MASTER_FILTER_TYPE_DESC[#Data],0),0))","v":""},{"$f":"IF('Communication Facility (Desc)'!T39=\"\",\"\",INDEX([1]FILTER_SIZE!$A$2:$A$100,MATCH('Communication Facility (Desc)'!$T39,[1]!MASTER_FILTER_SIZE_DESC[#Data],0),0))","v":""},{"$f":"IF('Communication Facility (Desc)'!U39=\"\",\"\",'Communication Facility (Desc)'!U39)","v":""},{"$f":"IF('Communication Facility (Desc)'!V39=\"\",\"\",INDEX([1]YES_NO!$A$2:$A$100,MATCH('Communication Facility (Desc)'!$V39,[1]!MASTER_YES_NO_DESC[#Data],0),0))","v":""},{"$f":"IF('Communication Facility (Desc)'!W39=\"\",\"\",INDEX([1]YES_NO!$A$2:$A$100,MATCH('Communication Facility (Desc)'!$W39,[1]!MASTER_YES_NO_DESC[#Data],0),0))","v":""}]
[{"$f":"IF('Communication Facility (Desc)'!A40=\"\",\"\",'Communication Facility (Desc)'!A40)","v":""},{"$f":"IF('Communication Facility (Desc)'!B40=\"\",\"\",'Communication Facility (Desc)'!B40)","v":""},{"$f":"IF('Communication Facility (Desc)'!C40=\"\",\"\",'Communication Facility (Desc)'!C40)","v":""},{"$f":"IF('Communication Facility (Desc)'!D40=\"\",\"\",'Communication Facility (Desc)'!D40)","v":""},{"$f":"IF('Communication Facility (Desc)'!E40=\"\",\"\",INDEX([1]FACILITY_TYPE!$A$2:$A$100,MATCH('Communication Facility (Desc)'!$E40,[1]!MASTER_FACILITY_TYPE_DESC[#Data],0),0))","v":""},{"$f":"IF('Communication Facility (Desc)'!F40=\"\",\"\",INDEX([1]OWNER!$A$2:$A$100,MATCH('Communication Facility (Desc)'!$F40,[1]!MASTER_OWNER_DESC[#Data],0),0))","v":""},{"$f":"IF('Communication Facility (Desc)'!G40=\"\",\"\",IF('Communication Facility (Desc)'!G40=\"\",\"\",INDEX([1]COUNTY!$A$2:$A$80,MATCH('Communication Facility (Desc)'!G40,[1]!MASTER_COUNTY_NAME[#Data],0),0)))","v":""},{"$f":"IF('Communication Facility (Desc)'!H40=\"\",\"\",'Communication Facility (Desc)'!H40)","v":""},{"$f":"IF('Communication Facility (Desc)'!I40=\"\",\"\",'Communication Facility (Desc)'!I40)","v":""},{"$f":"IF('Communication Facility (Desc)'!J40=\"\",\"\",'Communication Facility (Desc)'!J40)","v":""},{"$f":"IF('Communication Facility (Desc)'!K40=\"\",\"\",INDEX([1]CABINET_TYPE!$A$2:$A$100,MATCH('Communication Facility (Desc)'!$K40,[1]!MASTER_CABINET_TYPE_DESC[#Data],0),0))","v":""},{"$f":"IF('Communication Facility (Desc)'!L40=\"\",\"\",INDEX([1]CABINET_MOUNT_TYPE!$A$2:$A$100,MATCH('Communication Facility (Desc)'!L40,[1]!MASTER_CABINET_MOUNT_TYPE_DESC[#Data],0),0))","v":""},{"$f":"IF('Communication Facility (Desc)'!M40=\"\",\"\",INDEX([1]YES_NO!$A$2:$A$100,MATCH('Communication Facility (Desc)'!M40,[1]!MASTER_YES_NO_DESC[#Data],0),0))","v":""},{"$f":"IF('Communication Facility (Desc)'!N40=\"\",\"\",INDEX([1]BUILDING_TYPE!$A$2:$A$100,MATCH('Communication Facility (Desc)'!$N40,[1]!MASTER_BUILDING_TYPE_DESC[#Data],0),0))","v":""},{"$f":"IF('Communication Facility (Desc)'!O40=\"\",\"\",'Communication Facility (Desc)'!O40)","v":""},{"$f":"IF('Communication Facility (Desc)'!P40=\"\",\"\",INDEX([1]BUILDING_MTL!$A$2:$A$100,MATCH('Communication Facility (Desc)'!$P40,[1]!MASTER_BUILDING_MTL_DESC[#Data],0),0))","v":""},{"$f":"IF('Communication Facility (Desc)'!Q40=\"\",\"\",INDEX([1]KEY_TYPE!$A$2:$A$100,MATCH('Communication Facility (Desc)'!$Q40,[1]!MASTER_KEY_TYPE_DESC[#Data],0),0))","v":""},{"$f":"IF('Communication Facility (Desc)'!R40=\"\",\"\",'Communication Facility (Desc)'!R40)","v":""},{"$f":"IF('Communication Facility (Desc)'!S40=\"\",\"\",INDEX([1]FILTER_TYPE!$A$2:$A$100,MATCH('Communication Facility (Desc)'!$S40,[1]!MASTER_FILTER_TYPE_DESC[#Data],0),0))","v":""},{"$f":"IF('Communication Facility (Desc)'!T40=\"\",\"\",INDEX([1]FILTER_SIZE!$A$2:$A$100,MATCH('Communication Facility (Desc)'!$T40,[1]!MASTER_FILTER_SIZE_DESC[#Data],0),0))","v":""},{"$f":"IF('Communication Facility (Desc)'!U40=\"\",\"\",'Communication Facility (Desc)'!U40)","v":""},{"$f":"IF('Communication Facility (Desc)'!V40=\"\",\"\",INDEX([1]YES_NO!$A$2:$A$100,MATCH('Communication Facility (Desc)'!$V40,[1]!MASTER_YES_NO_DESC[#Data],0),0))","v":""},{"$f":"IF('Communication Facility (Desc)'!W40=\"\",\"\",INDEX([1]YES_NO!$A$2:$A$100,MATCH('Communication Facility (Desc)'!$W40,[1]!MASTER_YES_NO_DESC[#Data],0),0))","v":""}]
[{"$f":"IF('Communication Facility (Desc)'!A41=\"\",\"\",'Communication Facility (Desc)'!A41)","v":""},{"$f":"IF('Communication Facility (Desc)'!B41=\"\",\"\",'Communication Facility (Desc)'!B41)","v":""},{"$f":"IF('Communication Facility (Desc)'!C41=\"\",\"\",'Communication Facility (Desc)'!C41)","v":""},{"$f":"IF('Communication Facility (Desc)'!D41=\"\",\"\",'Communication Facility (Desc)'!D41)","v":""},{"$f":"IF('Communication Facility (Desc)'!E41=\"\",\"\",INDEX([1]FACILITY_TYPE!$A$2:$A$100,MATCH('Communication Facility (Desc)'!$E41,[1]!MASTER_FACILITY_TYPE_DESC[#Data],0),0))","v":""},{"$f":"IF('Communication Facility (Desc)'!F41=\"\",\"\",INDEX([1]OWNER!$A$2:$A$100,MATCH('Communication Facility (Desc)'!$F41,[1]!MASTER_OWNER_DESC[#Data],0),0))","v":""},{"$f":"IF('Communication Facility (Desc)'!G41=\"\",\"\",IF('Communication Facility (Desc)'!G41=\"\",\"\",INDEX([1]COUNTY!$A$2:$A$80,MATCH('Communication Facility (Desc)'!G41,[1]!MASTER_COUNTY_NAME[#Data],0),0)))","v":""},{"$f":"IF('Communication Facility (Desc)'!H41=\"\",\"\",'Communication Facility (Desc)'!H41)","v":""},{"$f":"IF('Communication Facility (Desc)'!I41=\"\",\"\",'Communication Facility (Desc)'!I41)","v":""},{"$f":"IF('Communication Facility (Desc)'!J41=\"\",\"\",'Communication Facility (Desc)'!J41)","v":""},{"$f":"IF('Communication Facility (Desc)'!K41=\"\",\"\",INDEX([1]CABINET_TYPE!$A$2:$A$100,MATCH('Communication Facility (Desc)'!$K41,[1]!MASTER_CABINET_TYPE_DESC[#Data],0),0))","v":""},{"$f":"IF('Communication Facility (Desc)'!L41=\"\",\"\",INDEX([1]CABINET_MOUNT_TYPE!$A$2:$A$100,MATCH('Communication Facility (Desc)'!L41,[1]!MASTER_CABINET_MOUNT_TYPE_DESC[#Data],0),0))","v":""},{"$f":"IF('Communication Facility (Desc)'!M41=\"\",\"\",INDEX([1]YES_NO!$A$2:$A$100,MATCH('Communication Facility (Desc)'!M41,[1]!MASTER_YES_NO_DESC[#Data],0),0))","v":""},{"$f":"IF('Communication Facility (Desc)'!N41=\"\",\"\",INDEX([1]BUILDING_TYPE!$A$2:$A$100,MATCH('Communication Facility (Desc)'!$N41,[1]!MASTER_BUILDING_TYPE_DESC[#Data],0),0))","v":""},{"$f":"IF('Communication Facility (Desc)'!O41=\"\",\"\",'Communication Facility (Desc)'!O41)","v":""},{"$f":"IF('Communication Facility (Desc)'!P41=\"\",\"\",INDEX([1]BUILDING_MTL!$A$2:$A$100,MATCH('Communication Facility (Desc)'!$P41,[1]!MASTER_BUILDING_MTL_DESC[#Data],0),0))","v":""},{"$f":"IF('Communication Facility (Desc)'!Q41=\"\",\"\",INDEX([1]KEY_TYPE!$A$2:$A$100,MATCH('Communication Facility (Desc)'!$Q41,[1]!MASTER_KEY_TYPE_DESC[#Data],0),0))","v":""},{"$f":"IF('Communication Facility (Desc)'!R41=\"\",\"\",'Communication Facility (Desc)'!R41)","v":""},{"$f":"IF('Communication Facility (Desc)'!S41=\"\",\"\",INDEX([1]FILTER_TYPE!$A$2:$A$100,MATCH('Communication Facility (Desc)'!$S41,[1]!MASTER_FILTER_TYPE_DESC[#Data],0),0))","v":""},{"$f":"IF('Communication Facility (Desc)'!T41=\"\",\"\",INDEX([1]FILTER_SIZE!$A$2:$A$100,MATCH('Communication Facility (Desc)'!$T41,[1]!MASTER_FILTER_SIZE_DESC[#Data],0),0))","v":""},{"$f":"IF('Communication Facility (Desc)'!U41=\"\",\"\",'Communication Facility (Desc)'!U41)","v":""},{"$f":"IF('Communication Facility (Desc)'!V41=\"\",\"\",INDEX([1]YES_NO!$A$2:$A$100,MATCH('Communication Facility (Desc)'!$V41,[1]!MASTER_YES_NO_DESC[#Data],0),0))","v":""},{"$f":"IF('Communication Facility (Desc)'!W41=\"\",\"\",INDEX([1]YES_NO!$A$2:$A$100,MATCH('Communication Facility (Desc)'!$W41,[1]!MASTER_YES_NO_DESC[#Data],0),0))","v":""}]
[{"$f":"IF('Communication Facility (Desc)'!A42=\"\",\"\",'Communication Facility (Desc)'!A42)","v":""},{"$f":"IF('Communication Facility (Desc)'!B42=\"\",\"\",'Communication Facility (Desc)'!B42)","v":""},{"$f":"IF('Communication Facility (Desc)'!C42=\"\",\"\",'Communication Facility (Desc)'!C42)","v":""},{"$f":"IF('Communication Facility (Desc)'!D42=\"\",\"\",'Communication Facility (Desc)'!D42)","v":""},{"$f":"IF('Communication Facility (Desc)'!E42=\"\",\"\",INDEX([1]FACILITY_TYPE!$A$2:$A$100,MATCH('Communication Facility (Desc)'!$E42,[1]!MASTER_FACILITY_TYPE_DESC[#Data],0),0))","v":""},{"$f":"IF('Communication Facility (Desc)'!F42=\"\",\"\",INDEX([1]OWNER!$A$2:$A$100,MATCH('Communication Facility (Desc)'!$F42,[1]!MASTER_OWNER_DESC[#Data],0),0))","v":""},{"$f":"IF('Communication Facility (Desc)'!G42=\"\",\"\",IF('Communication Facility (Desc)'!G42=\"\",\"\",INDEX([1]COUNTY!$A$2:$A$80,MATCH('Communication Facility (Desc)'!G42,[1]!MASTER_COUNTY_NAME[#Data],0),0)))","v":""},{"$f":"IF('Communication Facility (Desc)'!H42=\"\",\"\",'Communication Facility (Desc)'!H42)","v":""},{"$f":"IF('Communication Facility (Desc)'!I42=\"\",\"\",'Communication Facility (Desc)'!I42)","v":""},{"$f":"IF('Communication Facility (Desc)'!J42=\"\",\"\",'Communication Facility (Desc)'!J42)","v":""},{"$f":"IF('Communication Facility (Desc)'!K42=\"\",\"\",INDEX([1]CABINET_TYPE!$A$2:$A$100,MATCH('Communication Facility (Desc)'!$K42,[1]!MASTER_CABINET_TYPE_DESC[#Data],0),0))","v":""},{"$f":"IF('Communication Facility (Desc)'!L42=\"\",\"\",INDEX([1]CABINET_MOUNT_TYPE!$A$2:$A$100,MATCH('Communication Facility (Desc)'!L42,[1]!MASTER_CABINET_MOUNT_TYPE_DESC[#Data],0),0))","v":""},{"$f":"IF('Communication Facility (Desc)'!M42=\"\",\"\",INDEX([1]YES_NO!$A$2:$A$100,MATCH('Communication Facility (Desc)'!M42,[1]!MASTER_YES_NO_DESC[#Data],0),0))","v":""},{"$f":"IF('Communication Facility (Desc)'!N42=\"\",\"\",INDEX([1]BUILDING_TYPE!$A$2:$A$100,MATCH('Communication Facility (Desc)'!$N42,[1]!MASTER_BUILDING_TYPE_DESC[#Data],0),0))","v":""},{"$f":"IF('Communication Facility (Desc)'!O42=\"\",\"\",'Communication Facility (Desc)'!O42)","v":""},{"$f":"IF('Communication Facility (Desc)'!P42=\"\",\"\",INDEX([1]BUILDING_MTL!$A$2:$A$100,MATCH('Communication Facility (Desc)'!$P42,[1]!MASTER_BUILDING_MTL_DESC[#Data],0),0))","v":""},{"$f":"IF('Communication Facility (Desc)'!Q42=\"\",\"\",INDEX([1]KEY_TYPE!$A$2:$A$100,MATCH('Communication Facility (Desc)'!$Q42,[1]!MASTER_KEY_TYPE_DESC[#Data],0),0))","v":""},{"$f":"IF('Communication Facility (Desc)'!R42=\"\",\"\",'Communication Facility (Desc)'!R42)","v":""},{"$f":"IF('Communication Facility (Desc)'!S42=\"\",\"\",INDEX([1]FILTER_TYPE!$A$2:$A$100,MATCH('Communication Facility (Desc)'!$S42,[1]!MASTER_FILTER_TYPE_DESC[#Data],0),0))","v":""},{"$f":"IF('Communication Facility (Desc)'!T42=\"\",\"\",INDEX([1]FILTER_SIZE!$A$2:$A$100,MATCH('Communication Facility (Desc)'!$T42,[1]!MASTER_FILTER_SIZE_DESC[#Data],0),0))","v":""},{"$f":"IF('Communication Facility (Desc)'!U42=\"\",\"\",'Communication Facility (Desc)'!U42)","v":""},{"$f":"IF('Communication Facility (Desc)'!V42=\"\",\"\",INDEX([1]YES_NO!$A$2:$A$100,MATCH('Communication Facility (Desc)'!$V42,[1]!MASTER_YES_NO_DESC[#Data],0),0))","v":""},{"$f":"IF('Communication Facility (Desc)'!W42=\"\",\"\",INDEX([1]YES_NO!$A$2:$A$100,MATCH('Communication Facility (Desc)'!$W42,[1]!MASTER_YES_NO_DESC[#Data],0),0))","v":""}]
[{"$f":"IF('Communication Facility (Desc)'!A43=\"\",\"\",'Communication Facility (Desc)'!A43)","v":""},{"$f":"IF('Communication Facility (Desc)'!B43=\"\",\"\",'Communication Facility (Desc)'!B43)","v":""},{"$f":"IF('Communication Facility (Desc)'!C43=\"\",\"\",'Communication Facility (Desc)'!C43)","v":""},{"$f":"IF('Communication Facility (Desc)'!D43=\"\",\"\",'Communication Facility (Desc)'!D43)","v":""},{"$f":"IF('Communication Facility (Desc)'!E43=\"\",\"\",INDEX([1]FACILITY_TYPE!$A$2:$A$100,MATCH('Communication Facility (Desc)'!$E43,[1]!MASTER_FACILITY_TYPE_DESC[#Data],0),0))","v":""},{"$f":"IF('Communication Facility (Desc)'!F43=\"\",\"\",INDEX([1]OWNER!$A$2:$A$100,MATCH('Communication Facility (Desc)'!$F43,[1]!MASTER_OWNER_DESC[#Data],0),0))","v":""},{"$f":"IF('Communication Facility (Desc)'!G43=\"\",\"\",IF('Communication Facility (Desc)'!G43=\"\",\"\",INDEX([1]COUNTY!$A$2:$A$80,MATCH('Communication Facility (Desc)'!G43,[1]!MASTER_COUNTY_NAME[#Data],0),0)))","v":""},{"$f":"IF('Communication Facility (Desc)'!H43=\"\",\"\",'Communication Facility (Desc)'!H43)","v":""},{"$f":"IF('Communication Facility (Desc)'!I43=\"\",\"\",'Communication Facility (Desc)'!I43)","v":""},{"$f":"IF('Communication Facility (Desc)'!J43=\"\",\"\",'Communication Facility (Desc)'!J43)","v":""},{"$f":"IF('Communication Facility (Desc)'!K43=\"\",\"\",INDEX([1]CABINET_TYPE!$A$2:$A$100,MATCH('Communication Facility (Desc)'!$K43,[1]!MASTER_CABINET_TYPE_DESC[#Data],0),0))","v":""},{"$f":"IF('Communication Facility (Desc)'!L43=\"\",\"\",INDEX([1]CABINET_MOUNT_TYPE!$A$2:$A$100,MATCH('Communication Facility (Desc)'!L43,[1]!MASTER_CABINET_MOUNT_TYPE_DESC[#Data],0),0))","v":""},{"$f":"IF('Communication Facility (Desc)'!M43=\"\",\"\",INDEX([1]YES_NO!$A$2:$A$100,MATCH('Communication Facility (Desc)'!M43,[1]!MASTER_YES_NO_DESC[#Data],0),0))","v":""},{"$f":"IF('Communication Facility (Desc)'!N43=\"\",\"\",INDEX([1]BUILDING_TYPE!$A$2:$A$100,MATCH('Communication Facility (Desc)'!$N43,[1]!MASTER_BUILDING_TYPE_DESC[#Data],0),0))","v":""},{"$f":"IF('Communication Facility (Desc)'!O43=\"\",\"\",'Communication Facility (Desc)'!O43)","v":""},{"$f":"IF('Communication Facility (Desc)'!P43=\"\",\"\",INDEX([1]BUILDING_MTL!$A$2:$A$100,MATCH('Communication Facility (Desc)'!$P43,[1]!MASTER_BUILDING_MTL_DESC[#Data],0),0))","v":""},{"$f":"IF('Communication Facility (Desc)'!Q43=\"\",\"\",INDEX([1]KEY_TYPE!$A$2:$A$100,MATCH('Communication Facility (Desc)'!$Q43,[1]!MASTER_KEY_TYPE_DESC[#Data],0),0))","v":""},{"$f":"IF('Communication Facility (Desc)'!R43=\"\",\"\",'Communication Facility (Desc)'!R43)","v":""},{"$f":"IF('Communication Facility (Desc)'!S43=\"\",\"\",INDEX([1]FILTER_TYPE!$A$2:$A$100,MATCH('Communication Facility (Desc)'!$S43,[1]!MASTER_FILTER_TYPE_DESC[#Data],0),0))","v":""},{"$f":"IF('Communication Facility (Desc)'!T43=\"\",\"\",INDEX([1]FILTER_SIZE!$A$2:$A$100,MATCH('Communication Facility (Desc)'!$T43,[1]!MASTER_FILTER_SIZE_DESC[#Data],0),0))","v":""},{"$f":"IF('Communication Facility (Desc)'!U43=\"\",\"\",'Communication Facility (Desc)'!U43)","v":""},{"$f":"IF('Communication Facility (Desc)'!V43=\"\",\"\",INDEX([1]YES_NO!$A$2:$A$100,MATCH('Communication Facility (Desc)'!$V43,[1]!MASTER_YES_NO_DESC[#Data],0),0))","v":""},{"$f":"IF('Communication Facility (Desc)'!W43=\"\",\"\",INDEX([1]YES_NO!$A$2:$A$100,MATCH('Communication Facility (Desc)'!$W43,[1]!MASTER_YES_NO_DESC[#Data],0),0))","v":""}]
[{"$f":"IF('Communication Facility (Desc)'!A44=\"\",\"\",'Communication Facility (Desc)'!A44)","v":""},{"$f":"IF('Communication Facility (Desc)'!B44=\"\",\"\",'Communication Facility (Desc)'!B44)","v":""},{"$f":"IF('Communication Facility (Desc)'!C44=\"\",\"\",'Communication Facility (Desc)'!C44)","v":""},{"$f":"IF('Communication Facility (Desc)'!D44=\"\",\"\",'Communication Facility (Desc)'!D44)","v":""},{"$f":"IF('Communication Facility (Desc)'!E44=\"\",\"\",INDEX([1]FACILITY_TYPE!$A$2:$A$100,MATCH('Communication Facility (Desc)'!$E44,[1]!MASTER_FACILITY_TYPE_DESC[#Data],0),0))","v":""},{"$f":"IF('Communication Facility (Desc)'!F44=\"\",\"\",INDEX([1]OWNER!$A$2:$A$100,MATCH('Communication Facility (Desc)'!$F44,[1]!MASTER_OWNER_DESC[#Data],0),0))","v":""},{"$f":"IF('Communication Facility (Desc)'!G44=\"\",\"\",IF('Communication Facility (Desc)'!G44=\"\",\"\",INDEX([1]COUNTY!$A$2:$A$80,MATCH('Communication Facility (Desc)'!G44,[1]!MASTER_COUNTY_NAME[#Data],0),0)))","v":""},{"$f":"IF('Communication Facility (Desc)'!H44=\"\",\"\",'Communication Facility (Desc)'!H44)","v":""},{"$f":"IF('Communication Facility (Desc)'!I44=\"\",\"\",'Communication Facility (Desc)'!I44)","v":""},{"$f":"IF('Communication Facility (Desc)'!J44=\"\",\"\",'Communication Facility (Desc)'!J44)","v":""},{"$f":"IF('Communication Facility (Desc)'!K44=\"\",\"\",INDEX([1]CABINET_TYPE!$A$2:$A$100,MATCH('Communication Facility (Desc)'!$K44,[1]!MASTER_CABINET_TYPE_DESC[#Data],0),0))","v":""},{"$f":"IF('Communication Facility (Desc)'!L44=\"\",\"\",INDEX([1]CABINET_MOUNT_TYPE!$A$2:$A$100,MATCH('Communication Facility (Desc)'!L44,[1]!MASTER_CABINET_MOUNT_TYPE_DESC[#Data],0),0))","v":""},{"$f":"IF('Communication Facility (Desc)'!M44=\"\",\"\",INDEX([1]YES_NO!$A$2:$A$100,MATCH('Communication Facility (Desc)'!M44,[1]!MASTER_YES_NO_DESC[#Data],0),0))","v":""},{"$f":"IF('Communication Facility (Desc)'!N44=\"\",\"\",INDEX([1]BUILDING_TYPE!$A$2:$A$100,MATCH('Communication Facility (Desc)'!$N44,[1]!MASTER_BUILDING_TYPE_DESC[#Data],0),0))","v":""},{"$f":"IF('Communication Facility (Desc)'!O44=\"\",\"\",'Communication Facility (Desc)'!O44)","v":""},{"$f":"IF('Communication Facility (Desc)'!P44=\"\",\"\",INDEX([1]BUILDING_MTL!$A$2:$A$100,MATCH('Communication Facility (Desc)'!$P44,[1]!MASTER_BUILDING_MTL_DESC[#Data],0),0))","v":""},{"$f":"IF('Communication Facility (Desc)'!Q44=\"\",\"\",INDEX([1]KEY_TYPE!$A$2:$A$100,MATCH('Communication Facility (Desc)'!$Q44,[1]!MASTER_KEY_TYPE_DESC[#Data],0),0))","v":""},{"$f":"IF('Communication Facility (Desc)'!R44=\"\",\"\",'Communication Facility (Desc)'!R44)","v":""},{"$f":"IF('Communication Facility (Desc)'!S44=\"\",\"\",INDEX([1]FILTER_TYPE!$A$2:$A$100,MATCH('Communication Facility (Desc)'!$S44,[1]!MASTER_FILTER_TYPE_DESC[#Data],0),0))","v":""},{"$f":"IF('Communication Facility (Desc)'!T44=\"\",\"\",INDEX([1]FILTER_SIZE!$A$2:$A$100,MATCH('Communication Facility (Desc)'!$T44,[1]!MASTER_FILTER_SIZE_DESC[#Data],0),0))","v":""},{"$f":"IF('Communication Facility (Desc)'!U44=\"\",\"\",'Communication Facility (Desc)'!U44)","v":""},{"$f":"IF('Communication Facility (Desc)'!V44=\"\",\"\",INDEX([1]YES_NO!$A$2:$A$100,MATCH('Communication Facility (Desc)'!$V44,[1]!MASTER_YES_NO_DESC[#Data],0),0))","v":""},{"$f":"IF('Communication Facility (Desc)'!W44=\"\",\"\",INDEX([1]YES_NO!$A$2:$A$100,MATCH('Communication Facility (Desc)'!$W44,[1]!MASTER_YES_NO_DESC[#Data],0),0))","v":""}]
[{"$f":"IF('Communication Facility (Desc)'!A45=\"\",\"\",'Communication Facility (Desc)'!A45)","v":""},{"$f":"IF('Communication Facility (Desc)'!B45=\"\",\"\",'Communication Facility (Desc)'!B45)","v":""},{"$f":"IF('Communication Facility (Desc)'!C45=\"\",\"\",'Communication Facility (Desc)'!C45)","v":""},{"$f":"IF('Communication Facility (Desc)'!D45=\"\",\"\",'Communication Facility (Desc)'!D45)","v":""},{"$f":"IF('Communication Facility (Desc)'!E45=\"\",\"\",INDEX([1]FACILITY_TYPE!$A$2:$A$100,MATCH('Communication Facility (Desc)'!$E45,[1]!MASTER_FACILITY_TYPE_DESC[#Data],0),0))","v":""},{"$f":"IF('Communication Facility (Desc)'!F45=\"\",\"\",INDEX([1]OWNER!$A$2:$A$100,MATCH('Communication Facility (Desc)'!$F45,[1]!MASTER_OWNER_DESC[#Data],0),0))","v":""},{"$f":"IF('Communication Facility (Desc)'!G45=\"\",\"\",IF('Communication Facility (Desc)'!G45=\"\",\"\",INDEX([1]COUNTY!$A$2:$A$80,MATCH('Communication Facility (Desc)'!G45,[1]!MASTER_COUNTY_NAME[#Data],0),0)))","v":""},{"$f":"IF('Communication Facility (Desc)'!H45=\"\",\"\",'Communication Facility (Desc)'!H45)","v":""},{"$f":"IF('Communication Facility (Desc)'!I45=\"\",\"\",'Communication Facility (Desc)'!I45)","v":""},{"$f":"IF('Communication Facility (Desc)'!J45=\"\",\"\",'Communication Facility (Desc)'!J45)","v":""},{"$f":"IF('Communication Facility (Desc)'!K45=\"\",\"\",INDEX([1]CABINET_TYPE!$A$2:$A$100,MATCH('Communication Facility (Desc)'!$K45,[1]!MASTER_CABINET_TYPE_DESC[#Data],0),0))","v":""},{"$f":"IF('Communication Facility (Desc)'!L45=\"\",\"\",INDEX([1]CABINET_MOUNT_TYPE!$A$2:$A$100,MATCH('Communication Facility (Desc)'!L45,[1]!MASTER_CABINET_MOUNT_TYPE_DESC[#Data],0),0))","v":""},{"$f":"IF('Communication Facility (Desc)'!M45=\"\",\"\",INDEX([1]YES_NO!$A$2:$A$100,MATCH('Communication Facility (Desc)'!M45,[1]!MASTER_YES_NO_DESC[#Data],0),0))","v":""},{"$f":"IF('Communication Facility (Desc)'!N45=\"\",\"\",INDEX([1]BUILDING_TYPE!$A$2:$A$100,MATCH('Communication Facility (Desc)'!$N45,[1]!MASTER_BUILDING_TYPE_DESC[#Data],0),0))","v":""},{"$f":"IF('Communication Facility (Desc)'!O45=\"\",\"\",'Communication Facility (Desc)'!O45)","v":""},{"$f":"IF('Communication Facility (Desc)'!P45=\"\",\"\",INDEX([1]BUILDING_MTL!$A$2:$A$100,MATCH('Communication Facility (Desc)'!$P45,[1]!MASTER_BUILDING_MTL_DESC[#Data],0),0))","v":""},{"$f":"IF('Communication Facility (Desc)'!Q45=\"\",\"\",INDEX([1]KEY_TYPE!$A$2:$A$100,MATCH('Communication Facility (Desc)'!$Q45,[1]!MASTER_KEY_TYPE_DESC[#Data],0),0))","v":""},{"$f":"IF('Communication Facility (Desc)'!R45=\"\",\"\",'Communication Facility (Desc)'!R45)","v":""},{"$f":"IF('Communication Facility (Desc)'!S45=\"\",\"\",INDEX([1]FILTER_TYPE!$A$2:$A$100,MATCH('Communication Facility (Desc)'!$S45,[1]!MASTER_FILTER_TYPE_DESC[#Data],0),0))","v":""},{"$f":"IF('Communication Facility (Desc)'!T45=\"\",\"\",INDEX([1]FILTER_SIZE!$A$2:$A$100,MATCH('Communication Facility (Desc)'!$T45,[1]!MASTER_FILTER_SIZE_DESC[#Data],0),0))","v":""},{"$f":"IF('Communication Facility (Desc)'!U45=\"\",\"\",'Communication Facility (Desc)'!U45)","v":""},{"$f":"IF('Communication Facility (Desc)'!V45=\"\",\"\",INDEX([1]YES_NO!$A$2:$A$100,MATCH('Communication Facility (Desc)'!$V45,[1]!MASTER_YES_NO_DESC[#Data],0),0))","v":""},{"$f":"IF('Communication Facility (Desc)'!W45=\"\",\"\",INDEX([1]YES_NO!$A$2:$A$100,MATCH('Communication Facility (Desc)'!$W45,[1]!MASTER_YES_NO_DESC[#Data],0),0))","v":""}]
[{"$f":"IF('Communication Facility (Desc)'!A46=\"\",\"\",'Communication Facility (Desc)'!A46)","v":""},{"$f":"IF('Communication Facility (Desc)'!B46=\"\",\"\",'Communication Facility (Desc)'!B46)","v":""},{"$f":"IF('Communication Facility (Desc)'!C46=\"\",\"\",'Communication Facility (Desc)'!C46)","v":""},{"$f":"IF('Communication Facility (Desc)'!D46=\"\",\"\",'Communication Facility (Desc)'!D46)","v":""},{"$f":"IF('Communication Facility (Desc)'!E46=\"\",\"\",INDEX([1]FACILITY_TYPE!$A$2:$A$100,MATCH('Communication Facility (Desc)'!$E46,[1]!MASTER_FACILITY_TYPE_DESC[#Data],0),0))","v":""},{"$f":"IF('Communication Facility (Desc)'!F46=\"\",\"\",INDEX([1]OWNER!$A$2:$A$100,MATCH('Communication Facility (Desc)'!$F46,[1]!MASTER_OWNER_DESC[#Data],0),0))","v":""},{"$f":"IF('Communication Facility (Desc)'!G46=\"\",\"\",IF('Communication Facility (Desc)'!G46=\"\",\"\",INDEX([1]COUNTY!$A$2:$A$80,MATCH('Communication Facility (Desc)'!G46,[1]!MASTER_COUNTY_NAME[#Data],0),0)))","v":""},{"$f":"IF('Communication Facility (Desc)'!H46=\"\",\"\",'Communication Facility (Desc)'!H46)","v":""},{"$f":"IF('Communication Facility (Desc)'!I46=\"\",\"\",'Communication Facility (Desc)'!I46)","v":""},{"$f":"IF('Communication Facility (Desc)'!J46=\"\",\"\",'Communication Facility (Desc)'!J46)","v":""},{"$f":"IF('Communication Facility (Desc)'!K46=\"\",\"\",INDEX([1]CABINET_TYPE!$A$2:$A$100,MATCH('Communication Facility (Desc)'!$K46,[1]!MASTER_CABINET_TYPE_DESC[#Data],0),0))","v":""},{"$f":"IF('Communication Facility (Desc)'!L46=\"\",\"\",INDEX([1]CABINET_MOUNT_TYPE!$A$2:$A$100,MATCH('Communication Facility (Desc)'!L46,[1]!MASTER_CABINET_MOUNT_TYPE_DESC[#Data],0),0))","v":""},{"$f":"IF('Communication Facility (Desc)'!M46=\"\",\"\",INDEX([1]YES_NO!$A$2:$A$100,MATCH('Communication Facility (Desc)'!M46,[1]!MASTER_YES_NO_DESC[#Data],0),0))","v":""},{"$f":"IF('Communication Facility (Desc)'!N46=\"\",\"\",INDEX([1]BUILDING_TYPE!$A$2:$A$100,MATCH('Communication Facility (Desc)'!$N46,[1]!MASTER_BUILDING_TYPE_DESC[#Data],0),0))","v":""},{"$f":"IF('Communication Facility (Desc)'!O46=\"\",\"\",'Communication Facility (Desc)'!O46)","v":""},{"$f":"IF('Communication Facility (Desc)'!P46=\"\",\"\",INDEX([1]BUILDING_MTL!$A$2:$A$100,MATCH('Communication Facility (Desc)'!$P46,[1]!MASTER_BUILDING_MTL_DESC[#Data],0),0))","v":""},{"$f":"IF('Communication Facility (Desc)'!Q46=\"\",\"\",INDEX([1]KEY_TYPE!$A$2:$A$100,MATCH('Communication Facility (Desc)'!$Q46,[1]!MASTER_KEY_TYPE_DESC[#Data],0),0))","v":""},{"$f":"IF('Communication Facility (Desc)'!R46=\"\",\"\",'Communication Facility (Desc)'!R46)","v":""},{"$f":"IF('Communication Facility (Desc)'!S46=\"\",\"\",INDEX([1]FILTER_TYPE!$A$2:$A$100,MATCH('Communication Facility (Desc)'!$S46,[1]!MASTER_FILTER_TYPE_DESC[#Data],0),0))","v":""},{"$f":"IF('Communication Facility (Desc)'!T46=\"\",\"\",INDEX([1]FILTER_SIZE!$A$2:$A$100,MATCH('Communication Facility (Desc)'!$T46,[1]!MASTER_FILTER_SIZE_DESC[#Data],0),0))","v":""},{"$f":"IF('Communication Facility (Desc)'!U46=\"\",\"\",'Communication Facility (Desc)'!U46)","v":""},{"$f":"IF('Communication Facility (Desc)'!V46=\"\",\"\",INDEX([1]YES_NO!$A$2:$A$100,MATCH('Communication Facility (Desc)'!$V46,[1]!MASTER_YES_NO_DESC[#Data],0),0))","v":""},{"$f":"IF('Communication Facility (Desc)'!W46=\"\",\"\",INDEX([1]YES_NO!$A$2:$A$100,MATCH('Communication Facility (Desc)'!$W46,[1]!MASTER_YES_NO_DESC[#Data],0),0))","v":""}]
[{"$f":"IF('Communication Facility (Desc)'!A47=\"\",\"\",'Communication Facility (Desc)'!A47)","v":""},{"$f":"IF('Communication Facility (Desc)'!B47=\"\",\"\",'Communication Facility (Desc)'!B47)","v":""},{"$f":"IF('Communication Facility (Desc)'!C47=\"\",\"\",'Communication Facility (Desc)'!C47)","v":""},{"$f":"IF('Communication Facility (Desc)'!D47=\"\",\"\",'Communication Facility (Desc)'!D47)","v":""},{"$f":"IF('Communication Facility (Desc)'!E47=\"\",\"\",INDEX([1]FACILITY_TYPE!$A$2:$A$100,MATCH('Communication Facility (Desc)'!$E47,[1]!MASTER_FACILITY_TYPE_DESC[#Data],0),0))","v":""},{"$f":"IF('Communication Facility (Desc)'!F47=\"\",\"\",INDEX([1]OWNER!$A$2:$A$100,MATCH('Communication Facility (Desc)'!$F47,[1]!MASTER_OWNER_DESC[#Data],0),0))","v":""},{"$f":"IF('Communication Facility (Desc)'!G47=\"\",\"\",IF('Communication Facility (Desc)'!G47=\"\",\"\",INDEX([1]COUNTY!$A$2:$A$80,MATCH('Communication Facility (Desc)'!G47,[1]!MASTER_COUNTY_NAME[#Data],0),0)))","v":""},{"$f":"IF('Communication Facility (Desc)'!H47=\"\",\"\",'Communication Facility (Desc)'!H47)","v":""},{"$f":"IF('Communication Facility (Desc)'!I47=\"\",\"\",'Communication Facility (Desc)'!I47)","v":""},{"$f":"IF('Communication Facility (Desc)'!J47=\"\",\"\",'Communication Facility (Desc)'!J47)","v":""},{"$f":"IF('Communication Facility (Desc)'!K47=\"\",\"\",INDEX([1]CABINET_TYPE!$A$2:$A$100,MATCH('Communication Facility (Desc)'!$K47,[1]!MASTER_CABINET_TYPE_DESC[#Data],0),0))","v":""},{"$f":"IF('Communication Facility (Desc)'!L47=\"\",\"\",INDEX([1]CABINET_MOUNT_TYPE!$A$2:$A$100,MATCH('Communication Facility (Desc)'!L47,[1]!MASTER_CABINET_MOUNT_TYPE_DESC[#Data],0),0))","v":""},{"$f":"IF('Communication Facility (Desc)'!M47=\"\",\"\",INDEX([1]YES_NO!$A$2:$A$100,MATCH('Communication Facility (Desc)'!M47,[1]!MASTER_YES_NO_DESC[#Data],0),0))","v":""},{"$f":"IF('Communication Facility (Desc)'!N47=\"\",\"\",INDEX([1]BUILDING_TYPE!$A$2:$A$100,MATCH('Communication Facility (Desc)'!$N47,[1]!MASTER_BUILDING_TYPE_DESC[#Data],0),0))","v":""},{"$f":"IF('Communication Facility (Desc)'!O47=\"\",\"\",'Communication Facility (Desc)'!O47)","v":""},{"$f":"IF('Communication Facility (Desc)'!P47=\"\",\"\",INDEX([1]BUILDING_MTL!$A$2:$A$100,MATCH('Communication Facility (Desc)'!$P47,[1]!MASTER_BUILDING_MTL_DESC[#Data],0),0))","v":""},{"$f":"IF('Communication Facility (Desc)'!Q47=\"\",\"\",INDEX([1]KEY_TYPE!$A$2:$A$100,MATCH('Communication Facility (Desc)'!$Q47,[1]!MASTER_KEY_TYPE_DESC[#Data],0),0))","v":""},{"$f":"IF('Communication Facility (Desc)'!R47=\"\",\"\",'Communication Facility (Desc)'!R47)","v":""},{"$f":"IF('Communication Facility (Desc)'!S47=\"\",\"\",INDEX([1]FILTER_TYPE!$A$2:$A$100,MATCH('Communication Facility (Desc)'!$S47,[1]!MASTER_FILTER_TYPE_DESC[#Data],0),0))","v":""},{"$f":"IF('Communication Facility (Desc)'!T47=\"\",\"\",INDEX([1]FILTER_SIZE!$A$2:$A$100,MATCH('Communication Facility (Desc)'!$T47,[1]!MASTER_FILTER_SIZE_DESC[#Data],0),0))","v":""},{"$f":"IF('Communication Facility (Desc)'!U47=\"\",\"\",'Communication Facility (Desc)'!U47)","v":""},{"$f":"IF('Communication Facility (Desc)'!V47=\"\",\"\",INDEX([1]YES_NO!$A$2:$A$100,MATCH('Communication Facility (Desc)'!$V47,[1]!MASTER_YES_NO_DESC[#Data],0),0))","v":""},{"$f":"IF('Communication Facility (Desc)'!W47=\"\",\"\",INDEX([1]YES_NO!$A$2:$A$100,MATCH('Communication Facility (Desc)'!$W47,[1]!MASTER_YES_NO_DESC[#Data],0),0))","v":""}]
[{"$f":"IF('Communication Facility (Desc)'!A48=\"\",\"\",'Communication Facility (Desc)'!A48)","v":""},{"$f":"IF('Communication Facility (Desc)'!B48=\"\",\"\",'Communication Facility (Desc)'!B48)","v":""},{"$f":"IF('Communication Facility (Desc)'!C48=\"\",\"\",'Communication Facility (Desc)'!C48)","v":""},{"$f":"IF('Communication Facility (Desc)'!D48=\"\",\"\",'Communication Facility (Desc)'!D48)","v":""},{"$f":"IF('Communication Facility (Desc)'!E48=\"\",\"\",INDEX([1]FACILITY_TYPE!$A$2:$A$100,MATCH('Communication Facility (Desc)'!$E48,[1]!MASTER_FACILITY_TYPE_DESC[#Data],0),0))","v":""},{"$f":"IF('Communication Facility (Desc)'!F48=\"\",\"\",INDEX([1]OWNER!$A$2:$A$100,MATCH('Communication Facility (Desc)'!$F48,[1]!MASTER_OWNER_DESC[#Data],0),0))","v":""},{"$f":"IF('Communication Facility (Desc)'!G48=\"\",\"\",IF('Communication Facility (Desc)'!G48=\"\",\"\",INDEX([1]COUNTY!$A$2:$A$80,MATCH('Communication Facility (Desc)'!G48,[1]!MASTER_COUNTY_NAME[#Data],0),0)))","v":""},{"$f":"IF('Communication Facility (Desc)'!H48=\"\",\"\",'Communication Facility (Desc)'!H48)","v":""},{"$f":"IF('Communication Facility (Desc)'!I48=\"\",\"\",'Communication Facility (Desc)'!I48)","v":""},{"$f":"IF('Communication Facility (Desc)'!J48=\"\",\"\",'Communication Facility (Desc)'!J48)","v":""},{"$f":"IF('Communication Facility (Desc)'!K48=\"\",\"\",INDEX([1]CABINET_TYPE!$A$2:$A$100,MATCH('Communication Facility (Desc)'!$K48,[1]!MASTER_CABINET_TYPE_DESC[#Data],0),0))","v":""},{"$f":"IF('Communication Facility (Desc)'!L48=\"\",\"\",INDEX([1]CABINET_MOUNT_TYPE!$A$2:$A$100,MATCH('Communication Facility (Desc)'!L48,[1]!MASTER_CABINET_MOUNT_TYPE_DESC[#Data],0),0))","v":""},{"$f":"IF('Communication Facility (Desc)'!M48=\"\",\"\",INDEX([1]YES_NO!$A$2:$A$100,MATCH('Communication Facility (Desc)'!M48,[1]!MASTER_YES_NO_DESC[#Data],0),0))","v":""},{"$f":"IF('Communication Facility (Desc)'!N48=\"\",\"\",INDEX([1]BUILDING_TYPE!$A$2:$A$100,MATCH('Communication Facility (Desc)'!$N48,[1]!MASTER_BUILDING_TYPE_DESC[#Data],0),0))","v":""},{"$f":"IF('Communication Facility (Desc)'!O48=\"\",\"\",'Communication Facility (Desc)'!O48)","v":""},{"$f":"IF('Communication Facility (Desc)'!P48=\"\",\"\",INDEX([1]BUILDING_MTL!$A$2:$A$100,MATCH('Communication Facility (Desc)'!$P48,[1]!MASTER_BUILDING_MTL_DESC[#Data],0),0))","v":""},{"$f":"IF('Communication Facility (Desc)'!Q48=\"\",\"\",INDEX([1]KEY_TYPE!$A$2:$A$100,MATCH('Communication Facility (Desc)'!$Q48,[1]!MASTER_KEY_TYPE_DESC[#Data],0),0))","v":""},{"$f":"IF('Communication Facility (Desc)'!R48=\"\",\"\",'Communication Facility (Desc)'!R48)","v":""},{"$f":"IF('Communication Facility (Desc)'!S48=\"\",\"\",INDEX([1]FILTER_TYPE!$A$2:$A$100,MATCH('Communication Facility (Desc)'!$S48,[1]!MASTER_FILTER_TYPE_DESC[#Data],0),0))","v":""},{"$f":"IF('Communication Facility (Desc)'!T48=\"\",\"\",INDEX([1]FILTER_SIZE!$A$2:$A$100,MATCH('Communication Facility (Desc)'!$T48,[1]!MASTER_FILTER_SIZE_DESC[#Data],0),0))","v":""},{"$f":"IF('Communication Facility (Desc)'!U48=\"\",\"\",'Communication Facility (Desc)'!U48)","v":""},{"$f":"IF('Communication Facility (Desc)'!V48=\"\",\"\",INDEX([1]YES_NO!$A$2:$A$100,MATCH('Communication Facility (Desc)'!$V48,[1]!MASTER_YES_NO_DESC[#Data],0),0))","v":""},{"$f":"IF('Communication Facility (Desc)'!W48=\"\",\"\",INDEX([1]YES_NO!$A$2:$A$100,MATCH('Communication Facility (Desc)'!$W48,[1]!MASTER_YES_NO_DESC[#Data],0),0))","v":""}]
[{"$f":"IF('Communication Facility (Desc)'!A49=\"\",\"\",'Communication Facility (Desc)'!A49)","v":""},{"$f":"IF('Communication Facility (Desc)'!B49=\"\",\"\",'Communication Facility (Desc)'!B49)","v":""},{"$f":"IF('Communication Facility (Desc)'!C49=\"\",\"\",'Communication Facility (Desc)'!C49)","v":""},{"$f":"IF('Communication Facility (Desc)'!D49=\"\",\"\",'Communication Facility (Desc)'!D49)","v":""},{"$f":"IF('Communication Facility (Desc)'!E49=\"\",\"\",INDEX([1]FACILITY_TYPE!$A$2:$A$100,MATCH('Communication Facility (Desc)'!$E49,[1]!MASTER_FACILITY_TYPE_DESC[#Data],0),0))","v":""},{"$f":"IF('Communication Facility (Desc)'!F49=\"\",\"\",INDEX([1]OWNER!$A$2:$A$100,MATCH('Communication Facility (Desc)'!$F49,[1]!MASTER_OWNER_DESC[#Data],0),0))","v":""},{"$f":"IF('Communication Facility (Desc)'!G49=\"\",\"\",IF('Communication Facility (Desc)'!G49=\"\",\"\",INDEX([1]COUNTY!$A$2:$A$80,MATCH('Communication Facility (Desc)'!G49,[1]!MASTER_COUNTY_NAME[#Data],0),0)))","v":""},{"$f":"IF('Communication Facility (Desc)'!H49=\"\",\"\",'Communication Facility (Desc)'!H49)","v":""},{"$f":"IF('Communication Facility (Desc)'!I49=\"\",\"\",'Communication Facility (Desc)'!I49)","v":""},{"$f":"IF('Communication Facility (Desc)'!J49=\"\",\"\",'Communication Facility (Desc)'!J49)","v":""},{"$f":"IF('Communication Facility (Desc)'!K49=\"\",\"\",INDEX([1]CABINET_TYPE!$A$2:$A$100,MATCH('Communication Facility (Desc)'!$K49,[1]!MASTER_CABINET_TYPE_DESC[#Data],0),0))","v":""},{"$f":"IF('Communication Facility (Desc)'!L49=\"\",\"\",INDEX([1]CABINET_MOUNT_TYPE!$A$2:$A$100,MATCH('Communication Facility (Desc)'!L49,[1]!MASTER_CABINET_MOUNT_TYPE_DESC[#Data],0),0))","v":""},{"$f":"IF('Communication Facility (Desc)'!M49=\"\",\"\",INDEX([1]YES_NO!$A$2:$A$100,MATCH('Communication Facility (Desc)'!M49,[1]!MASTER_YES_NO_DESC[#Data],0),0))","v":""},{"$f":"IF('Communication Facility (Desc)'!N49=\"\",\"\",INDEX([1]BUILDING_TYPE!$A$2:$A$100,MATCH('Communication Facility (Desc)'!$N49,[1]!MASTER_BUILDING_TYPE_DESC[#Data],0),0))","v":""},{"$f":"IF('Communication Facility (Desc)'!O49=\"\",\"\",'Communication Facility (Desc)'!O49)","v":""},{"$f":"IF('Communication Facility (Desc)'!P49=\"\",\"\",INDEX([1]BUILDING_MTL!$A$2:$A$100,MATCH('Communication Facility (Desc)'!$P49,[1]!MASTER_BUILDING_MTL_DESC[#Data],0),0))","v":""},{"$f":"IF('Communication Facility (Desc)'!Q49=\"\",\"\",INDEX([1]KEY_TYPE!$A$2:$A$100,MATCH('Communication Facility (Desc)'!$Q49,[1]!MASTER_KEY_TYPE_DESC[#Data],0),0))","v":""},{"$f":"IF('Communication Facility (Desc)'!R49=\"\",\"\",'Communication Facility (Desc)'!R49)","v":""},{"$f":"IF('Communication Facility (Desc)'!S49=\"\",\"\",INDEX([1]FILTER_TYPE!$A$2:$A$100,MATCH('Communication Facility (Desc)'!$S49,[1]!MASTER_FILTER_TYPE_DESC[#Data],0),0))","v":""},{"$f":"IF('Communication Facility (Desc)'!T49=\"\",\"\",INDEX([1]FILTER_SIZE!$A$2:$A$100,MATCH('Communication Facility (Desc)'!$T49,[1]!MASTER_FILTER_SIZE_DESC[#Data],0),0))","v":""},{"$f":"IF('Communication Facility (Desc)'!U49=\"\",\"\",'Communication Facility (Desc)'!U49)","v":""},{"$f":"IF('Communication Facility (Desc)'!V49=\"\",\"\",INDEX([1]YES_NO!$A$2:$A$100,MATCH('Communication Facility (Desc)'!$V49,[1]!MASTER_YES_NO_DESC[#Data],0),0))","v":""},{"$f":"IF('Communication Facility (Desc)'!W49=\"\",\"\",INDEX([1]YES_NO!$A$2:$A$100,MATCH('Communication Facility (Desc)'!$W49,[1]!MASTER_YES_NO_DESC[#Data],0),0))","v":""}]
[{"$f":"IF('Communication Facility (Desc)'!A50=\"\",\"\",'Communication Facility (Desc)'!A50)","v":""},{"$f":"IF('Communication Facility (Desc)'!B50=\"\",\"\",'Communication Facility (Desc)'!B50)","v":""},{"$f":"IF('Communication Facility (Desc)'!C50=\"\",\"\",'Communication Facility (Desc)'!C50)","v":""},{"$f":"IF('Communication Facility (Desc)'!D50=\"\",\"\",'Communication Facility (Desc)'!D50)","v":""},{"$f":"IF('Communication Facility (Desc)'!E50=\"\",\"\",INDEX([1]FACILITY_TYPE!$A$2:$A$100,MATCH('Communication Facility (Desc)'!$E50,[1]!MASTER_FACILITY_TYPE_DESC[#Data],0),0))","v":""},{"$f":"IF('Communication Facility (Desc)'!F50=\"\",\"\",INDEX([1]OWNER!$A$2:$A$100,MATCH('Communication Facility (Desc)'!$F50,[1]!MASTER_OWNER_DESC[#Data],0),0))","v":""},{"$f":"IF('Communication Facility (Desc)'!G50=\"\",\"\",IF('Communication Facility (Desc)'!G50=\"\",\"\",INDEX([1]COUNTY!$A$2:$A$80,MATCH('Communication Facility (Desc)'!G50,[1]!MASTER_COUNTY_NAME[#Data],0),0)))","v":""},{"$f":"IF('Communication Facility (Desc)'!H50=\"\",\"\",'Communication Facility (Desc)'!H50)","v":""},{"$f":"IF('Communication Facility (Desc)'!I50=\"\",\"\",'Communication Facility (Desc)'!I50)","v":""},{"$f":"IF('Communication Facility (Desc)'!J50=\"\",\"\",'Communication Facility (Desc)'!J50)","v":""},{"$f":"IF('Communication Facility (Desc)'!K50=\"\",\"\",INDEX([1]CABINET_TYPE!$A$2:$A$100,MATCH('Communication Facility (Desc)'!$K50,[1]!MASTER_CABINET_TYPE_DESC[#Data],0),0))","v":""},{"$f":"IF('Communication Facility (Desc)'!L50=\"\",\"\",INDEX([1]CABINET_MOUNT_TYPE!$A$2:$A$100,MATCH('Communication Facility (Desc)'!L50,[1]!MASTER_CABINET_MOUNT_TYPE_DESC[#Data],0),0))","v":""},{"$f":"IF('Communication Facility (Desc)'!M50=\"\",\"\",INDEX([1]YES_NO!$A$2:$A$100,MATCH('Communication Facility (Desc)'!M50,[1]!MASTER_YES_NO_DESC[#Data],0),0))","v":""},{"$f":"IF('Communication Facility (Desc)'!N50=\"\",\"\",INDEX([1]BUILDING_TYPE!$A$2:$A$100,MATCH('Communication Facility (Desc)'!$N50,[1]!MASTER_BUILDING_TYPE_DESC[#Data],0),0))","v":""},{"$f":"IF('Communication Facility (Desc)'!O50=\"\",\"\",'Communication Facility (Desc)'!O50)","v":""},{"$f":"IF('Communication Facility (Desc)'!P50=\"\",\"\",INDEX([1]BUILDING_MTL!$A$2:$A$100,MATCH('Communication Facility (Desc)'!$P50,[1]!MASTER_BUILDING_MTL_DESC[#Data],0),0))","v":""},{"$f":"IF('Communication Facility (Desc)'!Q50=\"\",\"\",INDEX([1]KEY_TYPE!$A$2:$A$100,MATCH('Communication Facility (Desc)'!$Q50,[1]!MASTER_KEY_TYPE_DESC[#Data],0),0))","v":""},{"$f":"IF('Communication Facility (Desc)'!R50=\"\",\"\",'Communication Facility (Desc)'!R50)","v":""},{"$f":"IF('Communication Facility (Desc)'!S50=\"\",\"\",INDEX([1]FILTER_TYPE!$A$2:$A$100,MATCH('Communication Facility (Desc)'!$S50,[1]!MASTER_FILTER_TYPE_DESC[#Data],0),0))","v":""},{"$f":"IF('Communication Facility (Desc)'!T50=\"\",\"\",INDEX([1]FILTER_SIZE!$A$2:$A$100,MATCH('Communication Facility (Desc)'!$T50,[1]!MASTER_FILTER_SIZE_DESC[#Data],0),0))","v":""},{"$f":"IF('Communication Facility (Desc)'!U50=\"\",\"\",'Communication Facility (Desc)'!U50)","v":""},{"$f":"IF('Communication Facility (Desc)'!V50=\"\",\"\",INDEX([1]YES_NO!$A$2:$A$100,MATCH('Communication Facility (Desc)'!$V50,[1]!MASTER_YES_NO_DESC[#Data],0),0))","v":""},{"$f":"IF('Communication Facility (Desc)'!W50=\"\",\"\",INDEX([1]YES_NO!$A$2:$A$100,MATCH('Communication Facility (Desc)'!$W50,[1]!MASTER_YES_NO_DESC[#Data],0),0))","v":""}]
[{"$f":"IF('Communication Facility (Desc)'!A51=\"\",\"\",'Communication Facility (Desc)'!A51)","v":""},{"$f":"IF('Communication Facility (Desc)'!B51=\"\",\"\",'Communication Facility (Desc)'!B51)","v":""},{"$f":"IF('Communication Facility (Desc)'!C51=\"\",\"\",'Communication Facility (Desc)'!C51)","v":""},{"$f":"IF('Communication Facility (Desc)'!D51=\"\",\"\",'Communication Facility (Desc)'!D51)","v":""},{"$f":"IF('Communication Facility (Desc)'!E51=\"\",\"\",INDEX([1]FACILITY_TYPE!$A$2:$A$100,MATCH('Communication Facility (Desc)'!$E51,[1]!MASTER_FACILITY_TYPE_DESC[#Data],0),0))","v":""},{"$f":"IF('Communication Facility (Desc)'!F51=\"\",\"\",INDEX([1]OWNER!$A$2:$A$100,MATCH('Communication Facility (Desc)'!$F51,[1]!MASTER_OWNER_DESC[#Data],0),0))","v":""},{"$f":"IF('Communication Facility (Desc)'!G51=\"\",\"\",IF('Communication Facility (Desc)'!G51=\"\",\"\",INDEX([1]COUNTY!$A$2:$A$80,MATCH('Communication Facility (Desc)'!G51,[1]!MASTER_COUNTY_NAME[#Data],0),0)))","v":""},{"$f":"IF('Communication Facility (Desc)'!H51=\"\",\"\",'Communication Facility (Desc)'!H51)","v":""},{"$f":"IF('Communication Facility (Desc)'!I51=\"\",\"\",'Communication Facility (Desc)'!I51)","v":""},{"$f":"IF('Communication Facility (Desc)'!J51=\"\",\"\",'Communication Facility (Desc)'!J51)","v":""},{"$f":"IF('Communication Facility (Desc)'!K51=\"\",\"\",INDEX([1]CABINET_TYPE!$A$2:$A$100,MATCH('Communication Facility (Desc)'!$K51,[1]!MASTER_CABINET_TYPE_DESC[#Data],0),0))","v":""},{"$f":"IF('Communication Facility (Desc)'!L51=\"\",\"\",INDEX([1]CABINET_MOUNT_TYPE!$A$2:$A$100,MATCH('Communication Facility (Desc)'!L51,[1]!MASTER_CABINET_MOUNT_TYPE_DESC[#Data],0),0))","v":""},{"$f":"IF('Communication Facility (Desc)'!M51=\"\",\"\",INDEX([1]YES_NO!$A$2:$A$100,MATCH('Communication Facility (Desc)'!M51,[1]!MASTER_YES_NO_DESC[#Data],0),0))","v":""},{"$f":"IF('Communication Facility (Desc)'!N51=\"\",\"\",INDEX([1]BUILDING_TYPE!$A$2:$A$100,MATCH('Communication Facility (Desc)'!$N51,[1]!MASTER_BUILDING_TYPE_DESC[#Data],0),0))","v":""},{"$f":"IF('Communication Facility (Desc)'!O51=\"\",\"\",'Communication Facility (Desc)'!O51)","v":""},{"$f":"IF('Communication Facility (Desc)'!P51=\"\",\"\",INDEX([1]BUILDING_MTL!$A$2:$A$100,MATCH('Communication Facility (Desc)'!$P51,[1]!MASTER_BUILDING_MTL_DESC[#Data],0),0))","v":""},{"$f":"IF('Communication Facility (Desc)'!Q51=\"\",\"\",INDEX([1]KEY_TYPE!$A$2:$A$100,MATCH('Communication Facility (Desc)'!$Q51,[1]!MASTER_KEY_TYPE_DESC[#Data],0),0))","v":""},{"$f":"IF('Communication Facility (Desc)'!R51=\"\",\"\",'Communication Facility (Desc)'!R51)","v":""},{"$f":"IF('Communication Facility (Desc)'!S51=\"\",\"\",INDEX([1]FILTER_TYPE!$A$2:$A$100,MATCH('Communication Facility (Desc)'!$S51,[1]!MASTER_FILTER_TYPE_DESC[#Data],0),0))","v":""},{"$f":"IF('Communication Facility (Desc)'!T51=\"\",\"\",INDEX([1]FILTER_SIZE!$A$2:$A$100,MATCH('Communication Facility (Desc)'!$T51,[1]!MASTER_FILTER_SIZE_DESC[#Data],0),0))","v":""},{"$f":"IF('Communication Facility (Desc)'!U51=\"\",\"\",'Communication Facility (Desc)'!U51)","v":""},{"$f":"IF('Communication Facility (Desc)'!V51=\"\",\"\",INDEX([1]YES_NO!$A$2:$A$100,MATCH('Communication Facility (Desc)'!$V51,[1]!MASTER_YES_NO_DESC[#Data],0),0))","v":""},{"$f":"IF('Communication Facility (Desc)'!W51=\"\",\"\",INDEX([1]YES_NO!$A$2:$A$100,MATCH('Communication Facility (Desc)'!$W51,[1]!MASTER_YES_NO_DESC[#Data],0),0))","v":""}]
[{"$f":"IF('Communication Facility (Desc)'!A52=\"\",\"\",'Communication Facility (Desc)'!A52)","v":""},{"$f":"IF('Communication Facility (Desc)'!B52=\"\",\"\",'Communication Facility (Desc)'!B52)","v":""},{"$f":"IF('Communication Facility (Desc)'!C52=\"\",\"\",'Communication Facility (Desc)'!C52)","v":""},{"$f":"IF('Communication Facility (Desc)'!D52=\"\",\"\",'Communication Facility (Desc)'!D52)","v":""},{"$f":"IF('Communication Facility (Desc)'!E52=\"\",\"\",INDEX([1]FACILITY_TYPE!$A$2:$A$100,MATCH('Communication Facility (Desc)'!$E52,[1]!MASTER_FACILITY_TYPE_DESC[#Data],0),0))","v":""},{"$f":"IF('Communication Facility (Desc)'!F52=\"\",\"\",INDEX([1]OWNER!$A$2:$A$100,MATCH('Communication Facility (Desc)'!$F52,[1]!MASTER_OWNER_DESC[#Data],0),0))","v":""},{"$f":"IF('Communication Facility (Desc)'!G52=\"\",\"\",IF('Communication Facility (Desc)'!G52=\"\",\"\",INDEX([1]COUNTY!$A$2:$A$80,MATCH('Communication Facility (Desc)'!G52,[1]!MASTER_COUNTY_NAME[#Data],0),0)))","v":""},{"$f":"IF('Communication Facility (Desc)'!H52=\"\",\"\",'Communication Facility (Desc)'!H52)","v":""},{"$f":"IF('Communication Facility (Desc)'!I52=\"\",\"\",'Communication Facility (Desc)'!I52)","v":""},{"$f":"IF('Communication Facility (Desc)'!J52=\"\",\"\",'Communication Facility (Desc)'!J52)","v":""},{"$f":"IF('Communication Facility (Desc)'!K52=\"\",\"\",INDEX([1]CABINET_TYPE!$A$2:$A$100,MATCH('Communication Facility (Desc)'!$K52,[1]!MASTER_CABINET_TYPE_DESC[#Data],0),0))","v":""},{"$f":"IF('Communication Facility (Desc)'!L52=\"\",\"\",INDEX([1]CABINET_MOUNT_TYPE!$A$2:$A$100,MATCH('Communication Facility (Desc)'!L52,[1]!MASTER_CABINET_MOUNT_TYPE_DESC[#Data],0),0))","v":""},{"$f":"IF('Communication Facility (Desc)'!M52=\"\",\"\",INDEX([1]YES_NO!$A$2:$A$100,MATCH('Communication Facility (Desc)'!M52,[1]!MASTER_YES_NO_DESC[#Data],0),0))","v":""},{"$f":"IF('Communication Facility (Desc)'!N52=\"\",\"\",INDEX([1]BUILDING_TYPE!$A$2:$A$100,MATCH('Communication Facility (Desc)'!$N52,[1]!MASTER_BUILDING_TYPE_DESC[#Data],0),0))","v":""},{"$f":"IF('Communication Facility (Desc)'!O52=\"\",\"\",'Communication Facility (Desc)'!O52)","v":""},{"$f":"IF('Communication Facility (Desc)'!P52=\"\",\"\",INDEX([1]BUILDING_MTL!$A$2:$A$100,MATCH('Communication Facility (Desc)'!$P52,[1]!MASTER_BUILDING_MTL_DESC[#Data],0),0))","v":""},{"$f":"IF('Communication Facility (Desc)'!Q52=\"\",\"\",INDEX([1]KEY_TYPE!$A$2:$A$100,MATCH('Communication Facility (Desc)'!$Q52,[1]!MASTER_KEY_TYPE_DESC[#Data],0),0))","v":""},{"$f":"IF('Communication Facility (Desc)'!R52=\"\",\"\",'Communication Facility (Desc)'!R52)","v":""},{"$f":"IF('Communication Facility (Desc)'!S52=\"\",\"\",INDEX([1]FILTER_TYPE!$A$2:$A$100,MATCH('Communication Facility (Desc)'!$S52,[1]!MASTER_FILTER_TYPE_DESC[#Data],0),0))","v":""},{"$f":"IF('Communication Facility (Desc)'!T52=\"\",\"\",INDEX([1]FILTER_SIZE!$A$2:$A$100,MATCH('Communication Facility (Desc)'!$T52,[1]!MASTER_FILTER_SIZE_DESC[#Data],0),0))","v":""},{"$f":"IF('Communication Facility (Desc)'!U52=\"\",\"\",'Communication Facility (Desc)'!U52)","v":""},{"$f":"IF('Communication Facility (Desc)'!V52=\"\",\"\",INDEX([1]YES_NO!$A$2:$A$100,MATCH('Communication Facility (Desc)'!$V52,[1]!MASTER_YES_NO_DESC[#Data],0),0))","v":""},{"$f":"IF('Communication Facility (Desc)'!W52=\"\",\"\",INDEX([1]YES_NO!$A$2:$A$100,MATCH('Communication Facility (Desc)'!$W52,[1]!MASTER_YES_NO_DESC[#Data],0),0))","v":""}]
[{"$f":"IF('Communication Facility (Desc)'!A53=\"\",\"\",'Communication Facility (Desc)'!A53)","v":""},{"$f":"IF('Communication Facility (Desc)'!B53=\"\",\"\",'Communication Facility (Desc)'!B53)","v":""},{"$f":"IF('Communication Facility (Desc)'!C53=\"\",\"\",'Communication Facility (Desc)'!C53)","v":""},{"$f":"IF('Communication Facility (Desc)'!D53=\"\",\"\",'Communication Facility (Desc)'!D53)","v":""},{"$f":"IF('Communication Facility (Desc)'!E53=\"\",\"\",INDEX([1]FACILITY_TYPE!$A$2:$A$100,MATCH('Communication Facility (Desc)'!$E53,[1]!MASTER_FACILITY_TYPE_DESC[#Data],0),0))","v":""},{"$f":"IF('Communication Facility (Desc)'!F53=\"\",\"\",INDEX([1]OWNER!$A$2:$A$100,MATCH('Communication Facility (Desc)'!$F53,[1]!MASTER_OWNER_DESC[#Data],0),0))","v":""},{"$f":"IF('Communication Facility (Desc)'!G53=\"\",\"\",IF('Communication Facility (Desc)'!G53=\"\",\"\",INDEX([1]COUNTY!$A$2:$A$80,MATCH('Communication Facility (Desc)'!G53,[1]!MASTER_COUNTY_NAME[#Data],0),0)))","v":""},{"$f":"IF('Communication Facility (Desc)'!H53=\"\",\"\",'Communication Facility (Desc)'!H53)","v":""},{"$f":"IF('Communication Facility (Desc)'!I53=\"\",\"\",'Communication Facility (Desc)'!I53)","v":""},{"$f":"IF('Communication Facility (Desc)'!J53=\"\",\"\",'Communication Facility (Desc)'!J53)","v":""},{"$f":"IF('Communication Facility (Desc)'!K53=\"\",\"\",INDEX([1]CABINET_TYPE!$A$2:$A$100,MATCH('Communication Facility (Desc)'!$K53,[1]!MASTER_CABINET_TYPE_DESC[#Data],0),0))","v":""},{"$f":"IF('Communication Facility (Desc)'!L53=\"\",\"\",INDEX([1]CABINET_MOUNT_TYPE!$A$2:$A$100,MATCH('Communication Facility (Desc)'!L53,[1]!MASTER_CABINET_MOUNT_TYPE_DESC[#Data],0),0))","v":""},{"$f":"IF('Communication Facility (Desc)'!M53=\"\",\"\",INDEX([1]YES_NO!$A$2:$A$100,MATCH('Communication Facility (Desc)'!M53,[1]!MASTER_YES_NO_DESC[#Data],0),0))","v":""},{"$f":"IF('Communication Facility (Desc)'!N53=\"\",\"\",INDEX([1]BUILDING_TYPE!$A$2:$A$100,MATCH('Communication Facility (Desc)'!$N53,[1]!MASTER_BUILDING_TYPE_DESC[#Data],0),0))","v":""},{"$f":"IF('Communication Facility (Desc)'!O53=\"\",\"\",'Communication Facility (Desc)'!O53)","v":""},{"$f":"IF('Communication Facility (Desc)'!P53=\"\",\"\",INDEX([1]BUILDING_MTL!$A$2:$A$100,MATCH('Communication Facility (Desc)'!$P53,[1]!MASTER_BUILDING_MTL_DESC[#Data],0),0))","v":""},{"$f":"IF('Communication Facility (Desc)'!Q53=\"\",\"\",INDEX([1]KEY_TYPE!$A$2:$A$100,MATCH('Communication Facility (Desc)'!$Q53,[1]!MASTER_KEY_TYPE_DESC[#Data],0),0))","v":""},{"$f":"IF('Communication Facility (Desc)'!R53=\"\",\"\",'Communication Facility (Desc)'!R53)","v":""},{"$f":"IF('Communication Facility (Desc)'!S53=\"\",\"\",INDEX([1]FILTER_TYPE!$A$2:$A$100,MATCH('Communication Facility (Desc)'!$S53,[1]!MASTER_FILTER_TYPE_DESC[#Data],0),0))","v":""},{"$f":"IF('Communication Facility (Desc)'!T53=\"\",\"\",INDEX([1]FILTER_SIZE!$A$2:$A$100,MATCH('Communication Facility (Desc)'!$T53,[1]!MASTER_FILTER_SIZE_DESC[#Data],0),0))","v":""},{"$f":"IF('Communication Facility (Desc)'!U53=\"\",\"\",'Communication Facility (Desc)'!U53)","v":""},{"$f":"IF('Communication Facility (Desc)'!V53=\"\",\"\",INDEX([1]YES_NO!$A$2:$A$100,MATCH('Communication Facility (Desc)'!$V53,[1]!MASTER_YES_NO_DESC[#Data],0),0))","v":""},{"$f":"IF('Communication Facility (Desc)'!W53=\"\",\"\",INDEX([1]YES_NO!$A$2:$A$100,MATCH('Communication Facility (Desc)'!$W53,[1]!MASTER_YES_NO_DESC[#Data],0),0))","v":""}]
[{"$f":"IF('Communication Facility (Desc)'!A54=\"\",\"\",'Communication Facility (Desc)'!A54)","v":""},{"$f":"IF('Communication Facility (Desc)'!B54=\"\",\"\",'Communication Facility (Desc)'!B54)","v":""},{"$f":"IF('Communication Facility (Desc)'!C54=\"\",\"\",'Communication Facility (Desc)'!C54)","v":""},{"$f":"IF('Communication Facility (Desc)'!D54=\"\",\"\",'Communication Facility (Desc)'!D54)","v":""},{"$f":"IF('Communication Facility (Desc)'!E54=\"\",\"\",INDEX([1]FACILITY_TYPE!$A$2:$A$100,MATCH('Communication Facility (Desc)'!$E54,[1]!MASTER_FACILITY_TYPE_DESC[#Data],0),0))","v":""},{"$f":"IF('Communication Facility (Desc)'!F54=\"\",\"\",INDEX([1]OWNER!$A$2:$A$100,MATCH('Communication Facility (Desc)'!$F54,[1]!MASTER_OWNER_DESC[#Data],0),0))","v":""},{"$f":"IF('Communication Facility (Desc)'!G54=\"\",\"\",IF('Communication Facility (Desc)'!G54=\"\",\"\",INDEX([1]COUNTY!$A$2:$A$80,MATCH('Communication Facility (Desc)'!G54,[1]!MASTER_COUNTY_NAME[#Data],0),0)))","v":""},{"$f":"IF('Communication Facility (Desc)'!H54=\"\",\"\",'Communication Facility (Desc)'!H54)","v":""},{"$f":"IF('Communication Facility (Desc)'!I54=\"\",\"\",'Communication Facility (Desc)'!I54)","v":""},{"$f":"IF('Communication Facility (Desc)'!J54=\"\",\"\",'Communication Facility (Desc)'!J54)","v":""},{"$f":"IF('Communication Facility (Desc)'!K54=\"\",\"\",INDEX([1]CABINET_TYPE!$A$2:$A$100,MATCH('Communication Facility (Desc)'!$K54,[1]!MASTER_CABINET_TYPE_DESC[#Data],0),0))","v":""},{"$f":"IF('Communication Facility (Desc)'!L54=\"\",\"\",INDEX([1]CABINET_MOUNT_TYPE!$A$2:$A$100,MATCH('Communication Facility (Desc)'!L54,[1]!MASTER_CABINET_MOUNT_TYPE_DESC[#Data],0),0))","v":""},{"$f":"IF('Communication Facility (Desc)'!M54=\"\",\"\",INDEX([1]YES_NO!$A$2:$A$100,MATCH('Communication Facility (Desc)'!M54,[1]!MASTER_YES_NO_DESC[#Data],0),0))","v":""},{"$f":"IF('Communication Facility (Desc)'!N54=\"\",\"\",INDEX([1]BUILDING_TYPE!$A$2:$A$100,MATCH('Communication Facility (Desc)'!$N54,[1]!MASTER_BUILDING_TYPE_DESC[#Data],0),0))","v":""},{"$f":"IF('Communication Facility (Desc)'!O54=\"\",\"\",'Communication Facility (Desc)'!O54)","v":""},{"$f":"IF('Communication Facility (Desc)'!P54=\"\",\"\",INDEX([1]BUILDING_MTL!$A$2:$A$100,MATCH('Communication Facility (Desc)'!$P54,[1]!MASTER_BUILDING_MTL_DESC[#Data],0),0))","v":""},{"$f":"IF('Communication Facility (Desc)'!Q54=\"\",\"\",INDEX([1]KEY_TYPE!$A$2:$A$100,MATCH('Communication Facility (Desc)'!$Q54,[1]!MASTER_KEY_TYPE_DESC[#Data],0),0))","v":""},{"$f":"IF('Communication Facility (Desc)'!R54=\"\",\"\",'Communication Facility (Desc)'!R54)","v":""},{"$f":"IF('Communication Facility (Desc)'!S54=\"\",\"\",INDEX([1]FILTER_TYPE!$A$2:$A$100,MATCH('Communication Facility (Desc)'!$S54,[1]!MASTER_FILTER_TYPE_DESC[#Data],0),0))","v":""},{"$f":"IF('Communication Facility (Desc)'!T54=\"\",\"\",INDEX([1]FILTER_SIZE!$A$2:$A$100,MATCH('Communication Facility (Desc)'!$T54,[1]!MASTER_FILTER_SIZE_DESC[#Data],0),0))","v":""},{"$f":"IF('Communication Facility (Desc)'!U54=\"\",\"\",'Communication Facility (Desc)'!U54)","v":""},{"$f":"IF('Communication Facility (Desc)'!V54=\"\",\"\",INDEX([1]YES_NO!$A$2:$A$100,MATCH('Communication Facility (Desc)'!$V54,[1]!MASTER_YES_NO_DESC[#Data],0),0))","v":""},{"$f":"IF('Communication Facility (Desc)'!W54=\"\",\"\",INDEX([1]YES_NO!$A$2:$A$100,MATCH('Communication Facility (Desc)'!$W54,[1]!MASTER_YES_NO_DESC[#Data],0),0))","v":""}]
[{"$f":"IF('Communication Facility (Desc)'!A55=\"\",\"\",'Communication Facility (Desc)'!A55)","v":""},{"$f":"IF('Communication Facility (Desc)'!B55=\"\",\"\",'Communication Facility (Desc)'!B55)","v":""},{"$f":"IF('Communication Facility (Desc)'!C55=\"\",\"\",'Communication Facility (Desc)'!C55)","v":""},{"$f":"IF('Communication Facility (Desc)'!D55=\"\",\"\",'Communication Facility (Desc)'!D55)","v":""},{"$f":"IF('Communication Facility (Desc)'!E55=\"\",\"\",INDEX([1]FACILITY_TYPE!$A$2:$A$100,MATCH('Communication Facility (Desc)'!$E55,[1]!MASTER_FACILITY_TYPE_DESC[#Data],0),0))","v":""},{"$f":"IF('Communication Facility (Desc)'!F55=\"\",\"\",INDEX([1]OWNER!$A$2:$A$100,MATCH('Communication Facility (Desc)'!$F55,[1]!MASTER_OWNER_DESC[#Data],0),0))","v":""},{"$f":"IF('Communication Facility (Desc)'!G55=\"\",\"\",IF('Communication Facility (Desc)'!G55=\"\",\"\",INDEX([1]COUNTY!$A$2:$A$80,MATCH('Communication Facility (Desc)'!G55,[1]!MASTER_COUNTY_NAME[#Data],0),0)))","v":""},{"$f":"IF('Communication Facility (Desc)'!H55=\"\",\"\",'Communication Facility (Desc)'!H55)","v":""},{"$f":"IF('Communication Facility (Desc)'!I55=\"\",\"\",'Communication Facility (Desc)'!I55)","v":""},{"$f":"IF('Communication Facility (Desc)'!J55=\"\",\"\",'Communication Facility (Desc)'!J55)","v":""},{"$f":"IF('Communication Facility (Desc)'!K55=\"\",\"\",INDEX([1]CABINET_TYPE!$A$2:$A$100,MATCH('Communication Facility (Desc)'!$K55,[1]!MASTER_CABINET_TYPE_DESC[#Data],0),0))","v":""},{"$f":"IF('Communication Facility (Desc)'!L55=\"\",\"\",INDEX([1]CABINET_MOUNT_TYPE!$A$2:$A$100,MATCH('Communication Facility (Desc)'!L55,[1]!MASTER_CABINET_MOUNT_TYPE_DESC[#Data],0),0))","v":""},{"$f":"IF('Communication Facility (Desc)'!M55=\"\",\"\",INDEX([1]YES_NO!$A$2:$A$100,MATCH('Communication Facility (Desc)'!M55,[1]!MASTER_YES_NO_DESC[#Data],0),0))","v":""},{"$f":"IF('Communication Facility (Desc)'!N55=\"\",\"\",INDEX([1]BUILDING_TYPE!$A$2:$A$100,MATCH('Communication Facility (Desc)'!$N55,[1]!MASTER_BUILDING_TYPE_DESC[#Data],0),0))","v":""},{"$f":"IF('Communication Facility (Desc)'!O55=\"\",\"\",'Communication Facility (Desc)'!O55)","v":""},{"$f":"IF('Communication Facility (Desc)'!P55=\"\",\"\",INDEX([1]BUILDING_MTL!$A$2:$A$100,MATCH('Communication Facility (Desc)'!$P55,[1]!MASTER_BUILDING_MTL_DESC[#Data],0),0))","v":""},{"$f":"IF('Communication Facility (Desc)'!Q55=\"\",\"\",INDEX([1]KEY_TYPE!$A$2:$A$100,MATCH('Communication Facility (Desc)'!$Q55,[1]!MASTER_KEY_TYPE_DESC[#Data],0),0))","v":""},{"$f":"IF('Communication Facility (Desc)'!R55=\"\",\"\",'Communication Facility (Desc)'!R55)","v":""},{"$f":"IF('Communication Facility (Desc)'!S55=\"\",\"\",INDEX([1]FILTER_TYPE!$A$2:$A$100,MATCH('Communication Facility (Desc)'!$S55,[1]!MASTER_FILTER_TYPE_DESC[#Data],0),0))","v":""},{"$f":"IF('Communication Facility (Desc)'!T55=\"\",\"\",INDEX([1]FILTER_SIZE!$A$2:$A$100,MATCH('Communication Facility (Desc)'!$T55,[1]!MASTER_FILTER_SIZE_DESC[#Data],0),0))","v":""},{"$f":"IF('Communication Facility (Desc)'!U55=\"\",\"\",'Communication Facility (Desc)'!U55)","v":""},{"$f":"IF('Communication Facility (Desc)'!V55=\"\",\"\",INDEX([1]YES_NO!$A$2:$A$100,MATCH('Communication Facility (Desc)'!$V55,[1]!MASTER_YES_NO_DESC[#Data],0),0))","v":""},{"$f":"IF('Communication Facility (Desc)'!W55=\"\",\"\",INDEX([1]YES_NO!$A$2:$A$100,MATCH('Communication Facility (Desc)'!$W55,[1]!MASTER_YES_NO_DESC[#Data],0),0))","v":""}]
[{"$f":"IF('Communication Facility (Desc)'!A56=\"\",\"\",'Communication Facility (Desc)'!A56)","v":""},{"$f":"IF('Communication Facility (Desc)'!B56=\"\",\"\",'Communication Facility (Desc)'!B56)","v":""},{"$f":"IF('Communication Facility (Desc)'!C56=\"\",\"\",'Communication Facility (Desc)'!C56)","v":""},{"$f":"IF('Communication Facility (Desc)'!D56=\"\",\"\",'Communication Facility (Desc)'!D56)","v":""},{"$f":"IF('Communication Facility (Desc)'!E56=\"\",\"\",INDEX([1]FACILITY_TYPE!$A$2:$A$100,MATCH('Communication Facility (Desc)'!$E56,[1]!MASTER_FACILITY_TYPE_DESC[#Data],0),0))","v":""},{"$f":"IF('Communication Facility (Desc)'!F56=\"\",\"\",INDEX([1]OWNER!$A$2:$A$100,MATCH('Communication Facility (Desc)'!$F56,[1]!MASTER_OWNER_DESC[#Data],0),0))","v":""},{"$f":"IF('Communication Facility (Desc)'!G56=\"\",\"\",IF('Communication Facility (Desc)'!G56=\"\",\"\",INDEX([1]COUNTY!$A$2:$A$80,MATCH('Communication Facility (Desc)'!G56,[1]!MASTER_COUNTY_NAME[#Data],0),0)))","v":""},{"$f":"IF('Communication Facility (Desc)'!H56=\"\",\"\",'Communication Facility (Desc)'!H56)","v":""},{"$f":"IF('Communication Facility (Desc)'!I56=\"\",\"\",'Communication Facility (Desc)'!I56)","v":""},{"$f":"IF('Communication Facility (Desc)'!J56=\"\",\"\",'Communication Facility (Desc)'!J56)","v":""},{"$f":"IF('Communication Facility (Desc)'!K56=\"\",\"\",INDEX([1]CABINET_TYPE!$A$2:$A$100,MATCH('Communication Facility (Desc)'!$K56,[1]!MASTER_CABINET_TYPE_DESC[#Data],0),0))","v":""},{"$f":"IF('Communication Facility (Desc)'!L56=\"\",\"\",INDEX([1]CABINET_MOUNT_TYPE!$A$2:$A$100,MATCH('Communication Facility (Desc)'!L56,[1]!MASTER_CABINET_MOUNT_TYPE_DESC[#Data],0),0))","v":""},{"$f":"IF('Communication Facility (Desc)'!M56=\"\",\"\",INDEX([1]YES_NO!$A$2:$A$100,MATCH('Communication Facility (Desc)'!M56,[1]!MASTER_YES_NO_DESC[#Data],0),0))","v":""},{"$f":"IF('Communication Facility (Desc)'!N56=\"\",\"\",INDEX([1]BUILDING_TYPE!$A$2:$A$100,MATCH('Communication Facility (Desc)'!$N56,[1]!MASTER_BUILDING_TYPE_DESC[#Data],0),0))","v":""},{"$f":"IF('Communication Facility (Desc)'!O56=\"\",\"\",'Communication Facility (Desc)'!O56)","v":""},{"$f":"IF('Communication Facility (Desc)'!P56=\"\",\"\",INDEX([1]BUILDING_MTL!$A$2:$A$100,MATCH('Communication Facility (Desc)'!$P56,[1]!MASTER_BUILDING_MTL_DESC[#Data],0),0))","v":""},{"$f":"IF('Communication Facility (Desc)'!Q56=\"\",\"\",INDEX([1]KEY_TYPE!$A$2:$A$100,MATCH('Communication Facility (Desc)'!$Q56,[1]!MASTER_KEY_TYPE_DESC[#Data],0),0))","v":""},{"$f":"IF('Communication Facility (Desc)'!R56=\"\",\"\",'Communication Facility (Desc)'!R56)","v":""},{"$f":"IF('Communication Facility (Desc)'!S56=\"\",\"\",INDEX([1]FILTER_TYPE!$A$2:$A$100,MATCH('Communication Facility (Desc)'!$S56,[1]!MASTER_FILTER_TYPE_DESC[#Data],0),0))","v":""},{"$f":"IF('Communication Facility (Desc)'!T56=\"\",\"\",INDEX([1]FILTER_SIZE!$A$2:$A$100,MATCH('Communication Facility (Desc)'!$T56,[1]!MASTER_FILTER_SIZE_DESC[#Data],0),0))","v":""},{"$f":"IF('Communication Facility (Desc)'!U56=\"\",\"\",'Communication Facility (Desc)'!U56)","v":""},{"$f":"IF('Communication Facility (Desc)'!V56=\"\",\"\",INDEX([1]YES_NO!$A$2:$A$100,MATCH('Communication Facility (Desc)'!$V56,[1]!MASTER_YES_NO_DESC[#Data],0),0))","v":""},{"$f":"IF('Communication Facility (Desc)'!W56=\"\",\"\",INDEX([1]YES_NO!$A$2:$A$100,MATCH('Communication Facility (Desc)'!$W56,[1]!MASTER_YES_NO_DESC[#Data],0),0))","v":""}]
[{"$f":"IF('Communication Facility (Desc)'!A57=\"\",\"\",'Communication Facility (Desc)'!A57)","v":""},{"$f":"IF('Communication Facility (Desc)'!B57=\"\",\"\",'Communication Facility (Desc)'!B57)","v":""},{"$f":"IF('Communication Facility (Desc)'!C57=\"\",\"\",'Communication Facility (Desc)'!C57)","v":""},{"$f":"IF('Communication Facility (Desc)'!D57=\"\",\"\",'Communication Facility (Desc)'!D57)","v":""},{"$f":"IF('Communication Facility (Desc)'!E57=\"\",\"\",INDEX([1]FACILITY_TYPE!$A$2:$A$100,MATCH('Communication Facility (Desc)'!$E57,[1]!MASTER_FACILITY_TYPE_DESC[#Data],0),0))","v":""},{"$f":"IF('Communication Facility (Desc)'!F57=\"\",\"\",INDEX([1]OWNER!$A$2:$A$100,MATCH('Communication Facility (Desc)'!$F57,[1]!MASTER_OWNER_DESC[#Data],0),0))","v":""},{"$f":"IF('Communication Facility (Desc)'!G57=\"\",\"\",IF('Communication Facility (Desc)'!G57=\"\",\"\",INDEX([1]COUNTY!$A$2:$A$80,MATCH('Communication Facility (Desc)'!G57,[1]!MASTER_COUNTY_NAME[#Data],0),0)))","v":""},{"$f":"IF('Communication Facility (Desc)'!H57=\"\",\"\",'Communication Facility (Desc)'!H57)","v":""},{"$f":"IF('Communication Facility (Desc)'!I57=\"\",\"\",'Communication Facility (Desc)'!I57)","v":""},{"$f":"IF('Communication Facility (Desc)'!J57=\"\",\"\",'Communication Facility (Desc)'!J57)","v":""},{"$f":"IF('Communication Facility (Desc)'!K57=\"\",\"\",INDEX([1]CABINET_TYPE!$A$2:$A$100,MATCH('Communication Facility (Desc)'!$K57,[1]!MASTER_CABINET_TYPE_DESC[#Data],0),0))","v":""},{"$f":"IF('Communication Facility (Desc)'!L57=\"\",\"\",INDEX([1]CABINET_MOUNT_TYPE!$A$2:$A$100,MATCH('Communication Facility (Desc)'!L57,[1]!MASTER_CABINET_MOUNT_TYPE_DESC[#Data],0),0))","v":""},{"$f":"IF('Communication Facility (Desc)'!M57=\"\",\"\",INDEX([1]YES_NO!$A$2:$A$100,MATCH('Communication Facility (Desc)'!M57,[1]!MASTER_YES_NO_DESC[#Data],0),0))","v":""},{"$f":"IF('Communication Facility (Desc)'!N57=\"\",\"\",INDEX([1]BUILDING_TYPE!$A$2:$A$100,MATCH('Communication Facility (Desc)'!$N57,[1]!MASTER_BUILDING_TYPE_DESC[#Data],0),0))","v":""},{"$f":"IF('Communication Facility (Desc)'!O57=\"\",\"\",'Communication Facility (Desc)'!O57)","v":""},{"$f":"IF('Communication Facility (Desc)'!P57=\"\",\"\",INDEX([1]BUILDING_MTL!$A$2:$A$100,MATCH('Communication Facility (Desc)'!$P57,[1]!MASTER_BUILDING_MTL_DESC[#Data],0),0))","v":""},{"$f":"IF('Communication Facility (Desc)'!Q57=\"\",\"\",INDEX([1]KEY_TYPE!$A$2:$A$100,MATCH('Communication Facility (Desc)'!$Q57,[1]!MASTER_KEY_TYPE_DESC[#Data],0),0))","v":""},{"$f":"IF('Communication Facility (Desc)'!R57=\"\",\"\",'Communication Facility (Desc)'!R57)","v":""},{"$f":"IF('Communication Facility (Desc)'!S57=\"\",\"\",INDEX([1]FILTER_TYPE!$A$2:$A$100,MATCH('Communication Facility (Desc)'!$S57,[1]!MASTER_FILTER_TYPE_DESC[#Data],0),0))","v":""},{"$f":"IF('Communication Facility (Desc)'!T57=\"\",\"\",INDEX([1]FILTER_SIZE!$A$2:$A$100,MATCH('Communication Facility (Desc)'!$T57,[1]!MASTER_FILTER_SIZE_DESC[#Data],0),0))","v":""},{"$f":"IF('Communication Facility (Desc)'!U57=\"\",\"\",'Communication Facility (Desc)'!U57)","v":""},{"$f":"IF('Communication Facility (Desc)'!V57=\"\",\"\",INDEX([1]YES_NO!$A$2:$A$100,MATCH('Communication Facility (Desc)'!$V57,[1]!MASTER_YES_NO_DESC[#Data],0),0))","v":""},{"$f":"IF('Communication Facility (Desc)'!W57=\"\",\"\",INDEX([1]YES_NO!$A$2:$A$100,MATCH('Communication Facility (Desc)'!$W57,[1]!MASTER_YES_NO_DESC[#Data],0),0))","v":""}]
[{"$f":"IF('Communication Facility (Desc)'!A58=\"\",\"\",'Communication Facility (Desc)'!A58)","v":""},{"$f":"IF('Communication Facility (Desc)'!B58=\"\",\"\",'Communication Facility (Desc)'!B58)","v":""},{"$f":"IF('Communication Facility (Desc)'!C58=\"\",\"\",'Communication Facility (Desc)'!C58)","v":""},{"$f":"IF('Communication Facility (Desc)'!D58=\"\",\"\",'Communication Facility (Desc)'!D58)","v":""},{"$f":"IF('Communication Facility (Desc)'!E58=\"\",\"\",INDEX([1]FACILITY_TYPE!$A$2:$A$100,MATCH('Communication Facility (Desc)'!$E58,[1]!MASTER_FACILITY_TYPE_DESC[#Data],0),0))","v":""},{"$f":"IF('Communication Facility (Desc)'!F58=\"\",\"\",INDEX([1]OWNER!$A$2:$A$100,MATCH('Communication Facility (Desc)'!$F58,[1]!MASTER_OWNER_DESC[#Data],0),0))","v":""},{"$f":"IF('Communication Facility (Desc)'!G58=\"\",\"\",IF('Communication Facility (Desc)'!G58=\"\",\"\",INDEX([1]COUNTY!$A$2:$A$80,MATCH('Communication Facility (Desc)'!G58,[1]!MASTER_COUNTY_NAME[#Data],0),0)))","v":""},{"$f":"IF('Communication Facility (Desc)'!H58=\"\",\"\",'Communication Facility (Desc)'!H58)","v":""},{"$f":"IF('Communication Facility (Desc)'!I58=\"\",\"\",'Communication Facility (Desc)'!I58)","v":""},{"$f":"IF('Communication Facility (Desc)'!J58=\"\",\"\",'Communication Facility (Desc)'!J58)","v":""},{"$f":"IF('Communication Facility (Desc)'!K58=\"\",\"\",INDEX([1]CABINET_TYPE!$A$2:$A$100,MATCH('Communication Facility (Desc)'!$K58,[1]!MASTER_CABINET_TYPE_DESC[#Data],0),0))","v":""},{"$f":"IF('Communication Facility (Desc)'!L58=\"\",\"\",INDEX([1]CABINET_MOUNT_TYPE!$A$2:$A$100,MATCH('Communication Facility (Desc)'!L58,[1]!MASTER_CABINET_MOUNT_TYPE_DESC[#Data],0),0))","v":""},{"$f":"IF('Communication Facility (Desc)'!M58=\"\",\"\",INDEX([1]YES_NO!$A$2:$A$100,MATCH('Communication Facility (Desc)'!M58,[1]!MASTER_YES_NO_DESC[#Data],0),0))","v":""},{"$f":"IF('Communication Facility (Desc)'!N58=\"\",\"\",INDEX([1]BUILDING_TYPE!$A$2:$A$100,MATCH('Communication Facility (Desc)'!$N58,[1]!MASTER_BUILDING_TYPE_DESC[#Data],0),0))","v":""},{"$f":"IF('Communication Facility (Desc)'!O58=\"\",\"\",'Communication Facility (Desc)'!O58)","v":""},{"$f":"IF('Communication Facility (Desc)'!P58=\"\",\"\",INDEX([1]BUILDING_MTL!$A$2:$A$100,MATCH('Communication Facility (Desc)'!$P58,[1]!MASTER_BUILDING_MTL_DESC[#Data],0),0))","v":""},{"$f":"IF('Communication Facility (Desc)'!Q58=\"\",\"\",INDEX([1]KEY_TYPE!$A$2:$A$100,MATCH('Communication Facility (Desc)'!$Q58,[1]!MASTER_KEY_TYPE_DESC[#Data],0),0))","v":""},{"$f":"IF('Communication Facility (Desc)'!R58=\"\",\"\",'Communication Facility (Desc)'!R58)","v":""},{"$f":"IF('Communication Facility (Desc)'!S58=\"\",\"\",INDEX([1]FILTER_TYPE!$A$2:$A$100,MATCH('Communication Facility (Desc)'!$S58,[1]!MASTER_FILTER_TYPE_DESC[#Data],0),0))","v":""},{"$f":"IF('Communication Facility (Desc)'!T58=\"\",\"\",INDEX([1]FILTER_SIZE!$A$2:$A$100,MATCH('Communication Facility (Desc)'!$T58,[1]!MASTER_FILTER_SIZE_DESC[#Data],0),0))","v":""},{"$f":"IF('Communication Facility (Desc)'!U58=\"\",\"\",'Communication Facility (Desc)'!U58)","v":""},{"$f":"IF('Communication Facility (Desc)'!V58=\"\",\"\",INDEX([1]YES_NO!$A$2:$A$100,MATCH('Communication Facility (Desc)'!$V58,[1]!MASTER_YES_NO_DESC[#Data],0),0))","v":""},{"$f":"IF('Communication Facility (Desc)'!W58=\"\",\"\",INDEX([1]YES_NO!$A$2:$A$100,MATCH('Communication Facility (Desc)'!$W58,[1]!MASTER_YES_NO_DESC[#Data],0),0))","v":""}]
[{"$f":"IF('Communication Facility (Desc)'!A59=\"\",\"\",'Communication Facility (Desc)'!A59)","v":""},{"$f":"IF('Communication Facility (Desc)'!B59=\"\",\"\",'Communication Facility (Desc)'!B59)","v":""},{"$f":"IF('Communication Facility (Desc)'!C59=\"\",\"\",'Communication Facility (Desc)'!C59)","v":""},{"$f":"IF('Communication Facility (Desc)'!D59=\"\",\"\",'Communication Facility (Desc)'!D59)","v":""},{"$f":"IF('Communication Facility (Desc)'!E59=\"\",\"\",INDEX([1]FACILITY_TYPE!$A$2:$A$100,MATCH('Communication Facility (Desc)'!$E59,[1]!MASTER_FACILITY_TYPE_DESC[#Data],0),0))","v":""},{"$f":"IF('Communication Facility (Desc)'!F59=\"\",\"\",INDEX([1]OWNER!$A$2:$A$100,MATCH('Communication Facility (Desc)'!$F59,[1]!MASTER_OWNER_DESC[#Data],0),0))","v":""},{"$f":"IF('Communication Facility (Desc)'!G59=\"\",\"\",IF('Communication Facility (Desc)'!G59=\"\",\"\",INDEX([1]COUNTY!$A$2:$A$80,MATCH('Communication Facility (Desc)'!G59,[1]!MASTER_COUNTY_NAME[#Data],0),0)))","v":""},{"$f":"IF('Communication Facility (Desc)'!H59=\"\",\"\",'Communication Facility (Desc)'!H59)","v":""},{"$f":"IF('Communication Facility (Desc)'!I59=\"\",\"\",'Communication Facility (Desc)'!I59)","v":""},{"$f":"IF('Communication Facility (Desc)'!J59=\"\",\"\",'Communication Facility (Desc)'!J59)","v":""},{"$f":"IF('Communication Facility (Desc)'!K59=\"\",\"\",INDEX([1]CABINET_TYPE!$A$2:$A$100,MATCH('Communication Facility (Desc)'!$K59,[1]!MASTER_CABINET_TYPE_DESC[#Data],0),0))","v":""},{"$f":"IF('Communication Facility (Desc)'!L59=\"\",\"\",INDEX([1]CABINET_MOUNT_TYPE!$A$2:$A$100,MATCH('Communication Facility (Desc)'!L59,[1]!MASTER_CABINET_MOUNT_TYPE_DESC[#Data],0),0))","v":""},{"$f":"IF('Communication Facility (Desc)'!M59=\"\",\"\",INDEX([1]YES_NO!$A$2:$A$100,MATCH('Communication Facility (Desc)'!M59,[1]!MASTER_YES_NO_DESC[#Data],0),0))","v":""},{"$f":"IF('Communication Facility (Desc)'!N59=\"\",\"\",INDEX([1]BUILDING_TYPE!$A$2:$A$100,MATCH('Communication Facility (Desc)'!$N59,[1]!MASTER_BUILDING_TYPE_DESC[#Data],0),0))","v":""},{"$f":"IF('Communication Facility (Desc)'!O59=\"\",\"\",'Communication Facility (Desc)'!O59)","v":""},{"$f":"IF('Communication Facility (Desc)'!P59=\"\",\"\",INDEX([1]BUILDING_MTL!$A$2:$A$100,MATCH('Communication Facility (Desc)'!$P59,[1]!MASTER_BUILDING_MTL_DESC[#Data],0),0))","v":""},{"$f":"IF('Communication Facility (Desc)'!Q59=\"\",\"\",INDEX([1]KEY_TYPE!$A$2:$A$100,MATCH('Communication Facility (Desc)'!$Q59,[1]!MASTER_KEY_TYPE_DESC[#Data],0),0))","v":""},{"$f":"IF('Communication Facility (Desc)'!R59=\"\",\"\",'Communication Facility (Desc)'!R59)","v":""},{"$f":"IF('Communication Facility (Desc)'!S59=\"\",\"\",INDEX([1]FILTER_TYPE!$A$2:$A$100,MATCH('Communication Facility (Desc)'!$S59,[1]!MASTER_FILTER_TYPE_DESC[#Data],0),0))","v":""},{"$f":"IF('Communication Facility (Desc)'!T59=\"\",\"\",INDEX([1]FILTER_SIZE!$A$2:$A$100,MATCH('Communication Facility (Desc)'!$T59,[1]!MASTER_FILTER_SIZE_DESC[#Data],0),0))","v":""},{"$f":"IF('Communication Facility (Desc)'!U59=\"\",\"\",'Communication Facility (Desc)'!U59)","v":""},{"$f":"IF('Communication Facility (Desc)'!V59=\"\",\"\",INDEX([1]YES_NO!$A$2:$A$100,MATCH('Communication Facility (Desc)'!$V59,[1]!MASTER_YES_NO_DESC[#Data],0),0))","v":""},{"$f":"IF('Communication Facility (Desc)'!W59=\"\",\"\",INDEX([1]YES_NO!$A$2:$A$100,MATCH('Communication Facility (Desc)'!$W59,[1]!MASTER_YES_NO_DESC[#Data],0),0))","v":""}]
[{"$f":"IF('Communication Facility (Desc)'!A60=\"\",\"\",'Communication Facility (Desc)'!A60)","v":""},{"$f":"IF('Communication Facility (Desc)'!B60=\"\",\"\",'Communication Facility (Desc)'!B60)","v":""},{"$f":"IF('Communication Facility (Desc)'!C60=\"\",\"\",'Communication Facility (Desc)'!C60)","v":""},{"$f":"IF('Communication Facility (Desc)'!D60=\"\",\"\",'Communication Facility (Desc)'!D60)","v":""},{"$f":"IF('Communication Facility (Desc)'!E60=\"\",\"\",INDEX([1]FACILITY_TYPE!$A$2:$A$100,MATCH('Communication Facility (Desc)'!$E60,[1]!MASTER_FACILITY_TYPE_DESC[#Data],0),0))","v":""},{"$f":"IF('Communication Facility (Desc)'!F60=\"\",\"\",INDEX([1]OWNER!$A$2:$A$100,MATCH('Communication Facility (Desc)'!$F60,[1]!MASTER_OWNER_DESC[#Data],0),0))","v":""},{"$f":"IF('Communication Facility (Desc)'!G60=\"\",\"\",IF('Communication Facility (Desc)'!G60=\"\",\"\",INDEX([1]COUNTY!$A$2:$A$80,MATCH('Communication Facility (Desc)'!G60,[1]!MASTER_COUNTY_NAME[#Data],0),0)))","v":""},{"$f":"IF('Communication Facility (Desc)'!H60=\"\",\"\",'Communication Facility (Desc)'!H60)","v":""},{"$f":"IF('Communication Facility (Desc)'!I60=\"\",\"\",'Communication Facility (Desc)'!I60)","v":""},{"$f":"IF('Communication Facility (Desc)'!J60=\"\",\"\",'Communication Facility (Desc)'!J60)","v":""},{"$f":"IF('Communication Facility (Desc)'!K60=\"\",\"\",INDEX([1]CABINET_TYPE!$A$2:$A$100,MATCH('Communication Facility (Desc)'!$K60,[1]!MASTER_CABINET_TYPE_DESC[#Data],0),0))","v":""},{"$f":"IF('Communication Facility (Desc)'!L60=\"\",\"\",INDEX([1]CABINET_MOUNT_TYPE!$A$2:$A$100,MATCH('Communication Facility (Desc)'!L60,[1]!MASTER_CABINET_MOUNT_TYPE_DESC[#Data],0),0))","v":""},{"$f":"IF('Communication Facility (Desc)'!M60=\"\",\"\",INDEX([1]YES_NO!$A$2:$A$100,MATCH('Communication Facility (Desc)'!M60,[1]!MASTER_YES_NO_DESC[#Data],0),0))","v":""},{"$f":"IF('Communication Facility (Desc)'!N60=\"\",\"\",INDEX([1]BUILDING_TYPE!$A$2:$A$100,MATCH('Communication Facility (Desc)'!$N60,[1]!MASTER_BUILDING_TYPE_DESC[#Data],0),0))","v":""},{"$f":"IF('Communication Facility (Desc)'!O60=\"\",\"\",'Communication Facility (Desc)'!O60)","v":""},{"$f":"IF('Communication Facility (Desc)'!P60=\"\",\"\",INDEX([1]BUILDING_MTL!$A$2:$A$100,MATCH('Communication Facility (Desc)'!$P60,[1]!MASTER_BUILDING_MTL_DESC[#Data],0),0))","v":""},{"$f":"IF('Communication Facility (Desc)'!Q60=\"\",\"\",INDEX([1]KEY_TYPE!$A$2:$A$100,MATCH('Communication Facility (Desc)'!$Q60,[1]!MASTER_KEY_TYPE_DESC[#Data],0),0))","v":""},{"$f":"IF('Communication Facility (Desc)'!R60=\"\",\"\",'Communication Facility (Desc)'!R60)","v":""},{"$f":"IF('Communication Facility (Desc)'!S60=\"\",\"\",INDEX([1]FILTER_TYPE!$A$2:$A$100,MATCH('Communication Facility (Desc)'!$S60,[1]!MASTER_FILTER_TYPE_DESC[#Data],0),0))","v":""},{"$f":"IF('Communication Facility (Desc)'!T60=\"\",\"\",INDEX([1]FILTER_SIZE!$A$2:$A$100,MATCH('Communication Facility (Desc)'!$T60,[1]!MASTER_FILTER_SIZE_DESC[#Data],0),0))","v":""},{"$f":"IF('Communication Facility (Desc)'!U60=\"\",\"\",'Communication Facility (Desc)'!U60)","v":""},{"$f":"IF('Communication Facility (Desc)'!V60=\"\",\"\",INDEX([1]YES_NO!$A$2:$A$100,MATCH('Communication Facility (Desc)'!$V60,[1]!MASTER_YES_NO_DESC[#Data],0),0))","v":""},{"$f":"IF('Communication Facility (Desc)'!W60=\"\",\"\",INDEX([1]YES_NO!$A$2:$A$100,MATCH('Communication Facility (Desc)'!$W60,[1]!MASTER_YES_NO_DESC[#Data],0),0))","v":""}]
[{"$f":"IF('Communication Facility (Desc)'!A61=\"\",\"\",'Communication Facility (Desc)'!A61)","v":""},{"$f":"IF('Communication Facility (Desc)'!B61=\"\",\"\",'Communication Facility (Desc)'!B61)","v":""},{"$f":"IF('Communication Facility (Desc)'!C61=\"\",\"\",'Communication Facility (Desc)'!C61)","v":""},{"$f":"IF('Communication Facility (Desc)'!D61=\"\",\"\",'Communication Facility (Desc)'!D61)","v":""},{"$f":"IF('Communication Facility (Desc)'!E61=\"\",\"\",INDEX([1]FACILITY_TYPE!$A$2:$A$100,MATCH('Communication Facility (Desc)'!$E61,[1]!MASTER_FACILITY_TYPE_DESC[#Data],0),0))","v":""},{"$f":"IF('Communication Facility (Desc)'!F61=\"\",\"\",INDEX([1]OWNER!$A$2:$A$100,MATCH('Communication Facility (Desc)'!$F61,[1]!MASTER_OWNER_DESC[#Data],0),0))","v":""},{"$f":"IF('Communication Facility (Desc)'!G61=\"\",\"\",IF('Communication Facility (Desc)'!G61=\"\",\"\",INDEX([1]COUNTY!$A$2:$A$80,MATCH('Communication Facility (Desc)'!G61,[1]!MASTER_COUNTY_NAME[#Data],0),0)))","v":""},{"$f":"IF('Communication Facility (Desc)'!H61=\"\",\"\",'Communication Facility (Desc)'!H61)","v":""},{"$f":"IF('Communication Facility (Desc)'!I61=\"\",\"\",'Communication Facility (Desc)'!I61)","v":""},{"$f":"IF('Communication Facility (Desc)'!J61=\"\",\"\",'Communication Facility (Desc)'!J61)","v":""},{"$f":"IF('Communication Facility (Desc)'!K61=\"\",\"\",INDEX([1]CABINET_TYPE!$A$2:$A$100,MATCH('Communication Facility (Desc)'!$K61,[1]!MASTER_CABINET_TYPE_DESC[#Data],0),0))","v":""},{"$f":"IF('Communication Facility (Desc)'!L61=\"\",\"\",INDEX([1]CABINET_MOUNT_TYPE!$A$2:$A$100,MATCH('Communication Facility (Desc)'!L61,[1]!MASTER_CABINET_MOUNT_TYPE_DESC[#Data],0),0))","v":""},{"$f":"IF('Communication Facility (Desc)'!M61=\"\",\"\",INDEX([1]YES_NO!$A$2:$A$100,MATCH('Communication Facility (Desc)'!M61,[1]!MASTER_YES_NO_DESC[#Data],0),0))","v":""},{"$f":"IF('Communication Facility (Desc)'!N61=\"\",\"\",INDEX([1]BUILDING_TYPE!$A$2:$A$100,MATCH('Communication Facility (Desc)'!$N61,[1]!MASTER_BUILDING_TYPE_DESC[#Data],0),0))","v":""},{"$f":"IF('Communication Facility (Desc)'!O61=\"\",\"\",'Communication Facility (Desc)'!O61)","v":""},{"$f":"IF('Communication Facility (Desc)'!P61=\"\",\"\",INDEX([1]BUILDING_MTL!$A$2:$A$100,MATCH('Communication Facility (Desc)'!$P61,[1]!MASTER_BUILDING_MTL_DESC[#Data],0),0))","v":""},{"$f":"IF('Communication Facility (Desc)'!Q61=\"\",\"\",INDEX([1]KEY_TYPE!$A$2:$A$100,MATCH('Communication Facility (Desc)'!$Q61,[1]!MASTER_KEY_TYPE_DESC[#Data],0),0))","v":""},{"$f":"IF('Communication Facility (Desc)'!R61=\"\",\"\",'Communication Facility (Desc)'!R61)","v":""},{"$f":"IF('Communication Facility (Desc)'!S61=\"\",\"\",INDEX([1]FILTER_TYPE!$A$2:$A$100,MATCH('Communication Facility (Desc)'!$S61,[1]!MASTER_FILTER_TYPE_DESC[#Data],0),0))","v":""},{"$f":"IF('Communication Facility (Desc)'!T61=\"\",\"\",INDEX([1]FILTER_SIZE!$A$2:$A$100,MATCH('Communication Facility (Desc)'!$T61,[1]!MASTER_FILTER_SIZE_DESC[#Data],0),0))","v":""},{"$f":"IF('Communication Facility (Desc)'!U61=\"\",\"\",'Communication Facility (Desc)'!U61)","v":""},{"$f":"IF('Communication Facility (Desc)'!V61=\"\",\"\",INDEX([1]YES_NO!$A$2:$A$100,MATCH('Communication Facility (Desc)'!$V61,[1]!MASTER_YES_NO_DESC[#Data],0),0))","v":""},{"$f":"IF('Communication Facility (Desc)'!W61=\"\",\"\",INDEX([1]YES_NO!$A$2:$A$100,MATCH('Communication Facility (Desc)'!$W61,[1]!MASTER_YES_NO_DESC[#Data],0),0))","v":""}]
[{"$f":"IF('Communication Facility (Desc)'!A62=\"\",\"\",'Communication Facility (Desc)'!A62)","v":""},{"$f":"IF('Communication Facility (Desc)'!B62=\"\",\"\",'Communication Facility (Desc)'!B62)","v":""},{"$f":"IF('Communication Facility (Desc)'!C62=\"\",\"\",'Communication Facility (Desc)'!C62)","v":""},{"$f":"IF('Communication Facility (Desc)'!D62=\"\",\"\",'Communication Facility (Desc)'!D62)","v":""},{"$f":"IF('Communication Facility (Desc)'!E62=\"\",\"\",INDEX([1]FACILITY_TYPE!$A$2:$A$100,MATCH('Communication Facility (Desc)'!$E62,[1]!MASTER_FACILITY_TYPE_DESC[#Data],0),0))","v":""},{"$f":"IF('Communication Facility (Desc)'!F62=\"\",\"\",INDEX([1]OWNER!$A$2:$A$100,MATCH('Communication Facility (Desc)'!$F62,[1]!MASTER_OWNER_DESC[#Data],0),0))","v":""},{"$f":"IF('Communication Facility (Desc)'!G62=\"\",\"\",IF('Communication Facility (Desc)'!G62=\"\",\"\",INDEX([1]COUNTY!$A$2:$A$80,MATCH('Communication Facility (Desc)'!G62,[1]!MASTER_COUNTY_NAME[#Data],0),0)))","v":""},{"$f":"IF('Communication Facility (Desc)'!H62=\"\",\"\",'Communication Facility (Desc)'!H62)","v":""},{"$f":"IF('Communication Facility (Desc)'!I62=\"\",\"\",'Communication Facility (Desc)'!I62)","v":""},{"$f":"IF('Communication Facility (Desc)'!J62=\"\",\"\",'Communication Facility (Desc)'!J62)","v":""},{"$f":"IF('Communication Facility (Desc)'!K62=\"\",\"\",INDEX([1]CABINET_TYPE!$A$2:$A$100,MATCH('Communication Facility (Desc)'!$K62,[1]!MASTER_CABINET_TYPE_DESC[#Data],0),0))","v":""},{"$f":"IF('Communication Facility (Desc)'!L62=\"\",\"\",INDEX([1]CABINET_MOUNT_TYPE!$A$2:$A$100,MATCH('Communication Facility (Desc)'!L62,[1]!MASTER_CABINET_MOUNT_TYPE_DESC[#Data],0),0))","v":""},{"$f":"IF('Communication Facility (Desc)'!M62=\"\",\"\",INDEX([1]YES_NO!$A$2:$A$100,MATCH('Communication Facility (Desc)'!M62,[1]!MASTER_YES_NO_DESC[#Data],0),0))","v":""},{"$f":"IF('Communication Facility (Desc)'!N62=\"\",\"\",INDEX([1]BUILDING_TYPE!$A$2:$A$100,MATCH('Communication Facility (Desc)'!$N62,[1]!MASTER_BUILDING_TYPE_DESC[#Data],0),0))","v":""},{"$f":"IF('Communication Facility (Desc)'!O62=\"\",\"\",'Communication Facility (Desc)'!O62)","v":""},{"$f":"IF('Communication Facility (Desc)'!P62=\"\",\"\",INDEX([1]BUILDING_MTL!$A$2:$A$100,MATCH('Communication Facility (Desc)'!$P62,[1]!MASTER_BUILDING_MTL_DESC[#Data],0),0))","v":""},{"$f":"IF('Communication Facility (Desc)'!Q62=\"\",\"\",INDEX([1]KEY_TYPE!$A$2:$A$100,MATCH('Communication Facility (Desc)'!$Q62,[1]!MASTER_KEY_TYPE_DESC[#Data],0),0))","v":""},{"$f":"IF('Communication Facility (Desc)'!R62=\"\",\"\",'Communication Facility (Desc)'!R62)","v":""},{"$f":"IF('Communication Facility (Desc)'!S62=\"\",\"\",INDEX([1]FILTER_TYPE!$A$2:$A$100,MATCH('Communication Facility (Desc)'!$S62,[1]!MASTER_FILTER_TYPE_DESC[#Data],0),0))","v":""},{"$f":"IF('Communication Facility (Desc)'!T62=\"\",\"\",INDEX([1]FILTER_SIZE!$A$2:$A$100,MATCH('Communication Facility (Desc)'!$T62,[1]!MASTER_FILTER_SIZE_DESC[#Data],0),0))","v":""},{"$f":"IF('Communication Facility (Desc)'!U62=\"\",\"\",'Communication Facility (Desc)'!U62)","v":""},{"$f":"IF('Communication Facility (Desc)'!V62=\"\",\"\",INDEX([1]YES_NO!$A$2:$A$100,MATCH('Communication Facility (Desc)'!$V62,[1]!MASTER_YES_NO_DESC[#Data],0),0))","v":""},{"$f":"IF('Communication Facility (Desc)'!W62=\"\",\"\",INDEX([1]YES_NO!$A$2:$A$100,MATCH('Communication Facility (Desc)'!$W62,[1]!MASTER_YES_NO_DESC[#Data],0),0))","v":""}]
[{"$f":"IF('Communication Facility (Desc)'!A63=\"\",\"\",'Communication Facility (Desc)'!A63)","v":""},{"$f":"IF('Communication Facility (Desc)'!B63=\"\",\"\",'Communication Facility (Desc)'!B63)","v":""},{"$f":"IF('Communication Facility (Desc)'!C63=\"\",\"\",'Communication Facility (Desc)'!C63)","v":""},{"$f":"IF('Communication Facility (Desc)'!D63=\"\",\"\",'Communication Facility (Desc)'!D63)","v":""},{"$f":"IF('Communication Facility (Desc)'!E63=\"\",\"\",INDEX([1]FACILITY_TYPE!$A$2:$A$100,MATCH('Communication Facility (Desc)'!$E63,[1]!MASTER_FACILITY_TYPE_DESC[#Data],0),0))","v":""},{"$f":"IF('Communication Facility (Desc)'!F63=\"\",\"\",INDEX([1]OWNER!$A$2:$A$100,MATCH('Communication Facility (Desc)'!$F63,[1]!MASTER_OWNER_DESC[#Data],0),0))","v":""},{"$f":"IF('Communication Facility (Desc)'!G63=\"\",\"\",IF('Communication Facility (Desc)'!G63=\"\",\"\",INDEX([1]COUNTY!$A$2:$A$80,MATCH('Communication Facility (Desc)'!G63,[1]!MASTER_COUNTY_NAME[#Data],0),0)))","v":""},{"$f":"IF('Communication Facility (Desc)'!H63=\"\",\"\",'Communication Facility (Desc)'!H63)","v":""},{"$f":"IF('Communication Facility (Desc)'!I63=\"\",\"\",'Communication Facility (Desc)'!I63)","v":""},{"$f":"IF('Communication Facility (Desc)'!J63=\"\",\"\",'Communication Facility (Desc)'!J63)","v":""},{"$f":"IF('Communication Facility (Desc)'!K63=\"\",\"\",INDEX([1]CABINET_TYPE!$A$2:$A$100,MATCH('Communication Facility (Desc)'!$K63,[1]!MASTER_CABINET_TYPE_DESC[#Data],0),0))","v":""},{"$f":"IF('Communication Facility (Desc)'!L63=\"\",\"\",INDEX([1]CABINET_MOUNT_TYPE!$A$2:$A$100,MATCH('Communication Facility (Desc)'!L63,[1]!MASTER_CABINET_MOUNT_TYPE_DESC[#Data],0),0))","v":""},{"$f":"IF('Communication Facility (Desc)'!M63=\"\",\"\",INDEX([1]YES_NO!$A$2:$A$100,MATCH('Communication Facility (Desc)'!M63,[1]!MASTER_YES_NO_DESC[#Data],0),0))","v":""},{"$f":"IF('Communication Facility (Desc)'!N63=\"\",\"\",INDEX([1]BUILDING_TYPE!$A$2:$A$100,MATCH('Communication Facility (Desc)'!$N63,[1]!MASTER_BUILDING_TYPE_DESC[#Data],0),0))","v":""},{"$f":"IF('Communication Facility (Desc)'!O63=\"\",\"\",'Communication Facility (Desc)'!O63)","v":""},{"$f":"IF('Communication Facility (Desc)'!P63=\"\",\"\",INDEX([1]BUILDING_MTL!$A$2:$A$100,MATCH('Communication Facility (Desc)'!$P63,[1]!MASTER_BUILDING_MTL_DESC[#Data],0),0))","v":""},{"$f":"IF('Communication Facility (Desc)'!Q63=\"\",\"\",INDEX([1]KEY_TYPE!$A$2:$A$100,MATCH('Communication Facility (Desc)'!$Q63,[1]!MASTER_KEY_TYPE_DESC[#Data],0),0))","v":""},{"$f":"IF('Communication Facility (Desc)'!R63=\"\",\"\",'Communication Facility (Desc)'!R63)","v":""},{"$f":"IF('Communication Facility (Desc)'!S63=\"\",\"\",INDEX([1]FILTER_TYPE!$A$2:$A$100,MATCH('Communication Facility (Desc)'!$S63,[1]!MASTER_FILTER_TYPE_DESC[#Data],0),0))","v":""},{"$f":"IF('Communication Facility (Desc)'!T63=\"\",\"\",INDEX([1]FILTER_SIZE!$A$2:$A$100,MATCH('Communication Facility (Desc)'!$T63,[1]!MASTER_FILTER_SIZE_DESC[#Data],0),0))","v":""},{"$f":"IF('Communication Facility (Desc)'!U63=\"\",\"\",'Communication Facility (Desc)'!U63)","v":""},{"$f":"IF('Communication Facility (Desc)'!V63=\"\",\"\",INDEX([1]YES_NO!$A$2:$A$100,MATCH('Communication Facility (Desc)'!$V63,[1]!MASTER_YES_NO_DESC[#Data],0),0))","v":""},{"$f":"IF('Communication Facility (Desc)'!W63=\"\",\"\",INDEX([1]YES_NO!$A$2:$A$100,MATCH('Communication Facility (Desc)'!$W63,[1]!MASTER_YES_NO_DESC[#Data],0),0))","v":""}]
[{"$f":"IF('Communication Facility (Desc)'!A64=\"\",\"\",'Communication Facility (Desc)'!A64)","v":""},{"$f":"IF('Communication Facility (Desc)'!B64=\"\",\"\",'Communication Facility (Desc)'!B64)","v":""},{"$f":"IF('Communication Facility (Desc)'!C64=\"\",\"\",'Communication Facility (Desc)'!C64)","v":""},{"$f":"IF('Communication Facility (Desc)'!D64=\"\",\"\",'Communication Facility (Desc)'!D64)","v":""},{"$f":"IF('Communication Facility (Desc)'!E64=\"\",\"\",INDEX([1]FACILITY_TYPE!$A$2:$A$100,MATCH('Communication Facility (Desc)'!$E64,[1]!MASTER_FACILITY_TYPE_DESC[#Data],0),0))","v":""},{"$f":"IF('Communication Facility (Desc)'!F64=\"\",\"\",INDEX([1]OWNER!$A$2:$A$100,MATCH('Communication Facility (Desc)'!$F64,[1]!MASTER_OWNER_DESC[#Data],0),0))","v":""},{"$f":"IF('Communication Facility (Desc)'!G64=\"\",\"\",IF('Communication Facility (Desc)'!G64=\"\",\"\",INDEX([1]COUNTY!$A$2:$A$80,MATCH('Communication Facility (Desc)'!G64,[1]!MASTER_COUNTY_NAME[#Data],0),0)))","v":""},{"$f":"IF('Communication Facility (Desc)'!H64=\"\",\"\",'Communication Facility (Desc)'!H64)","v":""},{"$f":"IF('Communication Facility (Desc)'!I64=\"\",\"\",'Communication Facility (Desc)'!I64)","v":""},{"$f":"IF('Communication Facility (Desc)'!J64=\"\",\"\",'Communication Facility (Desc)'!J64)","v":""},{"$f":"IF('Communication Facility (Desc)'!K64=\"\",\"\",INDEX([1]CABINET_TYPE!$A$2:$A$100,MATCH('Communication Facility (Desc)'!$K64,[1]!MASTER_CABINET_TYPE_DESC[#Data],0),0))","v":""},{"$f":"IF('Communication Facility (Desc)'!L64=\"\",\"\",INDEX([1]CABINET_MOUNT_TYPE!$A$2:$A$100,MATCH('Communication Facility (Desc)'!L64,[1]!MASTER_CABINET_MOUNT_TYPE_DESC[#Data],0),0))","v":""},{"$f":"IF('Communication Facility (Desc)'!M64=\"\",\"\",INDEX([1]YES_NO!$A$2:$A$100,MATCH('Communication Facility (Desc)'!M64,[1]!MASTER_YES_NO_DESC[#Data],0),0))","v":""},{"$f":"IF('Communication Facility (Desc)'!N64=\"\",\"\",INDEX([1]BUILDING_TYPE!$A$2:$A$100,MATCH('Communication Facility (Desc)'!$N64,[1]!MASTER_BUILDING_TYPE_DESC[#Data],0),0))","v":""},{"$f":"IF('Communication Facility (Desc)'!O64=\"\",\"\",'Communication Facility (Desc)'!O64)","v":""},{"$f":"IF('Communication Facility (Desc)'!P64=\"\",\"\",INDEX([1]BUILDING_MTL!$A$2:$A$100,MATCH('Communication Facility (Desc)'!$P64,[1]!MASTER_BUILDING_MTL_DESC[#Data],0),0))","v":""},{"$f":"IF('Communication Facility (Desc)'!Q64=\"\",\"\",INDEX([1]KEY_TYPE!$A$2:$A$100,MATCH('Communication Facility (Desc)'!$Q64,[1]!MASTER_KEY_TYPE_DESC[#Data],0),0))","v":""},{"$f":"IF('Communication Facility (Desc)'!R64=\"\",\"\",'Communication Facility (Desc)'!R64)","v":""},{"$f":"IF('Communication Facility (Desc)'!S64=\"\",\"\",INDEX([1]FILTER_TYPE!$A$2:$A$100,MATCH('Communication Facility (Desc)'!$S64,[1]!MASTER_FILTER_TYPE_DESC[#Data],0),0))","v":""},{"$f":"IF('Communication Facility (Desc)'!T64=\"\",\"\",INDEX([1]FILTER_SIZE!$A$2:$A$100,MATCH('Communication Facility (Desc)'!$T64,[1]!MASTER_FILTER_SIZE_DESC[#Data],0),0))","v":""},{"$f":"IF('Communication Facility (Desc)'!U64=\"\",\"\",'Communication Facility (Desc)'!U64)","v":""},{"$f":"IF('Communication Facility (Desc)'!V64=\"\",\"\",INDEX([1]YES_NO!$A$2:$A$100,MATCH('Communication Facility (Desc)'!$V64,[1]!MASTER_YES_NO_DESC[#Data],0),0))","v":""},{"$f":"IF('Communication Facility (Desc)'!W64=\"\",\"\",INDEX([1]YES_NO!$A$2:$A$100,MATCH('Communication Facility (Desc)'!$W64,[1]!MASTER_YES_NO_DESC[#Data],0),0))","v":""}]
[{"$f":"IF('Communication Facility (Desc)'!A65=\"\",\"\",'Communication Facility (Desc)'!A65)","v":""},{"$f":"IF('Communication Facility (Desc)'!B65=\"\",\"\",'Communication Facility (Desc)'!B65)","v":""},{"$f":"IF('Communication Facility (Desc)'!C65=\"\",\"\",'Communication Facility (Desc)'!C65)","v":""},{"$f":"IF('Communication Facility (Desc)'!D65=\"\",\"\",'Communication Facility (Desc)'!D65)","v":""},{"$f":"IF('Communication Facility (Desc)'!E65=\"\",\"\",INDEX([1]FACILITY_TYPE!$A$2:$A$100,MATCH('Communication Facility (Desc)'!$E65,[1]!MASTER_FACILITY_TYPE_DESC[#Data],0),0))","v":""},{"$f":"IF('Communication Facility (Desc)'!F65=\"\",\"\",INDEX([1]OWNER!$A$2:$A$100,MATCH('Communication Facility (Desc)'!$F65,[1]!MASTER_OWNER_DESC[#Data],0),0))","v":""},{"$f":"IF('Communication Facility (Desc)'!G65=\"\",\"\",IF('Communication Facility (Desc)'!G65=\"\",\"\",INDEX([1]COUNTY!$A$2:$A$80,MATCH('Communication Facility (Desc)'!G65,[1]!MASTER_COUNTY_NAME[#Data],0),0)))","v":""},{"$f":"IF('Communication Facility (Desc)'!H65=\"\",\"\",'Communication Facility (Desc)'!H65)","v":""},{"$f":"IF('Communication Facility (Desc)'!I65=\"\",\"\",'Communication Facility (Desc)'!I65)","v":""},{"$f":"IF('Communication Facility (Desc)'!J65=\"\",\"\",'Communication Facility (Desc)'!J65)","v":""},{"$f":"IF('Communication Facility (Desc)'!K65=\"\",\"\",INDEX([1]CABINET_TYPE!$A$2:$A$100,MATCH('Communication Facility (Desc)'!$K65,[1]!MASTER_CABINET_TYPE_DESC[#Data],0),0))","v":""},{"$f":"IF('Communication Facility (Desc)'!L65=\"\",\"\",INDEX([1]CABINET_MOUNT_TYPE!$A$2:$A$100,MATCH('Communication Facility (Desc)'!L65,[1]!MASTER_CABINET_MOUNT_TYPE_DESC[#Data],0),0))","v":""},{"$f":"IF('Communication Facility (Desc)'!M65=\"\",\"\",INDEX([1]YES_NO!$A$2:$A$100,MATCH('Communication Facility (Desc)'!M65,[1]!MASTER_YES_NO_DESC[#Data],0),0))","v":""},{"$f":"IF('Communication Facility (Desc)'!N65=\"\",\"\",INDEX([1]BUILDING_TYPE!$A$2:$A$100,MATCH('Communication Facility (Desc)'!$N65,[1]!MASTER_BUILDING_TYPE_DESC[#Data],0),0))","v":""},{"$f":"IF('Communication Facility (Desc)'!O65=\"\",\"\",'Communication Facility (Desc)'!O65)","v":""},{"$f":"IF('Communication Facility (Desc)'!P65=\"\",\"\",INDEX([1]BUILDING_MTL!$A$2:$A$100,MATCH('Communication Facility (Desc)'!$P65,[1]!MASTER_BUILDING_MTL_DESC[#Data],0),0))","v":""},{"$f":"IF('Communication Facility (Desc)'!Q65=\"\",\"\",INDEX([1]KEY_TYPE!$A$2:$A$100,MATCH('Communication Facility (Desc)'!$Q65,[1]!MASTER_KEY_TYPE_DESC[#Data],0),0))","v":""},{"$f":"IF('Communication Facility (Desc)'!R65=\"\",\"\",'Communication Facility (Desc)'!R65)","v":""},{"$f":"IF('Communication Facility (Desc)'!S65=\"\",\"\",INDEX([1]FILTER_TYPE!$A$2:$A$100,MATCH('Communication Facility (Desc)'!$S65,[1]!MASTER_FILTER_TYPE_DESC[#Data],0),0))","v":""},{"$f":"IF('Communication Facility (Desc)'!T65=\"\",\"\",INDEX([1]FILTER_SIZE!$A$2:$A$100,MATCH('Communication Facility (Desc)'!$T65,[1]!MASTER_FILTER_SIZE_DESC[#Data],0),0))","v":""},{"$f":"IF('Communication Facility (Desc)'!U65=\"\",\"\",'Communication Facility (Desc)'!U65)","v":""},{"$f":"IF('Communication Facility (Desc)'!V65=\"\",\"\",INDEX([1]YES_NO!$A$2:$A$100,MATCH('Communication Facility (Desc)'!$V65,[1]!MASTER_YES_NO_DESC[#Data],0),0))","v":""},{"$f":"IF('Communication Facility (Desc)'!W65=\"\",\"\",INDEX([1]YES_NO!$A$2:$A$100,MATCH('Communication Facility (Desc)'!$W65,[1]!MASTER_YES_NO_DESC[#Data],0),0))","v":""}]
[{"$f":"IF('Communication Facility (Desc)'!A66=\"\",\"\",'Communication Facility (Desc)'!A66)","v":""},{"$f":"IF('Communication Facility (Desc)'!B66=\"\",\"\",'Communication Facility (Desc)'!B66)","v":""},{"$f":"IF('Communication Facility (Desc)'!C66=\"\",\"\",'Communication Facility (Desc)'!C66)","v":""},{"$f":"IF('Communication Facility (Desc)'!D66=\"\",\"\",'Communication Facility (Desc)'!D66)","v":""},{"$f":"IF('Communication Facility (Desc)'!E66=\"\",\"\",INDEX([1]FACILITY_TYPE!$A$2:$A$100,MATCH('Communication Facility (Desc)'!$E66,[1]!MASTER_FACILITY_TYPE_DESC[#Data],0),0))","v":""},{"$f":"IF('Communication Facility (Desc)'!F66=\"\",\"\",INDEX([1]OWNER!$A$2:$A$100,MATCH('Communication Facility (Desc)'!$F66,[1]!MASTER_OWNER_DESC[#Data],0),0))","v":""},{"$f":"IF('Communication Facility (Desc)'!G66=\"\",\"\",IF('Communication Facility (Desc)'!G66=\"\",\"\",INDEX([1]COUNTY!$A$2:$A$80,MATCH('Communication Facility (Desc)'!G66,[1]!MASTER_COUNTY_NAME[#Data],0),0)))","v":""},{"$f":"IF('Communication Facility (Desc)'!H66=\"\",\"\",'Communication Facility (Desc)'!H66)","v":""},{"$f":"IF('Communication Facility (Desc)'!I66=\"\",\"\",'Communication Facility (Desc)'!I66)","v":""},{"$f":"IF('Communication Facility (Desc)'!J66=\"\",\"\",'Communication Facility (Desc)'!J66)","v":""},{"$f":"IF('Communication Facility (Desc)'!K66=\"\",\"\",INDEX([1]CABINET_TYPE!$A$2:$A$100,MATCH('Communication Facility (Desc)'!$K66,[1]!MASTER_CABINET_TYPE_DESC[#Data],0),0))","v":""},{"$f":"IF('Communication Facility (Desc)'!L66=\"\",\"\",INDEX([1]CABINET_MOUNT_TYPE!$A$2:$A$100,MATCH('Communication Facility (Desc)'!L66,[1]!MASTER_CABINET_MOUNT_TYPE_DESC[#Data],0),0))","v":""},{"$f":"IF('Communication Facility (Desc)'!M66=\"\",\"\",INDEX([1]YES_NO!$A$2:$A$100,MATCH('Communication Facility (Desc)'!M66,[1]!MASTER_YES_NO_DESC[#Data],0),0))","v":""},{"$f":"IF('Communication Facility (Desc)'!N66=\"\",\"\",INDEX([1]BUILDING_TYPE!$A$2:$A$100,MATCH('Communication Facility (Desc)'!$N66,[1]!MASTER_BUILDING_TYPE_DESC[#Data],0),0))","v":""},{"$f":"IF('Communication Facility (Desc)'!O66=\"\",\"\",'Communication Facility (Desc)'!O66)","v":""},{"$f":"IF('Communication Facility (Desc)'!P66=\"\",\"\",INDEX([1]BUILDING_MTL!$A$2:$A$100,MATCH('Communication Facility (Desc)'!$P66,[1]!MASTER_BUILDING_MTL_DESC[#Data],0),0))","v":""},{"$f":"IF('Communication Facility (Desc)'!Q66=\"\",\"\",INDEX([1]KEY_TYPE!$A$2:$A$100,MATCH('Communication Facility (Desc)'!$Q66,[1]!MASTER_KEY_TYPE_DESC[#Data],0),0))","v":""},{"$f":"IF('Communication Facility (Desc)'!R66=\"\",\"\",'Communication Facility (Desc)'!R66)","v":""},{"$f":"IF('Communication Facility (Desc)'!S66=\"\",\"\",INDEX([1]FILTER_TYPE!$A$2:$A$100,MATCH('Communication Facility (Desc)'!$S66,[1]!MASTER_FILTER_TYPE_DESC[#Data],0),0))","v":""},{"$f":"IF('Communication Facility (Desc)'!T66=\"\",\"\",INDEX([1]FILTER_SIZE!$A$2:$A$100,MATCH('Communication Facility (Desc)'!$T66,[1]!MASTER_FILTER_SIZE_DESC[#Data],0),0))","v":""},{"$f":"IF('Communication Facility (Desc)'!U66=\"\",\"\",'Communication Facility (Desc)'!U66)","v":""},{"$f":"IF('Communication Facility (Desc)'!V66=\"\",\"\",INDEX([1]YES_NO!$A$2:$A$100,MATCH('Communication Facility (Desc)'!$V66,[1]!MASTER_YES_NO_DESC[#Data],0),0))","v":""},{"$f":"IF('Communication Facility (Desc)'!W66=\"\",\"\",INDEX([1]YES_NO!$A$2:$A$100,MATCH('Communication Facility (Desc)'!$W66,[1]!MASTER_YES_NO_DESC[#Data],0),0))","v":""}]
[{"$f":"IF('Communication Facility (Desc)'!A67=\"\",\"\",'Communication Facility (Desc)'!A67)","v":""},{"$f":"IF('Communication Facility (Desc)'!B67=\"\",\"\",'Communication Facility (Desc)'!B67)","v":""},{"$f":"IF('Communication Facility (Desc)'!C67=\"\",\"\",'Communication Facility (Desc)'!C67)","v":""},{"$f":"IF('Communication Facility (Desc)'!D67=\"\",\"\",'Communication Facility (Desc)'!D67)","v":""},{"$f":"IF('Communication Facility (Desc)'!E67=\"\",\"\",INDEX([1]FACILITY_TYPE!$A$2:$A$100,MATCH('Communication Facility (Desc)'!$E67,[1]!MASTER_FACILITY_TYPE_DESC[#Data],0),0))","v":""},{"$f":"IF('Communication Facility (Desc)'!F67=\"\",\"\",INDEX([1]OWNER!$A$2:$A$100,MATCH('Communication Facility (Desc)'!$F67,[1]!MASTER_OWNER_DESC[#Data],0),0))","v":""},{"$f":"IF('Communication Facility (Desc)'!G67=\"\",\"\",IF('Communication Facility (Desc)'!G67=\"\",\"\",INDEX([1]COUNTY!$A$2:$A$80,MATCH('Communication Facility (Desc)'!G67,[1]!MASTER_COUNTY_NAME[#Data],0),0)))","v":""},{"$f":"IF('Communication Facility (Desc)'!H67=\"\",\"\",'Communication Facility (Desc)'!H67)","v":""},{"$f":"IF('Communication Facility (Desc)'!I67=\"\",\"\",'Communication Facility (Desc)'!I67)","v":""},{"$f":"IF('Communication Facility (Desc)'!J67=\"\",\"\",'Communication Facility (Desc)'!J67)","v":""},{"$f":"IF('Communication Facility (Desc)'!K67=\"\",\"\",INDEX([1]CABINET_TYPE!$A$2:$A$100,MATCH('Communication Facility (Desc)'!$K67,[1]!MASTER_CABINET_TYPE_DESC[#Data],0),0))","v":""},{"$f":"IF('Communication Facility (Desc)'!L67=\"\",\"\",INDEX([1]CABINET_MOUNT_TYPE!$A$2:$A$100,MATCH('Communication Facility (Desc)'!L67,[1]!MASTER_CABINET_MOUNT_TYPE_DESC[#Data],0),0))","v":""},{"$f":"IF('Communication Facility (Desc)'!M67=\"\",\"\",INDEX([1]YES_NO!$A$2:$A$100,MATCH('Communication Facility (Desc)'!M67,[1]!MASTER_YES_NO_DESC[#Data],0),0))","v":""},{"$f":"IF('Communication Facility (Desc)'!N67=\"\",\"\",INDEX([1]BUILDING_TYPE!$A$2:$A$100,MATCH('Communication Facility (Desc)'!$N67,[1]!MASTER_BUILDING_TYPE_DESC[#Data],0),0))","v":""},{"$f":"IF('Communication Facility (Desc)'!O67=\"\",\"\",'Communication Facility (Desc)'!O67)","v":""},{"$f":"IF('Communication Facility (Desc)'!P67=\"\",\"\",INDEX([1]BUILDING_MTL!$A$2:$A$100,MATCH('Communication Facility (Desc)'!$P67,[1]!MASTER_BUILDING_MTL_DESC[#Data],0),0))","v":""},{"$f":"IF('Communication Facility (Desc)'!Q67=\"\",\"\",INDEX([1]KEY_TYPE!$A$2:$A$100,MATCH('Communication Facility (Desc)'!$Q67,[1]!MASTER_KEY_TYPE_DESC[#Data],0),0))","v":""},{"$f":"IF('Communication Facility (Desc)'!R67=\"\",\"\",'Communication Facility (Desc)'!R67)","v":""},{"$f":"IF('Communication Facility (Desc)'!S67=\"\",\"\",INDEX([1]FILTER_TYPE!$A$2:$A$100,MATCH('Communication Facility (Desc)'!$S67,[1]!MASTER_FILTER_TYPE_DESC[#Data],0),0))","v":""},{"$f":"IF('Communication Facility (Desc)'!T67=\"\",\"\",INDEX([1]FILTER_SIZE!$A$2:$A$100,MATCH('Communication Facility (Desc)'!$T67,[1]!MASTER_FILTER_SIZE_DESC[#Data],0),0))","v":""},{"$f":"IF('Communication Facility (Desc)'!U67=\"\",\"\",'Communication Facility (Desc)'!U67)","v":""},{"$f":"IF('Communication Facility (Desc)'!V67=\"\",\"\",INDEX([1]YES_NO!$A$2:$A$100,MATCH('Communication Facility (Desc)'!$V67,[1]!MASTER_YES_NO_DESC[#Data],0),0))","v":""},{"$f":"IF('Communication Facility (Desc)'!W67=\"\",\"\",INDEX([1]YES_NO!$A$2:$A$100,MATCH('Communication Facility (Desc)'!$W67,[1]!MASTER_YES_NO_DESC[#Data],0),0))","v":""}]
[{"$f":"IF('Communication Facility (Desc)'!A68=\"\",\"\",'Communication Facility (Desc)'!A68)","v":""},{"$f":"IF('Communication Facility (Desc)'!B68=\"\",\"\",'Communication Facility (Desc)'!B68)","v":""},{"$f":"IF('Communication Facility (Desc)'!C68=\"\",\"\",'Communication Facility (Desc)'!C68)","v":""},{"$f":"IF('Communication Facility (Desc)'!D68=\"\",\"\",'Communication Facility (Desc)'!D68)","v":""},{"$f":"IF('Communication Facility (Desc)'!E68=\"\",\"\",INDEX([1]FACILITY_TYPE!$A$2:$A$100,MATCH('Communication Facility (Desc)'!$E68,[1]!MASTER_FACILITY_TYPE_DESC[#Data],0),0))","v":""},{"$f":"IF('Communication Facility (Desc)'!F68=\"\",\"\",INDEX([1]OWNER!$A$2:$A$100,MATCH('Communication Facility (Desc)'!$F68,[1]!MASTER_OWNER_DESC[#Data],0),0))","v":""},{"$f":"IF('Communication Facility (Desc)'!G68=\"\",\"\",IF('Communication Facility (Desc)'!G68=\"\",\"\",INDEX([1]COUNTY!$A$2:$A$80,MATCH('Communication Facility (Desc)'!G68,[1]!MASTER_COUNTY_NAME[#Data],0),0)))","v":""},{"$f":"IF('Communication Facility (Desc)'!H68=\"\",\"\",'Communication Facility (Desc)'!H68)","v":""},{"$f":"IF('Communication Facility (Desc)'!I68=\"\",\"\",'Communication Facility (Desc)'!I68)","v":""},{"$f":"IF('Communication Facility (Desc)'!J68=\"\",\"\",'Communication Facility (Desc)'!J68)","v":""},{"$f":"IF('Communication Facility (Desc)'!K68=\"\",\"\",INDEX([1]CABINET_TYPE!$A$2:$A$100,MATCH('Communication Facility (Desc)'!$K68,[1]!MASTER_CABINET_TYPE_DESC[#Data],0),0))","v":""},{"$f":"IF('Communication Facility (Desc)'!L68=\"\",\"\",INDEX([1]CABINET_MOUNT_TYPE!$A$2:$A$100,MATCH('Communication Facility (Desc)'!L68,[1]!MASTER_CABINET_MOUNT_TYPE_DESC[#Data],0),0))","v":""},{"$f":"IF('Communication Facility (Desc)'!M68=\"\",\"\",INDEX([1]YES_NO!$A$2:$A$100,MATCH('Communication Facility (Desc)'!M68,[1]!MASTER_YES_NO_DESC[#Data],0),0))","v":""},{"$f":"IF('Communication Facility (Desc)'!N68=\"\",\"\",INDEX([1]BUILDING_TYPE!$A$2:$A$100,MATCH('Communication Facility (Desc)'!$N68,[1]!MASTER_BUILDING_TYPE_DESC[#Data],0),0))","v":""},{"$f":"IF('Communication Facility (Desc)'!O68=\"\",\"\",'Communication Facility (Desc)'!O68)","v":""},{"$f":"IF('Communication Facility (Desc)'!P68=\"\",\"\",INDEX([1]BUILDING_MTL!$A$2:$A$100,MATCH('Communication Facility (Desc)'!$P68,[1]!MASTER_BUILDING_MTL_DESC[#Data],0),0))","v":""},{"$f":"IF('Communication Facility (Desc)'!Q68=\"\",\"\",INDEX([1]KEY_TYPE!$A$2:$A$100,MATCH('Communication Facility (Desc)'!$Q68,[1]!MASTER_KEY_TYPE_DESC[#Data],0),0))","v":""},{"$f":"IF('Communication Facility (Desc)'!R68=\"\",\"\",'Communication Facility (Desc)'!R68)","v":""},{"$f":"IF('Communication Facility (Desc)'!S68=\"\",\"\",INDEX([1]FILTER_TYPE!$A$2:$A$100,MATCH('Communication Facility (Desc)'!$S68,[1]!MASTER_FILTER_TYPE_DESC[#Data],0),0))","v":""},{"$f":"IF('Communication Facility (Desc)'!T68=\"\",\"\",INDEX([1]FILTER_SIZE!$A$2:$A$100,MATCH('Communication Facility (Desc)'!$T68,[1]!MASTER_FILTER_SIZE_DESC[#Data],0),0))","v":""},{"$f":"IF('Communication Facility (Desc)'!U68=\"\",\"\",'Communication Facility (Desc)'!U68)","v":""},{"$f":"IF('Communication Facility (Desc)'!V68=\"\",\"\",INDEX([1]YES_NO!$A$2:$A$100,MATCH('Communication Facility (Desc)'!$V68,[1]!MASTER_YES_NO_DESC[#Data],0),0))","v":""},{"$f":"IF('Communication Facility (Desc)'!W68=\"\",\"\",INDEX([1]YES_NO!$A$2:$A$100,MATCH('Communication Facility (Desc)'!$W68,[1]!MASTER_YES_NO_DESC[#Data],0),0))","v":""}]
[{"$f":"IF('Communication Facility (Desc)'!A69=\"\",\"\",'Communication Facility (Desc)'!A69)","v":""},{"$f":"IF('Communication Facility (Desc)'!B69=\"\",\"\",'Communication Facility (Desc)'!B69)","v":""},{"$f":"IF('Communication Facility (Desc)'!C69=\"\",\"\",'Communication Facility (Desc)'!C69)","v":""},{"$f":"IF('Communication Facility (Desc)'!D69=\"\",\"\",'Communication Facility (Desc)'!D69)","v":""},{"$f":"IF('Communication Facility (Desc)'!E69=\"\",\"\",INDEX([1]FACILITY_TYPE!$A$2:$A$100,MATCH('Communication Facility (Desc)'!$E69,[1]!MASTER_FACILITY_TYPE_DESC[#Data],0),0))","v":""},{"$f":"IF('Communication Facility (Desc)'!F69=\"\",\"\",INDEX([1]OWNER!$A$2:$A$100,MATCH('Communication Facility (Desc)'!$F69,[1]!MASTER_OWNER_DESC[#Data],0),0))","v":""},{"$f":"IF('Communication Facility (Desc)'!G69=\"\",\"\",IF('Communication Facility (Desc)'!G69=\"\",\"\",INDEX([1]COUNTY!$A$2:$A$80,MATCH('Communication Facility (Desc)'!G69,[1]!MASTER_COUNTY_NAME[#Data],0),0)))","v":""},{"$f":"IF('Communication Facility (Desc)'!H69=\"\",\"\",'Communication Facility (Desc)'!H69)","v":""},{"$f":"IF('Communication Facility (Desc)'!I69=\"\",\"\",'Communication Facility (Desc)'!I69)","v":""},{"$f":"IF('Communication Facility (Desc)'!J69=\"\",\"\",'Communication Facility (Desc)'!J69)","v":""},{"$f":"IF('Communication Facility (Desc)'!K69=\"\",\"\",INDEX([1]CABINET_TYPE!$A$2:$A$100,MATCH('Communication Facility (Desc)'!$K69,[1]!MASTER_CABINET_TYPE_DESC[#Data],0),0))","v":""},{"$f":"IF('Communication Facility (Desc)'!L69=\"\",\"\",INDEX([1]CABINET_MOUNT_TYPE!$A$2:$A$100,MATCH('Communication Facility (Desc)'!L69,[1]!MASTER_CABINET_MOUNT_TYPE_DESC[#Data],0),0))","v":""},{"$f":"IF('Communication Facility (Desc)'!M69=\"\",\"\",INDEX([1]YES_NO!$A$2:$A$100,MATCH('Communication Facility (Desc)'!M69,[1]!MASTER_YES_NO_DESC[#Data],0),0))","v":""},{"$f":"IF('Communication Facility (Desc)'!N69=\"\",\"\",INDEX([1]BUILDING_TYPE!$A$2:$A$100,MATCH('Communication Facility (Desc)'!$N69,[1]!MASTER_BUILDING_TYPE_DESC[#Data],0),0))","v":""},{"$f":"IF('Communication Facility (Desc)'!O69=\"\",\"\",'Communication Facility (Desc)'!O69)","v":""},{"$f":"IF('Communication Facility (Desc)'!P69=\"\",\"\",INDEX([1]BUILDING_MTL!$A$2:$A$100,MATCH('Communication Facility (Desc)'!$P69,[1]!MASTER_BUILDING_MTL_DESC[#Data],0),0))","v":""},{"$f":"IF('Communication Facility (Desc)'!Q69=\"\",\"\",INDEX([1]KEY_TYPE!$A$2:$A$100,MATCH('Communication Facility (Desc)'!$Q69,[1]!MASTER_KEY_TYPE_DESC[#Data],0),0))","v":""},{"$f":"IF('Communication Facility (Desc)'!R69=\"\",\"\",'Communication Facility (Desc)'!R69)","v":""},{"$f":"IF('Communication Facility (Desc)'!S69=\"\",\"\",INDEX([1]FILTER_TYPE!$A$2:$A$100,MATCH('Communication Facility (Desc)'!$S69,[1]!MASTER_FILTER_TYPE_DESC[#Data],0),0))","v":""},{"$f":"IF('Communication Facility (Desc)'!T69=\"\",\"\",INDEX([1]FILTER_SIZE!$A$2:$A$100,MATCH('Communication Facility (Desc)'!$T69,[1]!MASTER_FILTER_SIZE_DESC[#Data],0),0))","v":""},{"$f":"IF('Communication Facility (Desc)'!U69=\"\",\"\",'Communication Facility (Desc)'!U69)","v":""},{"$f":"IF('Communication Facility (Desc)'!V69=\"\",\"\",INDEX([1]YES_NO!$A$2:$A$100,MATCH('Communication Facility (Desc)'!$V69,[1]!MASTER_YES_NO_DESC[#Data],0),0))","v":""},{"$f":"IF('Communication Facility (Desc)'!W69=\"\",\"\",INDEX([1]YES_NO!$A$2:$A$100,MATCH('Communication Facility (Desc)'!$W69,[1]!MASTER_YES_NO_DESC[#Data],0),0))","v":""}]
[{"$f":"IF('Communication Facility (Desc)'!A70=\"\",\"\",'Communication Facility (Desc)'!A70)","v":""},{"$f":"IF('Communication Facility (Desc)'!B70=\"\",\"\",'Communication Facility (Desc)'!B70)","v":""},{"$f":"IF('Communication Facility (Desc)'!C70=\"\",\"\",'Communication Facility (Desc)'!C70)","v":""},{"$f":"IF('Communication Facility (Desc)'!D70=\"\",\"\",'Communication Facility (Desc)'!D70)","v":""},{"$f":"IF('Communication Facility (Desc)'!E70=\"\",\"\",INDEX([1]FACILITY_TYPE!$A$2:$A$100,MATCH('Communication Facility (Desc)'!$E70,[1]!MASTER_FACILITY_TYPE_DESC[#Data],0),0))","v":""},{"$f":"IF('Communication Facility (Desc)'!F70=\"\",\"\",INDEX([1]OWNER!$A$2:$A$100,MATCH('Communication Facility (Desc)'!$F70,[1]!MASTER_OWNER_DESC[#Data],0),0))","v":""},{"$f":"IF('Communication Facility (Desc)'!G70=\"\",\"\",IF('Communication Facility (Desc)'!G70=\"\",\"\",INDEX([1]COUNTY!$A$2:$A$80,MATCH('Communication Facility (Desc)'!G70,[1]!MASTER_COUNTY_NAME[#Data],0),0)))","v":""},{"$f":"IF('Communication Facility (Desc)'!H70=\"\",\"\",'Communication Facility (Desc)'!H70)","v":""},{"$f":"IF('Communication Facility (Desc)'!I70=\"\",\"\",'Communication Facility (Desc)'!I70)","v":""},{"$f":"IF('Communication Facility (Desc)'!J70=\"\",\"\",'Communication Facility (Desc)'!J70)","v":""},{"$f":"IF('Communication Facility (Desc)'!K70=\"\",\"\",INDEX([1]CABINET_TYPE!$A$2:$A$100,MATCH('Communication Facility (Desc)'!$K70,[1]!MASTER_CABINET_TYPE_DESC[#Data],0),0))","v":""},{"$f":"IF('Communication Facility (Desc)'!L70=\"\",\"\",INDEX([1]CABINET_MOUNT_TYPE!$A$2:$A$100,MATCH('Communication Facility (Desc)'!L70,[1]!MASTER_CABINET_MOUNT_TYPE_DESC[#Data],0),0))","v":""},{"$f":"IF('Communication Facility (Desc)'!M70=\"\",\"\",INDEX([1]YES_NO!$A$2:$A$100,MATCH('Communication Facility (Desc)'!M70,[1]!MASTER_YES_NO_DESC[#Data],0),0))","v":""},{"$f":"IF('Communication Facility (Desc)'!N70=\"\",\"\",INDEX([1]BUILDING_TYPE!$A$2:$A$100,MATCH('Communication Facility (Desc)'!$N70,[1]!MASTER_BUILDING_TYPE_DESC[#Data],0),0))","v":""},{"$f":"IF('Communication Facility (Desc)'!O70=\"\",\"\",'Communication Facility (Desc)'!O70)","v":""},{"$f":"IF('Communication Facility (Desc)'!P70=\"\",\"\",INDEX([1]BUILDING_MTL!$A$2:$A$100,MATCH('Communication Facility (Desc)'!$P70,[1]!MASTER_BUILDING_MTL_DESC[#Data],0),0))","v":""},{"$f":"IF('Communication Facility (Desc)'!Q70=\"\",\"\",INDEX([1]KEY_TYPE!$A$2:$A$100,MATCH('Communication Facility (Desc)'!$Q70,[1]!MASTER_KEY_TYPE_DESC[#Data],0),0))","v":""},{"$f":"IF('Communication Facility (Desc)'!R70=\"\",\"\",'Communication Facility (Desc)'!R70)","v":""},{"$f":"IF('Communication Facility (Desc)'!S70=\"\",\"\",INDEX([1]FILTER_TYPE!$A$2:$A$100,MATCH('Communication Facility (Desc)'!$S70,[1]!MASTER_FILTER_TYPE_DESC[#Data],0),0))","v":""},{"$f":"IF('Communication Facility (Desc)'!T70=\"\",\"\",INDEX([1]FILTER_SIZE!$A$2:$A$100,MATCH('Communication Facility (Desc)'!$T70,[1]!MASTER_FILTER_SIZE_DESC[#Data],0),0))","v":""},{"$f":"IF('Communication Facility (Desc)'!U70=\"\",\"\",'Communication Facility (Desc)'!U70)","v":""},{"$f":"IF('Communication Facility (Desc)'!V70=\"\",\"\",INDEX([1]YES_NO!$A$2:$A$100,MATCH('Communication Facility (Desc)'!$V70,[1]!MASTER_YES_NO_DESC[#Data],0),0))","v":""},{"$f":"IF('Communication Facility (Desc)'!W70=\"\",\"\",INDEX([1]YES_NO!$A$2:$A$100,MATCH('Communication Facility (Desc)'!$W70,[1]!MASTER_YES_NO_DESC[#Data],0),0))","v":""}]
[{"$f":"IF('Communication Facility (Desc)'!A71=\"\",\"\",'Communication Facility (Desc)'!A71)","v":""},{"$f":"IF('Communication Facility (Desc)'!B71=\"\",\"\",'Communication Facility (Desc)'!B71)","v":""},{"$f":"IF('Communication Facility (Desc)'!C71=\"\",\"\",'Communication Facility (Desc)'!C71)","v":""},{"$f":"IF('Communication Facility (Desc)'!D71=\"\",\"\",'Communication Facility (Desc)'!D71)","v":""},{"$f":"IF('Communication Facility (Desc)'!E71=\"\",\"\",INDEX([1]FACILITY_TYPE!$A$2:$A$100,MATCH('Communication Facility (Desc)'!$E71,[1]!MASTER_FACILITY_TYPE_DESC[#Data],0),0))","v":""},{"$f":"IF('Communication Facility (Desc)'!F71=\"\",\"\",INDEX([1]OWNER!$A$2:$A$100,MATCH('Communication Facility (Desc)'!$F71,[1]!MASTER_OWNER_DESC[#Data],0),0))","v":""},{"$f":"IF('Communication Facility (Desc)'!G71=\"\",\"\",IF('Communication Facility (Desc)'!G71=\"\",\"\",INDEX([1]COUNTY!$A$2:$A$80,MATCH('Communication Facility (Desc)'!G71,[1]!MASTER_COUNTY_NAME[#Data],0),0)))","v":""},{"$f":"IF('Communication Facility (Desc)'!H71=\"\",\"\",'Communication Facility (Desc)'!H71)","v":""},{"$f":"IF('Communication Facility (Desc)'!I71=\"\",\"\",'Communication Facility (Desc)'!I71)","v":""},{"$f":"IF('Communication Facility (Desc)'!J71=\"\",\"\",'Communication Facility (Desc)'!J71)","v":""},{"$f":"IF('Communication Facility (Desc)'!K71=\"\",\"\",INDEX([1]CABINET_TYPE!$A$2:$A$100,MATCH('Communication Facility (Desc)'!$K71,[1]!MASTER_CABINET_TYPE_DESC[#Data],0),0))","v":""},{"$f":"IF('Communication Facility (Desc)'!L71=\"\",\"\",INDEX([1]CABINET_MOUNT_TYPE!$A$2:$A$100,MATCH('Communication Facility (Desc)'!L71,[1]!MASTER_CABINET_MOUNT_TYPE_DESC[#Data],0),0))","v":""},{"$f":"IF('Communication Facility (Desc)'!M71=\"\",\"\",INDEX([1]YES_NO!$A$2:$A$100,MATCH('Communication Facility (Desc)'!M71,[1]!MASTER_YES_NO_DESC[#Data],0),0))","v":""},{"$f":"IF('Communication Facility (Desc)'!N71=\"\",\"\",INDEX([1]BUILDING_TYPE!$A$2:$A$100,MATCH('Communication Facility (Desc)'!$N71,[1]!MASTER_BUILDING_TYPE_DESC[#Data],0),0))","v":""},{"$f":"IF('Communication Facility (Desc)'!O71=\"\",\"\",'Communication Facility (Desc)'!O71)","v":""},{"$f":"IF('Communication Facility (Desc)'!P71=\"\",\"\",INDEX([1]BUILDING_MTL!$A$2:$A$100,MATCH('Communication Facility (Desc)'!$P71,[1]!MASTER_BUILDING_MTL_DESC[#Data],0),0))","v":""},{"$f":"IF('Communication Facility (Desc)'!Q71=\"\",\"\",INDEX([1]KEY_TYPE!$A$2:$A$100,MATCH('Communication Facility (Desc)'!$Q71,[1]!MASTER_KEY_TYPE_DESC[#Data],0),0))","v":""},{"$f":"IF('Communication Facility (Desc)'!R71=\"\",\"\",'Communication Facility (Desc)'!R71)","v":""},{"$f":"IF('Communication Facility (Desc)'!S71=\"\",\"\",INDEX([1]FILTER_TYPE!$A$2:$A$100,MATCH('Communication Facility (Desc)'!$S71,[1]!MASTER_FILTER_TYPE_DESC[#Data],0),0))","v":""},{"$f":"IF('Communication Facility (Desc)'!T71=\"\",\"\",INDEX([1]FILTER_SIZE!$A$2:$A$100,MATCH('Communication Facility (Desc)'!$T71,[1]!MASTER_FILTER_SIZE_DESC[#Data],0),0))","v":""},{"$f":"IF('Communication Facility (Desc)'!U71=\"\",\"\",'Communication Facility (Desc)'!U71)","v":""},{"$f":"IF('Communication Facility (Desc)'!V71=\"\",\"\",INDEX([1]YES_NO!$A$2:$A$100,MATCH('Communication Facility (Desc)'!$V71,[1]!MASTER_YES_NO_DESC[#Data],0),0))","v":""},{"$f":"IF('Communication Facility (Desc)'!W71=\"\",\"\",INDEX([1]YES_NO!$A$2:$A$100,MATCH('Communication Facility (Desc)'!$W71,[1]!MASTER_YES_NO_DESC[#Data],0),0))","v":""}]
[{"$f":"IF('Communication Facility (Desc)'!A72=\"\",\"\",'Communication Facility (Desc)'!A72)","v":""},{"$f":"IF('Communication Facility (Desc)'!B72=\"\",\"\",'Communication Facility (Desc)'!B72)","v":""},{"$f":"IF('Communication Facility (Desc)'!C72=\"\",\"\",'Communication Facility (Desc)'!C72)","v":""},{"$f":"IF('Communication Facility (Desc)'!D72=\"\",\"\",'Communication Facility (Desc)'!D72)","v":""},{"$f":"IF('Communication Facility (Desc)'!E72=\"\",\"\",INDEX([1]FACILITY_TYPE!$A$2:$A$100,MATCH('Communication Facility (Desc)'!$E72,[1]!MASTER_FACILITY_TYPE_DESC[#Data],0),0))","v":""},{"$f":"IF('Communication Facility (Desc)'!F72=\"\",\"\",INDEX([1]OWNER!$A$2:$A$100,MATCH('Communication Facility (Desc)'!$F72,[1]!MASTER_OWNER_DESC[#Data],0),0))","v":""},{"$f":"IF('Communication Facility (Desc)'!G72=\"\",\"\",IF('Communication Facility (Desc)'!G72=\"\",\"\",INDEX([1]COUNTY!$A$2:$A$80,MATCH('Communication Facility (Desc)'!G72,[1]!MASTER_COUNTY_NAME[#Data],0),0)))","v":""},{"$f":"IF('Communication Facility (Desc)'!H72=\"\",\"\",'Communication Facility (Desc)'!H72)","v":""},{"$f":"IF('Communication Facility (Desc)'!I72=\"\",\"\",'Communication Facility (Desc)'!I72)","v":""},{"$f":"IF('Communication Facility (Desc)'!J72=\"\",\"\",'Communication Facility (Desc)'!J72)","v":""},{"$f":"IF('Communication Facility (Desc)'!K72=\"\",\"\",INDEX([1]CABINET_TYPE!$A$2:$A$100,MATCH('Communication Facility (Desc)'!$K72,[1]!MASTER_CABINET_TYPE_DESC[#Data],0),0))","v":""},{"$f":"IF('Communication Facility (Desc)'!L72=\"\",\"\",INDEX([1]CABINET_MOUNT_TYPE!$A$2:$A$100,MATCH('Communication Facility (Desc)'!L72,[1]!MASTER_CABINET_MOUNT_TYPE_DESC[#Data],0),0))","v":""},{"$f":"IF('Communication Facility (Desc)'!M72=\"\",\"\",INDEX([1]YES_NO!$A$2:$A$100,MATCH('Communication Facility (Desc)'!M72,[1]!MASTER_YES_NO_DESC[#Data],0),0))","v":""},{"$f":"IF('Communication Facility (Desc)'!N72=\"\",\"\",INDEX([1]BUILDING_TYPE!$A$2:$A$100,MATCH('Communication Facility (Desc)'!$N72,[1]!MASTER_BUILDING_TYPE_DESC[#Data],0),0))","v":""},{"$f":"IF('Communication Facility (Desc)'!O72=\"\",\"\",'Communication Facility (Desc)'!O72)","v":""},{"$f":"IF('Communication Facility (Desc)'!P72=\"\",\"\",INDEX([1]BUILDING_MTL!$A$2:$A$100,MATCH('Communication Facility (Desc)'!$P72,[1]!MASTER_BUILDING_MTL_DESC[#Data],0),0))","v":""},{"$f":"IF('Communication Facility (Desc)'!Q72=\"\",\"\",INDEX([1]KEY_TYPE!$A$2:$A$100,MATCH('Communication Facility (Desc)'!$Q72,[1]!MASTER_KEY_TYPE_DESC[#Data],0),0))","v":""},{"$f":"IF('Communication Facility (Desc)'!R72=\"\",\"\",'Communication Facility (Desc)'!R72)","v":""},{"$f":"IF('Communication Facility (Desc)'!S72=\"\",\"\",INDEX([1]FILTER_TYPE!$A$2:$A$100,MATCH('Communication Facility (Desc)'!$S72,[1]!MASTER_FILTER_TYPE_DESC[#Data],0),0))","v":""},{"$f":"IF('Communication Facility (Desc)'!T72=\"\",\"\",INDEX([1]FILTER_SIZE!$A$2:$A$100,MATCH('Communication Facility (Desc)'!$T72,[1]!MASTER_FILTER_SIZE_DESC[#Data],0),0))","v":""},{"$f":"IF('Communication Facility (Desc)'!U72=\"\",\"\",'Communication Facility (Desc)'!U72)","v":""},{"$f":"IF('Communication Facility (Desc)'!V72=\"\",\"\",INDEX([1]YES_NO!$A$2:$A$100,MATCH('Communication Facility (Desc)'!$V72,[1]!MASTER_YES_NO_DESC[#Data],0),0))","v":""},{"$f":"IF('Communication Facility (Desc)'!W72=\"\",\"\",INDEX([1]YES_NO!$A$2:$A$100,MATCH('Communication Facility (Desc)'!$W72,[1]!MASTER_YES_NO_DESC[#Data],0),0))","v":""}]
[{"$f":"IF('Communication Facility (Desc)'!A73=\"\",\"\",'Communication Facility (Desc)'!A73)","v":""},{"$f":"IF('Communication Facility (Desc)'!B73=\"\",\"\",'Communication Facility (Desc)'!B73)","v":""},{"$f":"IF('Communication Facility (Desc)'!C73=\"\",\"\",'Communication Facility (Desc)'!C73)","v":""},{"$f":"IF('Communication Facility (Desc)'!D73=\"\",\"\",'Communication Facility (Desc)'!D73)","v":""},{"$f":"IF('Communication Facility (Desc)'!E73=\"\",\"\",INDEX([1]FACILITY_TYPE!$A$2:$A$100,MATCH('Communication Facility (Desc)'!$E73,[1]!MASTER_FACILITY_TYPE_DESC[#Data],0),0))","v":""},{"$f":"IF('Communication Facility (Desc)'!F73=\"\",\"\",INDEX([1]OWNER!$A$2:$A$100,MATCH('Communication Facility (Desc)'!$F73,[1]!MASTER_OWNER_DESC[#Data],0),0))","v":""},{"$f":"IF('Communication Facility (Desc)'!G73=\"\",\"\",IF('Communication Facility (Desc)'!G73=\"\",\"\",INDEX([1]COUNTY!$A$2:$A$80,MATCH('Communication Facility (Desc)'!G73,[1]!MASTER_COUNTY_NAME[#Data],0),0)))","v":""},{"$f":"IF('Communication Facility (Desc)'!H73=\"\",\"\",'Communication Facility (Desc)'!H73)","v":""},{"$f":"IF('Communication Facility (Desc)'!I73=\"\",\"\",'Communication Facility (Desc)'!I73)","v":""},{"$f":"IF('Communication Facility (Desc)'!J73=\"\",\"\",'Communication Facility (Desc)'!J73)","v":""},{"$f":"IF('Communication Facility (Desc)'!K73=\"\",\"\",INDEX([1]CABINET_TYPE!$A$2:$A$100,MATCH('Communication Facility (Desc)'!$K73,[1]!MASTER_CABINET_TYPE_DESC[#Data],0),0))","v":""},{"$f":"IF('Communication Facility (Desc)'!L73=\"\",\"\",INDEX([1]CABINET_MOUNT_TYPE!$A$2:$A$100,MATCH('Communication Facility (Desc)'!L73,[1]!MASTER_CABINET_MOUNT_TYPE_DESC[#Data],0),0))","v":""},{"$f":"IF('Communication Facility (Desc)'!M73=\"\",\"\",INDEX([1]YES_NO!$A$2:$A$100,MATCH('Communication Facility (Desc)'!M73,[1]!MASTER_YES_NO_DESC[#Data],0),0))","v":""},{"$f":"IF('Communication Facility (Desc)'!N73=\"\",\"\",INDEX([1]BUILDING_TYPE!$A$2:$A$100,MATCH('Communication Facility (Desc)'!$N73,[1]!MASTER_BUILDING_TYPE_DESC[#Data],0),0))","v":""},{"$f":"IF('Communication Facility (Desc)'!O73=\"\",\"\",'Communication Facility (Desc)'!O73)","v":""},{"$f":"IF('Communication Facility (Desc)'!P73=\"\",\"\",INDEX([1]BUILDING_MTL!$A$2:$A$100,MATCH('Communication Facility (Desc)'!$P73,[1]!MASTER_BUILDING_MTL_DESC[#Data],0),0))","v":""},{"$f":"IF('Communication Facility (Desc)'!Q73=\"\",\"\",INDEX([1]KEY_TYPE!$A$2:$A$100,MATCH('Communication Facility (Desc)'!$Q73,[1]!MASTER_KEY_TYPE_DESC[#Data],0),0))","v":""},{"$f":"IF('Communication Facility (Desc)'!R73=\"\",\"\",'Communication Facility (Desc)'!R73)","v":""},{"$f":"IF('Communication Facility (Desc)'!S73=\"\",\"\",INDEX([1]FILTER_TYPE!$A$2:$A$100,MATCH('Communication Facility (Desc)'!$S73,[1]!MASTER_FILTER_TYPE_DESC[#Data],0),0))","v":""},{"$f":"IF('Communication Facility (Desc)'!T73=\"\",\"\",INDEX([1]FILTER_SIZE!$A$2:$A$100,MATCH('Communication Facility (Desc)'!$T73,[1]!MASTER_FILTER_SIZE_DESC[#Data],0),0))","v":""},{"$f":"IF('Communication Facility (Desc)'!U73=\"\",\"\",'Communication Facility (Desc)'!U73)","v":""},{"$f":"IF('Communication Facility (Desc)'!V73=\"\",\"\",INDEX([1]YES_NO!$A$2:$A$100,MATCH('Communication Facility (Desc)'!$V73,[1]!MASTER_YES_NO_DESC[#Data],0),0))","v":""},{"$f":"IF('Communication Facility (Desc)'!W73=\"\",\"\",INDEX([1]YES_NO!$A$2:$A$100,MATCH('Communication Facility (Desc)'!$W73,[1]!MASTER_YES_NO_DESC[#Data],0),0))","v":""}]
[{"$f":"IF('Communication Facility (Desc)'!A74=\"\",\"\",'Communication Facility (Desc)'!A74)","v":""},{"$f":"IF('Communication Facility (Desc)'!B74=\"\",\"\",'Communication Facility (Desc)'!B74)","v":""},{"$f":"IF('Communication Facility (Desc)'!C74=\"\",\"\",'Communication Facility (Desc)'!C74)","v":""},{"$f":"IF('Communication Facility (Desc)'!D74=\"\",\"\",'Communication Facility (Desc)'!D74)","v":""},{"$f":"IF('Communication Facility (Desc)'!E74=\"\",\"\",INDEX([1]FACILITY_TYPE!$A$2:$A$100,MATCH('Communication Facility (Desc)'!$E74,[1]!MASTER_FACILITY_TYPE_DESC[#Data],0),0))","v":""},{"$f":"IF('Communication Facility (Desc)'!F74=\"\",\"\",INDEX([1]OWNER!$A$2:$A$100,MATCH('Communication Facility (Desc)'!$F74,[1]!MASTER_OWNER_DESC[#Data],0),0))","v":""},{"$f":"IF('Communication Facility (Desc)'!G74=\"\",\"\",IF('Communication Facility (Desc)'!G74=\"\",\"\",INDEX([1]COUNTY!$A$2:$A$80,MATCH('Communication Facility (Desc)'!G74,[1]!MASTER_COUNTY_NAME[#Data],0),0)))","v":""},{"$f":"IF('Communication Facility (Desc)'!H74=\"\",\"\",'Communication Facility (Desc)'!H74)","v":""},{"$f":"IF('Communication Facility (Desc)'!I74=\"\",\"\",'Communication Facility (Desc)'!I74)","v":""},{"$f":"IF('Communication Facility (Desc)'!J74=\"\",\"\",'Communication Facility (Desc)'!J74)","v":""},{"$f":"IF('Communication Facility (Desc)'!K74=\"\",\"\",INDEX([1]CABINET_TYPE!$A$2:$A$100,MATCH('Communication Facility (Desc)'!$K74,[1]!MASTER_CABINET_TYPE_DESC[#Data],0),0))","v":""},{"$f":"IF('Communication Facility (Desc)'!L74=\"\",\"\",INDEX([1]CABINET_MOUNT_TYPE!$A$2:$A$100,MATCH('Communication Facility (Desc)'!L74,[1]!MASTER_CABINET_MOUNT_TYPE_DESC[#Data],0),0))","v":""},{"$f":"IF('Communication Facility (Desc)'!M74=\"\",\"\",INDEX([1]YES_NO!$A$2:$A$100,MATCH('Communication Facility (Desc)'!M74,[1]!MASTER_YES_NO_DESC[#Data],0),0))","v":""},{"$f":"IF('Communication Facility (Desc)'!N74=\"\",\"\",INDEX([1]BUILDING_TYPE!$A$2:$A$100,MATCH('Communication Facility (Desc)'!$N74,[1]!MASTER_BUILDING_TYPE_DESC[#Data],0),0))","v":""},{"$f":"IF('Communication Facility (Desc)'!O74=\"\",\"\",'Communication Facility (Desc)'!O74)","v":""},{"$f":"IF('Communication Facility (Desc)'!P74=\"\",\"\",INDEX([1]BUILDING_MTL!$A$2:$A$100,MATCH('Communication Facility (Desc)'!$P74,[1]!MASTER_BUILDING_MTL_DESC[#Data],0),0))","v":""},{"$f":"IF('Communication Facility (Desc)'!Q74=\"\",\"\",INDEX([1]KEY_TYPE!$A$2:$A$100,MATCH('Communication Facility (Desc)'!$Q74,[1]!MASTER_KEY_TYPE_DESC[#Data],0),0))","v":""},{"$f":"IF('Communication Facility (Desc)'!R74=\"\",\"\",'Communication Facility (Desc)'!R74)","v":""},{"$f":"IF('Communication Facility (Desc)'!S74=\"\",\"\",INDEX([1]FILTER_TYPE!$A$2:$A$100,MATCH('Communication Facility (Desc)'!$S74,[1]!MASTER_FILTER_TYPE_DESC[#Data],0),0))","v":""},{"$f":"IF('Communication Facility (Desc)'!T74=\"\",\"\",INDEX([1]FILTER_SIZE!$A$2:$A$100,MATCH('Communication Facility (Desc)'!$T74,[1]!MASTER_FILTER_SIZE_DESC[#Data],0),0))","v":""},{"$f":"IF('Communication Facility (Desc)'!U74=\"\",\"\",'Communication Facility (Desc)'!U74)","v":""},{"$f":"IF('Communication Facility (Desc)'!V74=\"\",\"\",INDEX([1]YES_NO!$A$2:$A$100,MATCH('Communication Facility (Desc)'!$V74,[1]!MASTER_YES_NO_DESC[#Data],0),0))","v":""},{"$f":"IF('Communication Facility (Desc)'!W74=\"\",\"\",INDEX([1]YES_NO!$A$2:$A$100,MATCH('Communication Facility (Desc)'!$W74,[1]!MASTER_YES_NO_DESC[#Data],0),0))","v":""}]
[{"$f":"IF('Communication Facility (Desc)'!A75=\"\",\"\",'Communication Facility (Desc)'!A75)","v":""},{"$f":"IF('Communication Facility (Desc)'!B75=\"\",\"\",'Communication Facility (Desc)'!B75)","v":""},{"$f":"IF('Communication Facility (Desc)'!C75=\"\",\"\",'Communication Facility (Desc)'!C75)","v":""},{"$f":"IF('Communication Facility (Desc)'!D75=\"\",\"\",'Communication Facility (Desc)'!D75)","v":""},{"$f":"IF('Communication Facility (Desc)'!E75=\"\",\"\",INDEX([1]FACILITY_TYPE!$A$2:$A$100,MATCH('Communication Facility (Desc)'!$E75,[1]!MASTER_FACILITY_TYPE_DESC[#Data],0),0))","v":""},{"$f":"IF('Communication Facility (Desc)'!F75=\"\",\"\",INDEX([1]OWNER!$A$2:$A$100,MATCH('Communication Facility (Desc)'!$F75,[1]!MASTER_OWNER_DESC[#Data],0),0))","v":""},{"$f":"IF('Communication Facility (Desc)'!G75=\"\",\"\",IF('Communication Facility (Desc)'!G75=\"\",\"\",INDEX([1]COUNTY!$A$2:$A$80,MATCH('Communication Facility (Desc)'!G75,[1]!MASTER_COUNTY_NAME[#Data],0),0)))","v":""},{"$f":"IF('Communication Facility (Desc)'!H75=\"\",\"\",'Communication Facility (Desc)'!H75)","v":""},{"$f":"IF('Communication Facility (Desc)'!I75=\"\",\"\",'Communication Facility (Desc)'!I75)","v":""},{"$f":"IF('Communication Facility (Desc)'!J75=\"\",\"\",'Communication Facility (Desc)'!J75)","v":""},{"$f":"IF('Communication Facility (Desc)'!K75=\"\",\"\",INDEX([1]CABINET_TYPE!$A$2:$A$100,MATCH('Communication Facility (Desc)'!$K75,[1]!MASTER_CABINET_TYPE_DESC[#Data],0),0))","v":""},{"$f":"IF('Communication Facility (Desc)'!L75=\"\",\"\",INDEX([1]CABINET_MOUNT_TYPE!$A$2:$A$100,MATCH('Communication Facility (Desc)'!L75,[1]!MASTER_CABINET_MOUNT_TYPE_DESC[#Data],0),0))","v":""},{"$f":"IF('Communication Facility (Desc)'!M75=\"\",\"\",INDEX([1]YES_NO!$A$2:$A$100,MATCH('Communication Facility (Desc)'!M75,[1]!MASTER_YES_NO_DESC[#Data],0),0))","v":""},{"$f":"IF('Communication Facility (Desc)'!N75=\"\",\"\",INDEX([1]BUILDING_TYPE!$A$2:$A$100,MATCH('Communication Facility (Desc)'!$N75,[1]!MASTER_BUILDING_TYPE_DESC[#Data],0),0))","v":""},{"$f":"IF('Communication Facility (Desc)'!O75=\"\",\"\",'Communication Facility (Desc)'!O75)","v":""},{"$f":"IF('Communication Facility (Desc)'!P75=\"\",\"\",INDEX([1]BUILDING_MTL!$A$2:$A$100,MATCH('Communication Facility (Desc)'!$P75,[1]!MASTER_BUILDING_MTL_DESC[#Data],0),0))","v":""},{"$f":"IF('Communication Facility (Desc)'!Q75=\"\",\"\",INDEX([1]KEY_TYPE!$A$2:$A$100,MATCH('Communication Facility (Desc)'!$Q75,[1]!MASTER_KEY_TYPE_DESC[#Data],0),0))","v":""},{"$f":"IF('Communication Facility (Desc)'!R75=\"\",\"\",'Communication Facility (Desc)'!R75)","v":""},{"$f":"IF('Communication Facility (Desc)'!S75=\"\",\"\",INDEX([1]FILTER_TYPE!$A$2:$A$100,MATCH('Communication Facility (Desc)'!$S75,[1]!MASTER_FILTER_TYPE_DESC[#Data],0),0))","v":""},{"$f":"IF('Communication Facility (Desc)'!T75=\"\",\"\",INDEX([1]FILTER_SIZE!$A$2:$A$100,MATCH('Communication Facility (Desc)'!$T75,[1]!MASTER_FILTER_SIZE_DESC[#Data],0),0))","v":""},{"$f":"IF('Communication Facility (Desc)'!U75=\"\",\"\",'Communication Facility (Desc)'!U75)","v":""},{"$f":"IF('Communication Facility (Desc)'!V75=\"\",\"\",INDEX([1]YES_NO!$A$2:$A$100,MATCH('Communication Facility (Desc)'!$V75,[1]!MASTER_YES_NO_DESC[#Data],0),0))","v":""},{"$f":"IF('Communication Facility (Desc)'!W75=\"\",\"\",INDEX([1]YES_NO!$A$2:$A$100,MATCH('Communication Facility (Desc)'!$W75,[1]!MASTER_YES_NO_DESC[#Data],0),0))","v":""}]
[{"$f":"IF('Communication Facility (Desc)'!A76=\"\",\"\",'Communication Facility (Desc)'!A76)","v":""},{"$f":"IF('Communication Facility (Desc)'!B76=\"\",\"\",'Communication Facility (Desc)'!B76)","v":""},{"$f":"IF('Communication Facility (Desc)'!C76=\"\",\"\",'Communication Facility (Desc)'!C76)","v":""},{"$f":"IF('Communication Facility (Desc)'!D76=\"\",\"\",'Communication Facility (Desc)'!D76)","v":""},{"$f":"IF('Communication Facility (Desc)'!E76=\"\",\"\",INDEX([1]FACILITY_TYPE!$A$2:$A$100,MATCH('Communication Facility (Desc)'!$E76,[1]!MASTER_FACILITY_TYPE_DESC[#Data],0),0))","v":""},{"$f":"IF('Communication Facility (Desc)'!F76=\"\",\"\",INDEX([1]OWNER!$A$2:$A$100,MATCH('Communication Facility (Desc)'!$F76,[1]!MASTER_OWNER_DESC[#Data],0),0))","v":""},{"$f":"IF('Communication Facility (Desc)'!G76=\"\",\"\",IF('Communication Facility (Desc)'!G76=\"\",\"\",INDEX([1]COUNTY!$A$2:$A$80,MATCH('Communication Facility (Desc)'!G76,[1]!MASTER_COUNTY_NAME[#Data],0),0)))","v":""},{"$f":"IF('Communication Facility (Desc)'!H76=\"\",\"\",'Communication Facility (Desc)'!H76)","v":""},{"$f":"IF('Communication Facility (Desc)'!I76=\"\",\"\",'Communication Facility (Desc)'!I76)","v":""},{"$f":"IF('Communication Facility (Desc)'!J76=\"\",\"\",'Communication Facility (Desc)'!J76)","v":""},{"$f":"IF('Communication Facility (Desc)'!K76=\"\",\"\",INDEX([1]CABINET_TYPE!$A$2:$A$100,MATCH('Communication Facility (Desc)'!$K76,[1]!MASTER_CABINET_TYPE_DESC[#Data],0),0))","v":""},{"$f":"IF('Communication Facility (Desc)'!L76=\"\",\"\",INDEX([1]CABINET_MOUNT_TYPE!$A$2:$A$100,MATCH('Communication Facility (Desc)'!L76,[1]!MASTER_CABINET_MOUNT_TYPE_DESC[#Data],0),0))","v":""},{"$f":"IF('Communication Facility (Desc)'!M76=\"\",\"\",INDEX([1]YES_NO!$A$2:$A$100,MATCH('Communication Facility (Desc)'!M76,[1]!MASTER_YES_NO_DESC[#Data],0),0))","v":""},{"$f":"IF('Communication Facility (Desc)'!N76=\"\",\"\",INDEX([1]BUILDING_TYPE!$A$2:$A$100,MATCH('Communication Facility (Desc)'!$N76,[1]!MASTER_BUILDING_TYPE_DESC[#Data],0),0))","v":""},{"$f":"IF('Communication Facility (Desc)'!O76=\"\",\"\",'Communication Facility (Desc)'!O76)","v":""},{"$f":"IF('Communication Facility (Desc)'!P76=\"\",\"\",INDEX([1]BUILDING_MTL!$A$2:$A$100,MATCH('Communication Facility (Desc)'!$P76,[1]!MASTER_BUILDING_MTL_DESC[#Data],0),0))","v":""},{"$f":"IF('Communication Facility (Desc)'!Q76=\"\",\"\",INDEX([1]KEY_TYPE!$A$2:$A$100,MATCH('Communication Facility (Desc)'!$Q76,[1]!MASTER_KEY_TYPE_DESC[#Data],0),0))","v":""},{"$f":"IF('Communication Facility (Desc)'!R76=\"\",\"\",'Communication Facility (Desc)'!R76)","v":""},{"$f":"IF('Communication Facility (Desc)'!S76=\"\",\"\",INDEX([1]FILTER_TYPE!$A$2:$A$100,MATCH('Communication Facility (Desc)'!$S76,[1]!MASTER_FILTER_TYPE_DESC[#Data],0),0))","v":""},{"$f":"IF('Communication Facility (Desc)'!T76=\"\",\"\",INDEX([1]FILTER_SIZE!$A$2:$A$100,MATCH('Communication Facility (Desc)'!$T76,[1]!MASTER_FILTER_SIZE_DESC[#Data],0),0))","v":""},{"$f":"IF('Communication Facility (Desc)'!U76=\"\",\"\",'Communication Facility (Desc)'!U76)","v":""},{"$f":"IF('Communication Facility (Desc)'!V76=\"\",\"\",INDEX([1]YES_NO!$A$2:$A$100,MATCH('Communication Facility (Desc)'!$V76,[1]!MASTER_YES_NO_DESC[#Data],0),0))","v":""},{"$f":"IF('Communication Facility (Desc)'!W76=\"\",\"\",INDEX([1]YES_NO!$A$2:$A$100,MATCH('Communication Facility (Desc)'!$W76,[1]!MASTER_YES_NO_DESC[#Data],0),0))","v":""}]
[{"$f":"IF('Communication Facility (Desc)'!A77=\"\",\"\",'Communication Facility (Desc)'!A77)","v":""},{"$f":"IF('Communication Facility (Desc)'!B77=\"\",\"\",'Communication Facility (Desc)'!B77)","v":""},{"$f":"IF('Communication Facility (Desc)'!C77=\"\",\"\",'Communication Facility (Desc)'!C77)","v":""},{"$f":"IF('Communication Facility (Desc)'!D77=\"\",\"\",'Communication Facility (Desc)'!D77)","v":""},{"$f":"IF('Communication Facility (Desc)'!E77=\"\",\"\",INDEX([1]FACILITY_TYPE!$A$2:$A$100,MATCH('Communication Facility (Desc)'!$E77,[1]!MASTER_FACILITY_TYPE_DESC[#Data],0),0))","v":""},{"$f":"IF('Communication Facility (Desc)'!F77=\"\",\"\",INDEX([1]OWNER!$A$2:$A$100,MATCH('Communication Facility (Desc)'!$F77,[1]!MASTER_OWNER_DESC[#Data],0),0))","v":""},{"$f":"IF('Communication Facility (Desc)'!G77=\"\",\"\",IF('Communication Facility (Desc)'!G77=\"\",\"\",INDEX([1]COUNTY!$A$2:$A$80,MATCH('Communication Facility (Desc)'!G77,[1]!MASTER_COUNTY_NAME[#Data],0),0)))","v":""},{"$f":"IF('Communication Facility (Desc)'!H77=\"\",\"\",'Communication Facility (Desc)'!H77)","v":""},{"$f":"IF('Communication Facility (Desc)'!I77=\"\",\"\",'Communication Facility (Desc)'!I77)","v":""},{"$f":"IF('Communication Facility (Desc)'!J77=\"\",\"\",'Communication Facility (Desc)'!J77)","v":""},{"$f":"IF('Communication Facility (Desc)'!K77=\"\",\"\",INDEX([1]CABINET_TYPE!$A$2:$A$100,MATCH('Communication Facility (Desc)'!$K77,[1]!MASTER_CABINET_TYPE_DESC[#Data],0),0))","v":""},{"$f":"IF('Communication Facility (Desc)'!L77=\"\",\"\",INDEX([1]CABINET_MOUNT_TYPE!$A$2:$A$100,MATCH('Communication Facility (Desc)'!L77,[1]!MASTER_CABINET_MOUNT_TYPE_DESC[#Data],0),0))","v":""},{"$f":"IF('Communication Facility (Desc)'!M77=\"\",\"\",INDEX([1]YES_NO!$A$2:$A$100,MATCH('Communication Facility (Desc)'!M77,[1]!MASTER_YES_NO_DESC[#Data],0),0))","v":""},{"$f":"IF('Communication Facility (Desc)'!N77=\"\",\"\",INDEX([1]BUILDING_TYPE!$A$2:$A$100,MATCH('Communication Facility (Desc)'!$N77,[1]!MASTER_BUILDING_TYPE_DESC[#Data],0),0))","v":""},{"$f":"IF('Communication Facility (Desc)'!O77=\"\",\"\",'Communication Facility (Desc)'!O77)","v":""},{"$f":"IF('Communication Facility (Desc)'!P77=\"\",\"\",INDEX([1]BUILDING_MTL!$A$2:$A$100,MATCH('Communication Facility (Desc)'!$P77,[1]!MASTER_BUILDING_MTL_DESC[#Data],0),0))","v":""},{"$f":"IF('Communication Facility (Desc)'!Q77=\"\",\"\",INDEX([1]KEY_TYPE!$A$2:$A$100,MATCH('Communication Facility (Desc)'!$Q77,[1]!MASTER_KEY_TYPE_DESC[#Data],0),0))","v":""},{"$f":"IF('Communication Facility (Desc)'!R77=\"\",\"\",'Communication Facility (Desc)'!R77)","v":""},{"$f":"IF('Communication Facility (Desc)'!S77=\"\",\"\",INDEX([1]FILTER_TYPE!$A$2:$A$100,MATCH('Communication Facility (Desc)'!$S77,[1]!MASTER_FILTER_TYPE_DESC[#Data],0),0))","v":""},{"$f":"IF('Communication Facility (Desc)'!T77=\"\",\"\",INDEX([1]FILTER_SIZE!$A$2:$A$100,MATCH('Communication Facility (Desc)'!$T77,[1]!MASTER_FILTER_SIZE_DESC[#Data],0),0))","v":""},{"$f":"IF('Communication Facility (Desc)'!U77=\"\",\"\",'Communication Facility (Desc)'!U77)","v":""},{"$f":"IF('Communication Facility (Desc)'!V77=\"\",\"\",INDEX([1]YES_NO!$A$2:$A$100,MATCH('Communication Facility (Desc)'!$V77,[1]!MASTER_YES_NO_DESC[#Data],0),0))","v":""},{"$f":"IF('Communication Facility (Desc)'!W77=\"\",\"\",INDEX([1]YES_NO!$A$2:$A$100,MATCH('Communication Facility (Desc)'!$W77,[1]!MASTER_YES_NO_DESC[#Data],0),0))","v":""}]
[{"$f":"IF('Communication Facility (Desc)'!A78=\"\",\"\",'Communication Facility (Desc)'!A78)","v":""},{"$f":"IF('Communication Facility (Desc)'!B78=\"\",\"\",'Communication Facility (Desc)'!B78)","v":""},{"$f":"IF('Communication Facility (Desc)'!C78=\"\",\"\",'Communication Facility (Desc)'!C78)","v":""},{"$f":"IF('Communication Facility (Desc)'!D78=\"\",\"\",'Communication Facility (Desc)'!D78)","v":""},{"$f":"IF('Communication Facility (Desc)'!E78=\"\",\"\",INDEX([1]FACILITY_TYPE!$A$2:$A$100,MATCH('Communication Facility (Desc)'!$E78,[1]!MASTER_FACILITY_TYPE_DESC[#Data],0),0))","v":""},{"$f":"IF('Communication Facility (Desc)'!F78=\"\",\"\",INDEX([1]OWNER!$A$2:$A$100,MATCH('Communication Facility (Desc)'!$F78,[1]!MASTER_OWNER_DESC[#Data],0),0))","v":""},{"$f":"IF('Communication Facility (Desc)'!G78=\"\",\"\",IF('Communication Facility (Desc)'!G78=\"\",\"\",INDEX([1]COUNTY!$A$2:$A$80,MATCH('Communication Facility (Desc)'!G78,[1]!MASTER_COUNTY_NAME[#Data],0),0)))","v":""},{"$f":"IF('Communication Facility (Desc)'!H78=\"\",\"\",'Communication Facility (Desc)'!H78)","v":""},{"$f":"IF('Communication Facility (Desc)'!I78=\"\",\"\",'Communication Facility (Desc)'!I78)","v":""},{"$f":"IF('Communication Facility (Desc)'!J78=\"\",\"\",'Communication Facility (Desc)'!J78)","v":""},{"$f":"IF('Communication Facility (Desc)'!K78=\"\",\"\",INDEX([1]CABINET_TYPE!$A$2:$A$100,MATCH('Communication Facility (Desc)'!$K78,[1]!MASTER_CABINET_TYPE_DESC[#Data],0),0))","v":""},{"$f":"IF('Communication Facility (Desc)'!L78=\"\",\"\",INDEX([1]CABINET_MOUNT_TYPE!$A$2:$A$100,MATCH('Communication Facility (Desc)'!L78,[1]!MASTER_CABINET_MOUNT_TYPE_DESC[#Data],0),0))","v":""},{"$f":"IF('Communication Facility (Desc)'!M78=\"\",\"\",INDEX([1]YES_NO!$A$2:$A$100,MATCH('Communication Facility (Desc)'!M78,[1]!MASTER_YES_NO_DESC[#Data],0),0))","v":""},{"$f":"IF('Communication Facility (Desc)'!N78=\"\",\"\",INDEX([1]BUILDING_TYPE!$A$2:$A$100,MATCH('Communication Facility (Desc)'!$N78,[1]!MASTER_BUILDING_TYPE_DESC[#Data],0),0))","v":""},{"$f":"IF('Communication Facility (Desc)'!O78=\"\",\"\",'Communication Facility (Desc)'!O78)","v":""},{"$f":"IF('Communication Facility (Desc)'!P78=\"\",\"\",INDEX([1]BUILDING_MTL!$A$2:$A$100,MATCH('Communication Facility (Desc)'!$P78,[1]!MASTER_BUILDING_MTL_DESC[#Data],0),0))","v":""},{"$f":"IF('Communication Facility (Desc)'!Q78=\"\",\"\",INDEX([1]KEY_TYPE!$A$2:$A$100,MATCH('Communication Facility (Desc)'!$Q78,[1]!MASTER_KEY_TYPE_DESC[#Data],0),0))","v":""},{"$f":"IF('Communication Facility (Desc)'!R78=\"\",\"\",'Communication Facility (Desc)'!R78)","v":""},{"$f":"IF('Communication Facility (Desc)'!S78=\"\",\"\",INDEX([1]FILTER_TYPE!$A$2:$A$100,MATCH('Communication Facility (Desc)'!$S78,[1]!MASTER_FILTER_TYPE_DESC[#Data],0),0))","v":""},{"$f":"IF('Communication Facility (Desc)'!T78=\"\",\"\",INDEX([1]FILTER_SIZE!$A$2:$A$100,MATCH('Communication Facility (Desc)'!$T78,[1]!MASTER_FILTER_SIZE_DESC[#Data],0),0))","v":""},{"$f":"IF('Communication Facility (Desc)'!U78=\"\",\"\",'Communication Facility (Desc)'!U78)","v":""},{"$f":"IF('Communication Facility (Desc)'!V78=\"\",\"\",INDEX([1]YES_NO!$A$2:$A$100,MATCH('Communication Facility (Desc)'!$V78,[1]!MASTER_YES_NO_DESC[#Data],0),0))","v":""},{"$f":"IF('Communication Facility (Desc)'!W78=\"\",\"\",INDEX([1]YES_NO!$A$2:$A$100,MATCH('Communication Facility (Desc)'!$W78,[1]!MASTER_YES_NO_DESC[#Data],0),0))","v":""}]
[{"$f":"IF('Communication Facility (Desc)'!A79=\"\",\"\",'Communication Facility (Desc)'!A79)","v":""},{"$f":"IF('Communication Facility (Desc)'!B79=\"\",\"\",'Communication Facility (Desc)'!B79)","v":""},{"$f":"IF('Communication Facility (Desc)'!C79=\"\",\"\",'Communication Facility (Desc)'!C79)","v":""},{"$f":"IF('Communication Facility (Desc)'!D79=\"\",\"\",'Communication Facility (Desc)'!D79)","v":""},{"$f":"IF('Communication Facility (Desc)'!E79=\"\",\"\",INDEX([1]FACILITY_TYPE!$A$2:$A$100,MATCH('Communication Facility (Desc)'!$E79,[1]!MASTER_FACILITY_TYPE_DESC[#Data],0),0))","v":""},{"$f":"IF('Communication Facility (Desc)'!F79=\"\",\"\",INDEX([1]OWNER!$A$2:$A$100,MATCH('Communication Facility (Desc)'!$F79,[1]!MASTER_OWNER_DESC[#Data],0),0))","v":""},{"$f":"IF('Communication Facility (Desc)'!G79=\"\",\"\",IF('Communication Facility (Desc)'!G79=\"\",\"\",INDEX([1]COUNTY!$A$2:$A$80,MATCH('Communication Facility (Desc)'!G79,[1]!MASTER_COUNTY_NAME[#Data],0),0)))","v":""},{"$f":"IF('Communication Facility (Desc)'!H79=\"\",\"\",'Communication Facility (Desc)'!H79)","v":""},{"$f":"IF('Communication Facility (Desc)'!I79=\"\",\"\",'Communication Facility (Desc)'!I79)","v":""},{"$f":"IF('Communication Facility (Desc)'!J79=\"\",\"\",'Communication Facility (Desc)'!J79)","v":""},{"$f":"IF('Communication Facility (Desc)'!K79=\"\",\"\",INDEX([1]CABINET_TYPE!$A$2:$A$100,MATCH('Communication Facility (Desc)'!$K79,[1]!MASTER_CABINET_TYPE_DESC[#Data],0),0))","v":""},{"$f":"IF('Communication Facility (Desc)'!L79=\"\",\"\",INDEX([1]CABINET_MOUNT_TYPE!$A$2:$A$100,MATCH('Communication Facility (Desc)'!L79,[1]!MASTER_CABINET_MOUNT_TYPE_DESC[#Data],0),0))","v":""},{"$f":"IF('Communication Facility (Desc)'!M79=\"\",\"\",INDEX([1]YES_NO!$A$2:$A$100,MATCH('Communication Facility (Desc)'!M79,[1]!MASTER_YES_NO_DESC[#Data],0),0))","v":""},{"$f":"IF('Communication Facility (Desc)'!N79=\"\",\"\",INDEX([1]BUILDING_TYPE!$A$2:$A$100,MATCH('Communication Facility (Desc)'!$N79,[1]!MASTER_BUILDING_TYPE_DESC[#Data],0),0))","v":""},{"$f":"IF('Communication Facility (Desc)'!O79=\"\",\"\",'Communication Facility (Desc)'!O79)","v":""},{"$f":"IF('Communication Facility (Desc)'!P79=\"\",\"\",INDEX([1]BUILDING_MTL!$A$2:$A$100,MATCH('Communication Facility (Desc)'!$P79,[1]!MASTER_BUILDING_MTL_DESC[#Data],0),0))","v":""},{"$f":"IF('Communication Facility (Desc)'!Q79=\"\",\"\",INDEX([1]KEY_TYPE!$A$2:$A$100,MATCH('Communication Facility (Desc)'!$Q79,[1]!MASTER_KEY_TYPE_DESC[#Data],0),0))","v":""},{"$f":"IF('Communication Facility (Desc)'!R79=\"\",\"\",'Communication Facility (Desc)'!R79)","v":""},{"$f":"IF('Communication Facility (Desc)'!S79=\"\",\"\",INDEX([1]FILTER_TYPE!$A$2:$A$100,MATCH('Communication Facility (Desc)'!$S79,[1]!MASTER_FILTER_TYPE_DESC[#Data],0),0))","v":""},{"$f":"IF('Communication Facility (Desc)'!T79=\"\",\"\",INDEX([1]FILTER_SIZE!$A$2:$A$100,MATCH('Communication Facility (Desc)'!$T79,[1]!MASTER_FILTER_SIZE_DESC[#Data],0),0))","v":""},{"$f":"IF('Communication Facility (Desc)'!U79=\"\",\"\",'Communication Facility (Desc)'!U79)","v":""},{"$f":"IF('Communication Facility (Desc)'!V79=\"\",\"\",INDEX([1]YES_NO!$A$2:$A$100,MATCH('Communication Facility (Desc)'!$V79,[1]!MASTER_YES_NO_DESC[#Data],0),0))","v":""},{"$f":"IF('Communication Facility (Desc)'!W79=\"\",\"\",INDEX([1]YES_NO!$A$2:$A$100,MATCH('Communication Facility (Desc)'!$W79,[1]!MASTER_YES_NO_DESC[#Data],0),0))","v":""}]
[{"$f":"IF('Communication Facility (Desc)'!A80=\"\",\"\",'Communication Facility (Desc)'!A80)","v":""},{"$f":"IF('Communication Facility (Desc)'!B80=\"\",\"\",'Communication Facility (Desc)'!B80)","v":""},{"$f":"IF('Communication Facility (Desc)'!C80=\"\",\"\",'Communication Facility (Desc)'!C80)","v":""},{"$f":"IF('Communication Facility (Desc)'!D80=\"\",\"\",'Communication Facility (Desc)'!D80)","v":""},{"$f":"IF('Communication Facility (Desc)'!E80=\"\",\"\",INDEX([1]FACILITY_TYPE!$A$2:$A$100,MATCH('Communication Facility (Desc)'!$E80,[1]!MASTER_FACILITY_TYPE_DESC[#Data],0),0))","v":""},{"$f":"IF('Communication Facility (Desc)'!F80=\"\",\"\",INDEX([1]OWNER!$A$2:$A$100,MATCH('Communication Facility (Desc)'!$F80,[1]!MASTER_OWNER_DESC[#Data],0),0))","v":""},{"$f":"IF('Communication Facility (Desc)'!G80=\"\",\"\",IF('Communication Facility (Desc)'!G80=\"\",\"\",INDEX([1]COUNTY!$A$2:$A$80,MATCH('Communication Facility (Desc)'!G80,[1]!MASTER_COUNTY_NAME[#Data],0),0)))","v":""},{"$f":"IF('Communication Facility (Desc)'!H80=\"\",\"\",'Communication Facility (Desc)'!H80)","v":""},{"$f":"IF('Communication Facility (Desc)'!I80=\"\",\"\",'Communication Facility (Desc)'!I80)","v":""},{"$f":"IF('Communication Facility (Desc)'!J80=\"\",\"\",'Communication Facility (Desc)'!J80)","v":""},{"$f":"IF('Communication Facility (Desc)'!K80=\"\",\"\",INDEX([1]CABINET_TYPE!$A$2:$A$100,MATCH('Communication Facility (Desc)'!$K80,[1]!MASTER_CABINET_TYPE_DESC[#Data],0),0))","v":""},{"$f":"IF('Communication Facility (Desc)'!L80=\"\",\"\",INDEX([1]CABINET_MOUNT_TYPE!$A$2:$A$100,MATCH('Communication Facility (Desc)'!L80,[1]!MASTER_CABINET_MOUNT_TYPE_DESC[#Data],0),0))","v":""},{"$f":"IF('Communication Facility (Desc)'!M80=\"\",\"\",INDEX([1]YES_NO!$A$2:$A$100,MATCH('Communication Facility (Desc)'!M80,[1]!MASTER_YES_NO_DESC[#Data],0),0))","v":""},{"$f":"IF('Communication Facility (Desc)'!N80=\"\",\"\",INDEX([1]BUILDING_TYPE!$A$2:$A$100,MATCH('Communication Facility (Desc)'!$N80,[1]!MASTER_BUILDING_TYPE_DESC[#Data],0),0))","v":""},{"$f":"IF('Communication Facility (Desc)'!O80=\"\",\"\",'Communication Facility (Desc)'!O80)","v":""},{"$f":"IF('Communication Facility (Desc)'!P80=\"\",\"\",INDEX([1]BUILDING_MTL!$A$2:$A$100,MATCH('Communication Facility (Desc)'!$P80,[1]!MASTER_BUILDING_MTL_DESC[#Data],0),0))","v":""},{"$f":"IF('Communication Facility (Desc)'!Q80=\"\",\"\",INDEX([1]KEY_TYPE!$A$2:$A$100,MATCH('Communication Facility (Desc)'!$Q80,[1]!MASTER_KEY_TYPE_DESC[#Data],0),0))","v":""},{"$f":"IF('Communication Facility (Desc)'!R80=\"\",\"\",'Communication Facility (Desc)'!R80)","v":""},{"$f":"IF('Communication Facility (Desc)'!S80=\"\",\"\",INDEX([1]FILTER_TYPE!$A$2:$A$100,MATCH('Communication Facility (Desc)'!$S80,[1]!MASTER_FILTER_TYPE_DESC[#Data],0),0))","v":""},{"$f":"IF('Communication Facility (Desc)'!T80=\"\",\"\",INDEX([1]FILTER_SIZE!$A$2:$A$100,MATCH('Communication Facility (Desc)'!$T80,[1]!MASTER_FILTER_SIZE_DESC[#Data],0),0))","v":""},{"$f":"IF('Communication Facility (Desc)'!U80=\"\",\"\",'Communication Facility (Desc)'!U80)","v":""},{"$f":"IF('Communication Facility (Desc)'!V80=\"\",\"\",INDEX([1]YES_NO!$A$2:$A$100,MATCH('Communication Facility (Desc)'!$V80,[1]!MASTER_YES_NO_DESC[#Data],0),0))","v":""},{"$f":"IF('Communication Facility (Desc)'!W80=\"\",\"\",INDEX([1]YES_NO!$A$2:$A$100,MATCH('Communication Facility (Desc)'!$W80,[1]!MASTER_YES_NO_DESC[#Data],0),0))","v":""}]
[{"$f":"IF('Communication Facility (Desc)'!A81=\"\",\"\",'Communication Facility (Desc)'!A81)","v":""},{"$f":"IF('Communication Facility (Desc)'!B81=\"\",\"\",'Communication Facility (Desc)'!B81)","v":""},{"$f":"IF('Communication Facility (Desc)'!C81=\"\",\"\",'Communication Facility (Desc)'!C81)","v":""},{"$f":"IF('Communication Facility (Desc)'!D81=\"\",\"\",'Communication Facility (Desc)'!D81)","v":""},{"$f":"IF('Communication Facility (Desc)'!E81=\"\",\"\",INDEX([1]FACILITY_TYPE!$A$2:$A$100,MATCH('Communication Facility (Desc)'!$E81,[1]!MASTER_FACILITY_TYPE_DESC[#Data],0),0))","v":""},{"$f":"IF('Communication Facility (Desc)'!F81=\"\",\"\",INDEX([1]OWNER!$A$2:$A$100,MATCH('Communication Facility (Desc)'!$F81,[1]!MASTER_OWNER_DESC[#Data],0),0))","v":""},{"$f":"IF('Communication Facility (Desc)'!G81=\"\",\"\",IF('Communication Facility (Desc)'!G81=\"\",\"\",INDEX([1]COUNTY!$A$2:$A$80,MATCH('Communication Facility (Desc)'!G81,[1]!MASTER_COUNTY_NAME[#Data],0),0)))","v":""},{"$f":"IF('Communication Facility (Desc)'!H81=\"\",\"\",'Communication Facility (Desc)'!H81)","v":""},{"$f":"IF('Communication Facility (Desc)'!I81=\"\",\"\",'Communication Facility (Desc)'!I81)","v":""},{"$f":"IF('Communication Facility (Desc)'!J81=\"\",\"\",'Communication Facility (Desc)'!J81)","v":""},{"$f":"IF('Communication Facility (Desc)'!K81=\"\",\"\",INDEX([1]CABINET_TYPE!$A$2:$A$100,MATCH('Communication Facility (Desc)'!$K81,[1]!MASTER_CABINET_TYPE_DESC[#Data],0),0))","v":""},{"$f":"IF('Communication Facility (Desc)'!L81=\"\",\"\",INDEX([1]CABINET_MOUNT_TYPE!$A$2:$A$100,MATCH('Communication Facility (Desc)'!L81,[1]!MASTER_CABINET_MOUNT_TYPE_DESC[#Data],0),0))","v":""},{"$f":"IF('Communication Facility (Desc)'!M81=\"\",\"\",INDEX([1]YES_NO!$A$2:$A$100,MATCH('Communication Facility (Desc)'!M81,[1]!MASTER_YES_NO_DESC[#Data],0),0))","v":""},{"$f":"IF('Communication Facility (Desc)'!N81=\"\",\"\",INDEX([1]BUILDING_TYPE!$A$2:$A$100,MATCH('Communication Facility (Desc)'!$N81,[1]!MASTER_BUILDING_TYPE_DESC[#Data],0),0))","v":""},{"$f":"IF('Communication Facility (Desc)'!O81=\"\",\"\",'Communication Facility (Desc)'!O81)","v":""},{"$f":"IF('Communication Facility (Desc)'!P81=\"\",\"\",INDEX([1]BUILDING_MTL!$A$2:$A$100,MATCH('Communication Facility (Desc)'!$P81,[1]!MASTER_BUILDING_MTL_DESC[#Data],0),0))","v":""},{"$f":"IF('Communication Facility (Desc)'!Q81=\"\",\"\",INDEX([1]KEY_TYPE!$A$2:$A$100,MATCH('Communication Facility (Desc)'!$Q81,[1]!MASTER_KEY_TYPE_DESC[#Data],0),0))","v":""},{"$f":"IF('Communication Facility (Desc)'!R81=\"\",\"\",'Communication Facility (Desc)'!R81)","v":""},{"$f":"IF('Communication Facility (Desc)'!S81=\"\",\"\",INDEX([1]FILTER_TYPE!$A$2:$A$100,MATCH('Communication Facility (Desc)'!$S81,[1]!MASTER_FILTER_TYPE_DESC[#Data],0),0))","v":""},{"$f":"IF('Communication Facility (Desc)'!T81=\"\",\"\",INDEX([1]FILTER_SIZE!$A$2:$A$100,MATCH('Communication Facility (Desc)'!$T81,[1]!MASTER_FILTER_SIZE_DESC[#Data],0),0))","v":""},{"$f":"IF('Communication Facility (Desc)'!U81=\"\",\"\",'Communication Facility (Desc)'!U81)","v":""},{"$f":"IF('Communication Facility (Desc)'!V81=\"\",\"\",INDEX([1]YES_NO!$A$2:$A$100,MATCH('Communication Facility (Desc)'!$V81,[1]!MASTER_YES_NO_DESC[#Data],0),0))","v":""},{"$f":"IF('Communication Facility (Desc)'!W81=\"\",\"\",INDEX([1]YES_NO!$A$2:$A$100,MATCH('Communication Facility (Desc)'!$W81,[1]!MASTER_YES_NO_DESC[#Data],0),0))","v":""}]
[{"$f":"IF('Communication Facility (Desc)'!A82=\"\",\"\",'Communication Facility (Desc)'!A82)","v":""},{"$f":"IF('Communication Facility (Desc)'!B82=\"\",\"\",'Communication Facility (Desc)'!B82)","v":""},{"$f":"IF('Communication Facility (Desc)'!C82=\"\",\"\",'Communication Facility (Desc)'!C82)","v":""},{"$f":"IF('Communication Facility (Desc)'!D82=\"\",\"\",'Communication Facility (Desc)'!D82)","v":""},{"$f":"IF('Communication Facility (Desc)'!E82=\"\",\"\",INDEX([1]FACILITY_TYPE!$A$2:$A$100,MATCH('Communication Facility (Desc)'!$E82,[1]!MASTER_FACILITY_TYPE_DESC[#Data],0),0))","v":""},{"$f":"IF('Communication Facility (Desc)'!F82=\"\",\"\",INDEX([1]OWNER!$A$2:$A$100,MATCH('Communication Facility (Desc)'!$F82,[1]!MASTER_OWNER_DESC[#Data],0),0))","v":""},{"$f":"IF('Communication Facility (Desc)'!G82=\"\",\"\",IF('Communication Facility (Desc)'!G82=\"\",\"\",INDEX([1]COUNTY!$A$2:$A$80,MATCH('Communication Facility (Desc)'!G82,[1]!MASTER_COUNTY_NAME[#Data],0),0)))","v":""},{"$f":"IF('Communication Facility (Desc)'!H82=\"\",\"\",'Communication Facility (Desc)'!H82)","v":""},{"$f":"IF('Communication Facility (Desc)'!I82=\"\",\"\",'Communication Facility (Desc)'!I82)","v":""},{"$f":"IF('Communication Facility (Desc)'!J82=\"\",\"\",'Communication Facility (Desc)'!J82)","v":""},{"$f":"IF('Communication Facility (Desc)'!K82=\"\",\"\",INDEX([1]CABINET_TYPE!$A$2:$A$100,MATCH('Communication Facility (Desc)'!$K82,[1]!MASTER_CABINET_TYPE_DESC[#Data],0),0))","v":""},{"$f":"IF('Communication Facility (Desc)'!L82=\"\",\"\",INDEX([1]CABINET_MOUNT_TYPE!$A$2:$A$100,MATCH('Communication Facility (Desc)'!L82,[1]!MASTER_CABINET_MOUNT_TYPE_DESC[#Data],0),0))","v":""},{"$f":"IF('Communication Facility (Desc)'!M82=\"\",\"\",INDEX([1]YES_NO!$A$2:$A$100,MATCH('Communication Facility (Desc)'!M82,[1]!MASTER_YES_NO_DESC[#Data],0),0))","v":""},{"$f":"IF('Communication Facility (Desc)'!N82=\"\",\"\",INDEX([1]BUILDING_TYPE!$A$2:$A$100,MATCH('Communication Facility (Desc)'!$N82,[1]!MASTER_BUILDING_TYPE_DESC[#Data],0),0))","v":""},{"$f":"IF('Communication Facility (Desc)'!O82=\"\",\"\",'Communication Facility (Desc)'!O82)","v":""},{"$f":"IF('Communication Facility (Desc)'!P82=\"\",\"\",INDEX([1]BUILDING_MTL!$A$2:$A$100,MATCH('Communication Facility (Desc)'!$P82,[1]!MASTER_BUILDING_MTL_DESC[#Data],0),0))","v":""},{"$f":"IF('Communication Facility (Desc)'!Q82=\"\",\"\",INDEX([1]KEY_TYPE!$A$2:$A$100,MATCH('Communication Facility (Desc)'!$Q82,[1]!MASTER_KEY_TYPE_DESC[#Data],0),0))","v":""},{"$f":"IF('Communication Facility (Desc)'!R82=\"\",\"\",'Communication Facility (Desc)'!R82)","v":""},{"$f":"IF('Communication Facility (Desc)'!S82=\"\",\"\",INDEX([1]FILTER_TYPE!$A$2:$A$100,MATCH('Communication Facility (Desc)'!$S82,[1]!MASTER_FILTER_TYPE_DESC[#Data],0),0))","v":""},{"$f":"IF('Communication Facility (Desc)'!T82=\"\",\"\",INDEX([1]FILTER_SIZE!$A$2:$A$100,MATCH('Communication Facility (Desc)'!$T82,[1]!MASTER_FILTER_SIZE_DESC[#Data],0),0))","v":""},{"$f":"IF('Communication Facility (Desc)'!U82=\"\",\"\",'Communication Facility (Desc)'!U82)","v":""},{"$f":"IF('Communication Facility (Desc)'!V82=\"\",\"\",INDEX([1]YES_NO!$A$2:$A$100,MATCH('Communication Facility (Desc)'!$V82,[1]!MASTER_YES_NO_DESC[#Data],0),0))","v":""},{"$f":"IF('Communication Facility (Desc)'!W82=\"\",\"\",INDEX([1]YES_NO!$A$2:$A$100,MATCH('Communication Facility (Desc)'!$W82,[1]!MASTER_YES_NO_DESC[#Data],0),0))","v":""}]
[{"$f":"IF('Communication Facility (Desc)'!A83=\"\",\"\",'Communication Facility (Desc)'!A83)","v":""},{"$f":"IF('Communication Facility (Desc)'!B83=\"\",\"\",'Communication Facility (Desc)'!B83)","v":""},{"$f":"IF('Communication Facility (Desc)'!C83=\"\",\"\",'Communication Facility (Desc)'!C83)","v":""},{"$f":"IF('Communication Facility (Desc)'!D83=\"\",\"\",'Communication Facility (Desc)'!D83)","v":""},{"$f":"IF('Communication Facility (Desc)'!E83=\"\",\"\",INDEX([1]FACILITY_TYPE!$A$2:$A$100,MATCH('Communication Facility (Desc)'!$E83,[1]!MASTER_FACILITY_TYPE_DESC[#Data],0),0))","v":""},{"$f":"IF('Communication Facility (Desc)'!F83=\"\",\"\",INDEX([1]OWNER!$A$2:$A$100,MATCH('Communication Facility (Desc)'!$F83,[1]!MASTER_OWNER_DESC[#Data],0),0))","v":""},{"$f":"IF('Communication Facility (Desc)'!G83=\"\",\"\",IF('Communication Facility (Desc)'!G83=\"\",\"\",INDEX([1]COUNTY!$A$2:$A$80,MATCH('Communication Facility (Desc)'!G83,[1]!MASTER_COUNTY_NAME[#Data],0),0)))","v":""},{"$f":"IF('Communication Facility (Desc)'!H83=\"\",\"\",'Communication Facility (Desc)'!H83)","v":""},{"$f":"IF('Communication Facility (Desc)'!I83=\"\",\"\",'Communication Facility (Desc)'!I83)","v":""},{"$f":"IF('Communication Facility (Desc)'!J83=\"\",\"\",'Communication Facility (Desc)'!J83)","v":""},{"$f":"IF('Communication Facility (Desc)'!K83=\"\",\"\",INDEX([1]CABINET_TYPE!$A$2:$A$100,MATCH('Communication Facility (Desc)'!$K83,[1]!MASTER_CABINET_TYPE_DESC[#Data],0),0))","v":""},{"$f":"IF('Communication Facility (Desc)'!L83=\"\",\"\",INDEX([1]CABINET_MOUNT_TYPE!$A$2:$A$100,MATCH('Communication Facility (Desc)'!L83,[1]!MASTER_CABINET_MOUNT_TYPE_DESC[#Data],0),0))","v":""},{"$f":"IF('Communication Facility (Desc)'!M83=\"\",\"\",INDEX([1]YES_NO!$A$2:$A$100,MATCH('Communication Facility (Desc)'!M83,[1]!MASTER_YES_NO_DESC[#Data],0),0))","v":""},{"$f":"IF('Communication Facility (Desc)'!N83=\"\",\"\",INDEX([1]BUILDING_TYPE!$A$2:$A$100,MATCH('Communication Facility (Desc)'!$N83,[1]!MASTER_BUILDING_TYPE_DESC[#Data],0),0))","v":""},{"$f":"IF('Communication Facility (Desc)'!O83=\"\",\"\",'Communication Facility (Desc)'!O83)","v":""},{"$f":"IF('Communication Facility (Desc)'!P83=\"\",\"\",INDEX([1]BUILDING_MTL!$A$2:$A$100,MATCH('Communication Facility (Desc)'!$P83,[1]!MASTER_BUILDING_MTL_DESC[#Data],0),0))","v":""},{"$f":"IF('Communication Facility (Desc)'!Q83=\"\",\"\",INDEX([1]KEY_TYPE!$A$2:$A$100,MATCH('Communication Facility (Desc)'!$Q83,[1]!MASTER_KEY_TYPE_DESC[#Data],0),0))","v":""},{"$f":"IF('Communication Facility (Desc)'!R83=\"\",\"\",'Communication Facility (Desc)'!R83)","v":""},{"$f":"IF('Communication Facility (Desc)'!S83=\"\",\"\",INDEX([1]FILTER_TYPE!$A$2:$A$100,MATCH('Communication Facility (Desc)'!$S83,[1]!MASTER_FILTER_TYPE_DESC[#Data],0),0))","v":""},{"$f":"IF('Communication Facility (Desc)'!T83=\"\",\"\",INDEX([1]FILTER_SIZE!$A$2:$A$100,MATCH('Communication Facility (Desc)'!$T83,[1]!MASTER_FILTER_SIZE_DESC[#Data],0),0))","v":""},{"$f":"IF('Communication Facility (Desc)'!U83=\"\",\"\",'Communication Facility (Desc)'!U83)","v":""},{"$f":"IF('Communication Facility (Desc)'!V83=\"\",\"\",INDEX([1]YES_NO!$A$2:$A$100,MATCH('Communication Facility (Desc)'!$V83,[1]!MASTER_YES_NO_DESC[#Data],0),0))","v":""},{"$f":"IF('Communication Facility (Desc)'!W83=\"\",\"\",INDEX([1]YES_NO!$A$2:$A$100,MATCH('Communication Facility (Desc)'!$W83,[1]!MASTER_YES_NO_DESC[#Data],0),0))","v":""}]
[{"$f":"IF('Communication Facility (Desc)'!A84=\"\",\"\",'Communication Facility (Desc)'!A84)","v":""},{"$f":"IF('Communication Facility (Desc)'!B84=\"\",\"\",'Communication Facility (Desc)'!B84)","v":""},{"$f":"IF('Communication Facility (Desc)'!C84=\"\",\"\",'Communication Facility (Desc)'!C84)","v":""},{"$f":"IF('Communication Facility (Desc)'!D84=\"\",\"\",'Communication Facility (Desc)'!D84)","v":""},{"$f":"IF('Communication Facility (Desc)'!E84=\"\",\"\",INDEX([1]FACILITY_TYPE!$A$2:$A$100,MATCH('Communication Facility (Desc)'!$E84,[1]!MASTER_FACILITY_TYPE_DESC[#Data],0),0))","v":""},{"$f":"IF('Communication Facility (Desc)'!F84=\"\",\"\",INDEX([1]OWNER!$A$2:$A$100,MATCH('Communication Facility (Desc)'!$F84,[1]!MASTER_OWNER_DESC[#Data],0),0))","v":""},{"$f":"IF('Communication Facility (Desc)'!G84=\"\",\"\",IF('Communication Facility (Desc)'!G84=\"\",\"\",INDEX([1]COUNTY!$A$2:$A$80,MATCH('Communication Facility (Desc)'!G84,[1]!MASTER_COUNTY_NAME[#Data],0),0)))","v":""},{"$f":"IF('Communication Facility (Desc)'!H84=\"\",\"\",'Communication Facility (Desc)'!H84)","v":""},{"$f":"IF('Communication Facility (Desc)'!I84=\"\",\"\",'Communication Facility (Desc)'!I84)","v":""},{"$f":"IF('Communication Facility (Desc)'!J84=\"\",\"\",'Communication Facility (Desc)'!J84)","v":""},{"$f":"IF('Communication Facility (Desc)'!K84=\"\",\"\",INDEX([1]CABINET_TYPE!$A$2:$A$100,MATCH('Communication Facility (Desc)'!$K84,[1]!MASTER_CABINET_TYPE_DESC[#Data],0),0))","v":""},{"$f":"IF('Communication Facility (Desc)'!L84=\"\",\"\",INDEX([1]CABINET_MOUNT_TYPE!$A$2:$A$100,MATCH('Communication Facility (Desc)'!L84,[1]!MASTER_CABINET_MOUNT_TYPE_DESC[#Data],0),0))","v":""},{"$f":"IF('Communication Facility (Desc)'!M84=\"\",\"\",INDEX([1]YES_NO!$A$2:$A$100,MATCH('Communication Facility (Desc)'!M84,[1]!MASTER_YES_NO_DESC[#Data],0),0))","v":""},{"$f":"IF('Communication Facility (Desc)'!N84=\"\",\"\",INDEX([1]BUILDING_TYPE!$A$2:$A$100,MATCH('Communication Facility (Desc)'!$N84,[1]!MASTER_BUILDING_TYPE_DESC[#Data],0),0))","v":""},{"$f":"IF('Communication Facility (Desc)'!O84=\"\",\"\",'Communication Facility (Desc)'!O84)","v":""},{"$f":"IF('Communication Facility (Desc)'!P84=\"\",\"\",INDEX([1]BUILDING_MTL!$A$2:$A$100,MATCH('Communication Facility (Desc)'!$P84,[1]!MASTER_BUILDING_MTL_DESC[#Data],0),0))","v":""},{"$f":"IF('Communication Facility (Desc)'!Q84=\"\",\"\",INDEX([1]KEY_TYPE!$A$2:$A$100,MATCH('Communication Facility (Desc)'!$Q84,[1]!MASTER_KEY_TYPE_DESC[#Data],0),0))","v":""},{"$f":"IF('Communication Facility (Desc)'!R84=\"\",\"\",'Communication Facility (Desc)'!R84)","v":""},{"$f":"IF('Communication Facility (Desc)'!S84=\"\",\"\",INDEX([1]FILTER_TYPE!$A$2:$A$100,MATCH('Communication Facility (Desc)'!$S84,[1]!MASTER_FILTER_TYPE_DESC[#Data],0),0))","v":""},{"$f":"IF('Communication Facility (Desc)'!T84=\"\",\"\",INDEX([1]FILTER_SIZE!$A$2:$A$100,MATCH('Communication Facility (Desc)'!$T84,[1]!MASTER_FILTER_SIZE_DESC[#Data],0),0))","v":""},{"$f":"IF('Communication Facility (Desc)'!U84=\"\",\"\",'Communication Facility (Desc)'!U84)","v":""},{"$f":"IF('Communication Facility (Desc)'!V84=\"\",\"\",INDEX([1]YES_NO!$A$2:$A$100,MATCH('Communication Facility (Desc)'!$V84,[1]!MASTER_YES_NO_DESC[#Data],0),0))","v":""},{"$f":"IF('Communication Facility (Desc)'!W84=\"\",\"\",INDEX([1]YES_NO!$A$2:$A$100,MATCH('Communication Facility (Desc)'!$W84,[1]!MASTER_YES_NO_DESC[#Data],0),0))","v":""}]
[{"$f":"IF('Communication Facility (Desc)'!A85=\"\",\"\",'Communication Facility (Desc)'!A85)","v":""},{"$f":"IF('Communication Facility (Desc)'!B85=\"\",\"\",'Communication Facility (Desc)'!B85)","v":""},{"$f":"IF('Communication Facility (Desc)'!C85=\"\",\"\",'Communication Facility (Desc)'!C85)","v":""},{"$f":"IF('Communication Facility (Desc)'!D85=\"\",\"\",'Communication Facility (Desc)'!D85)","v":""},{"$f":"IF('Communication Facility (Desc)'!E85=\"\",\"\",INDEX([1]FACILITY_TYPE!$A$2:$A$100,MATCH('Communication Facility (Desc)'!$E85,[1]!MASTER_FACILITY_TYPE_DESC[#Data],0),0))","v":""},{"$f":"IF('Communication Facility (Desc)'!F85=\"\",\"\",INDEX([1]OWNER!$A$2:$A$100,MATCH('Communication Facility (Desc)'!$F85,[1]!MASTER_OWNER_DESC[#Data],0),0))","v":""},{"$f":"IF('Communication Facility (Desc)'!G85=\"\",\"\",IF('Communication Facility (Desc)'!G85=\"\",\"\",INDEX([1]COUNTY!$A$2:$A$80,MATCH('Communication Facility (Desc)'!G85,[1]!MASTER_COUNTY_NAME[#Data],0),0)))","v":""},{"$f":"IF('Communication Facility (Desc)'!H85=\"\",\"\",'Communication Facility (Desc)'!H85)","v":""},{"$f":"IF('Communication Facility (Desc)'!I85=\"\",\"\",'Communication Facility (Desc)'!I85)","v":""},{"$f":"IF('Communication Facility (Desc)'!J85=\"\",\"\",'Communication Facility (Desc)'!J85)","v":""},{"$f":"IF('Communication Facility (Desc)'!K85=\"\",\"\",INDEX([1]CABINET_TYPE!$A$2:$A$100,MATCH('Communication Facility (Desc)'!$K85,[1]!MASTER_CABINET_TYPE_DESC[#Data],0),0))","v":""},{"$f":"IF('Communication Facility (Desc)'!L85=\"\",\"\",INDEX([1]CABINET_MOUNT_TYPE!$A$2:$A$100,MATCH('Communication Facility (Desc)'!L85,[1]!MASTER_CABINET_MOUNT_TYPE_DESC[#Data],0),0))","v":""},{"$f":"IF('Communication Facility (Desc)'!M85=\"\",\"\",INDEX([1]YES_NO!$A$2:$A$100,MATCH('Communication Facility (Desc)'!M85,[1]!MASTER_YES_NO_DESC[#Data],0),0))","v":""},{"$f":"IF('Communication Facility (Desc)'!N85=\"\",\"\",INDEX([1]BUILDING_TYPE!$A$2:$A$100,MATCH('Communication Facility (Desc)'!$N85,[1]!MASTER_BUILDING_TYPE_DESC[#Data],0),0))","v":""},{"$f":"IF('Communication Facility (Desc)'!O85=\"\",\"\",'Communication Facility (Desc)'!O85)","v":""},{"$f":"IF('Communication Facility (Desc)'!P85=\"\",\"\",INDEX([1]BUILDING_MTL!$A$2:$A$100,MATCH('Communication Facility (Desc)'!$P85,[1]!MASTER_BUILDING_MTL_DESC[#Data],0),0))","v":""},{"$f":"IF('Communication Facility (Desc)'!Q85=\"\",\"\",INDEX([1]KEY_TYPE!$A$2:$A$100,MATCH('Communication Facility (Desc)'!$Q85,[1]!MASTER_KEY_TYPE_DESC[#Data],0),0))","v":""},{"$f":"IF('Communication Facility (Desc)'!R85=\"\",\"\",'Communication Facility (Desc)'!R85)","v":""},{"$f":"IF('Communication Facility (Desc)'!S85=\"\",\"\",INDEX([1]FILTER_TYPE!$A$2:$A$100,MATCH('Communication Facility (Desc)'!$S85,[1]!MASTER_FILTER_TYPE_DESC[#Data],0),0))","v":""},{"$f":"IF('Communication Facility (Desc)'!T85=\"\",\"\",INDEX([1]FILTER_SIZE!$A$2:$A$100,MATCH('Communication Facility (Desc)'!$T85,[1]!MASTER_FILTER_SIZE_DESC[#Data],0),0))","v":""},{"$f":"IF('Communication Facility (Desc)'!U85=\"\",\"\",'Communication Facility (Desc)'!U85)","v":""},{"$f":"IF('Communication Facility (Desc)'!V85=\"\",\"\",INDEX([1]YES_NO!$A$2:$A$100,MATCH('Communication Facility (Desc)'!$V85,[1]!MASTER_YES_NO_DESC[#Data],0),0))","v":""},{"$f":"IF('Communication Facility (Desc)'!W85=\"\",\"\",INDEX([1]YES_NO!$A$2:$A$100,MATCH('Communication Facility (Desc)'!$W85,[1]!MASTER_YES_NO_DESC[#Data],0),0))","v":""}]
[{"$f":"IF('Communication Facility (Desc)'!A86=\"\",\"\",'Communication Facility (Desc)'!A86)","v":""},{"$f":"IF('Communication Facility (Desc)'!B86=\"\",\"\",'Communication Facility (Desc)'!B86)","v":""},{"$f":"IF('Communication Facility (Desc)'!C86=\"\",\"\",'Communication Facility (Desc)'!C86)","v":""},{"$f":"IF('Communication Facility (Desc)'!D86=\"\",\"\",'Communication Facility (Desc)'!D86)","v":""},{"$f":"IF('Communication Facility (Desc)'!E86=\"\",\"\",INDEX([1]FACILITY_TYPE!$A$2:$A$100,MATCH('Communication Facility (Desc)'!$E86,[1]!MASTER_FACILITY_TYPE_DESC[#Data],0),0))","v":""},{"$f":"IF('Communication Facility (Desc)'!F86=\"\",\"\",INDEX([1]OWNER!$A$2:$A$100,MATCH('Communication Facility (Desc)'!$F86,[1]!MASTER_OWNER_DESC[#Data],0),0))","v":""},{"$f":"IF('Communication Facility (Desc)'!G86=\"\",\"\",IF('Communication Facility (Desc)'!G86=\"\",\"\",INDEX([1]COUNTY!$A$2:$A$80,MATCH('Communication Facility (Desc)'!G86,[1]!MASTER_COUNTY_NAME[#Data],0),0)))","v":""},{"$f":"IF('Communication Facility (Desc)'!H86=\"\",\"\",'Communication Facility (Desc)'!H86)","v":""},{"$f":"IF('Communication Facility (Desc)'!I86=\"\",\"\",'Communication Facility (Desc)'!I86)","v":""},{"$f":"IF('Communication Facility (Desc)'!J86=\"\",\"\",'Communication Facility (Desc)'!J86)","v":""},{"$f":"IF('Communication Facility (Desc)'!K86=\"\",\"\",INDEX([1]CABINET_TYPE!$A$2:$A$100,MATCH('Communication Facility (Desc)'!$K86,[1]!MASTER_CABINET_TYPE_DESC[#Data],0),0))","v":""},{"$f":"IF('Communication Facility (Desc)'!L86=\"\",\"\",INDEX([1]CABINET_MOUNT_TYPE!$A$2:$A$100,MATCH('Communication Facility (Desc)'!L86,[1]!MASTER_CABINET_MOUNT_TYPE_DESC[#Data],0),0))","v":""},{"$f":"IF('Communication Facility (Desc)'!M86=\"\",\"\",INDEX([1]YES_NO!$A$2:$A$100,MATCH('Communication Facility (Desc)'!M86,[1]!MASTER_YES_NO_DESC[#Data],0),0))","v":""},{"$f":"IF('Communication Facility (Desc)'!N86=\"\",\"\",INDEX([1]BUILDING_TYPE!$A$2:$A$100,MATCH('Communication Facility (Desc)'!$N86,[1]!MASTER_BUILDING_TYPE_DESC[#Data],0),0))","v":""},{"$f":"IF('Communication Facility (Desc)'!O86=\"\",\"\",'Communication Facility (Desc)'!O86)","v":""},{"$f":"IF('Communication Facility (Desc)'!P86=\"\",\"\",INDEX([1]BUILDING_MTL!$A$2:$A$100,MATCH('Communication Facility (Desc)'!$P86,[1]!MASTER_BUILDING_MTL_DESC[#Data],0),0))","v":""},{"$f":"IF('Communication Facility (Desc)'!Q86=\"\",\"\",INDEX([1]KEY_TYPE!$A$2:$A$100,MATCH('Communication Facility (Desc)'!$Q86,[1]!MASTER_KEY_TYPE_DESC[#Data],0),0))","v":""},{"$f":"IF('Communication Facility (Desc)'!R86=\"\",\"\",'Communication Facility (Desc)'!R86)","v":""},{"$f":"IF('Communication Facility (Desc)'!S86=\"\",\"\",INDEX([1]FILTER_TYPE!$A$2:$A$100,MATCH('Communication Facility (Desc)'!$S86,[1]!MASTER_FILTER_TYPE_DESC[#Data],0),0))","v":""},{"$f":"IF('Communication Facility (Desc)'!T86=\"\",\"\",INDEX([1]FILTER_SIZE!$A$2:$A$100,MATCH('Communication Facility (Desc)'!$T86,[1]!MASTER_FILTER_SIZE_DESC[#Data],0),0))","v":""},{"$f":"IF('Communication Facility (Desc)'!U86=\"\",\"\",'Communication Facility (Desc)'!U86)","v":""},{"$f":"IF('Communication Facility (Desc)'!V86=\"\",\"\",INDEX([1]YES_NO!$A$2:$A$100,MATCH('Communication Facility (Desc)'!$V86,[1]!MASTER_YES_NO_DESC[#Data],0),0))","v":""},{"$f":"IF('Communication Facility (Desc)'!W86=\"\",\"\",INDEX([1]YES_NO!$A$2:$A$100,MATCH('Communication Facility (Desc)'!$W86,[1]!MASTER_YES_NO_DESC[#Data],0),0))","v":""}]
[{"$f":"IF('Communication Facility (Desc)'!A87=\"\",\"\",'Communication Facility (Desc)'!A87)","v":""},{"$f":"IF('Communication Facility (Desc)'!B87=\"\",\"\",'Communication Facility (Desc)'!B87)","v":""},{"$f":"IF('Communication Facility (Desc)'!C87=\"\",\"\",'Communication Facility (Desc)'!C87)","v":""},{"$f":"IF('Communication Facility (Desc)'!D87=\"\",\"\",'Communication Facility (Desc)'!D87)","v":""},{"$f":"IF('Communication Facility (Desc)'!E87=\"\",\"\",INDEX([1]FACILITY_TYPE!$A$2:$A$100,MATCH('Communication Facility (Desc)'!$E87,[1]!MASTER_FACILITY_TYPE_DESC[#Data],0),0))","v":""},{"$f":"IF('Communication Facility (Desc)'!F87=\"\",\"\",INDEX([1]OWNER!$A$2:$A$100,MATCH('Communication Facility (Desc)'!$F87,[1]!MASTER_OWNER_DESC[#Data],0),0))","v":""},{"$f":"IF('Communication Facility (Desc)'!G87=\"\",\"\",IF('Communication Facility (Desc)'!G87=\"\",\"\",INDEX([1]COUNTY!$A$2:$A$80,MATCH('Communication Facility (Desc)'!G87,[1]!MASTER_COUNTY_NAME[#Data],0),0)))","v":""},{"$f":"IF('Communication Facility (Desc)'!H87=\"\",\"\",'Communication Facility (Desc)'!H87)","v":""},{"$f":"IF('Communication Facility (Desc)'!I87=\"\",\"\",'Communication Facility (Desc)'!I87)","v":""},{"$f":"IF('Communication Facility (Desc)'!J87=\"\",\"\",'Communication Facility (Desc)'!J87)","v":""},{"$f":"IF('Communication Facility (Desc)'!K87=\"\",\"\",INDEX([1]CABINET_TYPE!$A$2:$A$100,MATCH('Communication Facility (Desc)'!$K87,[1]!MASTER_CABINET_TYPE_DESC[#Data],0),0))","v":""},{"$f":"IF('Communication Facility (Desc)'!L87=\"\",\"\",INDEX([1]CABINET_MOUNT_TYPE!$A$2:$A$100,MATCH('Communication Facility (Desc)'!L87,[1]!MASTER_CABINET_MOUNT_TYPE_DESC[#Data],0),0))","v":""},{"$f":"IF('Communication Facility (Desc)'!M87=\"\",\"\",INDEX([1]YES_NO!$A$2:$A$100,MATCH('Communication Facility (Desc)'!M87,[1]!MASTER_YES_NO_DESC[#Data],0),0))","v":""},{"$f":"IF('Communication Facility (Desc)'!N87=\"\",\"\",INDEX([1]BUILDING_TYPE!$A$2:$A$100,MATCH('Communication Facility (Desc)'!$N87,[1]!MASTER_BUILDING_TYPE_DESC[#Data],0),0))","v":""},{"$f":"IF('Communication Facility (Desc)'!O87=\"\",\"\",'Communication Facility (Desc)'!O87)","v":""},{"$f":"IF('Communication Facility (Desc)'!P87=\"\",\"\",INDEX([1]BUILDING_MTL!$A$2:$A$100,MATCH('Communication Facility (Desc)'!$P87,[1]!MASTER_BUILDING_MTL_DESC[#Data],0),0))","v":""},{"$f":"IF('Communication Facility (Desc)'!Q87=\"\",\"\",INDEX([1]KEY_TYPE!$A$2:$A$100,MATCH('Communication Facility (Desc)'!$Q87,[1]!MASTER_KEY_TYPE_DESC[#Data],0),0))","v":""},{"$f":"IF('Communication Facility (Desc)'!R87=\"\",\"\",'Communication Facility (Desc)'!R87)","v":""},{"$f":"IF('Communication Facility (Desc)'!S87=\"\",\"\",INDEX([1]FILTER_TYPE!$A$2:$A$100,MATCH('Communication Facility (Desc)'!$S87,[1]!MASTER_FILTER_TYPE_DESC[#Data],0),0))","v":""},{"$f":"IF('Communication Facility (Desc)'!T87=\"\",\"\",INDEX([1]FILTER_SIZE!$A$2:$A$100,MATCH('Communication Facility (Desc)'!$T87,[1]!MASTER_FILTER_SIZE_DESC[#Data],0),0))","v":""},{"$f":"IF('Communication Facility (Desc)'!U87=\"\",\"\",'Communication Facility (Desc)'!U87)","v":""},{"$f":"IF('Communication Facility (Desc)'!V87=\"\",\"\",INDEX([1]YES_NO!$A$2:$A$100,MATCH('Communication Facility (Desc)'!$V87,[1]!MASTER_YES_NO_DESC[#Data],0),0))","v":""},{"$f":"IF('Communication Facility (Desc)'!W87=\"\",\"\",INDEX([1]YES_NO!$A$2:$A$100,MATCH('Communication Facility (Desc)'!$W87,[1]!MASTER_YES_NO_DESC[#Data],0),0))","v":""}]
[{"$f":"IF('Communication Facility (Desc)'!A88=\"\",\"\",'Communication Facility (Desc)'!A88)","v":""},{"$f":"IF('Communication Facility (Desc)'!B88=\"\",\"\",'Communication Facility (Desc)'!B88)","v":""},{"$f":"IF('Communication Facility (Desc)'!C88=\"\",\"\",'Communication Facility (Desc)'!C88)","v":""},{"$f":"IF('Communication Facility (Desc)'!D88=\"\",\"\",'Communication Facility (Desc)'!D88)","v":""},{"$f":"IF('Communication Facility (Desc)'!E88=\"\",\"\",INDEX([1]FACILITY_TYPE!$A$2:$A$100,MATCH('Communication Facility (Desc)'!$E88,[1]!MASTER_FACILITY_TYPE_DESC[#Data],0),0))","v":""},{"$f":"IF('Communication Facility (Desc)'!F88=\"\",\"\",INDEX([1]OWNER!$A$2:$A$100,MATCH('Communication Facility (Desc)'!$F88,[1]!MASTER_OWNER_DESC[#Data],0),0))","v":""},{"$f":"IF('Communication Facility (Desc)'!G88=\"\",\"\",IF('Communication Facility (Desc)'!G88=\"\",\"\",INDEX([1]COUNTY!$A$2:$A$80,MATCH('Communication Facility (Desc)'!G88,[1]!MASTER_COUNTY_NAME[#Data],0),0)))","v":""},{"$f":"IF('Communication Facility (Desc)'!H88=\"\",\"\",'Communication Facility (Desc)'!H88)","v":""},{"$f":"IF('Communication Facility (Desc)'!I88=\"\",\"\",'Communication Facility (Desc)'!I88)","v":""},{"$f":"IF('Communication Facility (Desc)'!J88=\"\",\"\",'Communication Facility (Desc)'!J88)","v":""},{"$f":"IF('Communication Facility (Desc)'!K88=\"\",\"\",INDEX([1]CABINET_TYPE!$A$2:$A$100,MATCH('Communication Facility (Desc)'!$K88,[1]!MASTER_CABINET_TYPE_DESC[#Data],0),0))","v":""},{"$f":"IF('Communication Facility (Desc)'!L88=\"\",\"\",INDEX([1]CABINET_MOUNT_TYPE!$A$2:$A$100,MATCH('Communication Facility (Desc)'!L88,[1]!MASTER_CABINET_MOUNT_TYPE_DESC[#Data],0),0))","v":""},{"$f":"IF('Communication Facility (Desc)'!M88=\"\",\"\",INDEX([1]YES_NO!$A$2:$A$100,MATCH('Communication Facility (Desc)'!M88,[1]!MASTER_YES_NO_DESC[#Data],0),0))","v":""},{"$f":"IF('Communication Facility (Desc)'!N88=\"\",\"\",INDEX([1]BUILDING_TYPE!$A$2:$A$100,MATCH('Communication Facility (Desc)'!$N88,[1]!MASTER_BUILDING_TYPE_DESC[#Data],0),0))","v":""},{"$f":"IF('Communication Facility (Desc)'!O88=\"\",\"\",'Communication Facility (Desc)'!O88)","v":""},{"$f":"IF('Communication Facility (Desc)'!P88=\"\",\"\",INDEX([1]BUILDING_MTL!$A$2:$A$100,MATCH('Communication Facility (Desc)'!$P88,[1]!MASTER_BUILDING_MTL_DESC[#Data],0),0))","v":""},{"$f":"IF('Communication Facility (Desc)'!Q88=\"\",\"\",INDEX([1]KEY_TYPE!$A$2:$A$100,MATCH('Communication Facility (Desc)'!$Q88,[1]!MASTER_KEY_TYPE_DESC[#Data],0),0))","v":""},{"$f":"IF('Communication Facility (Desc)'!R88=\"\",\"\",'Communication Facility (Desc)'!R88)","v":""},{"$f":"IF('Communication Facility (Desc)'!S88=\"\",\"\",INDEX([1]FILTER_TYPE!$A$2:$A$100,MATCH('Communication Facility (Desc)'!$S88,[1]!MASTER_FILTER_TYPE_DESC[#Data],0),0))","v":""},{"$f":"IF('Communication Facility (Desc)'!T88=\"\",\"\",INDEX([1]FILTER_SIZE!$A$2:$A$100,MATCH('Communication Facility (Desc)'!$T88,[1]!MASTER_FILTER_SIZE_DESC[#Data],0),0))","v":""},{"$f":"IF('Communication Facility (Desc)'!U88=\"\",\"\",'Communication Facility (Desc)'!U88)","v":""},{"$f":"IF('Communication Facility (Desc)'!V88=\"\",\"\",INDEX([1]YES_NO!$A$2:$A$100,MATCH('Communication Facility (Desc)'!$V88,[1]!MASTER_YES_NO_DESC[#Data],0),0))","v":""},{"$f":"IF('Communication Facility (Desc)'!W88=\"\",\"\",INDEX([1]YES_NO!$A$2:$A$100,MATCH('Communication Facility (Desc)'!$W88,[1]!MASTER_YES_NO_DESC[#Data],0),0))","v":""}]
[{"$f":"IF('Communication Facility (Desc)'!A89=\"\",\"\",'Communication Facility (Desc)'!A89)","v":""},{"$f":"IF('Communication Facility (Desc)'!B89=\"\",\"\",'Communication Facility (Desc)'!B89)","v":""},{"$f":"IF('Communication Facility (Desc)'!C89=\"\",\"\",'Communication Facility (Desc)'!C89)","v":""},{"$f":"IF('Communication Facility (Desc)'!D89=\"\",\"\",'Communication Facility (Desc)'!D89)","v":""},{"$f":"IF('Communication Facility (Desc)'!E89=\"\",\"\",INDEX([1]FACILITY_TYPE!$A$2:$A$100,MATCH('Communication Facility (Desc)'!$E89,[1]!MASTER_FACILITY_TYPE_DESC[#Data],0),0))","v":""},{"$f":"IF('Communication Facility (Desc)'!F89=\"\",\"\",INDEX([1]OWNER!$A$2:$A$100,MATCH('Communication Facility (Desc)'!$F89,[1]!MASTER_OWNER_DESC[#Data],0),0))","v":""},{"$f":"IF('Communication Facility (Desc)'!G89=\"\",\"\",IF('Communication Facility (Desc)'!G89=\"\",\"\",INDEX([1]COUNTY!$A$2:$A$80,MATCH('Communication Facility (Desc)'!G89,[1]!MASTER_COUNTY_NAME[#Data],0),0)))","v":""},{"$f":"IF('Communication Facility (Desc)'!H89=\"\",\"\",'Communication Facility (Desc)'!H89)","v":""},{"$f":"IF('Communication Facility (Desc)'!I89=\"\",\"\",'Communication Facility (Desc)'!I89)","v":""},{"$f":"IF('Communication Facility (Desc)'!J89=\"\",\"\",'Communication Facility (Desc)'!J89)","v":""},{"$f":"IF('Communication Facility (Desc)'!K89=\"\",\"\",INDEX([1]CABINET_TYPE!$A$2:$A$100,MATCH('Communication Facility (Desc)'!$K89,[1]!MASTER_CABINET_TYPE_DESC[#Data],0),0))","v":""},{"$f":"IF('Communication Facility (Desc)'!L89=\"\",\"\",INDEX([1]CABINET_MOUNT_TYPE!$A$2:$A$100,MATCH('Communication Facility (Desc)'!L89,[1]!MASTER_CABINET_MOUNT_TYPE_DESC[#Data],0),0))","v":""},{"$f":"IF('Communication Facility (Desc)'!M89=\"\",\"\",INDEX([1]YES_NO!$A$2:$A$100,MATCH('Communication Facility (Desc)'!M89,[1]!MASTER_YES_NO_DESC[#Data],0),0))","v":""},{"$f":"IF('Communication Facility (Desc)'!N89=\"\",\"\",INDEX([1]BUILDING_TYPE!$A$2:$A$100,MATCH('Communication Facility (Desc)'!$N89,[1]!MASTER_BUILDING_TYPE_DESC[#Data],0),0))","v":""},{"$f":"IF('Communication Facility (Desc)'!O89=\"\",\"\",'Communication Facility (Desc)'!O89)","v":""},{"$f":"IF('Communication Facility (Desc)'!P89=\"\",\"\",INDEX([1]BUILDING_MTL!$A$2:$A$100,MATCH('Communication Facility (Desc)'!$P89,[1]!MASTER_BUILDING_MTL_DESC[#Data],0),0))","v":""},{"$f":"IF('Communication Facility (Desc)'!Q89=\"\",\"\",INDEX([1]KEY_TYPE!$A$2:$A$100,MATCH('Communication Facility (Desc)'!$Q89,[1]!MASTER_KEY_TYPE_DESC[#Data],0),0))","v":""},{"$f":"IF('Communication Facility (Desc)'!R89=\"\",\"\",'Communication Facility (Desc)'!R89)","v":""},{"$f":"IF('Communication Facility (Desc)'!S89=\"\",\"\",INDEX([1]FILTER_TYPE!$A$2:$A$100,MATCH('Communication Facility (Desc)'!$S89,[1]!MASTER_FILTER_TYPE_DESC[#Data],0),0))","v":""},{"$f":"IF('Communication Facility (Desc)'!T89=\"\",\"\",INDEX([1]FILTER_SIZE!$A$2:$A$100,MATCH('Communication Facility (Desc)'!$T89,[1]!MASTER_FILTER_SIZE_DESC[#Data],0),0))","v":""},{"$f":"IF('Communication Facility (Desc)'!U89=\"\",\"\",'Communication Facility (Desc)'!U89)","v":""},{"$f":"IF('Communication Facility (Desc)'!V89=\"\",\"\",INDEX([1]YES_NO!$A$2:$A$100,MATCH('Communication Facility (Desc)'!$V89,[1]!MASTER_YES_NO_DESC[#Data],0),0))","v":""},{"$f":"IF('Communication Facility (Desc)'!W89=\"\",\"\",INDEX([1]YES_NO!$A$2:$A$100,MATCH('Communication Facility (Desc)'!$W89,[1]!MASTER_YES_NO_DESC[#Data],0),0))","v":""}]
[{"$f":"IF('Communication Facility (Desc)'!A90=\"\",\"\",'Communication Facility (Desc)'!A90)","v":""},{"$f":"IF('Communication Facility (Desc)'!B90=\"\",\"\",'Communication Facility (Desc)'!B90)","v":""},{"$f":"IF('Communication Facility (Desc)'!C90=\"\",\"\",'Communication Facility (Desc)'!C90)","v":""},{"$f":"IF('Communication Facility (Desc)'!D90=\"\",\"\",'Communication Facility (Desc)'!D90)","v":""},{"$f":"IF('Communication Facility (Desc)'!E90=\"\",\"\",INDEX([1]FACILITY_TYPE!$A$2:$A$100,MATCH('Communication Facility (Desc)'!$E90,[1]!MASTER_FACILITY_TYPE_DESC[#Data],0),0))","v":""},{"$f":"IF('Communication Facility (Desc)'!F90=\"\",\"\",INDEX([1]OWNER!$A$2:$A$100,MATCH('Communication Facility (Desc)'!$F90,[1]!MASTER_OWNER_DESC[#Data],0),0))","v":""},{"$f":"IF('Communication Facility (Desc)'!G90=\"\",\"\",IF('Communication Facility (Desc)'!G90=\"\",\"\",INDEX([1]COUNTY!$A$2:$A$80,MATCH('Communication Facility (Desc)'!G90,[1]!MASTER_COUNTY_NAME[#Data],0),0)))","v":""},{"$f":"IF('Communication Facility (Desc)'!H90=\"\",\"\",'Communication Facility (Desc)'!H90)","v":""},{"$f":"IF('Communication Facility (Desc)'!I90=\"\",\"\",'Communication Facility (Desc)'!I90)","v":""},{"$f":"IF('Communication Facility (Desc)'!J90=\"\",\"\",'Communication Facility (Desc)'!J90)","v":""},{"$f":"IF('Communication Facility (Desc)'!K90=\"\",\"\",INDEX([1]CABINET_TYPE!$A$2:$A$100,MATCH('Communication Facility (Desc)'!$K90,[1]!MASTER_CABINET_TYPE_DESC[#Data],0),0))","v":""},{"$f":"IF('Communication Facility (Desc)'!L90=\"\",\"\",INDEX([1]CABINET_MOUNT_TYPE!$A$2:$A$100,MATCH('Communication Facility (Desc)'!L90,[1]!MASTER_CABINET_MOUNT_TYPE_DESC[#Data],0),0))","v":""},{"$f":"IF('Communication Facility (Desc)'!M90=\"\",\"\",INDEX([1]YES_NO!$A$2:$A$100,MATCH('Communication Facility (Desc)'!M90,[1]!MASTER_YES_NO_DESC[#Data],0),0))","v":""},{"$f":"IF('Communication Facility (Desc)'!N90=\"\",\"\",INDEX([1]BUILDING_TYPE!$A$2:$A$100,MATCH('Communication Facility (Desc)'!$N90,[1]!MASTER_BUILDING_TYPE_DESC[#Data],0),0))","v":""},{"$f":"IF('Communication Facility (Desc)'!O90=\"\",\"\",'Communication Facility (Desc)'!O90)","v":""},{"$f":"IF('Communication Facility (Desc)'!P90=\"\",\"\",INDEX([1]BUILDING_MTL!$A$2:$A$100,MATCH('Communication Facility (Desc)'!$P90,[1]!MASTER_BUILDING_MTL_DESC[#Data],0),0))","v":""},{"$f":"IF('Communication Facility (Desc)'!Q90=\"\",\"\",INDEX([1]KEY_TYPE!$A$2:$A$100,MATCH('Communication Facility (Desc)'!$Q90,[1]!MASTER_KEY_TYPE_DESC[#Data],0),0))","v":""},{"$f":"IF('Communication Facility (Desc)'!R90=\"\",\"\",'Communication Facility (Desc)'!R90)","v":""},{"$f":"IF('Communication Facility (Desc)'!S90=\"\",\"\",INDEX([1]FILTER_TYPE!$A$2:$A$100,MATCH('Communication Facility (Desc)'!$S90,[1]!MASTER_FILTER_TYPE_DESC[#Data],0),0))","v":""},{"$f":"IF('Communication Facility (Desc)'!T90=\"\",\"\",INDEX([1]FILTER_SIZE!$A$2:$A$100,MATCH('Communication Facility (Desc)'!$T90,[1]!MASTER_FILTER_SIZE_DESC[#Data],0),0))","v":""},{"$f":"IF('Communication Facility (Desc)'!U90=\"\",\"\",'Communication Facility (Desc)'!U90)","v":""},{"$f":"IF('Communication Facility (Desc)'!V90=\"\",\"\",INDEX([1]YES_NO!$A$2:$A$100,MATCH('Communication Facility (Desc)'!$V90,[1]!MASTER_YES_NO_DESC[#Data],0),0))","v":""},{"$f":"IF('Communication Facility (Desc)'!W90=\"\",\"\",INDEX([1]YES_NO!$A$2:$A$100,MATCH('Communication Facility (Desc)'!$W90,[1]!MASTER_YES_NO_DESC[#Data],0),0))","v":""}]
[{"$f":"IF('Communication Facility (Desc)'!A91=\"\",\"\",'Communication Facility (Desc)'!A91)","v":""},{"$f":"IF('Communication Facility (Desc)'!B91=\"\",\"\",'Communication Facility (Desc)'!B91)","v":""},{"$f":"IF('Communication Facility (Desc)'!C91=\"\",\"\",'Communication Facility (Desc)'!C91)","v":""},{"$f":"IF('Communication Facility (Desc)'!D91=\"\",\"\",'Communication Facility (Desc)'!D91)","v":""},{"$f":"IF('Communication Facility (Desc)'!E91=\"\",\"\",INDEX([1]FACILITY_TYPE!$A$2:$A$100,MATCH('Communication Facility (Desc)'!$E91,[1]!MASTER_FACILITY_TYPE_DESC[#Data],0),0))","v":""},{"$f":"IF('Communication Facility (Desc)'!F91=\"\",\"\",INDEX([1]OWNER!$A$2:$A$100,MATCH('Communication Facility (Desc)'!$F91,[1]!MASTER_OWNER_DESC[#Data],0),0))","v":""},{"$f":"IF('Communication Facility (Desc)'!G91=\"\",\"\",IF('Communication Facility (Desc)'!G91=\"\",\"\",INDEX([1]COUNTY!$A$2:$A$80,MATCH('Communication Facility (Desc)'!G91,[1]!MASTER_COUNTY_NAME[#Data],0),0)))","v":""},{"$f":"IF('Communication Facility (Desc)'!H91=\"\",\"\",'Communication Facility (Desc)'!H91)","v":""},{"$f":"IF('Communication Facility (Desc)'!I91=\"\",\"\",'Communication Facility (Desc)'!I91)","v":""},{"$f":"IF('Communication Facility (Desc)'!J91=\"\",\"\",'Communication Facility (Desc)'!J91)","v":""},{"$f":"IF('Communication Facility (Desc)'!K91=\"\",\"\",INDEX([1]CABINET_TYPE!$A$2:$A$100,MATCH('Communication Facility (Desc)'!$K91,[1]!MASTER_CABINET_TYPE_DESC[#Data],0),0))","v":""},{"$f":"IF('Communication Facility (Desc)'!L91=\"\",\"\",INDEX([1]CABINET_MOUNT_TYPE!$A$2:$A$100,MATCH('Communication Facility (Desc)'!L91,[1]!MASTER_CABINET_MOUNT_TYPE_DESC[#Data],0),0))","v":""},{"$f":"IF('Communication Facility (Desc)'!M91=\"\",\"\",INDEX([1]YES_NO!$A$2:$A$100,MATCH('Communication Facility (Desc)'!M91,[1]!MASTER_YES_NO_DESC[#Data],0),0))","v":""},{"$f":"IF('Communication Facility (Desc)'!N91=\"\",\"\",INDEX([1]BUILDING_TYPE!$A$2:$A$100,MATCH('Communication Facility (Desc)'!$N91,[1]!MASTER_BUILDING_TYPE_DESC[#Data],0),0))","v":""},{"$f":"IF('Communication Facility (Desc)'!O91=\"\",\"\",'Communication Facility (Desc)'!O91)","v":""},{"$f":"IF('Communication Facility (Desc)'!P91=\"\",\"\",INDEX([1]BUILDING_MTL!$A$2:$A$100,MATCH('Communication Facility (Desc)'!$P91,[1]!MASTER_BUILDING_MTL_DESC[#Data],0),0))","v":""},{"$f":"IF('Communication Facility (Desc)'!Q91=\"\",\"\",INDEX([1]KEY_TYPE!$A$2:$A$100,MATCH('Communication Facility (Desc)'!$Q91,[1]!MASTER_KEY_TYPE_DESC[#Data],0),0))","v":""},{"$f":"IF('Communication Facility (Desc)'!R91=\"\",\"\",'Communication Facility (Desc)'!R91)","v":""},{"$f":"IF('Communication Facility (Desc)'!S91=\"\",\"\",INDEX([1]FILTER_TYPE!$A$2:$A$100,MATCH('Communication Facility (Desc)'!$S91,[1]!MASTER_FILTER_TYPE_DESC[#Data],0),0))","v":""},{"$f":"IF('Communication Facility (Desc)'!T91=\"\",\"\",INDEX([1]FILTER_SIZE!$A$2:$A$100,MATCH('Communication Facility (Desc)'!$T91,[1]!MASTER_FILTER_SIZE_DESC[#Data],0),0))","v":""},{"$f":"IF('Communication Facility (Desc)'!U91=\"\",\"\",'Communication Facility (Desc)'!U91)","v":""},{"$f":"IF('Communication Facility (Desc)'!V91=\"\",\"\",INDEX([1]YES_NO!$A$2:$A$100,MATCH('Communication Facility (Desc)'!$V91,[1]!MASTER_YES_NO_DESC[#Data],0),0))","v":""},{"$f":"IF('Communication Facility (Desc)'!W91=\"\",\"\",INDEX([1]YES_NO!$A$2:$A$100,MATCH('Communication Facility (Desc)'!$W91,[1]!MASTER_YES_NO_DESC[#Data],0),0))","v":""}]
[{"$f":"IF('Communication Facility (Desc)'!A92=\"\",\"\",'Communication Facility (Desc)'!A92)","v":""},{"$f":"IF('Communication Facility (Desc)'!B92=\"\",\"\",'Communication Facility (Desc)'!B92)","v":""},{"$f":"IF('Communication Facility (Desc)'!C92=\"\",\"\",'Communication Facility (Desc)'!C92)","v":""},{"$f":"IF('Communication Facility (Desc)'!D92=\"\",\"\",'Communication Facility (Desc)'!D92)","v":""},{"$f":"IF('Communication Facility (Desc)'!E92=\"\",\"\",INDEX([1]FACILITY_TYPE!$A$2:$A$100,MATCH('Communication Facility (Desc)'!$E92,[1]!MASTER_FACILITY_TYPE_DESC[#Data],0),0))","v":""},{"$f":"IF('Communication Facility (Desc)'!F92=\"\",\"\",INDEX([1]OWNER!$A$2:$A$100,MATCH('Communication Facility (Desc)'!$F92,[1]!MASTER_OWNER_DESC[#Data],0),0))","v":""},{"$f":"IF('Communication Facility (Desc)'!G92=\"\",\"\",IF('Communication Facility (Desc)'!G92=\"\",\"\",INDEX([1]COUNTY!$A$2:$A$80,MATCH('Communication Facility (Desc)'!G92,[1]!MASTER_COUNTY_NAME[#Data],0),0)))","v":""},{"$f":"IF('Communication Facility (Desc)'!H92=\"\",\"\",'Communication Facility (Desc)'!H92)","v":""},{"$f":"IF('Communication Facility (Desc)'!I92=\"\",\"\",'Communication Facility (Desc)'!I92)","v":""},{"$f":"IF('Communication Facility (Desc)'!J92=\"\",\"\",'Communication Facility (Desc)'!J92)","v":""},{"$f":"IF('Communication Facility (Desc)'!K92=\"\",\"\",INDEX([1]CABINET_TYPE!$A$2:$A$100,MATCH('Communication Facility (Desc)'!$K92,[1]!MASTER_CABINET_TYPE_DESC[#Data],0),0))","v":""},{"$f":"IF('Communication Facility (Desc)'!L92=\"\",\"\",INDEX([1]CABINET_MOUNT_TYPE!$A$2:$A$100,MATCH('Communication Facility (Desc)'!L92,[1]!MASTER_CABINET_MOUNT_TYPE_DESC[#Data],0),0))","v":""},{"$f":"IF('Communication Facility (Desc)'!M92=\"\",\"\",INDEX([1]YES_NO!$A$2:$A$100,MATCH('Communication Facility (Desc)'!M92,[1]!MASTER_YES_NO_DESC[#Data],0),0))","v":""},{"$f":"IF('Communication Facility (Desc)'!N92=\"\",\"\",INDEX([1]BUILDING_TYPE!$A$2:$A$100,MATCH('Communication Facility (Desc)'!$N92,[1]!MASTER_BUILDING_TYPE_DESC[#Data],0),0))","v":""},{"$f":"IF('Communication Facility (Desc)'!O92=\"\",\"\",'Communication Facility (Desc)'!O92)","v":""},{"$f":"IF('Communication Facility (Desc)'!P92=\"\",\"\",INDEX([1]BUILDING_MTL!$A$2:$A$100,MATCH('Communication Facility (Desc)'!$P92,[1]!MASTER_BUILDING_MTL_DESC[#Data],0),0))","v":""},{"$f":"IF('Communication Facility (Desc)'!Q92=\"\",\"\",INDEX([1]KEY_TYPE!$A$2:$A$100,MATCH('Communication Facility (Desc)'!$Q92,[1]!MASTER_KEY_TYPE_DESC[#Data],0),0))","v":""},{"$f":"IF('Communication Facility (Desc)'!R92=\"\",\"\",'Communication Facility (Desc)'!R92)","v":""},{"$f":"IF('Communication Facility (Desc)'!S92=\"\",\"\",INDEX([1]FILTER_TYPE!$A$2:$A$100,MATCH('Communication Facility (Desc)'!$S92,[1]!MASTER_FILTER_TYPE_DESC[#Data],0),0))","v":""},{"$f":"IF('Communication Facility (Desc)'!T92=\"\",\"\",INDEX([1]FILTER_SIZE!$A$2:$A$100,MATCH('Communication Facility (Desc)'!$T92,[1]!MASTER_FILTER_SIZE_DESC[#Data],0),0))","v":""},{"$f":"IF('Communication Facility (Desc)'!U92=\"\",\"\",'Communication Facility (Desc)'!U92)","v":""},{"$f":"IF('Communication Facility (Desc)'!V92=\"\",\"\",INDEX([1]YES_NO!$A$2:$A$100,MATCH('Communication Facility (Desc)'!$V92,[1]!MASTER_YES_NO_DESC[#Data],0),0))","v":""},{"$f":"IF('Communication Facility (Desc)'!W92=\"\",\"\",INDEX([1]YES_NO!$A$2:$A$100,MATCH('Communication Facility (Desc)'!$W92,[1]!MASTER_YES_NO_DESC[#Data],0),0))","v":""}]
[{"$f":"IF('Communication Facility (Desc)'!A93=\"\",\"\",'Communication Facility (Desc)'!A93)","v":""},{"$f":"IF('Communication Facility (Desc)'!B93=\"\",\"\",'Communication Facility (Desc)'!B93)","v":""},{"$f":"IF('Communication Facility (Desc)'!C93=\"\",\"\",'Communication Facility (Desc)'!C93)","v":""},{"$f":"IF('Communication Facility (Desc)'!D93=\"\",\"\",'Communication Facility (Desc)'!D93)","v":""},{"$f":"IF('Communication Facility (Desc)'!E93=\"\",\"\",INDEX([1]FACILITY_TYPE!$A$2:$A$100,MATCH('Communication Facility (Desc)'!$E93,[1]!MASTER_FACILITY_TYPE_DESC[#Data],0),0))","v":""},{"$f":"IF('Communication Facility (Desc)'!F93=\"\",\"\",INDEX([1]OWNER!$A$2:$A$100,MATCH('Communication Facility (Desc)'!$F93,[1]!MASTER_OWNER_DESC[#Data],0),0))","v":""},{"$f":"IF('Communication Facility (Desc)'!G93=\"\",\"\",IF('Communication Facility (Desc)'!G93=\"\",\"\",INDEX([1]COUNTY!$A$2:$A$80,MATCH('Communication Facility (Desc)'!G93,[1]!MASTER_COUNTY_NAME[#Data],0),0)))","v":""},{"$f":"IF('Communication Facility (Desc)'!H93=\"\",\"\",'Communication Facility (Desc)'!H93)","v":""},{"$f":"IF('Communication Facility (Desc)'!I93=\"\",\"\",'Communication Facility (Desc)'!I93)","v":""},{"$f":"IF('Communication Facility (Desc)'!J93=\"\",\"\",'Communication Facility (Desc)'!J93)","v":""},{"$f":"IF('Communication Facility (Desc)'!K93=\"\",\"\",INDEX([1]CABINET_TYPE!$A$2:$A$100,MATCH('Communication Facility (Desc)'!$K93,[1]!MASTER_CABINET_TYPE_DESC[#Data],0),0))","v":""},{"$f":"IF('Communication Facility (Desc)'!L93=\"\",\"\",INDEX([1]CABINET_MOUNT_TYPE!$A$2:$A$100,MATCH('Communication Facility (Desc)'!L93,[1]!MASTER_CABINET_MOUNT_TYPE_DESC[#Data],0),0))","v":""},{"$f":"IF('Communication Facility (Desc)'!M93=\"\",\"\",INDEX([1]YES_NO!$A$2:$A$100,MATCH('Communication Facility (Desc)'!M93,[1]!MASTER_YES_NO_DESC[#Data],0),0))","v":""},{"$f":"IF('Communication Facility (Desc)'!N93=\"\",\"\",INDEX([1]BUILDING_TYPE!$A$2:$A$100,MATCH('Communication Facility (Desc)'!$N93,[1]!MASTER_BUILDING_TYPE_DESC[#Data],0),0))","v":""},{"$f":"IF('Communication Facility (Desc)'!O93=\"\",\"\",'Communication Facility (Desc)'!O93)","v":""},{"$f":"IF('Communication Facility (Desc)'!P93=\"\",\"\",INDEX([1]BUILDING_MTL!$A$2:$A$100,MATCH('Communication Facility (Desc)'!$P93,[1]!MASTER_BUILDING_MTL_DESC[#Data],0),0))","v":""},{"$f":"IF('Communication Facility (Desc)'!Q93=\"\",\"\",INDEX([1]KEY_TYPE!$A$2:$A$100,MATCH('Communication Facility (Desc)'!$Q93,[1]!MASTER_KEY_TYPE_DESC[#Data],0),0))","v":""},{"$f":"IF('Communication Facility (Desc)'!R93=\"\",\"\",'Communication Facility (Desc)'!R93)","v":""},{"$f":"IF('Communication Facility (Desc)'!S93=\"\",\"\",INDEX([1]FILTER_TYPE!$A$2:$A$100,MATCH('Communication Facility (Desc)'!$S93,[1]!MASTER_FILTER_TYPE_DESC[#Data],0),0))","v":""},{"$f":"IF('Communication Facility (Desc)'!T93=\"\",\"\",INDEX([1]FILTER_SIZE!$A$2:$A$100,MATCH('Communication Facility (Desc)'!$T93,[1]!MASTER_FILTER_SIZE_DESC[#Data],0),0))","v":""},{"$f":"IF('Communication Facility (Desc)'!U93=\"\",\"\",'Communication Facility (Desc)'!U93)","v":""},{"$f":"IF('Communication Facility (Desc)'!V93=\"\",\"\",INDEX([1]YES_NO!$A$2:$A$100,MATCH('Communication Facility (Desc)'!$V93,[1]!MASTER_YES_NO_DESC[#Data],0),0))","v":""},{"$f":"IF('Communication Facility (Desc)'!W93=\"\",\"\",INDEX([1]YES_NO!$A$2:$A$100,MATCH('Communication Facility (Desc)'!$W93,[1]!MASTER_YES_NO_DESC[#Data],0),0))","v":""}]
[{"$f":"IF('Communication Facility (Desc)'!A94=\"\",\"\",'Communication Facility (Desc)'!A94)","v":""},{"$f":"IF('Communication Facility (Desc)'!B94=\"\",\"\",'Communication Facility (Desc)'!B94)","v":""},{"$f":"IF('Communication Facility (Desc)'!C94=\"\",\"\",'Communication Facility (Desc)'!C94)","v":""},{"$f":"IF('Communication Facility (Desc)'!D94=\"\",\"\",'Communication Facility (Desc)'!D94)","v":""},{"$f":"IF('Communication Facility (Desc)'!E94=\"\",\"\",INDEX([1]FACILITY_TYPE!$A$2:$A$100,MATCH('Communication Facility (Desc)'!$E94,[1]!MASTER_FACILITY_TYPE_DESC[#Data],0),0))","v":""},{"$f":"IF('Communication Facility (Desc)'!F94=\"\",\"\",INDEX([1]OWNER!$A$2:$A$100,MATCH('Communication Facility (Desc)'!$F94,[1]!MASTER_OWNER_DESC[#Data],0),0))","v":""},{"$f":"IF('Communication Facility (Desc)'!G94=\"\",\"\",IF('Communication Facility (Desc)'!G94=\"\",\"\",INDEX([1]COUNTY!$A$2:$A$80,MATCH('Communication Facility (Desc)'!G94,[1]!MASTER_COUNTY_NAME[#Data],0),0)))","v":""},{"$f":"IF('Communication Facility (Desc)'!H94=\"\",\"\",'Communication Facility (Desc)'!H94)","v":""},{"$f":"IF('Communication Facility (Desc)'!I94=\"\",\"\",'Communication Facility (Desc)'!I94)","v":""},{"$f":"IF('Communication Facility (Desc)'!J94=\"\",\"\",'Communication Facility (Desc)'!J94)","v":""},{"$f":"IF('Communication Facility (Desc)'!K94=\"\",\"\",INDEX([1]CABINET_TYPE!$A$2:$A$100,MATCH('Communication Facility (Desc)'!$K94,[1]!MASTER_CABINET_TYPE_DESC[#Data],0),0))","v":""},{"$f":"IF('Communication Facility (Desc)'!L94=\"\",\"\",INDEX([1]CABINET_MOUNT_TYPE!$A$2:$A$100,MATCH('Communication Facility (Desc)'!L94,[1]!MASTER_CABINET_MOUNT_TYPE_DESC[#Data],0),0))","v":""},{"$f":"IF('Communication Facility (Desc)'!M94=\"\",\"\",INDEX([1]YES_NO!$A$2:$A$100,MATCH('Communication Facility (Desc)'!M94,[1]!MASTER_YES_NO_DESC[#Data],0),0))","v":""},{"$f":"IF('Communication Facility (Desc)'!N94=\"\",\"\",INDEX([1]BUILDING_TYPE!$A$2:$A$100,MATCH('Communication Facility (Desc)'!$N94,[1]!MASTER_BUILDING_TYPE_DESC[#Data],0),0))","v":""},{"$f":"IF('Communication Facility (Desc)'!O94=\"\",\"\",'Communication Facility (Desc)'!O94)","v":""},{"$f":"IF('Communication Facility (Desc)'!P94=\"\",\"\",INDEX([1]BUILDING_MTL!$A$2:$A$100,MATCH('Communication Facility (Desc)'!$P94,[1]!MASTER_BUILDING_MTL_DESC[#Data],0),0))","v":""},{"$f":"IF('Communication Facility (Desc)'!Q94=\"\",\"\",INDEX([1]KEY_TYPE!$A$2:$A$100,MATCH('Communication Facility (Desc)'!$Q94,[1]!MASTER_KEY_TYPE_DESC[#Data],0),0))","v":""},{"$f":"IF('Communication Facility (Desc)'!R94=\"\",\"\",'Communication Facility (Desc)'!R94)","v":""},{"$f":"IF('Communication Facility (Desc)'!S94=\"\",\"\",INDEX([1]FILTER_TYPE!$A$2:$A$100,MATCH('Communication Facility (Desc)'!$S94,[1]!MASTER_FILTER_TYPE_DESC[#Data],0),0))","v":""},{"$f":"IF('Communication Facility (Desc)'!T94=\"\",\"\",INDEX([1]FILTER_SIZE!$A$2:$A$100,MATCH('Communication Facility (Desc)'!$T94,[1]!MASTER_FILTER_SIZE_DESC[#Data],0),0))","v":""},{"$f":"IF('Communication Facility (Desc)'!U94=\"\",\"\",'Communication Facility (Desc)'!U94)","v":""},{"$f":"IF('Communication Facility (Desc)'!V94=\"\",\"\",INDEX([1]YES_NO!$A$2:$A$100,MATCH('Communication Facility (Desc)'!$V94,[1]!MASTER_YES_NO_DESC[#Data],0),0))","v":""},{"$f":"IF('Communication Facility (Desc)'!W94=\"\",\"\",INDEX([1]YES_NO!$A$2:$A$100,MATCH('Communication Facility (Desc)'!$W94,[1]!MASTER_YES_NO_DESC[#Data],0),0))","v":""}]
[{"$f":"IF('Communication Facility (Desc)'!A95=\"\",\"\",'Communication Facility (Desc)'!A95)","v":""},{"$f":"IF('Communication Facility (Desc)'!B95=\"\",\"\",'Communication Facility (Desc)'!B95)","v":""},{"$f":"IF('Communication Facility (Desc)'!C95=\"\",\"\",'Communication Facility (Desc)'!C95)","v":""},{"$f":"IF('Communication Facility (Desc)'!D95=\"\",\"\",'Communication Facility (Desc)'!D95)","v":""},{"$f":"IF('Communication Facility (Desc)'!E95=\"\",\"\",INDEX([1]FACILITY_TYPE!$A$2:$A$100,MATCH('Communication Facility (Desc)'!$E95,[1]!MASTER_FACILITY_TYPE_DESC[#Data],0),0))","v":""},{"$f":"IF('Communication Facility (Desc)'!F95=\"\",\"\",INDEX([1]OWNER!$A$2:$A$100,MATCH('Communication Facility (Desc)'!$F95,[1]!MASTER_OWNER_DESC[#Data],0),0))","v":""},{"$f":"IF('Communication Facility (Desc)'!G95=\"\",\"\",IF('Communication Facility (Desc)'!G95=\"\",\"\",INDEX([1]COUNTY!$A$2:$A$80,MATCH('Communication Facility (Desc)'!G95,[1]!MASTER_COUNTY_NAME[#Data],0),0)))","v":""},{"$f":"IF('Communication Facility (Desc)'!H95=\"\",\"\",'Communication Facility (Desc)'!H95)","v":""},{"$f":"IF('Communication Facility (Desc)'!I95=\"\",\"\",'Communication Facility (Desc)'!I95)","v":""},{"$f":"IF('Communication Facility (Desc)'!J95=\"\",\"\",'Communication Facility (Desc)'!J95)","v":""},{"$f":"IF('Communication Facility (Desc)'!K95=\"\",\"\",INDEX([1]CABINET_TYPE!$A$2:$A$100,MATCH('Communication Facility (Desc)'!$K95,[1]!MASTER_CABINET_TYPE_DESC[#Data],0),0))","v":""},{"$f":"IF('Communication Facility (Desc)'!L95=\"\",\"\",INDEX([1]CABINET_MOUNT_TYPE!$A$2:$A$100,MATCH('Communication Facility (Desc)'!L95,[1]!MASTER_CABINET_MOUNT_TYPE_DESC[#Data],0),0))","v":""},{"$f":"IF('Communication Facility (Desc)'!M95=\"\",\"\",INDEX([1]YES_NO!$A$2:$A$100,MATCH('Communication Facility (Desc)'!M95,[1]!MASTER_YES_NO_DESC[#Data],0),0))","v":""},{"$f":"IF('Communication Facility (Desc)'!N95=\"\",\"\",INDEX([1]BUILDING_TYPE!$A$2:$A$100,MATCH('Communication Facility (Desc)'!$N95,[1]!MASTER_BUILDING_TYPE_DESC[#Data],0),0))","v":""},{"$f":"IF('Communication Facility (Desc)'!O95=\"\",\"\",'Communication Facility (Desc)'!O95)","v":""},{"$f":"IF('Communication Facility (Desc)'!P95=\"\",\"\",INDEX([1]BUILDING_MTL!$A$2:$A$100,MATCH('Communication Facility (Desc)'!$P95,[1]!MASTER_BUILDING_MTL_DESC[#Data],0),0))","v":""},{"$f":"IF('Communication Facility (Desc)'!Q95=\"\",\"\",INDEX([1]KEY_TYPE!$A$2:$A$100,MATCH('Communication Facility (Desc)'!$Q95,[1]!MASTER_KEY_TYPE_DESC[#Data],0),0))","v":""},{"$f":"IF('Communication Facility (Desc)'!R95=\"\",\"\",'Communication Facility (Desc)'!R95)","v":""},{"$f":"IF('Communication Facility (Desc)'!S95=\"\",\"\",INDEX([1]FILTER_TYPE!$A$2:$A$100,MATCH('Communication Facility (Desc)'!$S95,[1]!MASTER_FILTER_TYPE_DESC[#Data],0),0))","v":""},{"$f":"IF('Communication Facility (Desc)'!T95=\"\",\"\",INDEX([1]FILTER_SIZE!$A$2:$A$100,MATCH('Communication Facility (Desc)'!$T95,[1]!MASTER_FILTER_SIZE_DESC[#Data],0),0))","v":""},{"$f":"IF('Communication Facility (Desc)'!U95=\"\",\"\",'Communication Facility (Desc)'!U95)","v":""},{"$f":"IF('Communication Facility (Desc)'!V95=\"\",\"\",INDEX([1]YES_NO!$A$2:$A$100,MATCH('Communication Facility (Desc)'!$V95,[1]!MASTER_YES_NO_DESC[#Data],0),0))","v":""},{"$f":"IF('Communication Facility (Desc)'!W95=\"\",\"\",INDEX([1]YES_NO!$A$2:$A$100,MATCH('Communication Facility (Desc)'!$W95,[1]!MASTER_YES_NO_DESC[#Data],0),0))","v":""}]
[{"$f":"IF('Communication Facility (Desc)'!A96=\"\",\"\",'Communication Facility (Desc)'!A96)","v":""},{"$f":"IF('Communication Facility (Desc)'!B96=\"\",\"\",'Communication Facility (Desc)'!B96)","v":""},{"$f":"IF('Communication Facility (Desc)'!C96=\"\",\"\",'Communication Facility (Desc)'!C96)","v":""},{"$f":"IF('Communication Facility (Desc)'!D96=\"\",\"\",'Communication Facility (Desc)'!D96)","v":""},{"$f":"IF('Communication Facility (Desc)'!E96=\"\",\"\",INDEX([1]FACILITY_TYPE!$A$2:$A$100,MATCH('Communication Facility (Desc)'!$E96,[1]!MASTER_FACILITY_TYPE_DESC[#Data],0),0))","v":""},{"$f":"IF('Communication Facility (Desc)'!F96=\"\",\"\",INDEX([1]OWNER!$A$2:$A$100,MATCH('Communication Facility (Desc)'!$F96,[1]!MASTER_OWNER_DESC[#Data],0),0))","v":""},{"$f":"IF('Communication Facility (Desc)'!G96=\"\",\"\",IF('Communication Facility (Desc)'!G96=\"\",\"\",INDEX([1]COUNTY!$A$2:$A$80,MATCH('Communication Facility (Desc)'!G96,[1]!MASTER_COUNTY_NAME[#Data],0),0)))","v":""},{"$f":"IF('Communication Facility (Desc)'!H96=\"\",\"\",'Communication Facility (Desc)'!H96)","v":""},{"$f":"IF('Communication Facility (Desc)'!I96=\"\",\"\",'Communication Facility (Desc)'!I96)","v":""},{"$f":"IF('Communication Facility (Desc)'!J96=\"\",\"\",'Communication Facility (Desc)'!J96)","v":""},{"$f":"IF('Communication Facility (Desc)'!K96=\"\",\"\",INDEX([1]CABINET_TYPE!$A$2:$A$100,MATCH('Communication Facility (Desc)'!$K96,[1]!MASTER_CABINET_TYPE_DESC[#Data],0),0))","v":""},{"$f":"IF('Communication Facility (Desc)'!L96=\"\",\"\",INDEX([1]CABINET_MOUNT_TYPE!$A$2:$A$100,MATCH('Communication Facility (Desc)'!L96,[1]!MASTER_CABINET_MOUNT_TYPE_DESC[#Data],0),0))","v":""},{"$f":"IF('Communication Facility (Desc)'!M96=\"\",\"\",INDEX([1]YES_NO!$A$2:$A$100,MATCH('Communication Facility (Desc)'!M96,[1]!MASTER_YES_NO_DESC[#Data],0),0))","v":""},{"$f":"IF('Communication Facility (Desc)'!N96=\"\",\"\",INDEX([1]BUILDING_TYPE!$A$2:$A$100,MATCH('Communication Facility (Desc)'!$N96,[1]!MASTER_BUILDING_TYPE_DESC[#Data],0),0))","v":""},{"$f":"IF('Communication Facility (Desc)'!O96=\"\",\"\",'Communication Facility (Desc)'!O96)","v":""},{"$f":"IF('Communication Facility (Desc)'!P96=\"\",\"\",INDEX([1]BUILDING_MTL!$A$2:$A$100,MATCH('Communication Facility (Desc)'!$P96,[1]!MASTER_BUILDING_MTL_DESC[#Data],0),0))","v":""},{"$f":"IF('Communication Facility (Desc)'!Q96=\"\",\"\",INDEX([1]KEY_TYPE!$A$2:$A$100,MATCH('Communication Facility (Desc)'!$Q96,[1]!MASTER_KEY_TYPE_DESC[#Data],0),0))","v":""},{"$f":"IF('Communication Facility (Desc)'!R96=\"\",\"\",'Communication Facility (Desc)'!R96)","v":""},{"$f":"IF('Communication Facility (Desc)'!S96=\"\",\"\",INDEX([1]FILTER_TYPE!$A$2:$A$100,MATCH('Communication Facility (Desc)'!$S96,[1]!MASTER_FILTER_TYPE_DESC[#Data],0),0))","v":""},{"$f":"IF('Communication Facility (Desc)'!T96=\"\",\"\",INDEX([1]FILTER_SIZE!$A$2:$A$100,MATCH('Communication Facility (Desc)'!$T96,[1]!MASTER_FILTER_SIZE_DESC[#Data],0),0))","v":""},{"$f":"IF('Communication Facility (Desc)'!U96=\"\",\"\",'Communication Facility (Desc)'!U96)","v":""},{"$f":"IF('Communication Facility (Desc)'!V96=\"\",\"\",INDEX([1]YES_NO!$A$2:$A$100,MATCH('Communication Facility (Desc)'!$V96,[1]!MASTER_YES_NO_DESC[#Data],0),0))","v":""},{"$f":"IF('Communication Facility (Desc)'!W96=\"\",\"\",INDEX([1]YES_NO!$A$2:$A$100,MATCH('Communication Facility (Desc)'!$W96,[1]!MASTER_YES_NO_DESC[#Data],0),0))","v":""}]
[{"$f":"IF('Communication Facility (Desc)'!A97=\"\",\"\",'Communication Facility (Desc)'!A97)","v":""},{"$f":"IF('Communication Facility (Desc)'!B97=\"\",\"\",'Communication Facility (Desc)'!B97)","v":""},{"$f":"IF('Communication Facility (Desc)'!C97=\"\",\"\",'Communication Facility (Desc)'!C97)","v":""},{"$f":"IF('Communication Facility (Desc)'!D97=\"\",\"\",'Communication Facility (Desc)'!D97)","v":""},{"$f":"IF('Communication Facility (Desc)'!E97=\"\",\"\",INDEX([1]FACILITY_TYPE!$A$2:$A$100,MATCH('Communication Facility (Desc)'!$E97,[1]!MASTER_FACILITY_TYPE_DESC[#Data],0),0))","v":""},{"$f":"IF('Communication Facility (Desc)'!F97=\"\",\"\",INDEX([1]OWNER!$A$2:$A$100,MATCH('Communication Facility (Desc)'!$F97,[1]!MASTER_OWNER_DESC[#Data],0),0))","v":""},{"$f":"IF('Communication Facility (Desc)'!G97=\"\",\"\",IF('Communication Facility (Desc)'!G97=\"\",\"\",INDEX([1]COUNTY!$A$2:$A$80,MATCH('Communication Facility (Desc)'!G97,[1]!MASTER_COUNTY_NAME[#Data],0),0)))","v":""},{"$f":"IF('Communication Facility (Desc)'!H97=\"\",\"\",'Communication Facility (Desc)'!H97)","v":""},{"$f":"IF('Communication Facility (Desc)'!I97=\"\",\"\",'Communication Facility (Desc)'!I97)","v":""},{"$f":"IF('Communication Facility (Desc)'!J97=\"\",\"\",'Communication Facility (Desc)'!J97)","v":""},{"$f":"IF('Communication Facility (Desc)'!K97=\"\",\"\",INDEX([1]CABINET_TYPE!$A$2:$A$100,MATCH('Communication Facility (Desc)'!$K97,[1]!MASTER_CABINET_TYPE_DESC[#Data],0),0))","v":""},{"$f":"IF('Communication Facility (Desc)'!L97=\"\",\"\",INDEX([1]CABINET_MOUNT_TYPE!$A$2:$A$100,MATCH('Communication Facility (Desc)'!L97,[1]!MASTER_CABINET_MOUNT_TYPE_DESC[#Data],0),0))","v":""},{"$f":"IF('Communication Facility (Desc)'!M97=\"\",\"\",INDEX([1]YES_NO!$A$2:$A$100,MATCH('Communication Facility (Desc)'!M97,[1]!MASTER_YES_NO_DESC[#Data],0),0))","v":""},{"$f":"IF('Communication Facility (Desc)'!N97=\"\",\"\",INDEX([1]BUILDING_TYPE!$A$2:$A$100,MATCH('Communication Facility (Desc)'!$N97,[1]!MASTER_BUILDING_TYPE_DESC[#Data],0),0))","v":""},{"$f":"IF('Communication Facility (Desc)'!O97=\"\",\"\",'Communication Facility (Desc)'!O97)","v":""},{"$f":"IF('Communication Facility (Desc)'!P97=\"\",\"\",INDEX([1]BUILDING_MTL!$A$2:$A$100,MATCH('Communication Facility (Desc)'!$P97,[1]!MASTER_BUILDING_MTL_DESC[#Data],0),0))","v":""},{"$f":"IF('Communication Facility (Desc)'!Q97=\"\",\"\",INDEX([1]KEY_TYPE!$A$2:$A$100,MATCH('Communication Facility (Desc)'!$Q97,[1]!MASTER_KEY_TYPE_DESC[#Data],0),0))","v":""},{"$f":"IF('Communication Facility (Desc)'!R97=\"\",\"\",'Communication Facility (Desc)'!R97)","v":""},{"$f":"IF('Communication Facility (Desc)'!S97=\"\",\"\",INDEX([1]FILTER_TYPE!$A$2:$A$100,MATCH('Communication Facility (Desc)'!$S97,[1]!MASTER_FILTER_TYPE_DESC[#Data],0),0))","v":""},{"$f":"IF('Communication Facility (Desc)'!T97=\"\",\"\",INDEX([1]FILTER_SIZE!$A$2:$A$100,MATCH('Communication Facility (Desc)'!$T97,[1]!MASTER_FILTER_SIZE_DESC[#Data],0),0))","v":""},{"$f":"IF('Communication Facility (Desc)'!U97=\"\",\"\",'Communication Facility (Desc)'!U97)","v":""},{"$f":"IF('Communication Facility (Desc)'!V97=\"\",\"\",INDEX([1]YES_NO!$A$2:$A$100,MATCH('Communication Facility (Desc)'!$V97,[1]!MASTER_YES_NO_DESC[#Data],0),0))","v":""},{"$f":"IF('Communication Facility (Desc)'!W97=\"\",\"\",INDEX([1]YES_NO!$A$2:$A$100,MATCH('Communication Facility (Desc)'!$W97,[1]!MASTER_YES_NO_DESC[#Data],0),0))","v":""}]
[{"$f":"IF('Communication Facility (Desc)'!A98=\"\",\"\",'Communication Facility (Desc)'!A98)","v":""},{"$f":"IF('Communication Facility (Desc)'!B98=\"\",\"\",'Communication Facility (Desc)'!B98)","v":""},{"$f":"IF('Communication Facility (Desc)'!C98=\"\",\"\",'Communication Facility (Desc)'!C98)","v":""},{"$f":"IF('Communication Facility (Desc)'!D98=\"\",\"\",'Communication Facility (Desc)'!D98)","v":""},{"$f":"IF('Communication Facility (Desc)'!E98=\"\",\"\",INDEX([1]FACILITY_TYPE!$A$2:$A$100,MATCH('Communication Facility (Desc)'!$E98,[1]!MASTER_FACILITY_TYPE_DESC[#Data],0),0))","v":""},{"$f":"IF('Communication Facility (Desc)'!F98=\"\",\"\",INDEX([1]OWNER!$A$2:$A$100,MATCH('Communication Facility (Desc)'!$F98,[1]!MASTER_OWNER_DESC[#Data],0),0))","v":""},{"$f":"IF('Communication Facility (Desc)'!G98=\"\",\"\",IF('Communication Facility (Desc)'!G98=\"\",\"\",INDEX([1]COUNTY!$A$2:$A$80,MATCH('Communication Facility (Desc)'!G98,[1]!MASTER_COUNTY_NAME[#Data],0),0)))","v":""},{"$f":"IF('Communication Facility (Desc)'!H98=\"\",\"\",'Communication Facility (Desc)'!H98)","v":""},{"$f":"IF('Communication Facility (Desc)'!I98=\"\",\"\",'Communication Facility (Desc)'!I98)","v":""},{"$f":"IF('Communication Facility (Desc)'!J98=\"\",\"\",'Communication Facility (Desc)'!J98)","v":""},{"$f":"IF('Communication Facility (Desc)'!K98=\"\",\"\",INDEX([1]CABINET_TYPE!$A$2:$A$100,MATCH('Communication Facility (Desc)'!$K98,[1]!MASTER_CABINET_TYPE_DESC[#Data],0),0))","v":""},{"$f":"IF('Communication Facility (Desc)'!L98=\"\",\"\",INDEX([1]CABINET_MOUNT_TYPE!$A$2:$A$100,MATCH('Communication Facility (Desc)'!L98,[1]!MASTER_CABINET_MOUNT_TYPE_DESC[#Data],0),0))","v":""},{"$f":"IF('Communication Facility (Desc)'!M98=\"\",\"\",INDEX([1]YES_NO!$A$2:$A$100,MATCH('Communication Facility (Desc)'!M98,[1]!MASTER_YES_NO_DESC[#Data],0),0))","v":""},{"$f":"IF('Communication Facility (Desc)'!N98=\"\",\"\",INDEX([1]BUILDING_TYPE!$A$2:$A$100,MATCH('Communication Facility (Desc)'!$N98,[1]!MASTER_BUILDING_TYPE_DESC[#Data],0),0))","v":""},{"$f":"IF('Communication Facility (Desc)'!O98=\"\",\"\",'Communication Facility (Desc)'!O98)","v":""},{"$f":"IF('Communication Facility (Desc)'!P98=\"\",\"\",INDEX([1]BUILDING_MTL!$A$2:$A$100,MATCH('Communication Facility (Desc)'!$P98,[1]!MASTER_BUILDING_MTL_DESC[#Data],0),0))","v":""},{"$f":"IF('Communication Facility (Desc)'!Q98=\"\",\"\",INDEX([1]KEY_TYPE!$A$2:$A$100,MATCH('Communication Facility (Desc)'!$Q98,[1]!MASTER_KEY_TYPE_DESC[#Data],0),0))","v":""},{"$f":"IF('Communication Facility (Desc)'!R98=\"\",\"\",'Communication Facility (Desc)'!R98)","v":""},{"$f":"IF('Communication Facility (Desc)'!S98=\"\",\"\",INDEX([1]FILTER_TYPE!$A$2:$A$100,MATCH('Communication Facility (Desc)'!$S98,[1]!MASTER_FILTER_TYPE_DESC[#Data],0),0))","v":""},{"$f":"IF('Communication Facility (Desc)'!T98=\"\",\"\",INDEX([1]FILTER_SIZE!$A$2:$A$100,MATCH('Communication Facility (Desc)'!$T98,[1]!MASTER_FILTER_SIZE_DESC[#Data],0),0))","v":""},{"$f":"IF('Communication Facility (Desc)'!U98=\"\",\"\",'Communication Facility (Desc)'!U98)","v":""},{"$f":"IF('Communication Facility (Desc)'!V98=\"\",\"\",INDEX([1]YES_NO!$A$2:$A$100,MATCH('Communication Facility (Desc)'!$V98,[1]!MASTER_YES_NO_DESC[#Data],0),0))","v":""},{"$f":"IF('Communication Facility (Desc)'!W98=\"\",\"\",INDEX([1]YES_NO!$A$2:$A$100,MATCH('Communication Facility (Desc)'!$W98,[1]!MASTER_YES_NO_DESC[#Data],0),0))","v":""}]
[{"$f":"IF('Communication Facility (Desc)'!A99=\"\",\"\",'Communication Facility (Desc)'!A99)","v":""},{"$f":"IF('Communication Facility (Desc)'!B99=\"\",\"\",'Communication Facility (Desc)'!B99)","v":""},{"$f":"IF('Communication Facility (Desc)'!C99=\"\",\"\",'Communication Facility (Desc)'!C99)","v":""},{"$f":"IF('Communication Facility (Desc)'!D99=\"\",\"\",'Communication Facility (Desc)'!D99)","v":""},{"$f":"IF('Communication Facility (Desc)'!E99=\"\",\"\",INDEX([1]FACILITY_TYPE!$A$2:$A$100,MATCH('Communication Facility (Desc)'!$E99,[1]!MASTER_FACILITY_TYPE_DESC[#Data],0),0))","v":""},{"$f":"IF('Communication Facility (Desc)'!F99=\"\",\"\",INDEX([1]OWNER!$A$2:$A$100,MATCH('Communication Facility (Desc)'!$F99,[1]!MASTER_OWNER_DESC[#Data],0),0))","v":""},{"$f":"IF('Communication Facility (Desc)'!G99=\"\",\"\",IF('Communication Facility (Desc)'!G99=\"\",\"\",INDEX([1]COUNTY!$A$2:$A$80,MATCH('Communication Facility (Desc)'!G99,[1]!MASTER_COUNTY_NAME[#Data],0),0)))","v":""},{"$f":"IF('Communication Facility (Desc)'!H99=\"\",\"\",'Communication Facility (Desc)'!H99)","v":""},{"$f":"IF('Communication Facility (Desc)'!I99=\"\",\"\",'Communication Facility (Desc)'!I99)","v":""},{"$f":"IF('Communication Facility (Desc)'!J99=\"\",\"\",'Communication Facility (Desc)'!J99)","v":""},{"$f":"IF('Communication Facility (Desc)'!K99=\"\",\"\",INDEX([1]CABINET_TYPE!$A$2:$A$100,MATCH('Communication Facility (Desc)'!$K99,[1]!MASTER_CABINET_TYPE_DESC[#Data],0),0))","v":""},{"$f":"IF('Communication Facility (Desc)'!L99=\"\",\"\",INDEX([1]CABINET_MOUNT_TYPE!$A$2:$A$100,MATCH('Communication Facility (Desc)'!L99,[1]!MASTER_CABINET_MOUNT_TYPE_DESC[#Data],0),0))","v":""},{"$f":"IF('Communication Facility (Desc)'!M99=\"\",\"\",INDEX([1]YES_NO!$A$2:$A$100,MATCH('Communication Facility (Desc)'!M99,[1]!MASTER_YES_NO_DESC[#Data],0),0))","v":""},{"$f":"IF('Communication Facility (Desc)'!N99=\"\",\"\",INDEX([1]BUILDING_TYPE!$A$2:$A$100,MATCH('Communication Facility (Desc)'!$N99,[1]!MASTER_BUILDING_TYPE_DESC[#Data],0),0))","v":""},{"$f":"IF('Communication Facility (Desc)'!O99=\"\",\"\",'Communication Facility (Desc)'!O99)","v":""},{"$f":"IF('Communication Facility (Desc)'!P99=\"\",\"\",INDEX([1]BUILDING_MTL!$A$2:$A$100,MATCH('Communication Facility (Desc)'!$P99,[1]!MASTER_BUILDING_MTL_DESC[#Data],0),0))","v":""},{"$f":"IF('Communication Facility (Desc)'!Q99=\"\",\"\",INDEX([1]KEY_TYPE!$A$2:$A$100,MATCH('Communication Facility (Desc)'!$Q99,[1]!MASTER_KEY_TYPE_DESC[#Data],0),0))","v":""},{"$f":"IF('Communication Facility (Desc)'!R99=\"\",\"\",'Communication Facility (Desc)'!R99)","v":""},{"$f":"IF('Communication Facility (Desc)'!S99=\"\",\"\",INDEX([1]FILTER_TYPE!$A$2:$A$100,MATCH('Communication Facility (Desc)'!$S99,[1]!MASTER_FILTER_TYPE_DESC[#Data],0),0))","v":""},{"$f":"IF('Communication Facility (Desc)'!T99=\"\",\"\",INDEX([1]FILTER_SIZE!$A$2:$A$100,MATCH('Communication Facility (Desc)'!$T99,[1]!MASTER_FILTER_SIZE_DESC[#Data],0),0))","v":""},{"$f":"IF('Communication Facility (Desc)'!U99=\"\",\"\",'Communication Facility (Desc)'!U99)","v":""},{"$f":"IF('Communication Facility (Desc)'!V99=\"\",\"\",INDEX([1]YES_NO!$A$2:$A$100,MATCH('Communication Facility (Desc)'!$V99,[1]!MASTER_YES_NO_DESC[#Data],0),0))","v":""},{"$f":"IF('Communication Facility (Desc)'!W99=\"\",\"\",INDEX([1]YES_NO!$A$2:$A$100,MATCH('Communication Facility (Desc)'!$W99,[1]!MASTER_YES_NO_DESC[#Data],0),0))","v":""}]
[{"$f":"IF('Communication Facility (Desc)'!A100=\"\",\"\",'Communication Facility (Desc)'!A100)","v":""},{"$f":"IF('Communication Facility (Desc)'!B100=\"\",\"\",'Communication Facility (Desc)'!B100)","v":""},{"$f":"IF('Communication Facility (Desc)'!C100=\"\",\"\",'Communication Facility (Desc)'!C100)","v":""},{"$f":"IF('Communication Facility (Desc)'!D100=\"\",\"\",'Communication Facility (Desc)'!D100)","v":""},{"$f":"IF('Communication Facility (Desc)'!E100=\"\",\"\",INDEX([1]FACILITY_TYPE!$A$2:$A$100,MATCH('Communication Facility (Desc)'!$E100,[1]!MASTER_FACILITY_TYPE_DESC[#Data],0),0))","v":""},{"$f":"IF('Communication Facility (Desc)'!F100=\"\",\"\",INDEX([1]OWNER!$A$2:$A$100,MATCH('Communication Facility (Desc)'!$F100,[1]!MASTER_OWNER_DESC[#Data],0),0))","v":""},{"$f":"IF('Communication Facility (Desc)'!G100=\"\",\"\",IF('Communication Facility (Desc)'!G100=\"\",\"\",INDEX([1]COUNTY!$A$2:$A$80,MATCH('Communication Facility (Desc)'!G100,[1]!MASTER_COUNTY_NAME[#Data],0),0)))","v":""},{"$f":"IF('Communication Facility (Desc)'!H100=\"\",\"\",'Communication Facility (Desc)'!H100)","v":""},{"$f":"IF('Communication Facility (Desc)'!I100=\"\",\"\",'Communication Facility (Desc)'!I100)","v":""},{"$f":"IF('Communication Facility (Desc)'!J100=\"\",\"\",'Communication Facility (Desc)'!J100)","v":""},{"$f":"IF('Communication Facility (Desc)'!K100=\"\",\"\",INDEX([1]CABINET_TYPE!$A$2:$A$100,MATCH('Communication Facility (Desc)'!$K100,[1]!MASTER_CABINET_TYPE_DESC[#Data],0),0))","v":""},{"$f":"IF('Communication Facility (Desc)'!L100=\"\",\"\",INDEX([1]CABINET_MOUNT_TYPE!$A$2:$A$100,MATCH('Communication Facility (Desc)'!L100,[1]!MASTER_CABINET_MOUNT_TYPE_DESC[#Data],0),0))","v":""},{"$f":"IF('Communication Facility (Desc)'!M100=\"\",\"\",INDEX([1]YES_NO!$A$2:$A$100,MATCH('Communication Facility (Desc)'!M100,[1]!MASTER_YES_NO_DESC[#Data],0),0))","v":""},{"$f":"IF('Communication Facility (Desc)'!N100=\"\",\"\",INDEX([1]BUILDING_TYPE!$A$2:$A$100,MATCH('Communication Facility (Desc)'!$N100,[1]!MASTER_BUILDING_TYPE_DESC[#Data],0),0))","v":""},{"$f":"IF('Communication Facility (Desc)'!O100=\"\",\"\",'Communication Facility (Desc)'!O100)","v":""},{"$f":"IF('Communication Facility (Desc)'!P100=\"\",\"\",INDEX([1]BUILDING_MTL!$A$2:$A$100,MATCH('Communication Facility (Desc)'!$P100,[1]!MASTER_BUILDING_MTL_DESC[#Data],0),0))","v":""},{"$f":"IF('Communication Facility (Desc)'!Q100=\"\",\"\",INDEX([1]KEY_TYPE!$A$2:$A$100,MATCH('Communication Facility (Desc)'!$Q100,[1]!MASTER_KEY_TYPE_DESC[#Data],0),0))","v":""},{"$f":"IF('Communication Facility (Desc)'!R100=\"\",\"\",'Communication Facility (Desc)'!R100)","v":""},{"$f":"IF('Communication Facility (Desc)'!S100=\"\",\"\",INDEX([1]FILTER_TYPE!$A$2:$A$100,MATCH('Communication Facility (Desc)'!$S100,[1]!MASTER_FILTER_TYPE_DESC[#Data],0),0))","v":""},{"$f":"IF('Communication Facility (Desc)'!T100=\"\",\"\",INDEX([1]FILTER_SIZE!$A$2:$A$100,MATCH('Communication Facility (Desc)'!$T100,[1]!MASTER_FILTER_SIZE_DESC[#Data],0),0))","v":""},{"$f":"IF('Communication Facility (Desc)'!U100=\"\",\"\",'Communication Facility (Desc)'!U100)","v":""},{"$f":"IF('Communication Facility (Desc)'!V100=\"\",\"\",INDEX([1]YES_NO!$A$2:$A$100,MATCH('Communication Facility (Desc)'!$V100,[1]!MASTER_YES_NO_DESC[#Data],0),0))","v":""},{"$f":"IF('Communication Facility (Desc)'!W100=\"\",\"\",INDEX([1]YES_NO!$A$2:$A$100,MATCH('Communication Facility (Desc)'!$W100,[1]!MASTER_YES_NO_DESC[#Data],0),0))","v":""}]
[{"$f":"IF('Communication Facility (Desc)'!A101=\"\",\"\",'Communication Facility (Desc)'!A101)","v":""},{"$f":"IF('Communication Facility (Desc)'!B101=\"\",\"\",'Communication Facility (Desc)'!B101)","v":""},{"$f":"IF('Communication Facility (Desc)'!C101=\"\",\"\",'Communication Facility (Desc)'!C101)","v":""},{"$f":"IF('Communication Facility (Desc)'!D101=\"\",\"\",'Communication Facility (Desc)'!D101)","v":""},{"$f":"IF('Communication Facility (Desc)'!E101=\"\",\"\",INDEX([1]FACILITY_TYPE!$A$2:$A$100,MATCH('Communication Facility (Desc)'!$E101,[1]!MASTER_FACILITY_TYPE_DESC[#Data],0),0))","v":""},{"$f":"IF('Communication Facility (Desc)'!F101=\"\",\"\",INDEX([1]OWNER!$A$2:$A$100,MATCH('Communication Facility (Desc)'!$F101,[1]!MASTER_OWNER_DESC[#Data],0),0))","v":""},{"$f":"IF('Communication Facility (Desc)'!G101=\"\",\"\",IF('Communication Facility (Desc)'!G101=\"\",\"\",INDEX([1]COUNTY!$A$2:$A$80,MATCH('Communication Facility (Desc)'!G101,[1]!MASTER_COUNTY_NAME[#Data],0),0)))","v":""},{"$f":"IF('Communication Facility (Desc)'!H101=\"\",\"\",'Communication Facility (Desc)'!H101)","v":""},{"$f":"IF('Communication Facility (Desc)'!I101=\"\",\"\",'Communication Facility (Desc)'!I101)","v":""},{"$f":"IF('Communication Facility (Desc)'!J101=\"\",\"\",'Communication Facility (Desc)'!J101)","v":""},{"$f":"IF('Communication Facility (Desc)'!K101=\"\",\"\",INDEX([1]CABINET_TYPE!$A$2:$A$100,MATCH('Communication Facility (Desc)'!$K101,[1]!MASTER_CABINET_TYPE_DESC[#Data],0),0))","v":""},{"$f":"IF('Communication Facility (Desc)'!L101=\"\",\"\",INDEX([1]CABINET_MOUNT_TYPE!$A$2:$A$100,MATCH('Communication Facility (Desc)'!L101,[1]!MASTER_CABINET_MOUNT_TYPE_DESC[#Data],0),0))","v":""},{"$f":"IF('Communication Facility (Desc)'!M101=\"\",\"\",INDEX([1]YES_NO!$A$2:$A$100,MATCH('Communication Facility (Desc)'!M101,[1]!MASTER_YES_NO_DESC[#Data],0),0))","v":""},{"$f":"IF('Communication Facility (Desc)'!N101=\"\",\"\",INDEX([1]BUILDING_TYPE!$A$2:$A$100,MATCH('Communication Facility (Desc)'!$N101,[1]!MASTER_BUILDING_TYPE_DESC[#Data],0),0))","v":""},{"$f":"IF('Communication Facility (Desc)'!O101=\"\",\"\",'Communication Facility (Desc)'!O101)","v":""},{"$f":"IF('Communication Facility (Desc)'!P101=\"\",\"\",INDEX([1]BUILDING_MTL!$A$2:$A$100,MATCH('Communication Facility (Desc)'!$P101,[1]!MASTER_BUILDING_MTL_DESC[#Data],0),0))","v":""},{"$f":"IF('Communication Facility (Desc)'!Q101=\"\",\"\",INDEX([1]KEY_TYPE!$A$2:$A$100,MATCH('Communication Facility (Desc)'!$Q101,[1]!MASTER_KEY_TYPE_DESC[#Data],0),0))","v":""},{"$f":"IF('Communication Facility (Desc)'!R101=\"\",\"\",'Communication Facility (Desc)'!R101)","v":""},{"$f":"IF('Communication Facility (Desc)'!S101=\"\",\"\",INDEX([1]FILTER_TYPE!$A$2:$A$100,MATCH('Communication Facility (Desc)'!$S101,[1]!MASTER_FILTER_TYPE_DESC[#Data],0),0))","v":""},{"$f":"IF('Communication Facility (Desc)'!T101=\"\",\"\",INDEX([1]FILTER_SIZE!$A$2:$A$100,MATCH('Communication Facility (Desc)'!$T101,[1]!MASTER_FILTER_SIZE_DESC[#Data],0),0))","v":""},{"$f":"IF('Communication Facility (Desc)'!U101=\"\",\"\",'Communication Facility (Desc)'!U101)","v":""},{"$f":"IF('Communication Facility (Desc)'!V101=\"\",\"\",INDEX([1]YES_NO!$A$2:$A$100,MATCH('Communication Facility (Desc)'!$V101,[1]!MASTER_YES_NO_DESC[#Data],0),0))","v":""},{"$f":"IF('Communication Facility (Desc)'!W101=\"\",\"\",INDEX([1]YES_NO!$A$2:$A$100,MATCH('Communication Facility (Desc)'!$W101,[1]!MASTER_YES_NO_DESC[#Data],0),0))","v":""}]
[{"$f":"IF('Communication Facility (Desc)'!A102=\"\",\"\",'Communication Facility (Desc)'!A102)","v":""},{"$f":"IF('Communication Facility (Desc)'!B102=\"\",\"\",'Communication Facility (Desc)'!B102)","v":""},{"$f":"IF('Communication Facility (Desc)'!C102=\"\",\"\",'Communication Facility (Desc)'!C102)","v":""},{"$f":"IF('Communication Facility (Desc)'!D102=\"\",\"\",'Communication Facility (Desc)'!D102)","v":""},{"$f":"IF('Communication Facility (Desc)'!E102=\"\",\"\",INDEX([1]FACILITY_TYPE!$A$2:$A$100,MATCH('Communication Facility (Desc)'!$E102,[1]!MASTER_FACILITY_TYPE_DESC[#Data],0),0))","v":""},{"$f":"IF('Communication Facility (Desc)'!F102=\"\",\"\",INDEX([1]OWNER!$A$2:$A$100,MATCH('Communication Facility (Desc)'!$F102,[1]!MASTER_OWNER_DESC[#Data],0),0))","v":""},{"$f":"IF('Communication Facility (Desc)'!G102=\"\",\"\",IF('Communication Facility (Desc)'!G102=\"\",\"\",INDEX([1]COUNTY!$A$2:$A$80,MATCH('Communication Facility (Desc)'!G102,[1]!MASTER_COUNTY_NAME[#Data],0),0)))","v":""},{"$f":"IF('Communication Facility (Desc)'!H102=\"\",\"\",'Communication Facility (Desc)'!H102)","v":""},{"$f":"IF('Communication Facility (Desc)'!I102=\"\",\"\",'Communication Facility (Desc)'!I102)","v":""},{"$f":"IF('Communication Facility (Desc)'!J102=\"\",\"\",'Communication Facility (Desc)'!J102)","v":""},{"$f":"IF('Communication Facility (Desc)'!K102=\"\",\"\",INDEX([1]CABINET_TYPE!$A$2:$A$100,MATCH('Communication Facility (Desc)'!$K102,[1]!MASTER_CABINET_TYPE_DESC[#Data],0),0))","v":""},{"$f":"IF('Communication Facility (Desc)'!L102=\"\",\"\",INDEX([1]CABINET_MOUNT_TYPE!$A$2:$A$100,MATCH('Communication Facility (Desc)'!L102,[1]!MASTER_CABINET_MOUNT_TYPE_DESC[#Data],0),0))","v":""},{"$f":"IF('Communication Facility (Desc)'!M102=\"\",\"\",INDEX([1]YES_NO!$A$2:$A$100,MATCH('Communication Facility (Desc)'!M102,[1]!MASTER_YES_NO_DESC[#Data],0),0))","v":""},{"$f":"IF('Communication Facility (Desc)'!N102=\"\",\"\",INDEX([1]BUILDING_TYPE!$A$2:$A$100,MATCH('Communication Facility (Desc)'!$N102,[1]!MASTER_BUILDING_TYPE_DESC[#Data],0),0))","v":""},{"$f":"IF('Communication Facility (Desc)'!O102=\"\",\"\",'Communication Facility (Desc)'!O102)","v":""},{"$f":"IF('Communication Facility (Desc)'!P102=\"\",\"\",INDEX([1]BUILDING_MTL!$A$2:$A$100,MATCH('Communication Facility (Desc)'!$P102,[1]!MASTER_BUILDING_MTL_DESC[#Data],0),0))","v":""},{"$f":"IF('Communication Facility (Desc)'!Q102=\"\",\"\",INDEX([1]KEY_TYPE!$A$2:$A$100,MATCH('Communication Facility (Desc)'!$Q102,[1]!MASTER_KEY_TYPE_DESC[#Data],0),0))","v":""},{"$f":"IF('Communication Facility (Desc)'!R102=\"\",\"\",'Communication Facility (Desc)'!R102)","v":""},{"$f":"IF('Communication Facility (Desc)'!S102=\"\",\"\",INDEX([1]FILTER_TYPE!$A$2:$A$100,MATCH('Communication Facility (Desc)'!$S102,[1]!MASTER_FILTER_TYPE_DESC[#Data],0),0))","v":""},{"$f":"IF('Communication Facility (Desc)'!T102=\"\",\"\",INDEX([1]FILTER_SIZE!$A$2:$A$100,MATCH('Communication Facility (Desc)'!$T102,[1]!MASTER_FILTER_SIZE_DESC[#Data],0),0))","v":""},{"$f":"IF('Communication Facility (Desc)'!U102=\"\",\"\",'Communication Facility (Desc)'!U102)","v":""},{"$f":"IF('Communication Facility (Desc)'!V102=\"\",\"\",INDEX([1]YES_NO!$A$2:$A$100,MATCH('Communication Facility (Desc)'!$V102,[1]!MASTER_YES_NO_DESC[#Data],0),0))","v":""},{"$f":"IF('Communication Facility (Desc)'!W102=\"\",\"\",INDEX([1]YES_NO!$A$2:$A$100,MATCH('Communication Facility (Desc)'!$W102,[1]!MASTER_YES_NO_DESC[#Data],0),0))","v":""}]
[{"$f":"IF('Communication Facility (Desc)'!A103=\"\",\"\",'Communication Facility (Desc)'!A103)","v":""},{"$f":"IF('Communication Facility (Desc)'!B103=\"\",\"\",'Communication Facility (Desc)'!B103)","v":""},{"$f":"IF('Communication Facility (Desc)'!C103=\"\",\"\",'Communication Facility (Desc)'!C103)","v":""},{"$f":"IF('Communication Facility (Desc)'!D103=\"\",\"\",'Communication Facility (Desc)'!D103)","v":""},{"$f":"IF('Communication Facility (Desc)'!E103=\"\",\"\",INDEX([1]FACILITY_TYPE!$A$2:$A$100,MATCH('Communication Facility (Desc)'!$E103,[1]!MASTER_FACILITY_TYPE_DESC[#Data],0),0))","v":""},{"$f":"IF('Communication Facility (Desc)'!F103=\"\",\"\",INDEX([1]OWNER!$A$2:$A$100,MATCH('Communication Facility (Desc)'!$F103,[1]!MASTER_OWNER_DESC[#Data],0),0))","v":""},{"$f":"IF('Communication Facility (Desc)'!G103=\"\",\"\",IF('Communication Facility (Desc)'!G103=\"\",\"\",INDEX([1]COUNTY!$A$2:$A$80,MATCH('Communication Facility (Desc)'!G103,[1]!MASTER_COUNTY_NAME[#Data],0),0)))","v":""},{"$f":"IF('Communication Facility (Desc)'!H103=\"\",\"\",'Communication Facility (Desc)'!H103)","v":""},{"$f":"IF('Communication Facility (Desc)'!I103=\"\",\"\",'Communication Facility (Desc)'!I103)","v":""},{"$f":"IF('Communication Facility (Desc)'!J103=\"\",\"\",'Communication Facility (Desc)'!J103)","v":""},{"$f":"IF('Communication Facility (Desc)'!K103=\"\",\"\",INDEX([1]CABINET_TYPE!$A$2:$A$100,MATCH('Communication Facility (Desc)'!$K103,[1]!MASTER_CABINET_TYPE_DESC[#Data],0),0))","v":""},{"$f":"IF('Communication Facility (Desc)'!L103=\"\",\"\",INDEX([1]CABINET_MOUNT_TYPE!$A$2:$A$100,MATCH('Communication Facility (Desc)'!L103,[1]!MASTER_CABINET_MOUNT_TYPE_DESC[#Data],0),0))","v":""},{"$f":"IF('Communication Facility (Desc)'!M103=\"\",\"\",INDEX([1]YES_NO!$A$2:$A$100,MATCH('Communication Facility (Desc)'!M103,[1]!MASTER_YES_NO_DESC[#Data],0),0))","v":""},{"$f":"IF('Communication Facility (Desc)'!N103=\"\",\"\",INDEX([1]BUILDING_TYPE!$A$2:$A$100,MATCH('Communication Facility (Desc)'!$N103,[1]!MASTER_BUILDING_TYPE_DESC[#Data],0),0))","v":""},{"$f":"IF('Communication Facility (Desc)'!O103=\"\",\"\",'Communication Facility (Desc)'!O103)","v":""},{"$f":"IF('Communication Facility (Desc)'!P103=\"\",\"\",INDEX([1]BUILDING_MTL!$A$2:$A$100,MATCH('Communication Facility (Desc)'!$P103,[1]!MASTER_BUILDING_MTL_DESC[#Data],0),0))","v":""},{"$f":"IF('Communication Facility (Desc)'!Q103=\"\",\"\",INDEX([1]KEY_TYPE!$A$2:$A$100,MATCH('Communication Facility (Desc)'!$Q103,[1]!MASTER_KEY_TYPE_DESC[#Data],0),0))","v":""},{"$f":"IF('Communication Facility (Desc)'!R103=\"\",\"\",'Communication Facility (Desc)'!R103)","v":""},{"$f":"IF('Communication Facility (Desc)'!S103=\"\",\"\",INDEX([1]FILTER_TYPE!$A$2:$A$100,MATCH('Communication Facility (Desc)'!$S103,[1]!MASTER_FILTER_TYPE_DESC[#Data],0),0))","v":""},{"$f":"IF('Communication Facility (Desc)'!T103=\"\",\"\",INDEX([1]FILTER_SIZE!$A$2:$A$100,MATCH('Communication Facility (Desc)'!$T103,[1]!MASTER_FILTER_SIZE_DESC[#Data],0),0))","v":""},{"$f":"IF('Communication Facility (Desc)'!U103=\"\",\"\",'Communication Facility (Desc)'!U103)","v":""},{"$f":"IF('Communication Facility (Desc)'!V103=\"\",\"\",INDEX([1]YES_NO!$A$2:$A$100,MATCH('Communication Facility (Desc)'!$V103,[1]!MASTER_YES_NO_DESC[#Data],0),0))","v":""},{"$f":"IF('Communication Facility (Desc)'!W103=\"\",\"\",INDEX([1]YES_NO!$A$2:$A$100,MATCH('Communication Facility (Desc)'!$W103,[1]!MASTER_YES_NO_DESC[#Data],0),0))","v":""}]
[{"$f":"IF('Communication Facility (Desc)'!A104=\"\",\"\",'Communication Facility (Desc)'!A104)","v":""},{"$f":"IF('Communication Facility (Desc)'!B104=\"\",\"\",'Communication Facility (Desc)'!B104)","v":""},{"$f":"IF('Communication Facility (Desc)'!C104=\"\",\"\",'Communication Facility (Desc)'!C104)","v":""},{"$f":"IF('Communication Facility (Desc)'!D104=\"\",\"\",'Communication Facility (Desc)'!D104)","v":""},{"$f":"IF('Communication Facility (Desc)'!E104=\"\",\"\",INDEX([1]FACILITY_TYPE!$A$2:$A$100,MATCH('Communication Facility (Desc)'!$E104,[1]!MASTER_FACILITY_TYPE_DESC[#Data],0),0))","v":""},{"$f":"IF('Communication Facility (Desc)'!F104=\"\",\"\",INDEX([1]OWNER!$A$2:$A$100,MATCH('Communication Facility (Desc)'!$F104,[1]!MASTER_OWNER_DESC[#Data],0),0))","v":""},{"$f":"IF('Communication Facility (Desc)'!G104=\"\",\"\",IF('Communication Facility (Desc)'!G104=\"\",\"\",INDEX([1]COUNTY!$A$2:$A$80,MATCH('Communication Facility (Desc)'!G104,[1]!MASTER_COUNTY_NAME[#Data],0),0)))","v":""},{"$f":"IF('Communication Facility (Desc)'!H104=\"\",\"\",'Communication Facility (Desc)'!H104)","v":""},{"$f":"IF('Communication Facility (Desc)'!I104=\"\",\"\",'Communication Facility (Desc)'!I104)","v":""},{"$f":"IF('Communication Facility (Desc)'!J104=\"\",\"\",'Communication Facility (Desc)'!J104)","v":""},{"$f":"IF('Communication Facility (Desc)'!K104=\"\",\"\",INDEX([1]CABINET_TYPE!$A$2:$A$100,MATCH('Communication Facility (Desc)'!$K104,[1]!MASTER_CABINET_TYPE_DESC[#Data],0),0))","v":""},{"$f":"IF('Communication Facility (Desc)'!L104=\"\",\"\",INDEX([1]CABINET_MOUNT_TYPE!$A$2:$A$100,MATCH('Communication Facility (Desc)'!L104,[1]!MASTER_CABINET_MOUNT_TYPE_DESC[#Data],0),0))","v":""},{"$f":"IF('Communication Facility (Desc)'!M104=\"\",\"\",INDEX([1]YES_NO!$A$2:$A$100,MATCH('Communication Facility (Desc)'!M104,[1]!MASTER_YES_NO_DESC[#Data],0),0))","v":""},{"$f":"IF('Communication Facility (Desc)'!N104=\"\",\"\",INDEX([1]BUILDING_TYPE!$A$2:$A$100,MATCH('Communication Facility (Desc)'!$N104,[1]!MASTER_BUILDING_TYPE_DESC[#Data],0),0))","v":""},{"$f":"IF('Communication Facility (Desc)'!O104=\"\",\"\",'Communication Facility (Desc)'!O104)","v":""},{"$f":"IF('Communication Facility (Desc)'!P104=\"\",\"\",INDEX([1]BUILDING_MTL!$A$2:$A$100,MATCH('Communication Facility (Desc)'!$P104,[1]!MASTER_BUILDING_MTL_DESC[#Data],0),0))","v":""},{"$f":"IF('Communication Facility (Desc)'!Q104=\"\",\"\",INDEX([1]KEY_TYPE!$A$2:$A$100,MATCH('Communication Facility (Desc)'!$Q104,[1]!MASTER_KEY_TYPE_DESC[#Data],0),0))","v":""},{"$f":"IF('Communication Facility (Desc)'!R104=\"\",\"\",'Communication Facility (Desc)'!R104)","v":""},{"$f":"IF('Communication Facility (Desc)'!S104=\"\",\"\",INDEX([1]FILTER_TYPE!$A$2:$A$100,MATCH('Communication Facility (Desc)'!$S104,[1]!MASTER_FILTER_TYPE_DESC[#Data],0),0))","v":""},{"$f":"IF('Communication Facility (Desc)'!T104=\"\",\"\",INDEX([1]FILTER_SIZE!$A$2:$A$100,MATCH('Communication Facility (Desc)'!$T104,[1]!MASTER_FILTER_SIZE_DESC[#Data],0),0))","v":""},{"$f":"IF('Communication Facility (Desc)'!U104=\"\",\"\",'Communication Facility (Desc)'!U104)","v":""},{"$f":"IF('Communication Facility (Desc)'!V104=\"\",\"\",INDEX([1]YES_NO!$A$2:$A$100,MATCH('Communication Facility (Desc)'!$V104,[1]!MASTER_YES_NO_DESC[#Data],0),0))","v":""},{"$f":"IF('Communication Facility (Desc)'!W104=\"\",\"\",INDEX([1]YES_NO!$A$2:$A$100,MATCH('Communication Facility (Desc)'!$W104,[1]!MASTER_YES_NO_DESC[#Data],0),0))","v":""}]
[{"$f":"IF('Communication Facility (Desc)'!A105=\"\",\"\",'Communication Facility (Desc)'!A105)","v":""},{"$f":"IF('Communication Facility (Desc)'!B105=\"\",\"\",'Communication Facility (Desc)'!B105)","v":""},{"$f":"IF('Communication Facility (Desc)'!C105=\"\",\"\",'Communication Facility (Desc)'!C105)","v":""},{"$f":"IF('Communication Facility (Desc)'!D105=\"\",\"\",'Communication Facility (Desc)'!D105)","v":""},{"$f":"IF('Communication Facility (Desc)'!E105=\"\",\"\",INDEX([1]FACILITY_TYPE!$A$2:$A$100,MATCH('Communication Facility (Desc)'!$E105,[1]!MASTER_FACILITY_TYPE_DESC[#Data],0),0))","v":""},{"$f":"IF('Communication Facility (Desc)'!F105=\"\",\"\",INDEX([1]OWNER!$A$2:$A$100,MATCH('Communication Facility (Desc)'!$F105,[1]!MASTER_OWNER_DESC[#Data],0),0))","v":""},{"$f":"IF('Communication Facility (Desc)'!G105=\"\",\"\",IF('Communication Facility (Desc)'!G105=\"\",\"\",INDEX([1]COUNTY!$A$2:$A$80,MATCH('Communication Facility (Desc)'!G105,[1]!MASTER_COUNTY_NAME[#Data],0),0)))","v":""},{"$f":"IF('Communication Facility (Desc)'!H105=\"\",\"\",'Communication Facility (Desc)'!H105)","v":""},{"$f":"IF('Communication Facility (Desc)'!I105=\"\",\"\",'Communication Facility (Desc)'!I105)","v":""},{"$f":"IF('Communication Facility (Desc)'!J105=\"\",\"\",'Communication Facility (Desc)'!J105)","v":""},{"$f":"IF('Communication Facility (Desc)'!K105=\"\",\"\",INDEX([1]CABINET_TYPE!$A$2:$A$100,MATCH('Communication Facility (Desc)'!$K105,[1]!MASTER_CABINET_TYPE_DESC[#Data],0),0))","v":""},{"$f":"IF('Communication Facility (Desc)'!L105=\"\",\"\",INDEX([1]CABINET_MOUNT_TYPE!$A$2:$A$100,MATCH('Communication Facility (Desc)'!L105,[1]!MASTER_CABINET_MOUNT_TYPE_DESC[#Data],0),0))","v":""},{"$f":"IF('Communication Facility (Desc)'!M105=\"\",\"\",INDEX([1]YES_NO!$A$2:$A$100,MATCH('Communication Facility (Desc)'!M105,[1]!MASTER_YES_NO_DESC[#Data],0),0))","v":""},{"$f":"IF('Communication Facility (Desc)'!N105=\"\",\"\",INDEX([1]BUILDING_TYPE!$A$2:$A$100,MATCH('Communication Facility (Desc)'!$N105,[1]!MASTER_BUILDING_TYPE_DESC[#Data],0),0))","v":""},{"$f":"IF('Communication Facility (Desc)'!O105=\"\",\"\",'Communication Facility (Desc)'!O105)","v":""},{"$f":"IF('Communication Facility (Desc)'!P105=\"\",\"\",INDEX([1]BUILDING_MTL!$A$2:$A$100,MATCH('Communication Facility (Desc)'!$P105,[1]!MASTER_BUILDING_MTL_DESC[#Data],0),0))","v":""},{"$f":"IF('Communication Facility (Desc)'!Q105=\"\",\"\",INDEX([1]KEY_TYPE!$A$2:$A$100,MATCH('Communication Facility (Desc)'!$Q105,[1]!MASTER_KEY_TYPE_DESC[#Data],0),0))","v":""},{"$f":"IF('Communication Facility (Desc)'!R105=\"\",\"\",'Communication Facility (Desc)'!R105)","v":""},{"$f":"IF('Communication Facility (Desc)'!S105=\"\",\"\",INDEX([1]FILTER_TYPE!$A$2:$A$100,MATCH('Communication Facility (Desc)'!$S105,[1]!MASTER_FILTER_TYPE_DESC[#Data],0),0))","v":""},{"$f":"IF('Communication Facility (Desc)'!T105=\"\",\"\",INDEX([1]FILTER_SIZE!$A$2:$A$100,MATCH('Communication Facility (Desc)'!$T105,[1]!MASTER_FILTER_SIZE_DESC[#Data],0),0))","v":""},{"$f":"IF('Communication Facility (Desc)'!U105=\"\",\"\",'Communication Facility (Desc)'!U105)","v":""},{"$f":"IF('Communication Facility (Desc)'!V105=\"\",\"\",INDEX([1]YES_NO!$A$2:$A$100,MATCH('Communication Facility (Desc)'!$V105,[1]!MASTER_YES_NO_DESC[#Data],0),0))","v":""},{"$f":"IF('Communication Facility (Desc)'!W105=\"\",\"\",INDEX([1]YES_NO!$A$2:$A$100,MATCH('Communication Facility (Desc)'!$W105,[1]!MASTER_YES_NO_DESC[#Data],0),0))","v":""}]
[{"$f":"IF('Communication Facility (Desc)'!A106=\"\",\"\",'Communication Facility (Desc)'!A106)","v":""},{"$f":"IF('Communication Facility (Desc)'!B106=\"\",\"\",'Communication Facility (Desc)'!B106)","v":""},{"$f":"IF('Communication Facility (Desc)'!C106=\"\",\"\",'Communication Facility (Desc)'!C106)","v":""},{"$f":"IF('Communication Facility (Desc)'!D106=\"\",\"\",'Communication Facility (Desc)'!D106)","v":""},{"$f":"IF('Communication Facility (Desc)'!E106=\"\",\"\",INDEX([1]FACILITY_TYPE!$A$2:$A$100,MATCH('Communication Facility (Desc)'!$E106,[1]!MASTER_FACILITY_TYPE_DESC[#Data],0),0))","v":""},{"$f":"IF('Communication Facility (Desc)'!F106=\"\",\"\",INDEX([1]OWNER!$A$2:$A$100,MATCH('Communication Facility (Desc)'!$F106,[1]!MASTER_OWNER_DESC[#Data],0),0))","v":""},{"$f":"IF('Communication Facility (Desc)'!G106=\"\",\"\",IF('Communication Facility (Desc)'!G106=\"\",\"\",INDEX([1]COUNTY!$A$2:$A$80,MATCH('Communication Facility (Desc)'!G106,[1]!MASTER_COUNTY_NAME[#Data],0),0)))","v":""},{"$f":"IF('Communication Facility (Desc)'!H106=\"\",\"\",'Communication Facility (Desc)'!H106)","v":""},{"$f":"IF('Communication Facility (Desc)'!I106=\"\",\"\",'Communication Facility (Desc)'!I106)","v":""},{"$f":"IF('Communication Facility (Desc)'!J106=\"\",\"\",'Communication Facility (Desc)'!J106)","v":""},{"$f":"IF('Communication Facility (Desc)'!K106=\"\",\"\",INDEX([1]CABINET_TYPE!$A$2:$A$100,MATCH('Communication Facility (Desc)'!$K106,[1]!MASTER_CABINET_TYPE_DESC[#Data],0),0))","v":""},{"$f":"IF('Communication Facility (Desc)'!L106=\"\",\"\",INDEX([1]CABINET_MOUNT_TYPE!$A$2:$A$100,MATCH('Communication Facility (Desc)'!L106,[1]!MASTER_CABINET_MOUNT_TYPE_DESC[#Data],0),0))","v":""},{"$f":"IF('Communication Facility (Desc)'!M106=\"\",\"\",INDEX([1]YES_NO!$A$2:$A$100,MATCH('Communication Facility (Desc)'!M106,[1]!MASTER_YES_NO_DESC[#Data],0),0))","v":""},{"$f":"IF('Communication Facility (Desc)'!N106=\"\",\"\",INDEX([1]BUILDING_TYPE!$A$2:$A$100,MATCH('Communication Facility (Desc)'!$N106,[1]!MASTER_BUILDING_TYPE_DESC[#Data],0),0))","v":""},{"$f":"IF('Communication Facility (Desc)'!O106=\"\",\"\",'Communication Facility (Desc)'!O106)","v":""},{"$f":"IF('Communication Facility (Desc)'!P106=\"\",\"\",INDEX([1]BUILDING_MTL!$A$2:$A$100,MATCH('Communication Facility (Desc)'!$P106,[1]!MASTER_BUILDING_MTL_DESC[#Data],0),0))","v":""},{"$f":"IF('Communication Facility (Desc)'!Q106=\"\",\"\",INDEX([1]KEY_TYPE!$A$2:$A$100,MATCH('Communication Facility (Desc)'!$Q106,[1]!MASTER_KEY_TYPE_DESC[#Data],0),0))","v":""},{"$f":"IF('Communication Facility (Desc)'!R106=\"\",\"\",'Communication Facility (Desc)'!R106)","v":""},{"$f":"IF('Communication Facility (Desc)'!S106=\"\",\"\",INDEX([1]FILTER_TYPE!$A$2:$A$100,MATCH('Communication Facility (Desc)'!$S106,[1]!MASTER_FILTER_TYPE_DESC[#Data],0),0))","v":""},{"$f":"IF('Communication Facility (Desc)'!T106=\"\",\"\",INDEX([1]FILTER_SIZE!$A$2:$A$100,MATCH('Communication Facility (Desc)'!$T106,[1]!MASTER_FILTER_SIZE_DESC[#Data],0),0))","v":""},{"$f":"IF('Communication Facility (Desc)'!U106=\"\",\"\",'Communication Facility (Desc)'!U106)","v":""},{"$f":"IF('Communication Facility (Desc)'!V106=\"\",\"\",INDEX([1]YES_NO!$A$2:$A$100,MATCH('Communication Facility (Desc)'!$V106,[1]!MASTER_YES_NO_DESC[#Data],0),0))","v":""},{"$f":"IF('Communication Facility (Desc)'!W106=\"\",\"\",INDEX([1]YES_NO!$A$2:$A$100,MATCH('Communication Facility (Desc)'!$W106,[1]!MASTER_YES_NO_DESC[#Data],0),0))","v":""}]
[{"$f":"IF('Communication Facility (Desc)'!A107=\"\",\"\",'Communication Facility (Desc)'!A107)","v":""},{"$f":"IF('Communication Facility (Desc)'!B107=\"\",\"\",'Communication Facility (Desc)'!B107)","v":""},{"$f":"IF('Communication Facility (Desc)'!C107=\"\",\"\",'Communication Facility (Desc)'!C107)","v":""},{"$f":"IF('Communication Facility (Desc)'!D107=\"\",\"\",'Communication Facility (Desc)'!D107)","v":""},{"$f":"IF('Communication Facility (Desc)'!E107=\"\",\"\",INDEX([1]FACILITY_TYPE!$A$2:$A$100,MATCH('Communication Facility (Desc)'!$E107,[1]!MASTER_FACILITY_TYPE_DESC[#Data],0),0))","v":""},{"$f":"IF('Communication Facility (Desc)'!F107=\"\",\"\",INDEX([1]OWNER!$A$2:$A$100,MATCH('Communication Facility (Desc)'!$F107,[1]!MASTER_OWNER_DESC[#Data],0),0))","v":""},{"$f":"IF('Communication Facility (Desc)'!G107=\"\",\"\",IF('Communication Facility (Desc)'!G107=\"\",\"\",INDEX([1]COUNTY!$A$2:$A$80,MATCH('Communication Facility (Desc)'!G107,[1]!MASTER_COUNTY_NAME[#Data],0),0)))","v":""},{"$f":"IF('Communication Facility (Desc)'!H107=\"\",\"\",'Communication Facility (Desc)'!H107)","v":""},{"$f":"IF('Communication Facility (Desc)'!I107=\"\",\"\",'Communication Facility (Desc)'!I107)","v":""},{"$f":"IF('Communication Facility (Desc)'!J107=\"\",\"\",'Communication Facility (Desc)'!J107)","v":""},{"$f":"IF('Communication Facility (Desc)'!K107=\"\",\"\",INDEX([1]CABINET_TYPE!$A$2:$A$100,MATCH('Communication Facility (Desc)'!$K107,[1]!MASTER_CABINET_TYPE_DESC[#Data],0),0))","v":""},{"$f":"IF('Communication Facility (Desc)'!L107=\"\",\"\",INDEX([1]CABINET_MOUNT_TYPE!$A$2:$A$100,MATCH('Communication Facility (Desc)'!L107,[1]!MASTER_CABINET_MOUNT_TYPE_DESC[#Data],0),0))","v":""},{"$f":"IF('Communication Facility (Desc)'!M107=\"\",\"\",INDEX([1]YES_NO!$A$2:$A$100,MATCH('Communication Facility (Desc)'!M107,[1]!MASTER_YES_NO_DESC[#Data],0),0))","v":""},{"$f":"IF('Communication Facility (Desc)'!N107=\"\",\"\",INDEX([1]BUILDING_TYPE!$A$2:$A$100,MATCH('Communication Facility (Desc)'!$N107,[1]!MASTER_BUILDING_TYPE_DESC[#Data],0),0))","v":""},{"$f":"IF('Communication Facility (Desc)'!O107=\"\",\"\",'Communication Facility (Desc)'!O107)","v":""},{"$f":"IF('Communication Facility (Desc)'!P107=\"\",\"\",INDEX([1]BUILDING_MTL!$A$2:$A$100,MATCH('Communication Facility (Desc)'!$P107,[1]!MASTER_BUILDING_MTL_DESC[#Data],0),0))","v":""},{"$f":"IF('Communication Facility (Desc)'!Q107=\"\",\"\",INDEX([1]KEY_TYPE!$A$2:$A$100,MATCH('Communication Facility (Desc)'!$Q107,[1]!MASTER_KEY_TYPE_DESC[#Data],0),0))","v":""},{"$f":"IF('Communication Facility (Desc)'!R107=\"\",\"\",'Communication Facility (Desc)'!R107)","v":""},{"$f":"IF('Communication Facility (Desc)'!S107=\"\",\"\",INDEX([1]FILTER_TYPE!$A$2:$A$100,MATCH('Communication Facility (Desc)'!$S107,[1]!MASTER_FILTER_TYPE_DESC[#Data],0),0))","v":""},{"$f":"IF('Communication Facility (Desc)'!T107=\"\",\"\",INDEX([1]FILTER_SIZE!$A$2:$A$100,MATCH('Communication Facility (Desc)'!$T107,[1]!MASTER_FILTER_SIZE_DESC[#Data],0),0))","v":""},{"$f":"IF('Communication Facility (Desc)'!U107=\"\",\"\",'Communication Facility (Desc)'!U107)","v":""},{"$f":"IF('Communication Facility (Desc)'!V107=\"\",\"\",INDEX([1]YES_NO!$A$2:$A$100,MATCH('Communication Facility (Desc)'!$V107,[1]!MASTER_YES_NO_DESC[#Data],0),0))","v":""},{"$f":"IF('Communication Facility (Desc)'!W107=\"\",\"\",INDEX([1]YES_NO!$A$2:$A$100,MATCH('Communication Facility (Desc)'!$W107,[1]!MASTER_YES_NO_DESC[#Data],0),0))","v":""}]
[{"$f":"IF('Communication Facility (Desc)'!A108=\"\",\"\",'Communication Facility (Desc)'!A108)","v":""},{"$f":"IF('Communication Facility (Desc)'!B108=\"\",\"\",'Communication Facility (Desc)'!B108)","v":""},{"$f":"IF('Communication Facility (Desc)'!C108=\"\",\"\",'Communication Facility (Desc)'!C108)","v":""},{"$f":"IF('Communication Facility (Desc)'!D108=\"\",\"\",'Communication Facility (Desc)'!D108)","v":""},{"$f":"IF('Communication Facility (Desc)'!E108=\"\",\"\",INDEX([1]FACILITY_TYPE!$A$2:$A$100,MATCH('Communication Facility (Desc)'!$E108,[1]!MASTER_FACILITY_TYPE_DESC[#Data],0),0))","v":""},{"$f":"IF('Communication Facility (Desc)'!F108=\"\",\"\",INDEX([1]OWNER!$A$2:$A$100,MATCH('Communication Facility (Desc)'!$F108,[1]!MASTER_OWNER_DESC[#Data],0),0))","v":""},{"$f":"IF('Communication Facility (Desc)'!G108=\"\",\"\",IF('Communication Facility (Desc)'!G108=\"\",\"\",INDEX([1]COUNTY!$A$2:$A$80,MATCH('Communication Facility (Desc)'!G108,[1]!MASTER_COUNTY_NAME[#Data],0),0)))","v":""},{"$f":"IF('Communication Facility (Desc)'!H108=\"\",\"\",'Communication Facility (Desc)'!H108)","v":""},{"$f":"IF('Communication Facility (Desc)'!I108=\"\",\"\",'Communication Facility (Desc)'!I108)","v":""},{"$f":"IF('Communication Facility (Desc)'!J108=\"\",\"\",'Communication Facility (Desc)'!J108)","v":""},{"$f":"IF('Communication Facility (Desc)'!K108=\"\",\"\",INDEX([1]CABINET_TYPE!$A$2:$A$100,MATCH('Communication Facility (Desc)'!$K108,[1]!MASTER_CABINET_TYPE_DESC[#Data],0),0))","v":""},{"$f":"IF('Communication Facility (Desc)'!L108=\"\",\"\",INDEX([1]CABINET_MOUNT_TYPE!$A$2:$A$100,MATCH('Communication Facility (Desc)'!L108,[1]!MASTER_CABINET_MOUNT_TYPE_DESC[#Data],0),0))","v":""},{"$f":"IF('Communication Facility (Desc)'!M108=\"\",\"\",INDEX([1]YES_NO!$A$2:$A$100,MATCH('Communication Facility (Desc)'!M108,[1]!MASTER_YES_NO_DESC[#Data],0),0))","v":""},{"$f":"IF('Communication Facility (Desc)'!N108=\"\",\"\",INDEX([1]BUILDING_TYPE!$A$2:$A$100,MATCH('Communication Facility (Desc)'!$N108,[1]!MASTER_BUILDING_TYPE_DESC[#Data],0),0))","v":""},{"$f":"IF('Communication Facility (Desc)'!O108=\"\",\"\",'Communication Facility (Desc)'!O108)","v":""},{"$f":"IF('Communication Facility (Desc)'!P108=\"\",\"\",INDEX([1]BUILDING_MTL!$A$2:$A$100,MATCH('Communication Facility (Desc)'!$P108,[1]!MASTER_BUILDING_MTL_DESC[#Data],0),0))","v":""},{"$f":"IF('Communication Facility (Desc)'!Q108=\"\",\"\",INDEX([1]KEY_TYPE!$A$2:$A$100,MATCH('Communication Facility (Desc)'!$Q108,[1]!MASTER_KEY_TYPE_DESC[#Data],0),0))","v":""},{"$f":"IF('Communication Facility (Desc)'!R108=\"\",\"\",'Communication Facility (Desc)'!R108)","v":""},{"$f":"IF('Communication Facility (Desc)'!S108=\"\",\"\",INDEX([1]FILTER_TYPE!$A$2:$A$100,MATCH('Communication Facility (Desc)'!$S108,[1]!MASTER_FILTER_TYPE_DESC[#Data],0),0))","v":""},{"$f":"IF('Communication Facility (Desc)'!T108=\"\",\"\",INDEX([1]FILTER_SIZE!$A$2:$A$100,MATCH('Communication Facility (Desc)'!$T108,[1]!MASTER_FILTER_SIZE_DESC[#Data],0),0))","v":""},{"$f":"IF('Communication Facility (Desc)'!U108=\"\",\"\",'Communication Facility (Desc)'!U108)","v":""},{"$f":"IF('Communication Facility (Desc)'!V108=\"\",\"\",INDEX([1]YES_NO!$A$2:$A$100,MATCH('Communication Facility (Desc)'!$V108,[1]!MASTER_YES_NO_DESC[#Data],0),0))","v":""},{"$f":"IF('Communication Facility (Desc)'!W108=\"\",\"\",INDEX([1]YES_NO!$A$2:$A$100,MATCH('Communication Facility (Desc)'!$W108,[1]!MASTER_YES_NO_DESC[#Data],0),0))","v":""}]
[{"$f":"IF('Communication Facility (Desc)'!A109=\"\",\"\",'Communication Facility (Desc)'!A109)","v":""},{"$f":"IF('Communication Facility (Desc)'!B109=\"\",\"\",'Communication Facility (Desc)'!B109)","v":""},{"$f":"IF('Communication Facility (Desc)'!C109=\"\",\"\",'Communication Facility (Desc)'!C109)","v":""},{"$f":"IF('Communication Facility (Desc)'!D109=\"\",\"\",'Communication Facility (Desc)'!D109)","v":""},{"$f":"IF('Communication Facility (Desc)'!E109=\"\",\"\",INDEX([1]FACILITY_TYPE!$A$2:$A$100,MATCH('Communication Facility (Desc)'!$E109,[1]!MASTER_FACILITY_TYPE_DESC[#Data],0),0))","v":""},{"$f":"IF('Communication Facility (Desc)'!F109=\"\",\"\",INDEX([1]OWNER!$A$2:$A$100,MATCH('Communication Facility (Desc)'!$F109,[1]!MASTER_OWNER_DESC[#Data],0),0))","v":""},{"$f":"IF('Communication Facility (Desc)'!G109=\"\",\"\",IF('Communication Facility (Desc)'!G109=\"\",\"\",INDEX([1]COUNTY!$A$2:$A$80,MATCH('Communication Facility (Desc)'!G109,[1]!MASTER_COUNTY_NAME[#Data],0),0)))","v":""},{"$f":"IF('Communication Facility (Desc)'!H109=\"\",\"\",'Communication Facility (Desc)'!H109)","v":""},{"$f":"IF('Communication Facility (Desc)'!I109=\"\",\"\",'Communication Facility (Desc)'!I109)","v":""},{"$f":"IF('Communication Facility (Desc)'!J109=\"\",\"\",'Communication Facility (Desc)'!J109)","v":""},{"$f":"IF('Communication Facility (Desc)'!K109=\"\",\"\",INDEX([1]CABINET_TYPE!$A$2:$A$100,MATCH('Communication Facility (Desc)'!$K109,[1]!MASTER_CABINET_TYPE_DESC[#Data],0),0))","v":""},{"$f":"IF('Communication Facility (Desc)'!L109=\"\",\"\",INDEX([1]CABINET_MOUNT_TYPE!$A$2:$A$100,MATCH('Communication Facility (Desc)'!L109,[1]!MASTER_CABINET_MOUNT_TYPE_DESC[#Data],0),0))","v":""},{"$f":"IF('Communication Facility (Desc)'!M109=\"\",\"\",INDEX([1]YES_NO!$A$2:$A$100,MATCH('Communication Facility (Desc)'!M109,[1]!MASTER_YES_NO_DESC[#Data],0),0))","v":""},{"$f":"IF('Communication Facility (Desc)'!N109=\"\",\"\",INDEX([1]BUILDING_TYPE!$A$2:$A$100,MATCH('Communication Facility (Desc)'!$N109,[1]!MASTER_BUILDING_TYPE_DESC[#Data],0),0))","v":""},{"$f":"IF('Communication Facility (Desc)'!O109=\"\",\"\",'Communication Facility (Desc)'!O109)","v":""},{"$f":"IF('Communication Facility (Desc)'!P109=\"\",\"\",INDEX([1]BUILDING_MTL!$A$2:$A$100,MATCH('Communication Facility (Desc)'!$P109,[1]!MASTER_BUILDING_MTL_DESC[#Data],0),0))","v":""},{"$f":"IF('Communication Facility (Desc)'!Q109=\"\",\"\",INDEX([1]KEY_TYPE!$A$2:$A$100,MATCH('Communication Facility (Desc)'!$Q109,[1]!MASTER_KEY_TYPE_DESC[#Data],0),0))","v":""},{"$f":"IF('Communication Facility (Desc)'!R109=\"\",\"\",'Communication Facility (Desc)'!R109)","v":""},{"$f":"IF('Communication Facility (Desc)'!S109=\"\",\"\",INDEX([1]FILTER_TYPE!$A$2:$A$100,MATCH('Communication Facility (Desc)'!$S109,[1]!MASTER_FILTER_TYPE_DESC[#Data],0),0))","v":""},{"$f":"IF('Communication Facility (Desc)'!T109=\"\",\"\",INDEX([1]FILTER_SIZE!$A$2:$A$100,MATCH('Communication Facility (Desc)'!$T109,[1]!MASTER_FILTER_SIZE_DESC[#Data],0),0))","v":""},{"$f":"IF('Communication Facility (Desc)'!U109=\"\",\"\",'Communication Facility (Desc)'!U109)","v":""},{"$f":"IF('Communication Facility (Desc)'!V109=\"\",\"\",INDEX([1]YES_NO!$A$2:$A$100,MATCH('Communication Facility (Desc)'!$V109,[1]!MASTER_YES_NO_DESC[#Data],0),0))","v":""},{"$f":"IF('Communication Facility (Desc)'!W109=\"\",\"\",INDEX([1]YES_NO!$A$2:$A$100,MATCH('Communication Facility (Desc)'!$W109,[1]!MASTER_YES_NO_DESC[#Data],0),0))","v":""}]
[{"$f":"IF('Communication Facility (Desc)'!A110=\"\",\"\",'Communication Facility (Desc)'!A110)","v":""},{"$f":"IF('Communication Facility (Desc)'!B110=\"\",\"\",'Communication Facility (Desc)'!B110)","v":""},{"$f":"IF('Communication Facility (Desc)'!C110=\"\",\"\",'Communication Facility (Desc)'!C110)","v":""},{"$f":"IF('Communication Facility (Desc)'!D110=\"\",\"\",'Communication Facility (Desc)'!D110)","v":""},{"$f":"IF('Communication Facility (Desc)'!E110=\"\",\"\",INDEX([1]FACILITY_TYPE!$A$2:$A$100,MATCH('Communication Facility (Desc)'!$E110,[1]!MASTER_FACILITY_TYPE_DESC[#Data],0),0))","v":""},{"$f":"IF('Communication Facility (Desc)'!F110=\"\",\"\",INDEX([1]OWNER!$A$2:$A$100,MATCH('Communication Facility (Desc)'!$F110,[1]!MASTER_OWNER_DESC[#Data],0),0))","v":""},{"$f":"IF('Communication Facility (Desc)'!G110=\"\",\"\",IF('Communication Facility (Desc)'!G110=\"\",\"\",INDEX([1]COUNTY!$A$2:$A$80,MATCH('Communication Facility (Desc)'!G110,[1]!MASTER_COUNTY_NAME[#Data],0),0)))","v":""},{"$f":"IF('Communication Facility (Desc)'!H110=\"\",\"\",'Communication Facility (Desc)'!H110)","v":""},{"$f":"IF('Communication Facility (Desc)'!I110=\"\",\"\",'Communication Facility (Desc)'!I110)","v":""},{"$f":"IF('Communication Facility (Desc)'!J110=\"\",\"\",'Communication Facility (Desc)'!J110)","v":""},{"$f":"IF('Communication Facility (Desc)'!K110=\"\",\"\",INDEX([1]CABINET_TYPE!$A$2:$A$100,MATCH('Communication Facility (Desc)'!$K110,[1]!MASTER_CABINET_TYPE_DESC[#Data],0),0))","v":""},{"$f":"IF('Communication Facility (Desc)'!L110=\"\",\"\",INDEX([1]CABINET_MOUNT_TYPE!$A$2:$A$100,MATCH('Communication Facility (Desc)'!L110,[1]!MASTER_CABINET_MOUNT_TYPE_DESC[#Data],0),0))","v":""},{"$f":"IF('Communication Facility (Desc)'!M110=\"\",\"\",INDEX([1]YES_NO!$A$2:$A$100,MATCH('Communication Facility (Desc)'!M110,[1]!MASTER_YES_NO_DESC[#Data],0),0))","v":""},{"$f":"IF('Communication Facility (Desc)'!N110=\"\",\"\",INDEX([1]BUILDING_TYPE!$A$2:$A$100,MATCH('Communication Facility (Desc)'!$N110,[1]!MASTER_BUILDING_TYPE_DESC[#Data],0),0))","v":""},{"$f":"IF('Communication Facility (Desc)'!O110=\"\",\"\",'Communication Facility (Desc)'!O110)","v":""},{"$f":"IF('Communication Facility (Desc)'!P110=\"\",\"\",INDEX([1]BUILDING_MTL!$A$2:$A$100,MATCH('Communication Facility (Desc)'!$P110,[1]!MASTER_BUILDING_MTL_DESC[#Data],0),0))","v":""},{"$f":"IF('Communication Facility (Desc)'!Q110=\"\",\"\",INDEX([1]KEY_TYPE!$A$2:$A$100,MATCH('Communication Facility (Desc)'!$Q110,[1]!MASTER_KEY_TYPE_DESC[#Data],0),0))","v":""},{"$f":"IF('Communication Facility (Desc)'!R110=\"\",\"\",'Communication Facility (Desc)'!R110)","v":""},{"$f":"IF('Communication Facility (Desc)'!S110=\"\",\"\",INDEX([1]FILTER_TYPE!$A$2:$A$100,MATCH('Communication Facility (Desc)'!$S110,[1]!MASTER_FILTER_TYPE_DESC[#Data],0),0))","v":""},{"$f":"IF('Communication Facility (Desc)'!T110=\"\",\"\",INDEX([1]FILTER_SIZE!$A$2:$A$100,MATCH('Communication Facility (Desc)'!$T110,[1]!MASTER_FILTER_SIZE_DESC[#Data],0),0))","v":""},{"$f":"IF('Communication Facility (Desc)'!U110=\"\",\"\",'Communication Facility (Desc)'!U110)","v":""},{"$f":"IF('Communication Facility (Desc)'!V110=\"\",\"\",INDEX([1]YES_NO!$A$2:$A$100,MATCH('Communication Facility (Desc)'!$V110,[1]!MASTER_YES_NO_DESC[#Data],0),0))","v":""},{"$f":"IF('Communication Facility (Desc)'!W110=\"\",\"\",INDEX([1]YES_NO!$A$2:$A$100,MATCH('Communication Facility (Desc)'!$W110,[1]!MASTER_YES_NO_DESC[#Data],0),0))","v":""}]
[{"$f":"IF('Communication Facility (Desc)'!A111=\"\",\"\",'Communication Facility (Desc)'!A111)","v":""},{"$f":"IF('Communication Facility (Desc)'!B111=\"\",\"\",'Communication Facility (Desc)'!B111)","v":""},{"$f":"IF('Communication Facility (Desc)'!C111=\"\",\"\",'Communication Facility (Desc)'!C111)","v":""},{"$f":"IF('Communication Facility (Desc)'!D111=\"\",\"\",'Communication Facility (Desc)'!D111)","v":""},{"$f":"IF('Communication Facility (Desc)'!E111=\"\",\"\",INDEX([1]FACILITY_TYPE!$A$2:$A$100,MATCH('Communication Facility (Desc)'!$E111,[1]!MASTER_FACILITY_TYPE_DESC[#Data],0),0))","v":""},{"$f":"IF('Communication Facility (Desc)'!F111=\"\",\"\",INDEX([1]OWNER!$A$2:$A$100,MATCH('Communication Facility (Desc)'!$F111,[1]!MASTER_OWNER_DESC[#Data],0),0))","v":""},{"$f":"IF('Communication Facility (Desc)'!G111=\"\",\"\",IF('Communication Facility (Desc)'!G111=\"\",\"\",INDEX([1]COUNTY!$A$2:$A$80,MATCH('Communication Facility (Desc)'!G111,[1]!MASTER_COUNTY_NAME[#Data],0),0)))","v":""},{"$f":"IF('Communication Facility (Desc)'!H111=\"\",\"\",'Communication Facility (Desc)'!H111)","v":""},{"$f":"IF('Communication Facility (Desc)'!I111=\"\",\"\",'Communication Facility (Desc)'!I111)","v":""},{"$f":"IF('Communication Facility (Desc)'!J111=\"\",\"\",'Communication Facility (Desc)'!J111)","v":""},{"$f":"IF('Communication Facility (Desc)'!K111=\"\",\"\",INDEX([1]CABINET_TYPE!$A$2:$A$100,MATCH('Communication Facility (Desc)'!$K111,[1]!MASTER_CABINET_TYPE_DESC[#Data],0),0))","v":""},{"$f":"IF('Communication Facility (Desc)'!L111=\"\",\"\",INDEX([1]CABINET_MOUNT_TYPE!$A$2:$A$100,MATCH('Communication Facility (Desc)'!L111,[1]!MASTER_CABINET_MOUNT_TYPE_DESC[#Data],0),0))","v":""},{"$f":"IF('Communication Facility (Desc)'!M111=\"\",\"\",INDEX([1]YES_NO!$A$2:$A$100,MATCH('Communication Facility (Desc)'!M111,[1]!MASTER_YES_NO_DESC[#Data],0),0))","v":""},{"$f":"IF('Communication Facility (Desc)'!N111=\"\",\"\",INDEX([1]BUILDING_TYPE!$A$2:$A$100,MATCH('Communication Facility (Desc)'!$N111,[1]!MASTER_BUILDING_TYPE_DESC[#Data],0),0))","v":""},{"$f":"IF('Communication Facility (Desc)'!O111=\"\",\"\",'Communication Facility (Desc)'!O111)","v":""},{"$f":"IF('Communication Facility (Desc)'!P111=\"\",\"\",INDEX([1]BUILDING_MTL!$A$2:$A$100,MATCH('Communication Facility (Desc)'!$P111,[1]!MASTER_BUILDING_MTL_DESC[#Data],0),0))","v":""},{"$f":"IF('Communication Facility (Desc)'!Q111=\"\",\"\",INDEX([1]KEY_TYPE!$A$2:$A$100,MATCH('Communication Facility (Desc)'!$Q111,[1]!MASTER_KEY_TYPE_DESC[#Data],0),0))","v":""},{"$f":"IF('Communication Facility (Desc)'!R111=\"\",\"\",'Communication Facility (Desc)'!R111)","v":""},{"$f":"IF('Communication Facility (Desc)'!S111=\"\",\"\",INDEX([1]FILTER_TYPE!$A$2:$A$100,MATCH('Communication Facility (Desc)'!$S111,[1]!MASTER_FILTER_TYPE_DESC[#Data],0),0))","v":""},{"$f":"IF('Communication Facility (Desc)'!T111=\"\",\"\",INDEX([1]FILTER_SIZE!$A$2:$A$100,MATCH('Communication Facility (Desc)'!$T111,[1]!MASTER_FILTER_SIZE_DESC[#Data],0),0))","v":""},{"$f":"IF('Communication Facility (Desc)'!U111=\"\",\"\",'Communication Facility (Desc)'!U111)","v":""},{"$f":"IF('Communication Facility (Desc)'!V111=\"\",\"\",INDEX([1]YES_NO!$A$2:$A$100,MATCH('Communication Facility (Desc)'!$V111,[1]!MASTER_YES_NO_DESC[#Data],0),0))","v":""},{"$f":"IF('Communication Facility (Desc)'!W111=\"\",\"\",INDEX([1]YES_NO!$A$2:$A$100,MATCH('Communication Facility (Desc)'!$W111,[1]!MASTER_YES_NO_DESC[#Data],0),0))","v":""}]
[{"$f":"IF('Communication Facility (Desc)'!A112=\"\",\"\",'Communication Facility (Desc)'!A112)","v":""},{"$f":"IF('Communication Facility (Desc)'!B112=\"\",\"\",'Communication Facility (Desc)'!B112)","v":""},{"$f":"IF('Communication Facility (Desc)'!C112=\"\",\"\",'Communication Facility (Desc)'!C112)","v":""},{"$f":"IF('Communication Facility (Desc)'!D112=\"\",\"\",'Communication Facility (Desc)'!D112)","v":""},{"$f":"IF('Communication Facility (Desc)'!E112=\"\",\"\",INDEX([1]FACILITY_TYPE!$A$2:$A$100,MATCH('Communication Facility (Desc)'!$E112,[1]!MASTER_FACILITY_TYPE_DESC[#Data],0),0))","v":""},{"$f":"IF('Communication Facility (Desc)'!F112=\"\",\"\",INDEX([1]OWNER!$A$2:$A$100,MATCH('Communication Facility (Desc)'!$F112,[1]!MASTER_OWNER_DESC[#Data],0),0))","v":""},{"$f":"IF('Communication Facility (Desc)'!G112=\"\",\"\",IF('Communication Facility (Desc)'!G112=\"\",\"\",INDEX([1]COUNTY!$A$2:$A$80,MATCH('Communication Facility (Desc)'!G112,[1]!MASTER_COUNTY_NAME[#Data],0),0)))","v":""},{"$f":"IF('Communication Facility (Desc)'!H112=\"\",\"\",'Communication Facility (Desc)'!H112)","v":""},{"$f":"IF('Communication Facility (Desc)'!I112=\"\",\"\",'Communication Facility (Desc)'!I112)","v":""},{"$f":"IF('Communication Facility (Desc)'!J112=\"\",\"\",'Communication Facility (Desc)'!J112)","v":""},{"$f":"IF('Communication Facility (Desc)'!K112=\"\",\"\",INDEX([1]CABINET_TYPE!$A$2:$A$100,MATCH('Communication Facility (Desc)'!$K112,[1]!MASTER_CABINET_TYPE_DESC[#Data],0),0))","v":""},{"$f":"IF('Communication Facility (Desc)'!L112=\"\",\"\",INDEX([1]CABINET_MOUNT_TYPE!$A$2:$A$100,MATCH('Communication Facility (Desc)'!L112,[1]!MASTER_CABINET_MOUNT_TYPE_DESC[#Data],0),0))","v":""},{"$f":"IF('Communication Facility (Desc)'!M112=\"\",\"\",INDEX([1]YES_NO!$A$2:$A$100,MATCH('Communication Facility (Desc)'!M112,[1]!MASTER_YES_NO_DESC[#Data],0),0))","v":""},{"$f":"IF('Communication Facility (Desc)'!N112=\"\",\"\",INDEX([1]BUILDING_TYPE!$A$2:$A$100,MATCH('Communication Facility (Desc)'!$N112,[1]!MASTER_BUILDING_TYPE_DESC[#Data],0),0))","v":""},{"$f":"IF('Communication Facility (Desc)'!O112=\"\",\"\",'Communication Facility (Desc)'!O112)","v":""},{"$f":"IF('Communication Facility (Desc)'!P112=\"\",\"\",INDEX([1]BUILDING_MTL!$A$2:$A$100,MATCH('Communication Facility (Desc)'!$P112,[1]!MASTER_BUILDING_MTL_DESC[#Data],0),0))","v":""},{"$f":"IF('Communication Facility (Desc)'!Q112=\"\",\"\",INDEX([1]KEY_TYPE!$A$2:$A$100,MATCH('Communication Facility (Desc)'!$Q112,[1]!MASTER_KEY_TYPE_DESC[#Data],0),0))","v":""},{"$f":"IF('Communication Facility (Desc)'!R112=\"\",\"\",'Communication Facility (Desc)'!R112)","v":""},{"$f":"IF('Communication Facility (Desc)'!S112=\"\",\"\",INDEX([1]FILTER_TYPE!$A$2:$A$100,MATCH('Communication Facility (Desc)'!$S112,[1]!MASTER_FILTER_TYPE_DESC[#Data],0),0))","v":""},{"$f":"IF('Communication Facility (Desc)'!T112=\"\",\"\",INDEX([1]FILTER_SIZE!$A$2:$A$100,MATCH('Communication Facility (Desc)'!$T112,[1]!MASTER_FILTER_SIZE_DESC[#Data],0),0))","v":""},{"$f":"IF('Communication Facility (Desc)'!U112=\"\",\"\",'Communication Facility (Desc)'!U112)","v":""},{"$f":"IF('Communication Facility (Desc)'!V112=\"\",\"\",INDEX([1]YES_NO!$A$2:$A$100,MATCH('Communication Facility (Desc)'!$V112,[1]!MASTER_YES_NO_DESC[#Data],0),0))","v":""},{"$f":"IF('Communication Facility (Desc)'!W112=\"\",\"\",INDEX([1]YES_NO!$A$2:$A$100,MATCH('Communication Facility (Desc)'!$W112,[1]!MASTER_YES_NO_DESC[#Data],0),0))","v":""}]
[{"$f":"IF('Communication Facility (Desc)'!A113=\"\",\"\",'Communication Facility (Desc)'!A113)","v":""},{"$f":"IF('Communication Facility (Desc)'!B113=\"\",\"\",'Communication Facility (Desc)'!B113)","v":""},{"$f":"IF('Communication Facility (Desc)'!C113=\"\",\"\",'Communication Facility (Desc)'!C113)","v":""},{"$f":"IF('Communication Facility (Desc)'!D113=\"\",\"\",'Communication Facility (Desc)'!D113)","v":""},{"$f":"IF('Communication Facility (Desc)'!E113=\"\",\"\",INDEX([1]FACILITY_TYPE!$A$2:$A$100,MATCH('Communication Facility (Desc)'!$E113,[1]!MASTER_FACILITY_TYPE_DESC[#Data],0),0))","v":""},{"$f":"IF('Communication Facility (Desc)'!F113=\"\",\"\",INDEX([1]OWNER!$A$2:$A$100,MATCH('Communication Facility (Desc)'!$F113,[1]!MASTER_OWNER_DESC[#Data],0),0))","v":""},{"$f":"IF('Communication Facility (Desc)'!G113=\"\",\"\",IF('Communication Facility (Desc)'!G113=\"\",\"\",INDEX([1]COUNTY!$A$2:$A$80,MATCH('Communication Facility (Desc)'!G113,[1]!MASTER_COUNTY_NAME[#Data],0),0)))","v":""},{"$f":"IF('Communication Facility (Desc)'!H113=\"\",\"\",'Communication Facility (Desc)'!H113)","v":""},{"$f":"IF('Communication Facility (Desc)'!I113=\"\",\"\",'Communication Facility (Desc)'!I113)","v":""},{"$f":"IF('Communication Facility (Desc)'!J113=\"\",\"\",'Communication Facility (Desc)'!J113)","v":""},{"$f":"IF('Communication Facility (Desc)'!K113=\"\",\"\",INDEX([1]CABINET_TYPE!$A$2:$A$100,MATCH('Communication Facility (Desc)'!$K113,[1]!MASTER_CABINET_TYPE_DESC[#Data],0),0))","v":""},{"$f":"IF('Communication Facility (Desc)'!L113=\"\",\"\",INDEX([1]CABINET_MOUNT_TYPE!$A$2:$A$100,MATCH('Communication Facility (Desc)'!L113,[1]!MASTER_CABINET_MOUNT_TYPE_DESC[#Data],0),0))","v":""},{"$f":"IF('Communication Facility (Desc)'!M113=\"\",\"\",INDEX([1]YES_NO!$A$2:$A$100,MATCH('Communication Facility (Desc)'!M113,[1]!MASTER_YES_NO_DESC[#Data],0),0))","v":""},{"$f":"IF('Communication Facility (Desc)'!N113=\"\",\"\",INDEX([1]BUILDING_TYPE!$A$2:$A$100,MATCH('Communication Facility (Desc)'!$N113,[1]!MASTER_BUILDING_TYPE_DESC[#Data],0),0))","v":""},{"$f":"IF('Communication Facility (Desc)'!O113=\"\",\"\",'Communication Facility (Desc)'!O113)","v":""},{"$f":"IF('Communication Facility (Desc)'!P113=\"\",\"\",INDEX([1]BUILDING_MTL!$A$2:$A$100,MATCH('Communication Facility (Desc)'!$P113,[1]!MASTER_BUILDING_MTL_DESC[#Data],0),0))","v":""},{"$f":"IF('Communication Facility (Desc)'!Q113=\"\",\"\",INDEX([1]KEY_TYPE!$A$2:$A$100,MATCH('Communication Facility (Desc)'!$Q113,[1]!MASTER_KEY_TYPE_DESC[#Data],0),0))","v":""},{"$f":"IF('Communication Facility (Desc)'!R113=\"\",\"\",'Communication Facility (Desc)'!R113)","v":""},{"$f":"IF('Communication Facility (Desc)'!S113=\"\",\"\",INDEX([1]FILTER_TYPE!$A$2:$A$100,MATCH('Communication Facility (Desc)'!$S113,[1]!MASTER_FILTER_TYPE_DESC[#Data],0),0))","v":""},{"$f":"IF('Communication Facility (Desc)'!T113=\"\",\"\",INDEX([1]FILTER_SIZE!$A$2:$A$100,MATCH('Communication Facility (Desc)'!$T113,[1]!MASTER_FILTER_SIZE_DESC[#Data],0),0))","v":""},{"$f":"IF('Communication Facility (Desc)'!U113=\"\",\"\",'Communication Facility (Desc)'!U113)","v":""},{"$f":"IF('Communication Facility (Desc)'!V113=\"\",\"\",INDEX([1]YES_NO!$A$2:$A$100,MATCH('Communication Facility (Desc)'!$V113,[1]!MASTER_YES_NO_DESC[#Data],0),0))","v":""},{"$f":"IF('Communication Facility (Desc)'!W113=\"\",\"\",INDEX([1]YES_NO!$A$2:$A$100,MATCH('Communication Facility (Desc)'!$W113,[1]!MASTER_YES_NO_DESC[#Data],0),0))","v":""}]
[{"$f":"IF('Communication Facility (Desc)'!A114=\"\",\"\",'Communication Facility (Desc)'!A114)","v":""},{"$f":"IF('Communication Facility (Desc)'!B114=\"\",\"\",'Communication Facility (Desc)'!B114)","v":""},{"$f":"IF('Communication Facility (Desc)'!C114=\"\",\"\",'Communication Facility (Desc)'!C114)","v":""},{"$f":"IF('Communication Facility (Desc)'!D114=\"\",\"\",'Communication Facility (Desc)'!D114)","v":""},{"$f":"IF('Communication Facility (Desc)'!E114=\"\",\"\",INDEX([1]FACILITY_TYPE!$A$2:$A$100,MATCH('Communication Facility (Desc)'!$E114,[1]!MASTER_FACILITY_TYPE_DESC[#Data],0),0))","v":""},{"$f":"IF('Communication Facility (Desc)'!F114=\"\",\"\",INDEX([1]OWNER!$A$2:$A$100,MATCH('Communication Facility (Desc)'!$F114,[1]!MASTER_OWNER_DESC[#Data],0),0))","v":""},{"$f":"IF('Communication Facility (Desc)'!G114=\"\",\"\",IF('Communication Facility (Desc)'!G114=\"\",\"\",INDEX([1]COUNTY!$A$2:$A$80,MATCH('Communication Facility (Desc)'!G114,[1]!MASTER_COUNTY_NAME[#Data],0),0)))","v":""},{"$f":"IF('Communication Facility (Desc)'!H114=\"\",\"\",'Communication Facility (Desc)'!H114)","v":""},{"$f":"IF('Communication Facility (Desc)'!I114=\"\",\"\",'Communication Facility (Desc)'!I114)","v":""},{"$f":"IF('Communication Facility (Desc)'!J114=\"\",\"\",'Communication Facility (Desc)'!J114)","v":""},{"$f":"IF('Communication Facility (Desc)'!K114=\"\",\"\",INDEX([1]CABINET_TYPE!$A$2:$A$100,MATCH('Communication Facility (Desc)'!$K114,[1]!MASTER_CABINET_TYPE_DESC[#Data],0),0))","v":""},{"$f":"IF('Communication Facility (Desc)'!L114=\"\",\"\",INDEX([1]CABINET_MOUNT_TYPE!$A$2:$A$100,MATCH('Communication Facility (Desc)'!L114,[1]!MASTER_CABINET_MOUNT_TYPE_DESC[#Data],0),0))","v":""},{"$f":"IF('Communication Facility (Desc)'!M114=\"\",\"\",INDEX([1]YES_NO!$A$2:$A$100,MATCH('Communication Facility (Desc)'!M114,[1]!MASTER_YES_NO_DESC[#Data],0),0))","v":""},{"$f":"IF('Communication Facility (Desc)'!N114=\"\",\"\",INDEX([1]BUILDING_TYPE!$A$2:$A$100,MATCH('Communication Facility (Desc)'!$N114,[1]!MASTER_BUILDING_TYPE_DESC[#Data],0),0))","v":""},{"$f":"IF('Communication Facility (Desc)'!O114=\"\",\"\",'Communication Facility (Desc)'!O114)","v":""},{"$f":"IF('Communication Facility (Desc)'!P114=\"\",\"\",INDEX([1]BUILDING_MTL!$A$2:$A$100,MATCH('Communication Facility (Desc)'!$P114,[1]!MASTER_BUILDING_MTL_DESC[#Data],0),0))","v":""},{"$f":"IF('Communication Facility (Desc)'!Q114=\"\",\"\",INDEX([1]KEY_TYPE!$A$2:$A$100,MATCH('Communication Facility (Desc)'!$Q114,[1]!MASTER_KEY_TYPE_DESC[#Data],0),0))","v":""},{"$f":"IF('Communication Facility (Desc)'!R114=\"\",\"\",'Communication Facility (Desc)'!R114)","v":""},{"$f":"IF('Communication Facility (Desc)'!S114=\"\",\"\",INDEX([1]FILTER_TYPE!$A$2:$A$100,MATCH('Communication Facility (Desc)'!$S114,[1]!MASTER_FILTER_TYPE_DESC[#Data],0),0))","v":""},{"$f":"IF('Communication Facility (Desc)'!T114=\"\",\"\",INDEX([1]FILTER_SIZE!$A$2:$A$100,MATCH('Communication Facility (Desc)'!$T114,[1]!MASTER_FILTER_SIZE_DESC[#Data],0),0))","v":""},{"$f":"IF('Communication Facility (Desc)'!U114=\"\",\"\",'Communication Facility (Desc)'!U114)","v":""},{"$f":"IF('Communication Facility (Desc)'!V114=\"\",\"\",INDEX([1]YES_NO!$A$2:$A$100,MATCH('Communication Facility (Desc)'!$V114,[1]!MASTER_YES_NO_DESC[#Data],0),0))","v":""},{"$f":"IF('Communication Facility (Desc)'!W114=\"\",\"\",INDEX([1]YES_NO!$A$2:$A$100,MATCH('Communication Facility (Desc)'!$W114,[1]!MASTER_YES_NO_DESC[#Data],0),0))","v":""}]
[{"$f":"IF('Communication Facility (Desc)'!A115=\"\",\"\",'Communication Facility (Desc)'!A115)","v":""},{"$f":"IF('Communication Facility (Desc)'!B115=\"\",\"\",'Communication Facility (Desc)'!B115)","v":""},{"$f":"IF('Communication Facility (Desc)'!C115=\"\",\"\",'Communication Facility (Desc)'!C115)","v":""},{"$f":"IF('Communication Facility (Desc)'!D115=\"\",\"\",'Communication Facility (Desc)'!D115)","v":""},{"$f":"IF('Communication Facility (Desc)'!E115=\"\",\"\",INDEX([1]FACILITY_TYPE!$A$2:$A$100,MATCH('Communication Facility (Desc)'!$E115,[1]!MASTER_FACILITY_TYPE_DESC[#Data],0),0))","v":""},{"$f":"IF('Communication Facility (Desc)'!F115=\"\",\"\",INDEX([1]OWNER!$A$2:$A$100,MATCH('Communication Facility (Desc)'!$F115,[1]!MASTER_OWNER_DESC[#Data],0),0))","v":""},{"$f":"IF('Communication Facility (Desc)'!G115=\"\",\"\",IF('Communication Facility (Desc)'!G115=\"\",\"\",INDEX([1]COUNTY!$A$2:$A$80,MATCH('Communication Facility (Desc)'!G115,[1]!MASTER_COUNTY_NAME[#Data],0),0)))","v":""},{"$f":"IF('Communication Facility (Desc)'!H115=\"\",\"\",'Communication Facility (Desc)'!H115)","v":""},{"$f":"IF('Communication Facility (Desc)'!I115=\"\",\"\",'Communication Facility (Desc)'!I115)","v":""},{"$f":"IF('Communication Facility (Desc)'!J115=\"\",\"\",'Communication Facility (Desc)'!J115)","v":""},{"$f":"IF('Communication Facility (Desc)'!K115=\"\",\"\",INDEX([1]CABINET_TYPE!$A$2:$A$100,MATCH('Communication Facility (Desc)'!$K115,[1]!MASTER_CABINET_TYPE_DESC[#Data],0),0))","v":""},{"$f":"IF('Communication Facility (Desc)'!L115=\"\",\"\",INDEX([1]CABINET_MOUNT_TYPE!$A$2:$A$100,MATCH('Communication Facility (Desc)'!L115,[1]!MASTER_CABINET_MOUNT_TYPE_DESC[#Data],0),0))","v":""},{"$f":"IF('Communication Facility (Desc)'!M115=\"\",\"\",INDEX([1]YES_NO!$A$2:$A$100,MATCH('Communication Facility (Desc)'!M115,[1]!MASTER_YES_NO_DESC[#Data],0),0))","v":""},{"$f":"IF('Communication Facility (Desc)'!N115=\"\",\"\",INDEX([1]BUILDING_TYPE!$A$2:$A$100,MATCH('Communication Facility (Desc)'!$N115,[1]!MASTER_BUILDING_TYPE_DESC[#Data],0),0))","v":""},{"$f":"IF('Communication Facility (Desc)'!O115=\"\",\"\",'Communication Facility (Desc)'!O115)","v":""},{"$f":"IF('Communication Facility (Desc)'!P115=\"\",\"\",INDEX([1]BUILDING_MTL!$A$2:$A$100,MATCH('Communication Facility (Desc)'!$P115,[1]!MASTER_BUILDING_MTL_DESC[#Data],0),0))","v":""},{"$f":"IF('Communication Facility (Desc)'!Q115=\"\",\"\",INDEX([1]KEY_TYPE!$A$2:$A$100,MATCH('Communication Facility (Desc)'!$Q115,[1]!MASTER_KEY_TYPE_DESC[#Data],0),0))","v":""},{"$f":"IF('Communication Facility (Desc)'!R115=\"\",\"\",'Communication Facility (Desc)'!R115)","v":""},{"$f":"IF('Communication Facility (Desc)'!S115=\"\",\"\",INDEX([1]FILTER_TYPE!$A$2:$A$100,MATCH('Communication Facility (Desc)'!$S115,[1]!MASTER_FILTER_TYPE_DESC[#Data],0),0))","v":""},{"$f":"IF('Communication Facility (Desc)'!T115=\"\",\"\",INDEX([1]FILTER_SIZE!$A$2:$A$100,MATCH('Communication Facility (Desc)'!$T115,[1]!MASTER_FILTER_SIZE_DESC[#Data],0),0))","v":""},{"$f":"IF('Communication Facility (Desc)'!U115=\"\",\"\",'Communication Facility (Desc)'!U115)","v":""},{"$f":"IF('Communication Facility (Desc)'!V115=\"\",\"\",INDEX([1]YES_NO!$A$2:$A$100,MATCH('Communication Facility (Desc)'!$V115,[1]!MASTER_YES_NO_DESC[#Data],0),0))","v":""},{"$f":"IF('Communication Facility (Desc)'!W115=\"\",\"\",INDEX([1]YES_NO!$A$2:$A$100,MATCH('Communication Facility (Desc)'!$W115,[1]!MASTER_YES_NO_DESC[#Data],0),0))","v":""}]
[{"$f":"IF('Communication Facility (Desc)'!A116=\"\",\"\",'Communication Facility (Desc)'!A116)","v":""},{"$f":"IF('Communication Facility (Desc)'!B116=\"\",\"\",'Communication Facility (Desc)'!B116)","v":""},{"$f":"IF('Communication Facility (Desc)'!C116=\"\",\"\",'Communication Facility (Desc)'!C116)","v":""},{"$f":"IF('Communication Facility (Desc)'!D116=\"\",\"\",'Communication Facility (Desc)'!D116)","v":""},{"$f":"IF('Communication Facility (Desc)'!E116=\"\",\"\",INDEX([1]FACILITY_TYPE!$A$2:$A$100,MATCH('Communication Facility (Desc)'!$E116,[1]!MASTER_FACILITY_TYPE_DESC[#Data],0),0))","v":""},{"$f":"IF('Communication Facility (Desc)'!F116=\"\",\"\",INDEX([1]OWNER!$A$2:$A$100,MATCH('Communication Facility (Desc)'!$F116,[1]!MASTER_OWNER_DESC[#Data],0),0))","v":""},{"$f":"IF('Communication Facility (Desc)'!G116=\"\",\"\",IF('Communication Facility (Desc)'!G116=\"\",\"\",INDEX([1]COUNTY!$A$2:$A$80,MATCH('Communication Facility (Desc)'!G116,[1]!MASTER_COUNTY_NAME[#Data],0),0)))","v":""},{"$f":"IF('Communication Facility (Desc)'!H116=\"\",\"\",'Communication Facility (Desc)'!H116)","v":""},{"$f":"IF('Communication Facility (Desc)'!I116=\"\",\"\",'Communication Facility (Desc)'!I116)","v":""},{"$f":"IF('Communication Facility (Desc)'!J116=\"\",\"\",'Communication Facility (Desc)'!J116)","v":""},{"$f":"IF('Communication Facility (Desc)'!K116=\"\",\"\",INDEX([1]CABINET_TYPE!$A$2:$A$100,MATCH('Communication Facility (Desc)'!$K116,[1]!MASTER_CABINET_TYPE_DESC[#Data],0),0))","v":""},{"$f":"IF('Communication Facility (Desc)'!L116=\"\",\"\",INDEX([1]CABINET_MOUNT_TYPE!$A$2:$A$100,MATCH('Communication Facility (Desc)'!L116,[1]!MASTER_CABINET_MOUNT_TYPE_DESC[#Data],0),0))","v":""},{"$f":"IF('Communication Facility (Desc)'!M116=\"\",\"\",INDEX([1]YES_NO!$A$2:$A$100,MATCH('Communication Facility (Desc)'!M116,[1]!MASTER_YES_NO_DESC[#Data],0),0))","v":""},{"$f":"IF('Communication Facility (Desc)'!N116=\"\",\"\",INDEX([1]BUILDING_TYPE!$A$2:$A$100,MATCH('Communication Facility (Desc)'!$N116,[1]!MASTER_BUILDING_TYPE_DESC[#Data],0),0))","v":""},{"$f":"IF('Communication Facility (Desc)'!O116=\"\",\"\",'Communication Facility (Desc)'!O116)","v":""},{"$f":"IF('Communication Facility (Desc)'!P116=\"\",\"\",INDEX([1]BUILDING_MTL!$A$2:$A$100,MATCH('Communication Facility (Desc)'!$P116,[1]!MASTER_BUILDING_MTL_DESC[#Data],0),0))","v":""},{"$f":"IF('Communication Facility (Desc)'!Q116=\"\",\"\",INDEX([1]KEY_TYPE!$A$2:$A$100,MATCH('Communication Facility (Desc)'!$Q116,[1]!MASTER_KEY_TYPE_DESC[#Data],0),0))","v":""},{"$f":"IF('Communication Facility (Desc)'!R116=\"\",\"\",'Communication Facility (Desc)'!R116)","v":""},{"$f":"IF('Communication Facility (Desc)'!S116=\"\",\"\",INDEX([1]FILTER_TYPE!$A$2:$A$100,MATCH('Communication Facility (Desc)'!$S116,[1]!MASTER_FILTER_TYPE_DESC[#Data],0),0))","v":""},{"$f":"IF('Communication Facility (Desc)'!T116=\"\",\"\",INDEX([1]FILTER_SIZE!$A$2:$A$100,MATCH('Communication Facility (Desc)'!$T116,[1]!MASTER_FILTER_SIZE_DESC[#Data],0),0))","v":""},{"$f":"IF('Communication Facility (Desc)'!U116=\"\",\"\",'Communication Facility (Desc)'!U116)","v":""},{"$f":"IF('Communication Facility (Desc)'!V116=\"\",\"\",INDEX([1]YES_NO!$A$2:$A$100,MATCH('Communication Facility (Desc)'!$V116,[1]!MASTER_YES_NO_DESC[#Data],0),0))","v":""},{"$f":"IF('Communication Facility (Desc)'!W116=\"\",\"\",INDEX([1]YES_NO!$A$2:$A$100,MATCH('Communication Facility (Desc)'!$W116,[1]!MASTER_YES_NO_DESC[#Data],0),0))","v":""}]
[{"$f":"IF('Communication Facility (Desc)'!A117=\"\",\"\",'Communication Facility (Desc)'!A117)","v":""},{"$f":"IF('Communication Facility (Desc)'!B117=\"\",\"\",'Communication Facility (Desc)'!B117)","v":""},{"$f":"IF('Communication Facility (Desc)'!C117=\"\",\"\",'Communication Facility (Desc)'!C117)","v":""},{"$f":"IF('Communication Facility (Desc)'!D117=\"\",\"\",'Communication Facility (Desc)'!D117)","v":""},{"$f":"IF('Communication Facility (Desc)'!E117=\"\",\"\",INDEX([1]FACILITY_TYPE!$A$2:$A$100,MATCH('Communication Facility (Desc)'!$E117,[1]!MASTER_FACILITY_TYPE_DESC[#Data],0),0))","v":""},{"$f":"IF('Communication Facility (Desc)'!F117=\"\",\"\",INDEX([1]OWNER!$A$2:$A$100,MATCH('Communication Facility (Desc)'!$F117,[1]!MASTER_OWNER_DESC[#Data],0),0))","v":""},{"$f":"IF('Communication Facility (Desc)'!G117=\"\",\"\",IF('Communication Facility (Desc)'!G117=\"\",\"\",INDEX([1]COUNTY!$A$2:$A$80,MATCH('Communication Facility (Desc)'!G117,[1]!MASTER_COUNTY_NAME[#Data],0),0)))","v":""},{"$f":"IF('Communication Facility (Desc)'!H117=\"\",\"\",'Communication Facility (Desc)'!H117)","v":""},{"$f":"IF('Communication Facility (Desc)'!I117=\"\",\"\",'Communication Facility (Desc)'!I117)","v":""},{"$f":"IF('Communication Facility (Desc)'!J117=\"\",\"\",'Communication Facility (Desc)'!J117)","v":""},{"$f":"IF('Communication Facility (Desc)'!K117=\"\",\"\",INDEX([1]CABINET_TYPE!$A$2:$A$100,MATCH('Communication Facility (Desc)'!$K117,[1]!MASTER_CABINET_TYPE_DESC[#Data],0),0))","v":""},{"$f":"IF('Communication Facility (Desc)'!L117=\"\",\"\",INDEX([1]CABINET_MOUNT_TYPE!$A$2:$A$100,MATCH('Communication Facility (Desc)'!L117,[1]!MASTER_CABINET_MOUNT_TYPE_DESC[#Data],0),0))","v":""},{"$f":"IF('Communication Facility (Desc)'!M117=\"\",\"\",INDEX([1]YES_NO!$A$2:$A$100,MATCH('Communication Facility (Desc)'!M117,[1]!MASTER_YES_NO_DESC[#Data],0),0))","v":""},{"$f":"IF('Communication Facility (Desc)'!N117=\"\",\"\",INDEX([1]BUILDING_TYPE!$A$2:$A$100,MATCH('Communication Facility (Desc)'!$N117,[1]!MASTER_BUILDING_TYPE_DESC[#Data],0),0))","v":""},{"$f":"IF('Communication Facility (Desc)'!O117=\"\",\"\",'Communication Facility (Desc)'!O117)","v":""},{"$f":"IF('Communication Facility (Desc)'!P117=\"\",\"\",INDEX([1]BUILDING_MTL!$A$2:$A$100,MATCH('Communication Facility (Desc)'!$P117,[1]!MASTER_BUILDING_MTL_DESC[#Data],0),0))","v":""},{"$f":"IF('Communication Facility (Desc)'!Q117=\"\",\"\",INDEX([1]KEY_TYPE!$A$2:$A$100,MATCH('Communication Facility (Desc)'!$Q117,[1]!MASTER_KEY_TYPE_DESC[#Data],0),0))","v":""},{"$f":"IF('Communication Facility (Desc)'!R117=\"\",\"\",'Communication Facility (Desc)'!R117)","v":""},{"$f":"IF('Communication Facility (Desc)'!S117=\"\",\"\",INDEX([1]FILTER_TYPE!$A$2:$A$100,MATCH('Communication Facility (Desc)'!$S117,[1]!MASTER_FILTER_TYPE_DESC[#Data],0),0))","v":""},{"$f":"IF('Communication Facility (Desc)'!T117=\"\",\"\",INDEX([1]FILTER_SIZE!$A$2:$A$100,MATCH('Communication Facility (Desc)'!$T117,[1]!MASTER_FILTER_SIZE_DESC[#Data],0),0))","v":""},{"$f":"IF('Communication Facility (Desc)'!U117=\"\",\"\",'Communication Facility (Desc)'!U117)","v":""},{"$f":"IF('Communication Facility (Desc)'!V117=\"\",\"\",INDEX([1]YES_NO!$A$2:$A$100,MATCH('Communication Facility (Desc)'!$V117,[1]!MASTER_YES_NO_DESC[#Data],0),0))","v":""},{"$f":"IF('Communication Facility (Desc)'!W117=\"\",\"\",INDEX([1]YES_NO!$A$2:$A$100,MATCH('Communication Facility (Desc)'!$W117,[1]!MASTER_YES_NO_DESC[#Data],0),0))","v":""}]
[{"$f":"IF('Communication Facility (Desc)'!A118=\"\",\"\",'Communication Facility (Desc)'!A118)","v":""},{"$f":"IF('Communication Facility (Desc)'!B118=\"\",\"\",'Communication Facility (Desc)'!B118)","v":""},{"$f":"IF('Communication Facility (Desc)'!C118=\"\",\"\",'Communication Facility (Desc)'!C118)","v":""},{"$f":"IF('Communication Facility (Desc)'!D118=\"\",\"\",'Communication Facility (Desc)'!D118)","v":""},{"$f":"IF('Communication Facility (Desc)'!E118=\"\",\"\",INDEX([1]FACILITY_TYPE!$A$2:$A$100,MATCH('Communication Facility (Desc)'!$E118,[1]!MASTER_FACILITY_TYPE_DESC[#Data],0),0))","v":""},{"$f":"IF('Communication Facility (Desc)'!F118=\"\",\"\",INDEX([1]OWNER!$A$2:$A$100,MATCH('Communication Facility (Desc)'!$F118,[1]!MASTER_OWNER_DESC[#Data],0),0))","v":""},{"$f":"IF('Communication Facility (Desc)'!G118=\"\",\"\",IF('Communication Facility (Desc)'!G118=\"\",\"\",INDEX([1]COUNTY!$A$2:$A$80,MATCH('Communication Facility (Desc)'!G118,[1]!MASTER_COUNTY_NAME[#Data],0),0)))","v":""},{"$f":"IF('Communication Facility (Desc)'!H118=\"\",\"\",'Communication Facility (Desc)'!H118)","v":""},{"$f":"IF('Communication Facility (Desc)'!I118=\"\",\"\",'Communication Facility (Desc)'!I118)","v":""},{"$f":"IF('Communication Facility (Desc)'!J118=\"\",\"\",'Communication Facility (Desc)'!J118)","v":""},{"$f":"IF('Communication Facility (Desc)'!K118=\"\",\"\",INDEX([1]CABINET_TYPE!$A$2:$A$100,MATCH('Communication Facility (Desc)'!$K118,[1]!MASTER_CABINET_TYPE_DESC[#Data],0),0))","v":""},{"$f":"IF('Communication Facility (Desc)'!L118=\"\",\"\",INDEX([1]CABINET_MOUNT_TYPE!$A$2:$A$100,MATCH('Communication Facility (Desc)'!L118,[1]!MASTER_CABINET_MOUNT_TYPE_DESC[#Data],0),0))","v":""},{"$f":"IF('Communication Facility (Desc)'!M118=\"\",\"\",INDEX([1]YES_NO!$A$2:$A$100,MATCH('Communication Facility (Desc)'!M118,[1]!MASTER_YES_NO_DESC[#Data],0),0))","v":""},{"$f":"IF('Communication Facility (Desc)'!N118=\"\",\"\",INDEX([1]BUILDING_TYPE!$A$2:$A$100,MATCH('Communication Facility (Desc)'!$N118,[1]!MASTER_BUILDING_TYPE_DESC[#Data],0),0))","v":""},{"$f":"IF('Communication Facility (Desc)'!O118=\"\",\"\",'Communication Facility (Desc)'!O118)","v":""},{"$f":"IF('Communication Facility (Desc)'!P118=\"\",\"\",INDEX([1]BUILDING_MTL!$A$2:$A$100,MATCH('Communication Facility (Desc)'!$P118,[1]!MASTER_BUILDING_MTL_DESC[#Data],0),0))","v":""},{"$f":"IF('Communication Facility (Desc)'!Q118=\"\",\"\",INDEX([1]KEY_TYPE!$A$2:$A$100,MATCH('Communication Facility (Desc)'!$Q118,[1]!MASTER_KEY_TYPE_DESC[#Data],0),0))","v":""},{"$f":"IF('Communication Facility (Desc)'!R118=\"\",\"\",'Communication Facility (Desc)'!R118)","v":""},{"$f":"IF('Communication Facility (Desc)'!S118=\"\",\"\",INDEX([1]FILTER_TYPE!$A$2:$A$100,MATCH('Communication Facility (Desc)'!$S118,[1]!MASTER_FILTER_TYPE_DESC[#Data],0),0))","v":""},{"$f":"IF('Communication Facility (Desc)'!T118=\"\",\"\",INDEX([1]FILTER_SIZE!$A$2:$A$100,MATCH('Communication Facility (Desc)'!$T118,[1]!MASTER_FILTER_SIZE_DESC[#Data],0),0))","v":""},{"$f":"IF('Communication Facility (Desc)'!U118=\"\",\"\",'Communication Facility (Desc)'!U118)","v":""},{"$f":"IF('Communication Facility (Desc)'!V118=\"\",\"\",INDEX([1]YES_NO!$A$2:$A$100,MATCH('Communication Facility (Desc)'!$V118,[1]!MASTER_YES_NO_DESC[#Data],0),0))","v":""},{"$f":"IF('Communication Facility (Desc)'!W118=\"\",\"\",INDEX([1]YES_NO!$A$2:$A$100,MATCH('Communication Facility (Desc)'!$W118,[1]!MASTER_YES_NO_DESC[#Data],0),0))","v":""}]
[{"$f":"IF('Communication Facility (Desc)'!A119=\"\",\"\",'Communication Facility (Desc)'!A119)","v":""},{"$f":"IF('Communication Facility (Desc)'!B119=\"\",\"\",'Communication Facility (Desc)'!B119)","v":""},{"$f":"IF('Communication Facility (Desc)'!C119=\"\",\"\",'Communication Facility (Desc)'!C119)","v":""},{"$f":"IF('Communication Facility (Desc)'!D119=\"\",\"\",'Communication Facility (Desc)'!D119)","v":""},{"$f":"IF('Communication Facility (Desc)'!E119=\"\",\"\",INDEX([1]FACILITY_TYPE!$A$2:$A$100,MATCH('Communication Facility (Desc)'!$E119,[1]!MASTER_FACILITY_TYPE_DESC[#Data],0),0))","v":""},{"$f":"IF('Communication Facility (Desc)'!F119=\"\",\"\",INDEX([1]OWNER!$A$2:$A$100,MATCH('Communication Facility (Desc)'!$F119,[1]!MASTER_OWNER_DESC[#Data],0),0))","v":""},{"$f":"IF('Communication Facility (Desc)'!G119=\"\",\"\",IF('Communication Facility (Desc)'!G119=\"\",\"\",INDEX([1]COUNTY!$A$2:$A$80,MATCH('Communication Facility (Desc)'!G119,[1]!MASTER_COUNTY_NAME[#Data],0),0)))","v":""},{"$f":"IF('Communication Facility (Desc)'!H119=\"\",\"\",'Communication Facility (Desc)'!H119)","v":""},{"$f":"IF('Communication Facility (Desc)'!I119=\"\",\"\",'Communication Facility (Desc)'!I119)","v":""},{"$f":"IF('Communication Facility (Desc)'!J119=\"\",\"\",'Communication Facility (Desc)'!J119)","v":""},{"$f":"IF('Communication Facility (Desc)'!K119=\"\",\"\",INDEX([1]CABINET_TYPE!$A$2:$A$100,MATCH('Communication Facility (Desc)'!$K119,[1]!MASTER_CABINET_TYPE_DESC[#Data],0),0))","v":""},{"$f":"IF('Communication Facility (Desc)'!L119=\"\",\"\",INDEX([1]CABINET_MOUNT_TYPE!$A$2:$A$100,MATCH('Communication Facility (Desc)'!L119,[1]!MASTER_CABINET_MOUNT_TYPE_DESC[#Data],0),0))","v":""},{"$f":"IF('Communication Facility (Desc)'!M119=\"\",\"\",INDEX([1]YES_NO!$A$2:$A$100,MATCH('Communication Facility (Desc)'!M119,[1]!MASTER_YES_NO_DESC[#Data],0),0))","v":""},{"$f":"IF('Communication Facility (Desc)'!N119=\"\",\"\",INDEX([1]BUILDING_TYPE!$A$2:$A$100,MATCH('Communication Facility (Desc)'!$N119,[1]!MASTER_BUILDING_TYPE_DESC[#Data],0),0))","v":""},{"$f":"IF('Communication Facility (Desc)'!O119=\"\",\"\",'Communication Facility (Desc)'!O119)","v":""},{"$f":"IF('Communication Facility (Desc)'!P119=\"\",\"\",INDEX([1]BUILDING_MTL!$A$2:$A$100,MATCH('Communication Facility (Desc)'!$P119,[1]!MASTER_BUILDING_MTL_DESC[#Data],0),0))","v":""},{"$f":"IF('Communication Facility (Desc)'!Q119=\"\",\"\",INDEX([1]KEY_TYPE!$A$2:$A$100,MATCH('Communication Facility (Desc)'!$Q119,[1]!MASTER_KEY_TYPE_DESC[#Data],0),0))","v":""},{"$f":"IF('Communication Facility (Desc)'!R119=\"\",\"\",'Communication Facility (Desc)'!R119)","v":""},{"$f":"IF('Communication Facility (Desc)'!S119=\"\",\"\",INDEX([1]FILTER_TYPE!$A$2:$A$100,MATCH('Communication Facility (Desc)'!$S119,[1]!MASTER_FILTER_TYPE_DESC[#Data],0),0))","v":""},{"$f":"IF('Communication Facility (Desc)'!T119=\"\",\"\",INDEX([1]FILTER_SIZE!$A$2:$A$100,MATCH('Communication Facility (Desc)'!$T119,[1]!MASTER_FILTER_SIZE_DESC[#Data],0),0))","v":""},{"$f":"IF('Communication Facility (Desc)'!U119=\"\",\"\",'Communication Facility (Desc)'!U119)","v":""},{"$f":"IF('Communication Facility (Desc)'!V119=\"\",\"\",INDEX([1]YES_NO!$A$2:$A$100,MATCH('Communication Facility (Desc)'!$V119,[1]!MASTER_YES_NO_DESC[#Data],0),0))","v":""},{"$f":"IF('Communication Facility (Desc)'!W119=\"\",\"\",INDEX([1]YES_NO!$A$2:$A$100,MATCH('Communication Facility (Desc)'!$W119,[1]!MASTER_YES_NO_DESC[#Data],0),0))","v":""}]
[{"$f":"IF('Communication Facility (Desc)'!A120=\"\",\"\",'Communication Facility (Desc)'!A120)","v":""},{"$f":"IF('Communication Facility (Desc)'!B120=\"\",\"\",'Communication Facility (Desc)'!B120)","v":""},{"$f":"IF('Communication Facility (Desc)'!C120=\"\",\"\",'Communication Facility (Desc)'!C120)","v":""},{"$f":"IF('Communication Facility (Desc)'!D120=\"\",\"\",'Communication Facility (Desc)'!D120)","v":""},{"$f":"IF('Communication Facility (Desc)'!E120=\"\",\"\",INDEX([1]FACILITY_TYPE!$A$2:$A$100,MATCH('Communication Facility (Desc)'!$E120,[1]!MASTER_FACILITY_TYPE_DESC[#Data],0),0))","v":""},{"$f":"IF('Communication Facility (Desc)'!F120=\"\",\"\",INDEX([1]OWNER!$A$2:$A$100,MATCH('Communication Facility (Desc)'!$F120,[1]!MASTER_OWNER_DESC[#Data],0),0))","v":""},{"$f":"IF('Communication Facility (Desc)'!G120=\"\",\"\",IF('Communication Facility (Desc)'!G120=\"\",\"\",INDEX([1]COUNTY!$A$2:$A$80,MATCH('Communication Facility (Desc)'!G120,[1]!MASTER_COUNTY_NAME[#Data],0),0)))","v":""},{"$f":"IF('Communication Facility (Desc)'!H120=\"\",\"\",'Communication Facility (Desc)'!H120)","v":""},{"$f":"IF('Communication Facility (Desc)'!I120=\"\",\"\",'Communication Facility (Desc)'!I120)","v":""},{"$f":"IF('Communication Facility (Desc)'!J120=\"\",\"\",'Communication Facility (Desc)'!J120)","v":""},{"$f":"IF('Communication Facility (Desc)'!K120=\"\",\"\",INDEX([1]CABINET_TYPE!$A$2:$A$100,MATCH('Communication Facility (Desc)'!$K120,[1]!MASTER_CABINET_TYPE_DESC[#Data],0),0))","v":""},{"$f":"IF('Communication Facility (Desc)'!L120=\"\",\"\",INDEX([1]CABINET_MOUNT_TYPE!$A$2:$A$100,MATCH('Communication Facility (Desc)'!L120,[1]!MASTER_CABINET_MOUNT_TYPE_DESC[#Data],0),0))","v":""},{"$f":"IF('Communication Facility (Desc)'!M120=\"\",\"\",INDEX([1]YES_NO!$A$2:$A$100,MATCH('Communication Facility (Desc)'!M120,[1]!MASTER_YES_NO_DESC[#Data],0),0))","v":""},{"$f":"IF('Communication Facility (Desc)'!N120=\"\",\"\",INDEX([1]BUILDING_TYPE!$A$2:$A$100,MATCH('Communication Facility (Desc)'!$N120,[1]!MASTER_BUILDING_TYPE_DESC[#Data],0),0))","v":""},{"$f":"IF('Communication Facility (Desc)'!O120=\"\",\"\",'Communication Facility (Desc)'!O120)","v":""},{"$f":"IF('Communication Facility (Desc)'!P120=\"\",\"\",INDEX([1]BUILDING_MTL!$A$2:$A$100,MATCH('Communication Facility (Desc)'!$P120,[1]!MASTER_BUILDING_MTL_DESC[#Data],0),0))","v":""},{"$f":"IF('Communication Facility (Desc)'!Q120=\"\",\"\",INDEX([1]KEY_TYPE!$A$2:$A$100,MATCH('Communication Facility (Desc)'!$Q120,[1]!MASTER_KEY_TYPE_DESC[#Data],0),0))","v":""},{"$f":"IF('Communication Facility (Desc)'!R120=\"\",\"\",'Communication Facility (Desc)'!R120)","v":""},{"$f":"IF('Communication Facility (Desc)'!S120=\"\",\"\",INDEX([1]FILTER_TYPE!$A$2:$A$100,MATCH('Communication Facility (Desc)'!$S120,[1]!MASTER_FILTER_TYPE_DESC[#Data],0),0))","v":""},{"$f":"IF('Communication Facility (Desc)'!T120=\"\",\"\",INDEX([1]FILTER_SIZE!$A$2:$A$100,MATCH('Communication Facility (Desc)'!$T120,[1]!MASTER_FILTER_SIZE_DESC[#Data],0),0))","v":""},{"$f":"IF('Communication Facility (Desc)'!U120=\"\",\"\",'Communication Facility (Desc)'!U120)","v":""},{"$f":"IF('Communication Facility (Desc)'!V120=\"\",\"\",INDEX([1]YES_NO!$A$2:$A$100,MATCH('Communication Facility (Desc)'!$V120,[1]!MASTER_YES_NO_DESC[#Data],0),0))","v":""},{"$f":"IF('Communication Facility (Desc)'!W120=\"\",\"\",INDEX([1]YES_NO!$A$2:$A$100,MATCH('Communication Facility (Desc)'!$W120,[1]!MASTER_YES_NO_DESC[#Data],0),0))","v":""}]
[{"$f":"IF('Communication Facility (Desc)'!A121=\"\",\"\",'Communication Facility (Desc)'!A121)","v":""},{"$f":"IF('Communication Facility (Desc)'!B121=\"\",\"\",'Communication Facility (Desc)'!B121)","v":""},{"$f":"IF('Communication Facility (Desc)'!C121=\"\",\"\",'Communication Facility (Desc)'!C121)","v":""},{"$f":"IF('Communication Facility (Desc)'!D121=\"\",\"\",'Communication Facility (Desc)'!D121)","v":""},{"$f":"IF('Communication Facility (Desc)'!E121=\"\",\"\",INDEX([1]FACILITY_TYPE!$A$2:$A$100,MATCH('Communication Facility (Desc)'!$E121,[1]!MASTER_FACILITY_TYPE_DESC[#Data],0),0))","v":""},{"$f":"IF('Communication Facility (Desc)'!F121=\"\",\"\",INDEX([1]OWNER!$A$2:$A$100,MATCH('Communication Facility (Desc)'!$F121,[1]!MASTER_OWNER_DESC[#Data],0),0))","v":""},{"$f":"IF('Communication Facility (Desc)'!G121=\"\",\"\",IF('Communication Facility (Desc)'!G121=\"\",\"\",INDEX([1]COUNTY!$A$2:$A$80,MATCH('Communication Facility (Desc)'!G121,[1]!MASTER_COUNTY_NAME[#Data],0),0)))","v":""},{"$f":"IF('Communication Facility (Desc)'!H121=\"\",\"\",'Communication Facility (Desc)'!H121)","v":""},{"$f":"IF('Communication Facility (Desc)'!I121=\"\",\"\",'Communication Facility (Desc)'!I121)","v":""},{"$f":"IF('Communication Facility (Desc)'!J121=\"\",\"\",'Communication Facility (Desc)'!J121)","v":""},{"$f":"IF('Communication Facility (Desc)'!K121=\"\",\"\",INDEX([1]CABINET_TYPE!$A$2:$A$100,MATCH('Communication Facility (Desc)'!$K121,[1]!MASTER_CABINET_TYPE_DESC[#Data],0),0))","v":""},{"$f":"IF('Communication Facility (Desc)'!L121=\"\",\"\",INDEX([1]CABINET_MOUNT_TYPE!$A$2:$A$100,MATCH('Communication Facility (Desc)'!L121,[1]!MASTER_CABINET_MOUNT_TYPE_DESC[#Data],0),0))","v":""},{"$f":"IF('Communication Facility (Desc)'!M121=\"\",\"\",INDEX([1]YES_NO!$A$2:$A$100,MATCH('Communication Facility (Desc)'!M121,[1]!MASTER_YES_NO_DESC[#Data],0),0))","v":""},{"$f":"IF('Communication Facility (Desc)'!N121=\"\",\"\",INDEX([1]BUILDING_TYPE!$A$2:$A$100,MATCH('Communication Facility (Desc)'!$N121,[1]!MASTER_BUILDING_TYPE_DESC[#Data],0),0))","v":""},{"$f":"IF('Communication Facility (Desc)'!O121=\"\",\"\",'Communication Facility (Desc)'!O121)","v":""},{"$f":"IF('Communication Facility (Desc)'!P121=\"\",\"\",INDEX([1]BUILDING_MTL!$A$2:$A$100,MATCH('Communication Facility (Desc)'!$P121,[1]!MASTER_BUILDING_MTL_DESC[#Data],0),0))","v":""},{"$f":"IF('Communication Facility (Desc)'!Q121=\"\",\"\",INDEX([1]KEY_TYPE!$A$2:$A$100,MATCH('Communication Facility (Desc)'!$Q121,[1]!MASTER_KEY_TYPE_DESC[#Data],0),0))","v":""},{"$f":"IF('Communication Facility (Desc)'!R121=\"\",\"\",'Communication Facility (Desc)'!R121)","v":""},{"$f":"IF('Communication Facility (Desc)'!S121=\"\",\"\",INDEX([1]FILTER_TYPE!$A$2:$A$100,MATCH('Communication Facility (Desc)'!$S121,[1]!MASTER_FILTER_TYPE_DESC[#Data],0),0))","v":""},{"$f":"IF('Communication Facility (Desc)'!T121=\"\",\"\",INDEX([1]FILTER_SIZE!$A$2:$A$100,MATCH('Communication Facility (Desc)'!$T121,[1]!MASTER_FILTER_SIZE_DESC[#Data],0),0))","v":""},{"$f":"IF('Communication Facility (Desc)'!U121=\"\",\"\",'Communication Facility (Desc)'!U121)","v":""},{"$f":"IF('Communication Facility (Desc)'!V121=\"\",\"\",INDEX([1]YES_NO!$A$2:$A$100,MATCH('Communication Facility (Desc)'!$V121,[1]!MASTER_YES_NO_DESC[#Data],0),0))","v":""},{"$f":"IF('Communication Facility (Desc)'!W121=\"\",\"\",INDEX([1]YES_NO!$A$2:$A$100,MATCH('Communication Facility (Desc)'!$W121,[1]!MASTER_YES_NO_DESC[#Data],0),0))","v":""}]
[{"$f":"IF('Communication Facility (Desc)'!A122=\"\",\"\",'Communication Facility (Desc)'!A122)","v":""},{"$f":"IF('Communication Facility (Desc)'!B122=\"\",\"\",'Communication Facility (Desc)'!B122)","v":""},{"$f":"IF('Communication Facility (Desc)'!C122=\"\",\"\",'Communication Facility (Desc)'!C122)","v":""},{"$f":"IF('Communication Facility (Desc)'!D122=\"\",\"\",'Communication Facility (Desc)'!D122)","v":""},{"$f":"IF('Communication Facility (Desc)'!E122=\"\",\"\",INDEX([1]FACILITY_TYPE!$A$2:$A$100,MATCH('Communication Facility (Desc)'!$E122,[1]!MASTER_FACILITY_TYPE_DESC[#Data],0),0))","v":""},{"$f":"IF('Communication Facility (Desc)'!F122=\"\",\"\",INDEX([1]OWNER!$A$2:$A$100,MATCH('Communication Facility (Desc)'!$F122,[1]!MASTER_OWNER_DESC[#Data],0),0))","v":""},{"$f":"IF('Communication Facility (Desc)'!G122=\"\",\"\",IF('Communication Facility (Desc)'!G122=\"\",\"\",INDEX([1]COUNTY!$A$2:$A$80,MATCH('Communication Facility (Desc)'!G122,[1]!MASTER_COUNTY_NAME[#Data],0),0)))","v":""},{"$f":"IF('Communication Facility (Desc)'!H122=\"\",\"\",'Communication Facility (Desc)'!H122)","v":""},{"$f":"IF('Communication Facility (Desc)'!I122=\"\",\"\",'Communication Facility (Desc)'!I122)","v":""},{"$f":"IF('Communication Facility (Desc)'!J122=\"\",\"\",'Communication Facility (Desc)'!J122)","v":""},{"$f":"IF('Communication Facility (Desc)'!K122=\"\",\"\",INDEX([1]CABINET_TYPE!$A$2:$A$100,MATCH('Communication Facility (Desc)'!$K122,[1]!MASTER_CABINET_TYPE_DESC[#Data],0),0))","v":""},{"$f":"IF('Communication Facility (Desc)'!L122=\"\",\"\",INDEX([1]CABINET_MOUNT_TYPE!$A$2:$A$100,MATCH('Communication Facility (Desc)'!L122,[1]!MASTER_CABINET_MOUNT_TYPE_DESC[#Data],0),0))","v":""},{"$f":"IF('Communication Facility (Desc)'!M122=\"\",\"\",INDEX([1]YES_NO!$A$2:$A$100,MATCH('Communication Facility (Desc)'!M122,[1]!MASTER_YES_NO_DESC[#Data],0),0))","v":""},{"$f":"IF('Communication Facility (Desc)'!N122=\"\",\"\",INDEX([1]BUILDING_TYPE!$A$2:$A$100,MATCH('Communication Facility (Desc)'!$N122,[1]!MASTER_BUILDING_TYPE_DESC[#Data],0),0))","v":""},{"$f":"IF('Communication Facility (Desc)'!O122=\"\",\"\",'Communication Facility (Desc)'!O122)","v":""},{"$f":"IF('Communication Facility (Desc)'!P122=\"\",\"\",INDEX([1]BUILDING_MTL!$A$2:$A$100,MATCH('Communication Facility (Desc)'!$P122,[1]!MASTER_BUILDING_MTL_DESC[#Data],0),0))","v":""},{"$f":"IF('Communication Facility (Desc)'!Q122=\"\",\"\",INDEX([1]KEY_TYPE!$A$2:$A$100,MATCH('Communication Facility (Desc)'!$Q122,[1]!MASTER_KEY_TYPE_DESC[#Data],0),0))","v":""},{"$f":"IF('Communication Facility (Desc)'!R122=\"\",\"\",'Communication Facility (Desc)'!R122)","v":""},{"$f":"IF('Communication Facility (Desc)'!S122=\"\",\"\",INDEX([1]FILTER_TYPE!$A$2:$A$100,MATCH('Communication Facility (Desc)'!$S122,[1]!MASTER_FILTER_TYPE_DESC[#Data],0),0))","v":""},{"$f":"IF('Communication Facility (Desc)'!T122=\"\",\"\",INDEX([1]FILTER_SIZE!$A$2:$A$100,MATCH('Communication Facility (Desc)'!$T122,[1]!MASTER_FILTER_SIZE_DESC[#Data],0),0))","v":""},{"$f":"IF('Communication Facility (Desc)'!U122=\"\",\"\",'Communication Facility (Desc)'!U122)","v":""},{"$f":"IF('Communication Facility (Desc)'!V122=\"\",\"\",INDEX([1]YES_NO!$A$2:$A$100,MATCH('Communication Facility (Desc)'!$V122,[1]!MASTER_YES_NO_DESC[#Data],0),0))","v":""},{"$f":"IF('Communication Facility (Desc)'!W122=\"\",\"\",INDEX([1]YES_NO!$A$2:$A$100,MATCH('Communication Facility (Desc)'!$W122,[1]!MASTER_YES_NO_DESC[#Data],0),0))","v":""}]
[{"$f":"IF('Communication Facility (Desc)'!A123=\"\",\"\",'Communication Facility (Desc)'!A123)","v":""},{"$f":"IF('Communication Facility (Desc)'!B123=\"\",\"\",'Communication Facility (Desc)'!B123)","v":""},{"$f":"IF('Communication Facility (Desc)'!C123=\"\",\"\",'Communication Facility (Desc)'!C123)","v":""},{"$f":"IF('Communication Facility (Desc)'!D123=\"\",\"\",'Communication Facility (Desc)'!D123)","v":""},{"$f":"IF('Communication Facility (Desc)'!E123=\"\",\"\",INDEX([1]FACILITY_TYPE!$A$2:$A$100,MATCH('Communication Facility (Desc)'!$E123,[1]!MASTER_FACILITY_TYPE_DESC[#Data],0),0))","v":""},{"$f":"IF('Communication Facility (Desc)'!F123=\"\",\"\",INDEX([1]OWNER!$A$2:$A$100,MATCH('Communication Facility (Desc)'!$F123,[1]!MASTER_OWNER_DESC[#Data],0),0))","v":""},{"$f":"IF('Communication Facility (Desc)'!G123=\"\",\"\",IF('Communication Facility (Desc)'!G123=\"\",\"\",INDEX([1]COUNTY!$A$2:$A$80,MATCH('Communication Facility (Desc)'!G123,[1]!MASTER_COUNTY_NAME[#Data],0),0)))","v":""},{"$f":"IF('Communication Facility (Desc)'!H123=\"\",\"\",'Communication Facility (Desc)'!H123)","v":""},{"$f":"IF('Communication Facility (Desc)'!I123=\"\",\"\",'Communication Facility (Desc)'!I123)","v":""},{"$f":"IF('Communication Facility (Desc)'!J123=\"\",\"\",'Communication Facility (Desc)'!J123)","v":""},{"$f":"IF('Communication Facility (Desc)'!K123=\"\",\"\",INDEX([1]CABINET_TYPE!$A$2:$A$100,MATCH('Communication Facility (Desc)'!$K123,[1]!MASTER_CABINET_TYPE_DESC[#Data],0),0))","v":""},{"$f":"IF('Communication Facility (Desc)'!L123=\"\",\"\",INDEX([1]CABINET_MOUNT_TYPE!$A$2:$A$100,MATCH('Communication Facility (Desc)'!L123,[1]!MASTER_CABINET_MOUNT_TYPE_DESC[#Data],0),0))","v":""},{"$f":"IF('Communication Facility (Desc)'!M123=\"\",\"\",INDEX([1]YES_NO!$A$2:$A$100,MATCH('Communication Facility (Desc)'!M123,[1]!MASTER_YES_NO_DESC[#Data],0),0))","v":""},{"$f":"IF('Communication Facility (Desc)'!N123=\"\",\"\",INDEX([1]BUILDING_TYPE!$A$2:$A$100,MATCH('Communication Facility (Desc)'!$N123,[1]!MASTER_BUILDING_TYPE_DESC[#Data],0),0))","v":""},{"$f":"IF('Communication Facility (Desc)'!O123=\"\",\"\",'Communication Facility (Desc)'!O123)","v":""},{"$f":"IF('Communication Facility (Desc)'!P123=\"\",\"\",INDEX([1]BUILDING_MTL!$A$2:$A$100,MATCH('Communication Facility (Desc)'!$P123,[1]!MASTER_BUILDING_MTL_DESC[#Data],0),0))","v":""},{"$f":"IF('Communication Facility (Desc)'!Q123=\"\",\"\",INDEX([1]KEY_TYPE!$A$2:$A$100,MATCH('Communication Facility (Desc)'!$Q123,[1]!MASTER_KEY_TYPE_DESC[#Data],0),0))","v":""},{"$f":"IF('Communication Facility (Desc)'!R123=\"\",\"\",'Communication Facility (Desc)'!R123)","v":""},{"$f":"IF('Communication Facility (Desc)'!S123=\"\",\"\",INDEX([1]FILTER_TYPE!$A$2:$A$100,MATCH('Communication Facility (Desc)'!$S123,[1]!MASTER_FILTER_TYPE_DESC[#Data],0),0))","v":""},{"$f":"IF('Communication Facility (Desc)'!T123=\"\",\"\",INDEX([1]FILTER_SIZE!$A$2:$A$100,MATCH('Communication Facility (Desc)'!$T123,[1]!MASTER_FILTER_SIZE_DESC[#Data],0),0))","v":""},{"$f":"IF('Communication Facility (Desc)'!U123=\"\",\"\",'Communication Facility (Desc)'!U123)","v":""},{"$f":"IF('Communication Facility (Desc)'!V123=\"\",\"\",INDEX([1]YES_NO!$A$2:$A$100,MATCH('Communication Facility (Desc)'!$V123,[1]!MASTER_YES_NO_DESC[#Data],0),0))","v":""},{"$f":"IF('Communication Facility (Desc)'!W123=\"\",\"\",INDEX([1]YES_NO!$A$2:$A$100,MATCH('Communication Facility (Desc)'!$W123,[1]!MASTER_YES_NO_DESC[#Data],0),0))","v":""}]
[{"$f":"IF('Communication Facility (Desc)'!A124=\"\",\"\",'Communication Facility (Desc)'!A124)","v":""},{"$f":"IF('Communication Facility (Desc)'!B124=\"\",\"\",'Communication Facility (Desc)'!B124)","v":""},{"$f":"IF('Communication Facility (Desc)'!C124=\"\",\"\",'Communication Facility (Desc)'!C124)","v":""},{"$f":"IF('Communication Facility (Desc)'!D124=\"\",\"\",'Communication Facility (Desc)'!D124)","v":""},{"$f":"IF('Communication Facility (Desc)'!E124=\"\",\"\",INDEX([1]FACILITY_TYPE!$A$2:$A$100,MATCH('Communication Facility (Desc)'!$E124,[1]!MASTER_FACILITY_TYPE_DESC[#Data],0),0))","v":""},{"$f":"IF('Communication Facility (Desc)'!F124=\"\",\"\",INDEX([1]OWNER!$A$2:$A$100,MATCH('Communication Facility (Desc)'!$F124,[1]!MASTER_OWNER_DESC[#Data],0),0))","v":""},{"$f":"IF('Communication Facility (Desc)'!G124=\"\",\"\",IF('Communication Facility (Desc)'!G124=\"\",\"\",INDEX([1]COUNTY!$A$2:$A$80,MATCH('Communication Facility (Desc)'!G124,[1]!MASTER_COUNTY_NAME[#Data],0),0)))","v":""},{"$f":"IF('Communication Facility (Desc)'!H124=\"\",\"\",'Communication Facility (Desc)'!H124)","v":""},{"$f":"IF('Communication Facility (Desc)'!I124=\"\",\"\",'Communication Facility (Desc)'!I124)","v":""},{"$f":"IF('Communication Facility (Desc)'!J124=\"\",\"\",'Communication Facility (Desc)'!J124)","v":""},{"$f":"IF('Communication Facility (Desc)'!K124=\"\",\"\",INDEX([1]CABINET_TYPE!$A$2:$A$100,MATCH('Communication Facility (Desc)'!$K124,[1]!MASTER_CABINET_TYPE_DESC[#Data],0),0))","v":""},{"$f":"IF('Communication Facility (Desc)'!L124=\"\",\"\",INDEX([1]CABINET_MOUNT_TYPE!$A$2:$A$100,MATCH('Communication Facility (Desc)'!L124,[1]!MASTER_CABINET_MOUNT_TYPE_DESC[#Data],0),0))","v":""},{"$f":"IF('Communication Facility (Desc)'!M124=\"\",\"\",INDEX([1]YES_NO!$A$2:$A$100,MATCH('Communication Facility (Desc)'!M124,[1]!MASTER_YES_NO_DESC[#Data],0),0))","v":""},{"$f":"IF('Communication Facility (Desc)'!N124=\"\",\"\",INDEX([1]BUILDING_TYPE!$A$2:$A$100,MATCH('Communication Facility (Desc)'!$N124,[1]!MASTER_BUILDING_TYPE_DESC[#Data],0),0))","v":""},{"$f":"IF('Communication Facility (Desc)'!O124=\"\",\"\",'Communication Facility (Desc)'!O124)","v":""},{"$f":"IF('Communication Facility (Desc)'!P124=\"\",\"\",INDEX([1]BUILDING_MTL!$A$2:$A$100,MATCH('Communication Facility (Desc)'!$P124,[1]!MASTER_BUILDING_MTL_DESC[#Data],0),0))","v":""},{"$f":"IF('Communication Facility (Desc)'!Q124=\"\",\"\",INDEX([1]KEY_TYPE!$A$2:$A$100,MATCH('Communication Facility (Desc)'!$Q124,[1]!MASTER_KEY_TYPE_DESC[#Data],0),0))","v":""},{"$f":"IF('Communication Facility (Desc)'!R124=\"\",\"\",'Communication Facility (Desc)'!R124)","v":""},{"$f":"IF('Communication Facility (Desc)'!S124=\"\",\"\",INDEX([1]FILTER_TYPE!$A$2:$A$100,MATCH('Communication Facility (Desc)'!$S124,[1]!MASTER_FILTER_TYPE_DESC[#Data],0),0))","v":""},{"$f":"IF('Communication Facility (Desc)'!T124=\"\",\"\",INDEX([1]FILTER_SIZE!$A$2:$A$100,MATCH('Communication Facility (Desc)'!$T124,[1]!MASTER_FILTER_SIZE_DESC[#Data],0),0))","v":""},{"$f":"IF('Communication Facility (Desc)'!U124=\"\",\"\",'Communication Facility (Desc)'!U124)","v":""},{"$f":"IF('Communication Facility (Desc)'!V124=\"\",\"\",INDEX([1]YES_NO!$A$2:$A$100,MATCH('Communication Facility (Desc)'!$V124,[1]!MASTER_YES_NO_DESC[#Data],0),0))","v":""},{"$f":"IF('Communication Facility (Desc)'!W124=\"\",\"\",INDEX([1]YES_NO!$A$2:$A$100,MATCH('Communication Facility (Desc)'!$W124,[1]!MASTER_YES_NO_DESC[#Data],0),0))","v":""}]
[{"$f":"IF('Communication Facility (Desc)'!A125=\"\",\"\",'Communication Facility (Desc)'!A125)","v":""},{"$f":"IF('Communication Facility (Desc)'!B125=\"\",\"\",'Communication Facility (Desc)'!B125)","v":""},{"$f":"IF('Communication Facility (Desc)'!C125=\"\",\"\",'Communication Facility (Desc)'!C125)","v":""},{"$f":"IF('Communication Facility (Desc)'!D125=\"\",\"\",'Communication Facility (Desc)'!D125)","v":""},{"$f":"IF('Communication Facility (Desc)'!E125=\"\",\"\",INDEX([1]FACILITY_TYPE!$A$2:$A$100,MATCH('Communication Facility (Desc)'!$E125,[1]!MASTER_FACILITY_TYPE_DESC[#Data],0),0))","v":""},{"$f":"IF('Communication Facility (Desc)'!F125=\"\",\"\",INDEX([1]OWNER!$A$2:$A$100,MATCH('Communication Facility (Desc)'!$F125,[1]!MASTER_OWNER_DESC[#Data],0),0))","v":""},{"$f":"IF('Communication Facility (Desc)'!G125=\"\",\"\",IF('Communication Facility (Desc)'!G125=\"\",\"\",INDEX([1]COUNTY!$A$2:$A$80,MATCH('Communication Facility (Desc)'!G125,[1]!MASTER_COUNTY_NAME[#Data],0),0)))","v":""},{"$f":"IF('Communication Facility (Desc)'!H125=\"\",\"\",'Communication Facility (Desc)'!H125)","v":""},{"$f":"IF('Communication Facility (Desc)'!I125=\"\",\"\",'Communication Facility (Desc)'!I125)","v":""},{"$f":"IF('Communication Facility (Desc)'!J125=\"\",\"\",'Communication Facility (Desc)'!J125)","v":""},{"$f":"IF('Communication Facility (Desc)'!K125=\"\",\"\",INDEX([1]CABINET_TYPE!$A$2:$A$100,MATCH('Communication Facility (Desc)'!$K125,[1]!MASTER_CABINET_TYPE_DESC[#Data],0),0))","v":""},{"$f":"IF('Communication Facility (Desc)'!L125=\"\",\"\",INDEX([1]CABINET_MOUNT_TYPE!$A$2:$A$100,MATCH('Communication Facility (Desc)'!L125,[1]!MASTER_CABINET_MOUNT_TYPE_DESC[#Data],0),0))","v":""},{"$f":"IF('Communication Facility (Desc)'!M125=\"\",\"\",INDEX([1]YES_NO!$A$2:$A$100,MATCH('Communication Facility (Desc)'!M125,[1]!MASTER_YES_NO_DESC[#Data],0),0))","v":""},{"$f":"IF('Communication Facility (Desc)'!N125=\"\",\"\",INDEX([1]BUILDING_TYPE!$A$2:$A$100,MATCH('Communication Facility (Desc)'!$N125,[1]!MASTER_BUILDING_TYPE_DESC[#Data],0),0))","v":""},{"$f":"IF('Communication Facility (Desc)'!O125=\"\",\"\",'Communication Facility (Desc)'!O125)","v":""},{"$f":"IF('Communication Facility (Desc)'!P125=\"\",\"\",INDEX([1]BUILDING_MTL!$A$2:$A$100,MATCH('Communication Facility (Desc)'!$P125,[1]!MASTER_BUILDING_MTL_DESC[#Data],0),0))","v":""},{"$f":"IF('Communication Facility (Desc)'!Q125=\"\",\"\",INDEX([1]KEY_TYPE!$A$2:$A$100,MATCH('Communication Facility (Desc)'!$Q125,[1]!MASTER_KEY_TYPE_DESC[#Data],0),0))","v":""},{"$f":"IF('Communication Facility (Desc)'!R125=\"\",\"\",'Communication Facility (Desc)'!R125)","v":""},{"$f":"IF('Communication Facility (Desc)'!S125=\"\",\"\",INDEX([1]FILTER_TYPE!$A$2:$A$100,MATCH('Communication Facility (Desc)'!$S125,[1]!MASTER_FILTER_TYPE_DESC[#Data],0),0))","v":""},{"$f":"IF('Communication Facility (Desc)'!T125=\"\",\"\",INDEX([1]FILTER_SIZE!$A$2:$A$100,MATCH('Communication Facility (Desc)'!$T125,[1]!MASTER_FILTER_SIZE_DESC[#Data],0),0))","v":""},{"$f":"IF('Communication Facility (Desc)'!U125=\"\",\"\",'Communication Facility (Desc)'!U125)","v":""},{"$f":"IF('Communication Facility (Desc)'!V125=\"\",\"\",INDEX([1]YES_NO!$A$2:$A$100,MATCH('Communication Facility (Desc)'!$V125,[1]!MASTER_YES_NO_DESC[#Data],0),0))","v":""},{"$f":"IF('Communication Facility (Desc)'!W125=\"\",\"\",INDEX([1]YES_NO!$A$2:$A$100,MATCH('Communication Facility (Desc)'!$W125,[1]!MASTER_YES_NO_DESC[#Data],0),0))","v":""}]
[{"$f":"IF('Communication Facility (Desc)'!A126=\"\",\"\",'Communication Facility (Desc)'!A126)","v":""},{"$f":"IF('Communication Facility (Desc)'!B126=\"\",\"\",'Communication Facility (Desc)'!B126)","v":""},{"$f":"IF('Communication Facility (Desc)'!C126=\"\",\"\",'Communication Facility (Desc)'!C126)","v":""},{"$f":"IF('Communication Facility (Desc)'!D126=\"\",\"\",'Communication Facility (Desc)'!D126)","v":""},{"$f":"IF('Communication Facility (Desc)'!E126=\"\",\"\",INDEX([1]FACILITY_TYPE!$A$2:$A$100,MATCH('Communication Facility (Desc)'!$E126,[1]!MASTER_FACILITY_TYPE_DESC[#Data],0),0))","v":""},{"$f":"IF('Communication Facility (Desc)'!F126=\"\",\"\",INDEX([1]OWNER!$A$2:$A$100,MATCH('Communication Facility (Desc)'!$F126,[1]!MASTER_OWNER_DESC[#Data],0),0))","v":""},{"$f":"IF('Communication Facility (Desc)'!G126=\"\",\"\",IF('Communication Facility (Desc)'!G126=\"\",\"\",INDEX([1]COUNTY!$A$2:$A$80,MATCH('Communication Facility (Desc)'!G126,[1]!MASTER_COUNTY_NAME[#Data],0),0)))","v":""},{"$f":"IF('Communication Facility (Desc)'!H126=\"\",\"\",'Communication Facility (Desc)'!H126)","v":""},{"$f":"IF('Communication Facility (Desc)'!I126=\"\",\"\",'Communication Facility (Desc)'!I126)","v":""},{"$f":"IF('Communication Facility (Desc)'!J126=\"\",\"\",'Communication Facility (Desc)'!J126)","v":""},{"$f":"IF('Communication Facility (Desc)'!K126=\"\",\"\",INDEX([1]CABINET_TYPE!$A$2:$A$100,MATCH('Communication Facility (Desc)'!$K126,[1]!MASTER_CABINET_TYPE_DESC[#Data],0),0))","v":""},{"$f":"IF('Communication Facility (Desc)'!L126=\"\",\"\",INDEX([1]CABINET_MOUNT_TYPE!$A$2:$A$100,MATCH('Communication Facility (Desc)'!L126,[1]!MASTER_CABINET_MOUNT_TYPE_DESC[#Data],0),0))","v":""},{"$f":"IF('Communication Facility (Desc)'!M126=\"\",\"\",INDEX([1]YES_NO!$A$2:$A$100,MATCH('Communication Facility (Desc)'!M126,[1]!MASTER_YES_NO_DESC[#Data],0),0))","v":""},{"$f":"IF('Communication Facility (Desc)'!N126=\"\",\"\",INDEX([1]BUILDING_TYPE!$A$2:$A$100,MATCH('Communication Facility (Desc)'!$N126,[1]!MASTER_BUILDING_TYPE_DESC[#Data],0),0))","v":""},{"$f":"IF('Communication Facility (Desc)'!O126=\"\",\"\",'Communication Facility (Desc)'!O126)","v":""},{"$f":"IF('Communication Facility (Desc)'!P126=\"\",\"\",INDEX([1]BUILDING_MTL!$A$2:$A$100,MATCH('Communication Facility (Desc)'!$P126,[1]!MASTER_BUILDING_MTL_DESC[#Data],0),0))","v":""},{"$f":"IF('Communication Facility (Desc)'!Q126=\"\",\"\",INDEX([1]KEY_TYPE!$A$2:$A$100,MATCH('Communication Facility (Desc)'!$Q126,[1]!MASTER_KEY_TYPE_DESC[#Data],0),0))","v":""},{"$f":"IF('Communication Facility (Desc)'!R126=\"\",\"\",'Communication Facility (Desc)'!R126)","v":""},{"$f":"IF('Communication Facility (Desc)'!S126=\"\",\"\",INDEX([1]FILTER_TYPE!$A$2:$A$100,MATCH('Communication Facility (Desc)'!$S126,[1]!MASTER_FILTER_TYPE_DESC[#Data],0),0))","v":""},{"$f":"IF('Communication Facility (Desc)'!T126=\"\",\"\",INDEX([1]FILTER_SIZE!$A$2:$A$100,MATCH('Communication Facility (Desc)'!$T126,[1]!MASTER_FILTER_SIZE_DESC[#Data],0),0))","v":""},{"$f":"IF('Communication Facility (Desc)'!U126=\"\",\"\",'Communication Facility (Desc)'!U126)","v":""},{"$f":"IF('Communication Facility (Desc)'!V126=\"\",\"\",INDEX([1]YES_NO!$A$2:$A$100,MATCH('Communication Facility (Desc)'!$V126,[1]!MASTER_YES_NO_DESC[#Data],0),0))","v":""},{"$f":"IF('Communication Facility (Desc)'!W126=\"\",\"\",INDEX([1]YES_NO!$A$2:$A$100,MATCH('Communication Facility (Desc)'!$W126,[1]!MASTER_YES_NO_DESC[#Data],0),0))","v":""}]
[{"$f":"IF('Communication Facility (Desc)'!A127=\"\",\"\",'Communication Facility (Desc)'!A127)","v":""},{"$f":"IF('Communication Facility (Desc)'!B127=\"\",\"\",'Communication Facility (Desc)'!B127)","v":""},{"$f":"IF('Communication Facility (Desc)'!C127=\"\",\"\",'Communication Facility (Desc)'!C127)","v":""},{"$f":"IF('Communication Facility (Desc)'!D127=\"\",\"\",'Communication Facility (Desc)'!D127)","v":""},{"$f":"IF('Communication Facility (Desc)'!E127=\"\",\"\",INDEX([1]FACILITY_TYPE!$A$2:$A$100,MATCH('Communication Facility (Desc)'!$E127,[1]!MASTER_FACILITY_TYPE_DESC[#Data],0),0))","v":""},{"$f":"IF('Communication Facility (Desc)'!F127=\"\",\"\",INDEX([1]OWNER!$A$2:$A$100,MATCH('Communication Facility (Desc)'!$F127,[1]!MASTER_OWNER_DESC[#Data],0),0))","v":""},{"$f":"IF('Communication Facility (Desc)'!G127=\"\",\"\",IF('Communication Facility (Desc)'!G127=\"\",\"\",INDEX([1]COUNTY!$A$2:$A$80,MATCH('Communication Facility (Desc)'!G127,[1]!MASTER_COUNTY_NAME[#Data],0),0)))","v":""},{"$f":"IF('Communication Facility (Desc)'!H127=\"\",\"\",'Communication Facility (Desc)'!H127)","v":""},{"$f":"IF('Communication Facility (Desc)'!I127=\"\",\"\",'Communication Facility (Desc)'!I127)","v":""},{"$f":"IF('Communication Facility (Desc)'!J127=\"\",\"\",'Communication Facility (Desc)'!J127)","v":""},{"$f":"IF('Communication Facility (Desc)'!K127=\"\",\"\",INDEX([1]CABINET_TYPE!$A$2:$A$100,MATCH('Communication Facility (Desc)'!$K127,[1]!MASTER_CABINET_TYPE_DESC[#Data],0),0))","v":""},{"$f":"IF('Communication Facility (Desc)'!L127=\"\",\"\",INDEX([1]CABINET_MOUNT_TYPE!$A$2:$A$100,MATCH('Communication Facility (Desc)'!L127,[1]!MASTER_CABINET_MOUNT_TYPE_DESC[#Data],0),0))","v":""},{"$f":"IF('Communication Facility (Desc)'!M127=\"\",\"\",INDEX([1]YES_NO!$A$2:$A$100,MATCH('Communication Facility (Desc)'!M127,[1]!MASTER_YES_NO_DESC[#Data],0),0))","v":""},{"$f":"IF('Communication Facility (Desc)'!N127=\"\",\"\",INDEX([1]BUILDING_TYPE!$A$2:$A$100,MATCH('Communication Facility (Desc)'!$N127,[1]!MASTER_BUILDING_TYPE_DESC[#Data],0),0))","v":""},{"$f":"IF('Communication Facility (Desc)'!O127=\"\",\"\",'Communication Facility (Desc)'!O127)","v":""},{"$f":"IF('Communication Facility (Desc)'!P127=\"\",\"\",INDEX([1]BUILDING_MTL!$A$2:$A$100,MATCH('Communication Facility (Desc)'!$P127,[1]!MASTER_BUILDING_MTL_DESC[#Data],0),0))","v":""},{"$f":"IF('Communication Facility (Desc)'!Q127=\"\",\"\",INDEX([1]KEY_TYPE!$A$2:$A$100,MATCH('Communication Facility (Desc)'!$Q127,[1]!MASTER_KEY_TYPE_DESC[#Data],0),0))","v":""},{"$f":"IF('Communication Facility (Desc)'!R127=\"\",\"\",'Communication Facility (Desc)'!R127)","v":""},{"$f":"IF('Communication Facility (Desc)'!S127=\"\",\"\",INDEX([1]FILTER_TYPE!$A$2:$A$100,MATCH('Communication Facility (Desc)'!$S127,[1]!MASTER_FILTER_TYPE_DESC[#Data],0),0))","v":""},{"$f":"IF('Communication Facility (Desc)'!T127=\"\",\"\",INDEX([1]FILTER_SIZE!$A$2:$A$100,MATCH('Communication Facility (Desc)'!$T127,[1]!MASTER_FILTER_SIZE_DESC[#Data],0),0))","v":""},{"$f":"IF('Communication Facility (Desc)'!U127=\"\",\"\",'Communication Facility (Desc)'!U127)","v":""},{"$f":"IF('Communication Facility (Desc)'!V127=\"\",\"\",INDEX([1]YES_NO!$A$2:$A$100,MATCH('Communication Facility (Desc)'!$V127,[1]!MASTER_YES_NO_DESC[#Data],0),0))","v":""},{"$f":"IF('Communication Facility (Desc)'!W127=\"\",\"\",INDEX([1]YES_NO!$A$2:$A$100,MATCH('Communication Facility (Desc)'!$W127,[1]!MASTER_YES_NO_DESC[#Data],0),0))","v":""}]